{"text_format":"1","workbook":"xlsx","n_sheets":8,"sheets":["Portada","Análisis","Registradas y Recibidas","Traslados","Peticiones asignadas a la entid","Peticiones ciudadanas por tema","Recomendaciones a la ciudadanía","para pqr"],"not_rendered":{"charts":1,"images":6,"macros":1,"external_links":4,"defined_names":36,"comments":0,"pivot_tables":4},"unopened":[],"bounds":{"document_bytes":16777216,"sheet_cells":100000,"rows_first":2000,"rows_last":500,"rows_between":2000,"halvings":0,"cell_chars":16384,"cell_head_chars":4096},"cells_cut":0,"cells_raw":0,"read":"whole","date_system":"1900"}

{"sheet":"Portada","index":0,"n_rows":0,"n_cols":0,"rows_kept":0,"cut":false,"hidden":false,"merged":[]}

{"sheet":"Análisis","index":1,"n_rows":77,"n_cols":29,"rows_kept":77,"cut":false,"hidden":false,"merged":[[51,22,51,23],[51,24,51,25],[51,26,51,27],[51,28,51,29],[46,18,46,19],[46,20,46,21],[46,22,46,23],[47,18,47,19],[47,20,47,21],[47,22,47,23],[48,18,48,19],[48,20,48,21],[48,22,48,23],[49,18,49,19],[49,20,49,21],[49,22,49,23],[42,2,44,3],[40,5,43,34],[46,6,46,15],[47,26,47,27],[47,16,47,17],[47,24,47,25],[46,28,46,29],[46,16,46,17],[46,24,46,25],[46,26,46,27],[28,15,28,24],[29,15,29,24],[30,15,30,24],[21,2,23,3],[25,2,26,3],[25,5,26,34],[20,5,23,34],[27,5,27,14],[27,25,27,33],[27,15,27,24],[30,25,30,33],[29,25,29,33],[28,25,28,33],[28,5,28,14],[29,5,29,14],[30,5,30,14],[31,15,31,24],[31,5,31,14],[32,5,32,14],[31,25,31,33],[33,5,33,14],[35,5,35,14],[34,5,34,14],[32,25,32,33],[32,15,32,24],[34,25,34,33],[35,25,35,33],[33,15,33,24],[34,15,34,24],[35,15,35,24],[33,25,33,33],[39,5,39,34],[37,15,37,24],[36,25,36,33],[37,5,37,14],[36,5,36,14],[37,25,37,33],[36,15,36,24],[56,2,60,3],[51,6,51,15],[51,16,51,17],[51,18,51,19],[51,20,51,21],[50,24,50,25],[50,26,50,27],[47,28,47,29],[48,16,48,17],[48,24,48,25],[48,26,48,27],[49,16,49,17],[49,24,49,25],[49,26,49,27],[50,22,50,23],[50,18,50,19],[50,20,50,21],[48,28,48,29],[49,28,49,29],[50,28,50,29],[50,16,50,17]]}
[]
[]
[]
[]
[]
[]
[]
[]
[]
[]
[]
[]
[]
[]
[]
[]
[]
[]
[null,null,null,null,null,null,null,null,null,null,null,null,null,null,"Enero 2026"]
[]
[null,null,null,null,null,"Tiempos de respuesta de las solicitudes de información recibidas "]
[null,null,"Tipología de Peticiones recibidas en el mes "]
[]
[]
[]
[null,null,"En la siguiente tabla se registra la cantidad de peticiones recibidas por la Defensoría del Espacio Público en el mes de estudio. ",null,null,"A partir del tiempo estipulado en la Ley 1755 del 2015 y el reporte emitido por la Secretaría General como insumo para la presentación del presente informe se presenta el tiempo promedio por tipología a continuación"]
[]
[null,null,null,null,null,"Tipología",null,null,null,null,null,null,null,null,null,"Tiempos Ley 1755 de 2015",null,null,null,null,null,null,null,null,null,"Promedio Tiempos de Respuesta"]
[null,null,null,null,null,"Consulta",null,null,null,null,null,null,null,null,null,30,null,null,null,null,null,null,null,null,null,"9 días"]
[null,null,null,null,null,"Derecho de Interés Particular",null,null,null,null,null,null,null,null,null,15,null,null,null,null,null,null,null,null,null,"9 días"]
[null,null,null,null,null,"Derecho de Interés General",null,null,null,null,null,null,null,null,null,15,15,null,null,null,15,15,null,null,null,"9 días"]
[null,null,null,null,null,"Denuncia por Actos de Corrupción",null,null,null,null,null,null,null,null,null,15,15,null,null,null,15,15,null,null,null,"0 días"]
[null,null,null,null,null,"Felicitación",null,null,null,null,null,null,null,null,null,15,15,null,null,null,15,15,null,null,null,"0 días"]
[null,null,null,null,null,"Queja",null,null,null,null,null,null,null,null,null,15,15,null,null,null,15,15,null,null,null,"1 días"]
[null,null,null,null,null,"Reclamo",null,null,null,null,null,null,null,null,null,15,15,null,null,null,15,15,null,null,null,"1 días"]
[null,null,null,null,null,"Sugerencia",null,null,null,null,null,null,null,null,null,15,15,null,null,null,15,15,null,null,null,"1 días"]
[null,null,null,null,null,"Solicitud Acceso a la Información",null,null,null,null,null,null,null,null,null,10,10,null,null,null,10,10,null,null,null,"0 días"]
[null,null,null,null,null,"Solicitud de Copia",null,null,null,null,null,null,null,null,null,10,10,null,null,null,10,10,null,null,null,"0 días"]
[]
[null,null,"Número de solicitudes \nrecibidas y registradas","Número de solicitudes trasladadas a otra entidad",null,"Nota: Para la tipología:  Denuncia por actos de corrupción; no se presentaron durante el mes de enero del 2026."]
[null,null,832,430,null,"Con base en el reporte del Sistema de Gestión de Peticiones Ciudadanas Bogotá te escucha y de conformidad con el tiempo promedio de respuesta de las dependencias y/o áreas de la Defensoría del Espacio Público fue de 11 días, sin embargo, es pertinente aclarar que este reporte para el mes de análisis tiene el promedio del total de las peticiones ingresadas:"]
[]
[null,null,"De acuerdo con las cifras anteriores, tomadas del reporte del sistema Bogotá te escucha, las solicitudes recibidas y registradas por la Defensoría del Espacio Público se clasifican de la siguiente manera por tipo de petición:"]
[]
[]
[]
[null,null,"Tipo de petición","Cantidad",null,null,"Dependencia",null,null,null,null,null,null,null,null,null,"CONSULTA",null,"DERECHO DE PETICION DE INTERES GENERAL",null,"DERECHO DE PETICION DE INTERES PARTICULAR",null,"QUEJA",null,"RECLAMO",null,"SUGERENCIA",null,"TOTAL GENERAL"]
[null,null,"DERECHO DE PETICION DE INTERES GENERAL",612,null,null,"AREA DE ATENCION A LA CIUDADANIA",null,null,null,null,null,null,null,null,null,1.75,null,1,null,1.05,null,1,null,1,null,1,null,{"$f":"+AVERAGE(Q48:AB48)","v":1.1333333333333333}]
[null,null,"DERECHO DE PETICION DE INTERES PARTICULAR",113,null,null,"SUBDIRECCION DE GESTION INMOBILIARIA Y DEL ESPACIO PUBLICO",null,null,null,null,null,null,null,null,null,16.8,null,11.090909090909092,null,11.583333333333334,null,null,null,null,null,null,null,{"$f":"+AVERAGE(Q49:AB49)","v":13.158080808080809}]
[null,null,"QUEJA",64,null,null,"SUBDIRECCION DE GESTION CORPORATIVA",null,null,null,null,null,null,null,null,null,null,null,null,null,13,null,null,null,null,null,null,null,{"$f":"+AVERAGE(Q50:AB50)","v":13}]
[null,null,"CONSULTA",21,null,null,"OFICINA ASESORA DE COMUNICACIONES",null,null,null,null,null,null,null,null,null,null,null,15,null,null,null,null,null,null,null,null,null,{"$f":"+AVERAGE(Q51:AB51)","v":15}]
[null,null,"RECLAMO",15,null,null,"Promedio días por tipología ",null,null,null,null,null,null,null,null,null,{"$f":"AVERAGE(Q48:R51)","v":9.2750000000000004},null,{"$f":"AVERAGE(S48:T51)","v":9.0303030303030312},null,{"$f":"AVERAGE(U48:V51)","v":8.5444444444444443},null,{"$f":"AVERAGE(W48:X51)","v":1},null,{"$f":"AVERAGE(Y48:Z51)","v":1},null,{"$f":"AVERAGE(AA48:AB51)","v":1},null,{"$f":"AVERAGE(AC48:AD51)","v":10.572853535353536}]
[null,null,"SUGERENCIA",6]
[null,null,"SOLICITUD DE ACCESO A LA INFORMACION",1]
[null,null,"Total general",{"$f":"SUM(D48:D54)","v":832}]
[]
[null,null,"NOTA: La Defensoría del Espacio Público trasladó por competencia, 430 solicitudes. Es de aclarar que este dato es el resultado de la aplicación de los filtros consignados en la Guía para la generación y manejo del “REPORTE GESTIÓN DE PETICIONES” "]
[{"$f":"+#REF!","v":{"$error":"#REF!"}}]
[{"$f":"+#REF!","v":{"$error":"#REF!"}}]
[{"$f":"+#REF!","v":{"$error":"#REF!"}}]
[{"$f":"+#REF!","v":{"$error":"#REF!"}}]
[]
[{"$f":"+#REF!","v":{"$error":"#REF!"}}]
[{"$f":"+#REF!","v":{"$error":"#REF!"}}]
[{"$f":"+#REF!","v":{"$error":"#REF!"}}]
[]
[]
[{"$f":"+#REF!","v":{"$error":"#REF!"}}]
[{"$f":"+#REF!","v":{"$error":"#REF!"}}]
[{"$f":"+#REF!","v":{"$error":"#REF!"}}]
[]
[{"$f":"+#REF!","v":{"$error":"#REF!"}}]
[{"$f":"+#REF!","v":{"$error":"#REF!"}}]
[{"$f":"+#REF!","v":{"$error":"#REF!"}}]
[{"$f":"+#REF!","v":{"$error":"#REF!"}}]
[{"$f":"+#REF!","v":{"$error":"#REF!"}}]
[{"$f":"+#REF!","v":{"$error":"#REF!"}}]

{"sheet":"Registradas y Recibidas","index":2,"n_rows":851,"n_cols":7,"rows_kept":851,"cut":false,"hidden":false,"merged":[[8,1,14,2],[12,3,14,4]]}
[]
[]
[]
[]
[]
[]
[]
[]
[null,"REPORTE  GESTIÓN DE PETICIONES\n\nFecha:  2026- 01- 01    a   2026 - 01 - 31\nEstado de Petición:  Al Periodo"]
[]
[]
[]
[]
[]
[]
[]
[]
[]
[null,"Número petición\nNumero de registro en el Sistema","Dependencia:\nNombre asociado al usuario que tiene a cargo la petición ","Canal:\nNombre del canal parametrizado en el sistema por el cual fue registrada la petición","Tipología actualizada: \nTipo de documento utilizado por la entidad","Días gestión\nDías calendario transcurridos desde la fecha de inicio de términos hasta el último día del mes","Estado del Requerimiento\n \"Gestionado\" o \"Pendiente\" de respuesta definitiva por  parte de la Defensoría del Espacio Público o de las entidades competentes"]
[null,1802026,"AREA DE ATENCION A LA CIUDADANIA","WEB","DERECHO DE PETICION DE INTERES GENERAL",1,"GESTIONADO"]
[null,1832026,"AREA DE ATENCION A LA CIUDADANIA","WEB","DERECHO DE PETICION DE INTERES GENERAL",1,"GESTIONADO"]
[null,2762026,"SUBDIRECCION DE GESTION INMOBILIARIA Y DEL ESPACIO PUBLICO","WEB","DERECHO DE PETICION DE INTERES GENERAL",9,"GESTIONADO"]
[null,2912026,"AREA DE ATENCION A LA CIUDADANIA","WEB","DERECHO DE PETICION DE INTERES GENERAL",1,"GESTIONADO"]
[null,3082026,"AREA DE ATENCION A LA CIUDADANIA","REDES SOCIALES","DERECHO DE PETICION DE INTERES PARTICULAR",1,"GESTIONADO"]
[null,6302026,"SUBDIRECCION DE GESTION INMOBILIARIA Y DEL ESPACIO PUBLICO","E-MAIL","DERECHO DE PETICION DE INTERES GENERAL",9,"GESTIONADO"]
[null,6452026,"AREA DE ATENCION A LA CIUDADANIA","E-MAIL","DERECHO DE PETICION DE INTERES GENERAL",1,"GESTIONADO"]
[null,6542026,"AREA DE ATENCION A LA CIUDADANIA","E-MAIL","DERECHO DE PETICION DE INTERES GENERAL",1,"GESTIONADO"]
[null,6972026,"AREA DE ATENCION A LA CIUDADANIA","WEB","DERECHO DE PETICION DE INTERES PARTICULAR",1,"GESTIONADO"]
[null,8952026,"AREA DE ATENCION A LA CIUDADANIA","WEB","DERECHO DE PETICION DE INTERES GENERAL",1,"GESTIONADO"]
[null,9002026,"AREA DE ATENCION A LA CIUDADANIA","E-MAIL","DERECHO DE PETICION DE INTERES GENERAL",1,"GESTIONADO"]
[null,9962026,"AREA DE ATENCION A LA CIUDADANIA","WEB","CONSULTA",1,"GESTIONADO"]
[null,9992026,"AREA DE ATENCION A LA CIUDADANIA","WEB","DERECHO DE PETICION DE INTERES PARTICULAR",1,"GESTIONADO"]
[null,10092026,"AREA DE ATENCION A LA CIUDADANIA","ESCRITO","DERECHO DE PETICION DE INTERES GENERAL",1,"GESTIONADO"]
[null,10382026,"AREA DE ATENCION A LA CIUDADANIA","WEB","DERECHO DE PETICION DE INTERES GENERAL",1,"GESTIONADO"]
[null,10602026,"OFICINA DE CONTROL DISCIPLINARIO INTERNO","WEB","DERECHO DE PETICION DE INTERES GENERAL",2,"GESTIONADO"]
[null,10612026,"AREA DE ATENCION A LA CIUDADANIA","WEB","DERECHO DE PETICION DE INTERES GENERAL",1,"GESTIONADO"]
[null,10632026,"OFICINA ASESORA DE COMUNICACIONES","WEB","DERECHO DE PETICION DE INTERES GENERAL",15,"GESTIONADO"]
[null,17272026,"AREA DE ATENCION A LA CIUDADANIA","WEB","QUEJA",1,"GESTIONADO"]
[null,17512026,"AREA DE ATENCION A LA CIUDADANIA","WEB","QUEJA",1,"GESTIONADO"]
[null,18912026,"AREA DE ATENCION A LA CIUDADANIA","WEB","DERECHO DE PETICION DE INTERES PARTICULAR",1,"GESTIONADO"]
[null,19882026,"AREA DE ATENCION A LA CIUDADANIA","WEB","DERECHO DE PETICION DE INTERES GENERAL",1,"GESTIONADO"]
[null,21092026,"AREA DE ATENCION A LA CIUDADANIA","WEB","DERECHO DE PETICION DE INTERES PARTICULAR",1,"GESTIONADO"]
[null,21422026,"AREA DE ATENCION A LA CIUDADANIA","WEB","RECLAMO",1,"GESTIONADO"]
[null,21622026,"AREA DE ATENCION A LA CIUDADANIA","WEB","DERECHO DE PETICION DE INTERES GENERAL",1,"GESTIONADO"]
[null,21642026,"AREA DE ATENCION A LA CIUDADANIA","WEB","DERECHO DE PETICION DE INTERES GENERAL",1,"GESTIONADO"]
[null,21792026,"AREA DE ATENCION A LA CIUDADANIA","WEB","DERECHO DE PETICION DE INTERES PARTICULAR",1,"GESTIONADO"]
[null,21892026,"SUBDIRECCION DE GESTION INMOBILIARIA Y DEL ESPACIO PUBLICO","WEB","DERECHO DE PETICION DE INTERES GENERAL",10,"GESTIONADO"]
[null,21942026,"AREA DE ATENCION A LA CIUDADANIA","WEB","DERECHO DE PETICION DE INTERES PARTICULAR",1,"GESTIONADO"]
[null,22762026,"AREA DE ATENCION A LA CIUDADANIA","WEB","QUEJA",1,"GESTIONADO"]
[null,23912026,"AREA DE ATENCION A LA CIUDADANIA","WEB","DERECHO DE PETICION DE INTERES GENERAL",1,"GESTIONADO"]
[null,24142026,"AREA DE ATENCION A LA CIUDADANIA","WEB","DERECHO DE PETICION DE INTERES GENERAL",1,"GESTIONADO"]
[null,25852026,"AREA DE ATENCION A LA CIUDADANIA","WEB","DERECHO DE PETICION DE INTERES GENERAL",1,"GESTIONADO"]
[null,25872026,"AREA DE ATENCION A LA CIUDADANIA","WEB","DERECHO DE PETICION DE INTERES GENERAL",1,"GESTIONADO"]
[null,26132026,"AREA DE ATENCION A LA CIUDADANIA","TELEFONO","DERECHO DE PETICION DE INTERES GENERAL",1,"GESTIONADO"]
[null,26232026,"SUBDIRECCION DE GESTION INMOBILIARIA Y DEL ESPACIO PUBLICO","E-MAIL","DERECHO DE PETICION DE INTERES GENERAL",10,"GESTIONADO"]
[null,26492026,"AREA DE ATENCION A LA CIUDADANIA","E-MAIL","DERECHO DE PETICION DE INTERES GENERAL",1,"GESTIONADO"]
[null,26742026,"SUBDIRECCION DE GESTION INMOBILIARIA Y DEL ESPACIO PUBLICO","E-MAIL","DERECHO DE PETICION DE INTERES PARTICULAR",9,"GESTIONADO"]
[null,27182026,"AREA DE ATENCION A LA CIUDADANIA","E-MAIL","DERECHO DE PETICION DE INTERES GENERAL",1,"GESTIONADO"]
[null,27672026,"AREA DE ATENCION A LA CIUDADANIA","TELEFONO","SUGERENCIA",1,"GESTIONADO"]
[null,28492026,"AREA DE ATENCION A LA CIUDADANIA","WEB","DERECHO DE PETICION DE INTERES GENERAL",1,"GESTIONADO"]
[null,28982026,"AREA DE ATENCION A LA CIUDADANIA","E-MAIL","DERECHO DE PETICION DE INTERES GENERAL",1,"GESTIONADO"]
[null,31152026,"AREA DE ATENCION A LA CIUDADANIA","WEB","DERECHO DE PETICION DE INTERES GENERAL",1,"GESTIONADO"]
[null,31792026,"AREA DE ATENCION A LA CIUDADANIA","WEB","DERECHO DE PETICION DE INTERES GENERAL",1,"GESTIONADO"]
[null,32612026,"SUBDIRECCION DE GESTION CORPORATIVA","WEB","DERECHO DE PETICION DE INTERES PARTICULAR",14,"GESTIONADO"]
[null,32632026,"SUBDIRECCION DE GESTION CORPORATIVA","WEB","DERECHO DE PETICION DE INTERES PARTICULAR",12,"GESTIONADO"]
[null,34142026,"AREA DE ATENCION A LA CIUDADANIA","WEB","SUGERENCIA",1,"GESTIONADO"]
[null,36462026,"AREA DE ATENCION A LA CIUDADANIA","WEB","DERECHO DE PETICION DE INTERES GENERAL",1,"GESTIONADO"]
[null,38472026,"AREA DE ATENCION A LA CIUDADANIA","WEB","QUEJA",1,"GESTIONADO"]
[null,38632026,"AREA DE ATENCION A LA CIUDADANIA","WEB","DERECHO DE PETICION DE INTERES GENERAL",1,"GESTIONADO"]
[null,38722026,"AREA DE ATENCION A LA CIUDADANIA","WEB","QUEJA",1,"GESTIONADO"]
[null,39372026,"AREA DE ATENCION A LA CIUDADANIA","WEB","QUEJA",1,"GESTIONADO"]
[null,56912026,"AREA DE ATENCION A LA CIUDADANIA","WEB","DERECHO DE PETICION DE INTERES GENERAL",1,"GESTIONADO"]
[null,57472026,"SUBDIRECCION DE GESTION INMOBILIARIA Y DEL ESPACIO PUBLICO","ESCRITO","DERECHO DE PETICION DE INTERES PARTICULAR",15,"GESTIONADO"]
[null,57492026,"SUBDIRECCION DE GESTION INMOBILIARIA Y DEL ESPACIO PUBLICO","E-MAIL","DERECHO DE PETICION DE INTERES PARTICULAR",12,"GESTIONADO"]
[null,57642026,"AREA DE ATENCION A LA CIUDADANIA","TELEFONO","SUGERENCIA",1,"GESTIONADO"]
[null,57962026,"AREA DE ATENCION A LA CIUDADANIA","WEB","DERECHO DE PETICION DE INTERES GENERAL",1,"GESTIONADO"]
[null,58052026,"AREA DE ATENCION A LA CIUDADANIA","WEB","DERECHO DE PETICION DE INTERES GENERAL",1,"GESTIONADO"]
[null,58102026,"AREA DE ATENCION A LA CIUDADANIA","WEB","DERECHO DE PETICION DE INTERES GENERAL",1,"GESTIONADO"]
[null,58342026,"AREA DE ATENCION A LA CIUDADANIA","WEB","DERECHO DE PETICION DE INTERES PARTICULAR",1,"GESTIONADO"]
[null,60122026,"AREA DE ATENCION A LA CIUDADANIA","WEB","QUEJA",1,"GESTIONADO"]
[null,61302026,"AREA DE ATENCION A LA CIUDADANIA","WEB","DERECHO DE PETICION DE INTERES PARTICULAR",1,"GESTIONADO"]
[null,62692026,"AREA DE ATENCION A LA CIUDADANIA","WEB","DERECHO DE PETICION DE INTERES GENERAL",1,"GESTIONADO"]
[null,64022026,"AREA DE ATENCION A LA CIUDADANIA","TELEFONO","DERECHO DE PETICION DE INTERES GENERAL",1,"GESTIONADO"]
[null,65732026,"AREA DE ATENCION A LA CIUDADANIA","WEB","DERECHO DE PETICION DE INTERES PARTICULAR",1,"GESTIONADO"]
[null,65762026,"AREA DE ATENCION A LA CIUDADANIA","E-MAIL","DERECHO DE PETICION DE INTERES GENERAL",1,"GESTIONADO"]
[null,66042026,"SUBDIRECCION DE GESTION INMOBILIARIA Y DEL ESPACIO PUBLICO","E-MAIL","DERECHO DE PETICION DE INTERES GENERAL",15,"GESTIONADO"]
[null,66432026,"SUBDIRECCION DE GESTION INMOBILIARIA Y DEL ESPACIO PUBLICO","E-MAIL","DERECHO DE PETICION DE INTERES GENERAL",14,"GESTIONADO"]
[null,67782026,"AREA DE ATENCION A LA CIUDADANIA","E-MAIL","DERECHO DE PETICION DE INTERES GENERAL",1,"GESTIONADO"]
[null,69032026,"AREA DE ATENCION A LA CIUDADANIA","WEB","QUEJA",1,"GESTIONADO"]
[null,69052026,"AREA DE ATENCION A LA CIUDADANIA","E-MAIL","DERECHO DE PETICION DE INTERES GENERAL",1,"GESTIONADO"]
[null,69232026,"AREA DE ATENCION A LA CIUDADANIA","WEB","DERECHO DE PETICION DE INTERES GENERAL",1,"GESTIONADO"]
[null,70362026,"AREA DE ATENCION A LA CIUDADANIA","WEB","QUEJA",1,"GESTIONADO"]
[null,70692026,"AREA DE ATENCION A LA CIUDADANIA","E-MAIL","DERECHO DE PETICION DE INTERES GENERAL",1,"GESTIONADO"]
[null,71132026,"AREA DE ATENCION A LA CIUDADANIA","WEB","DERECHO DE PETICION DE INTERES PARTICULAR",1,"GESTIONADO"]
[null,72392026,"AREA DE ATENCION A LA CIUDADANIA","WEB","DERECHO DE PETICION DE INTERES GENERAL",1,"GESTIONADO"]
[null,74422026,"AREA DE ATENCION A LA CIUDADANIA","WEB","DERECHO DE PETICION DE INTERES PARTICULAR",2,"GESTIONADO"]
[null,86742026,"AREA DE ATENCION A LA CIUDADANIA","E-MAIL","DERECHO DE PETICION DE INTERES PARTICULAR",1,"GESTIONADO"]
[null,86802026,"AREA DE ATENCION A LA CIUDADANIA","WEB","DERECHO DE PETICION DE INTERES PARTICULAR",1,"GESTIONADO"]
[null,87502026,"AREA DE ATENCION A LA CIUDADANIA","WEB","DERECHO DE PETICION DE INTERES GENERAL",1,"GESTIONADO"]
[null,88632026,"AREA DE ATENCION A LA CIUDADANIA","WEB","QUEJA",1,"GESTIONADO"]
[null,90132026,"AREA DE ATENCION A LA CIUDADANIA","WEB","DERECHO DE PETICION DE INTERES PARTICULAR",1,"GESTIONADO"]
[null,91552026,"AREA DE ATENCION A LA CIUDADANIA","ESCRITO","DERECHO DE PETICION DE INTERES GENERAL",1,"GESTIONADO"]
[null,91762026,"AREA DE ATENCION A LA CIUDADANIA","WEB","QUEJA",1,"GESTIONADO"]
[null,93302026,"AREA DE ATENCION A LA CIUDADANIA","WEB","DERECHO DE PETICION DE INTERES GENERAL",1,"GESTIONADO"]
[null,93602026,"AREA DE ATENCION A LA CIUDADANIA","WEB","DERECHO DE PETICION DE INTERES PARTICULAR",1,"GESTIONADO"]
[null,94692026,"AREA DE ATENCION A LA CIUDADANIA","WEB","DERECHO DE PETICION DE INTERES GENERAL",1,"GESTIONADO"]
[null,94852026,"AREA DE ATENCION A LA CIUDADANIA","WEB","DERECHO DE PETICION DE INTERES GENERAL",1,"GESTIONADO"]
[null,94972026,"AREA DE ATENCION A LA CIUDADANIA","WEB","DERECHO DE PETICION DE INTERES GENERAL",1,"GESTIONADO"]
[null,95062026,"AREA DE ATENCION A LA CIUDADANIA","WEB","DERECHO DE PETICION DE INTERES GENERAL",1,"GESTIONADO"]
[null,96712026,"AREA DE ATENCION A LA CIUDADANIA","E-MAIL","DERECHO DE PETICION DE INTERES PARTICULAR",1,"GESTIONADO"]
[null,96942026,"AREA DE ATENCION A LA CIUDADANIA","WEB","CONSULTA",1,"GESTIONADO"]
[null,97272026,"AREA DE ATENCION A LA CIUDADANIA","E-MAIL","DERECHO DE PETICION DE INTERES GENERAL",1,"GESTIONADO"]
[null,97372026,"AREA DE ATENCION A LA CIUDADANIA","WEB","QUEJA",1,"GESTIONADO"]
[null,97722026,"AREA DE ATENCION A LA CIUDADANIA","WEB","QUEJA",1,"GESTIONADO"]
[null,97822026,"AREA DE ATENCION A LA CIUDADANIA","WEB","QUEJA",1,"GESTIONADO"]
[null,99902026,"AREA DE ATENCION A LA CIUDADANIA","WEB","DERECHO DE PETICION DE INTERES GENERAL",1,"GESTIONADO"]
[null,100532026,"AREA DE ATENCION A LA CIUDADANIA","WEB","QUEJA",1,"GESTIONADO"]
[null,100822026,"AREA DE ATENCION A LA CIUDADANIA","ESCRITO","DERECHO DE PETICION DE INTERES PARTICULAR",1,"GESTIONADO"]
[null,101062026,"AREA DE ATENCION A LA CIUDADANIA","WEB","DERECHO DE PETICION DE INTERES GENERAL",1,"GESTIONADO"]
[null,105152026,"AREA DE ATENCION A LA CIUDADANIA","WEB","DERECHO DE PETICION DE INTERES GENERAL",1,"GESTIONADO"]
[null,105742026,"AREA DE ATENCION A LA CIUDADANIA","WEB","DERECHO DE PETICION DE INTERES GENERAL",1,"GESTIONADO"]
[null,113222026,"AREA DE ATENCION A LA CIUDADANIA","WEB","DERECHO DE PETICION DE INTERES GENERAL",1,"GESTIONADO"]
[null,113452026,"AREA DE ATENCION A LA CIUDADANIA","WEB","QUEJA",1,"GESTIONADO"]
[null,115262026,"AREA DE ATENCION A LA CIUDADANIA","WEB","QUEJA",1,"GESTIONADO"]
[null,115512026,"AREA DE ATENCION A LA CIUDADANIA","WEB","DERECHO DE PETICION DE INTERES GENERAL",1,"GESTIONADO"]
[null,115722026,"AREA DE ATENCION A LA CIUDADANIA","E-MAIL","DERECHO DE PETICION DE INTERES GENERAL",1,"GESTIONADO"]
[null,116392026,"AREA DE ATENCION A LA CIUDADANIA","E-MAIL","DERECHO DE PETICION DE INTERES GENERAL",1,"GESTIONADO"]
[null,117412026,"AREA DE ATENCION A LA CIUDADANIA","WEB","QUEJA",1,"GESTIONADO"]
[null,119102026,"AREA DE ATENCION A LA CIUDADANIA","WEB","DERECHO DE PETICION DE INTERES GENERAL",1,"GESTIONADO"]
[null,119312026,"AREA DE ATENCION A LA CIUDADANIA","WEB","DERECHO DE PETICION DE INTERES GENERAL",1,"GESTIONADO"]
[null,119832026,"OFICINA DE CONTROL DISCIPLINARIO INTERNO","WEB","DERECHO DE PETICION DE INTERES GENERAL",1,"GESTIONADO"]
[null,120192026,"AREA DE ATENCION A LA CIUDADANIA","WEB","DERECHO DE PETICION DE INTERES GENERAL",1,"GESTIONADO"]
[null,120612026,"AREA DE ATENCION A LA CIUDADANIA","TELEFONO","DERECHO DE PETICION DE INTERES GENERAL",1,"GESTIONADO"]
[null,120832026,"AREA DE ATENCION A LA CIUDADANIA","WEB","DERECHO DE PETICION DE INTERES GENERAL",1,"GESTIONADO"]
[null,120962026,"AREA DE ATENCION A LA CIUDADANIA","WEB","DERECHO DE PETICION DE INTERES GENERAL",1,"GESTIONADO"]
[null,121022026,"AREA DE ATENCION A LA CIUDADANIA","WEB","DERECHO DE PETICION DE INTERES GENERAL",1,"GESTIONADO"]
[null,121192026,"AREA DE ATENCION A LA CIUDADANIA","WEB","DERECHO DE PETICION DE INTERES GENERAL",1,"GESTIONADO"]
[null,121282026,"AREA DE ATENCION A LA CIUDADANIA","WEB","DERECHO DE PETICION DE INTERES GENERAL",1,"GESTIONADO"]
[null,122922026,"AREA DE ATENCION A LA CIUDADANIA","WEB","DERECHO DE PETICION DE INTERES GENERAL",1,"GESTIONADO"]
[null,123002026,"AREA DE ATENCION A LA CIUDADANIA","WEB","DERECHO DE PETICION DE INTERES GENERAL",1,"GESTIONADO"]
[null,123172026,"AREA DE ATENCION A LA CIUDADANIA","WEB","QUEJA",1,"GESTIONADO"]
[null,123342026,"AREA DE ATENCION A LA CIUDADANIA","WEB","DERECHO DE PETICION DE INTERES GENERAL",1,"GESTIONADO"]
[null,123602026,"SUBDIRECCION DE GESTION INMOBILIARIA Y DEL ESPACIO PUBLICO","E-MAIL","DERECHO DE PETICION DE INTERES PARTICULAR",14,"GESTIONADO"]
[null,125822026,"AREA DE ATENCION A LA CIUDADANIA","WEB","DERECHO DE PETICION DE INTERES GENERAL",1,"GESTIONADO"]
[null,126312026,"AREA DE ATENCION A LA CIUDADANIA","WEB","DERECHO DE PETICION DE INTERES GENERAL",1,"GESTIONADO"]
[null,127062026,"SUBDIRECCION DE GESTION INMOBILIARIA Y DEL ESPACIO PUBLICO","E-MAIL","DERECHO DE PETICION DE INTERES PARTICULAR",14,"GESTIONADO"]
[null,127292026,"AREA DE ATENCION A LA CIUDADANIA","WEB","DERECHO DE PETICION DE INTERES GENERAL",1,"GESTIONADO"]
[null,127712026,"AREA DE ATENCION A LA CIUDADANIA","WEB","DERECHO DE PETICION DE INTERES GENERAL",1,"GESTIONADO"]
[null,128062026,"AREA DE ATENCION A LA CIUDADANIA","WEB","CONSULTA",1,"GESTIONADO"]
[null,128242026,"AREA DE ATENCION A LA CIUDADANIA","WEB","DERECHO DE PETICION DE INTERES GENERAL",1,"GESTIONADO"]
[null,130232026,"AREA DE ATENCION A LA CIUDADANIA","WEB","DERECHO DE PETICION DE INTERES GENERAL",1,"GESTIONADO"]
[null,145242026,"AREA DE ATENCION A LA CIUDADANIA","E-MAIL","DERECHO DE PETICION DE INTERES PARTICULAR",1,"GESTIONADO"]
[null,145462026,"SUBDIRECCION DE GESTION INMOBILIARIA Y DEL ESPACIO PUBLICO","E-MAIL","DERECHO DE PETICION DE INTERES GENERAL",11,"GESTIONADO"]
[null,145502026,"AREA DE ATENCION A LA CIUDADANIA","E-MAIL","DERECHO DE PETICION DE INTERES PARTICULAR",1,"GESTIONADO"]
[null,145722026,"AREA DE ATENCION A LA CIUDADANIA","TELEFONO","DERECHO DE PETICION DE INTERES GENERAL",1,"GESTIONADO"]
[null,146592026,"AREA DE ATENCION A LA CIUDADANIA","WEB","QUEJA",1,"GESTIONADO"]
[null,147072026,"AREA DE ATENCION A LA CIUDADANIA","WEB","DERECHO DE PETICION DE INTERES GENERAL",1,"GESTIONADO"]
[null,147342026,"AREA DE ATENCION A LA CIUDADANIA","E-MAIL","DERECHO DE PETICION DE INTERES GENERAL",1,"GESTIONADO"]
[null,147412026,"AREA DE ATENCION A LA CIUDADANIA","E-MAIL","DERECHO DE PETICION DE INTERES PARTICULAR",1,"GESTIONADO"]
[null,148132026,"AREA DE ATENCION A LA CIUDADANIA","WEB","DERECHO DE PETICION DE INTERES GENERAL",1,"GESTIONADO"]
[null,148232026,"AREA DE ATENCION A LA CIUDADANIA","WEB","DERECHO DE PETICION DE INTERES GENERAL",1,"GESTIONADO"]
[null,148722026,"AREA DE ATENCION A LA CIUDADANIA","WEB","DERECHO DE PETICION DE INTERES GENERAL",1,"GESTIONADO"]
[null,148812026,"AREA DE ATENCION A LA CIUDADANIA","WEB","QUEJA",1,"GESTIONADO"]
[null,149172026,"AREA DE ATENCION A LA CIUDADANIA","WEB","DERECHO DE PETICION DE INTERES GENERAL",1,"GESTIONADO"]
[null,152322026,"SUBDIRECCION DE GESTION INMOBILIARIA Y DEL ESPACIO PUBLICO","E-MAIL","CONSULTA",2,"GESTIONADO"]
[null,152652026,"AREA DE ATENCION A LA CIUDADANIA","E-MAIL","DERECHO DE PETICION DE INTERES PARTICULAR",1,"GESTIONADO"]
[null,153062026,"AREA DE ATENCION A LA CIUDADANIA","WEB","RECLAMO",1,"GESTIONADO"]
[null,153342026,"AREA DE ATENCION A LA CIUDADANIA","WEB","QUEJA",1,"GESTIONADO"]
[null,156002026,"AREA DE ATENCION A LA CIUDADANIA","WEB","DERECHO DE PETICION DE INTERES GENERAL",1,"GESTIONADO"]
[null,156032026,"AREA DE ATENCION A LA CIUDADANIA","WEB","QUEJA",1,"GESTIONADO"]
[null,156872026,"AREA DE ATENCION A LA CIUDADANIA","ESCRITO","DERECHO DE PETICION DE INTERES GENERAL",1,"GESTIONADO"]
[null,158832026,"AREA DE ATENCION A LA CIUDADANIA","WEB","DERECHO DE PETICION DE INTERES GENERAL",1,"GESTIONADO"]
[null,165172026,"AREA DE ATENCION A LA CIUDADANIA","WEB","DERECHO DE PETICION DE INTERES GENERAL",1,"GESTIONADO"]
[null,165372026,"AREA DE ATENCION A LA CIUDADANIA","WEB","DERECHO DE PETICION DE INTERES PARTICULAR",2,"GESTIONADO"]
[null,173222026,"AREA DE ATENCION A LA CIUDADANIA","WEB","CONSULTA",1,"GESTIONADO"]
[null,173602026,"AREA DE ATENCION A LA CIUDADANIA","WEB","DERECHO DE PETICION DE INTERES GENERAL",1,"GESTIONADO"]
[null,173672026,"AREA DE ATENCION A LA CIUDADANIA","WEB","DERECHO DE PETICION DE INTERES GENERAL",1,"GESTIONADO"]
[null,174292026,"AREA DE ATENCION A LA CIUDADANIA","WEB","DERECHO DE PETICION DE INTERES GENERAL",1,"GESTIONADO"]
[null,174462026,"AREA DE ATENCION A LA CIUDADANIA","WEB","DERECHO DE PETICION DE INTERES GENERAL",1,"GESTIONADO"]
[null,175452026,"AREA DE ATENCION A LA CIUDADANIA","WEB","DERECHO DE PETICION DE INTERES GENERAL",1,"GESTIONADO"]
[null,179072026,"AREA DE ATENCION A LA CIUDADANIA","WEB","DERECHO DE PETICION DE INTERES GENERAL",1,"GESTIONADO"]
[null,179082026,"AREA DE ATENCION A LA CIUDADANIA","WEB","DERECHO DE PETICION DE INTERES PARTICULAR",1,"GESTIONADO"]
[null,179202026,"AREA DE ATENCION A LA CIUDADANIA","WEB","DERECHO DE PETICION DE INTERES PARTICULAR",1,"GESTIONADO"]
[null,179642026,"AREA DE ATENCION A LA CIUDADANIA","WEB","DERECHO DE PETICION DE INTERES GENERAL",1,"GESTIONADO"]
[null,179652026,"AREA DE ATENCION A LA CIUDADANIA","WEB","DERECHO DE PETICION DE INTERES PARTICULAR",1,"GESTIONADO"]
[null,179722026,"AREA DE ATENCION A LA CIUDADANIA","WEB","DERECHO DE PETICION DE INTERES GENERAL",1,"GESTIONADO"]
[null,180042026,"AREA DE ATENCION A LA CIUDADANIA","WEB","DERECHO DE PETICION DE INTERES PARTICULAR",1,"GESTIONADO"]
[null,180092026,"AREA DE ATENCION A LA CIUDADANIA","WEB","DERECHO DE PETICION DE INTERES PARTICULAR",1,"GESTIONADO"]
[null,180122026,"AREA DE ATENCION A LA CIUDADANIA","WEB","DERECHO DE PETICION DE INTERES GENERAL",1,"GESTIONADO"]
[null,180152026,"AREA DE ATENCION A LA CIUDADANIA","WEB","DERECHO DE PETICION DE INTERES GENERAL",1,"GESTIONADO"]
[null,180492026,"OFICINA DE CONTROL DISCIPLINARIO INTERNO","WEB","DERECHO DE PETICION DE INTERES GENERAL",1,"GESTIONADO"]
[null,180792026,"AREA DE ATENCION A LA CIUDADANIA","WEB","DERECHO DE PETICION DE INTERES GENERAL",1,"GESTIONADO"]
[null,181142026,"SUBDIRECCION DE GESTION INMOBILIARIA Y DEL ESPACIO PUBLICO","WEB","DERECHO DE PETICION DE INTERES GENERAL",13,"GESTIONADO"]
[null,181202026,"SUBDIRECCION DE GESTION INMOBILIARIA Y DEL ESPACIO PUBLICO","WEB","DERECHO DE PETICION DE INTERES GENERAL",13,"GESTIONADO"]
[null,181212026,"AREA DE ATENCION A LA CIUDADANIA","WEB","DERECHO DE PETICION DE INTERES GENERAL",1,"GESTIONADO"]
[null,181392026,"AREA DE ATENCION A LA CIUDADANIA","WEB","DERECHO DE PETICION DE INTERES GENERAL",1,"GESTIONADO"]
[null,182312026,"AREA DE ATENCION A LA CIUDADANIA","WEB","DERECHO DE PETICION DE INTERES GENERAL",1,"GESTIONADO"]
[null,182482026,"AREA DE ATENCION A LA CIUDADANIA","WEB","DERECHO DE PETICION DE INTERES GENERAL",1,"GESTIONADO"]
[null,182502026,"AREA DE ATENCION A LA CIUDADANIA","WEB","DERECHO DE PETICION DE INTERES GENERAL",1,"GESTIONADO"]
[null,182642026,"AREA DE ATENCION A LA CIUDADANIA","WEB","DERECHO DE PETICION DE INTERES GENERAL",1,"GESTIONADO"]
[null,182682026,"AREA DE ATENCION A LA CIUDADANIA","WEB","DERECHO DE PETICION DE INTERES GENERAL",1,"GESTIONADO"]
[null,182702026,"AREA DE ATENCION A LA CIUDADANIA","WEB","DERECHO DE PETICION DE INTERES GENERAL",1,"GESTIONADO"]
[null,182772026,"SUBDIRECCION DE GESTION INMOBILIARIA Y DEL ESPACIO PUBLICO","WEB","DERECHO DE PETICION DE INTERES GENERAL",11,"GESTIONADO"]
[null,186422026,"AREA DE ATENCION A LA CIUDADANIA","WEB","DERECHO DE PETICION DE INTERES GENERAL",1,"GESTIONADO"]
[null,186452026,"AREA DE ATENCION A LA CIUDADANIA","WEB","DERECHO DE PETICION DE INTERES PARTICULAR",2,"GESTIONADO"]
[null,186982026,"AREA DE ATENCION A LA CIUDADANIA","E-MAIL","DERECHO DE PETICION DE INTERES GENERAL",1,"GESTIONADO"]
[null,187682026,"AREA DE ATENCION A LA CIUDADANIA","WEB","DERECHO DE PETICION DE INTERES GENERAL",1,"GESTIONADO"]
[null,187912026,"AREA DE ATENCION A LA CIUDADANIA","E-MAIL","DERECHO DE PETICION DE INTERES GENERAL",1,"GESTIONADO"]
[null,188242026,"AREA DE ATENCION A LA CIUDADANIA","E-MAIL","DERECHO DE PETICION DE INTERES GENERAL",1,"GESTIONADO"]
[null,188282026,"AREA DE ATENCION A LA CIUDADANIA","WEB","DERECHO DE PETICION DE INTERES PARTICULAR",1,"GESTIONADO"]
[null,188512026,"AREA DE ATENCION A LA CIUDADANIA","WEB","DERECHO DE PETICION DE INTERES GENERAL",1,"GESTIONADO"]
[null,188612026,"AREA DE ATENCION A LA CIUDADANIA","WEB","DERECHO DE PETICION DE INTERES GENERAL",1,"GESTIONADO"]
[null,191102026,"AREA DE ATENCION A LA CIUDADANIA","WEB","DERECHO DE PETICION DE INTERES GENERAL",1,"GESTIONADO"]
[null,191312026,"AREA DE ATENCION A LA CIUDADANIA","E-MAIL","DERECHO DE PETICION DE INTERES PARTICULAR",1,"GESTIONADO"]
[null,192152026,"AREA DE ATENCION A LA CIUDADANIA","ESCRITO","DERECHO DE PETICION DE INTERES GENERAL",1,"GESTIONADO"]
[null,192692026,"OFICINA DE CONTROL DISCIPLINARIO INTERNO","WEB","DERECHO DE PETICION DE INTERES GENERAL",3,"GESTIONADO"]
[null,194412026,"AREA DE ATENCION A LA CIUDADANIA","E-MAIL","DERECHO DE PETICION DE INTERES GENERAL",1,"GESTIONADO"]
[null,194652026,"AREA DE ATENCION A LA CIUDADANIA","WEB","DERECHO DE PETICION DE INTERES GENERAL",1,"GESTIONADO"]
[null,194822026,"AREA DE ATENCION A LA CIUDADANIA","WEB","DERECHO DE PETICION DE INTERES GENERAL",1,"GESTIONADO"]
[null,194852026,"SUBDIRECCION DE GESTION INMOBILIARIA Y DEL ESPACIO PUBLICO","E-MAIL","DERECHO DE PETICION DE INTERES GENERAL",10,"GESTIONADO"]
[null,194992026,"AREA DE ATENCION A LA CIUDADANIA","WEB","DERECHO DE PETICION DE INTERES GENERAL",1,"GESTIONADO"]
[null,195072026,"AREA DE ATENCION A LA CIUDADANIA","E-MAIL","DERECHO DE PETICION DE INTERES PARTICULAR",1,"GESTIONADO"]
[null,195142026,"AREA DE ATENCION A LA CIUDADANIA","WEB","DERECHO DE PETICION DE INTERES GENERAL",2,"GESTIONADO"]
[null,195822026,"AREA DE ATENCION A LA CIUDADANIA","WEB","DERECHO DE PETICION DE INTERES GENERAL",1,"GESTIONADO"]
[null,197092026,"AREA DE ATENCION A LA CIUDADANIA","E-MAIL","DERECHO DE PETICION DE INTERES GENERAL",1,"GESTIONADO"]
[null,199052026,"AREA DE ATENCION A LA CIUDADANIA","WEB","DERECHO DE PETICION DE INTERES GENERAL",1,"GESTIONADO"]
[null,199072026,"AREA DE ATENCION A LA CIUDADANIA","WEB","DERECHO DE PETICION DE INTERES GENERAL",1,"GESTIONADO"]
[null,199202026,"AREA DE ATENCION A LA CIUDADANIA","WEB","DERECHO DE PETICION DE INTERES GENERAL",1,"GESTIONADO"]
[null,199882026,"AREA DE ATENCION A LA CIUDADANIA","WEB","DERECHO DE PETICION DE INTERES GENERAL",1,"GESTIONADO"]
[null,199982026,"AREA DE ATENCION A LA CIUDADANIA","WEB","DERECHO DE PETICION DE INTERES GENERAL",1,"GESTIONADO"]
[null,200022026,"AREA DE ATENCION A LA CIUDADANIA","WEB","DERECHO DE PETICION DE INTERES GENERAL",1,"GESTIONADO"]
[null,200052026,"AREA DE ATENCION A LA CIUDADANIA","WEB","DERECHO DE PETICION DE INTERES GENERAL",1,"GESTIONADO"]
[null,200372026,"AREA DE ATENCION A LA CIUDADANIA","TELEFONO","DERECHO DE PETICION DE INTERES GENERAL",1,"GESTIONADO"]
[null,200402026,"AREA DE ATENCION A LA CIUDADANIA","WEB","RECLAMO",1,"GESTIONADO"]
[null,200542026,"AREA DE ATENCION A LA CIUDADANIA","E-MAIL","DERECHO DE PETICION DE INTERES GENERAL",1,"GESTIONADO"]
[null,200782026,"AREA DE ATENCION A LA CIUDADANIA","WEB","DERECHO DE PETICION DE INTERES GENERAL",1,"GESTIONADO"]
[null,201392026,"AREA DE ATENCION A LA CIUDADANIA","WEB","DERECHO DE PETICION DE INTERES PARTICULAR",1,"GESTIONADO"]
[null,201452026,"AREA DE ATENCION A LA CIUDADANIA","WEB","DERECHO DE PETICION DE INTERES GENERAL",1,"GESTIONADO"]
[null,201672026,"AREA DE ATENCION A LA CIUDADANIA","E-MAIL","DERECHO DE PETICION DE INTERES GENERAL",1,"GESTIONADO"]
[null,217592026,"AREA DE ATENCION A LA CIUDADANIA","WEB","DERECHO DE PETICION DE INTERES PARTICULAR",1,"GESTIONADO"]
[null,219132026,"AREA DE ATENCION A LA CIUDADANIA","WEB","DERECHO DE PETICION DE INTERES GENERAL",1,"GESTIONADO"]
[null,219852026,"AREA DE ATENCION A LA CIUDADANIA","WEB","DERECHO DE PETICION DE INTERES GENERAL",1,"GESTIONADO"]
[null,221602026,"AREA DE ATENCION A LA CIUDADANIA","E-MAIL","DERECHO DE PETICION DE INTERES GENERAL",1,"GESTIONADO"]
[null,222812026,"AREA DE ATENCION A LA CIUDADANIA","WEB","DERECHO DE PETICION DE INTERES GENERAL",1,"GESTIONADO"]
[null,223452026,"AREA DE ATENCION A LA CIUDADANIA","WEB","QUEJA",1,"GESTIONADO"]
[null,223472026,"AREA DE ATENCION A LA CIUDADANIA","WEB","QUEJA",1,"GESTIONADO"]
[null,223762026,"AREA DE ATENCION A LA CIUDADANIA","PRESENCIAL","DERECHO DE PETICION DE INTERES GENERAL",1,"GESTIONADO"]
[null,224902026,"AREA DE ATENCION A LA CIUDADANIA","WEB","DERECHO DE PETICION DE INTERES GENERAL",1,"GESTIONADO"]
[null,225902026,"AREA DE ATENCION A LA CIUDADANIA","WEB","DERECHO DE PETICION DE INTERES GENERAL",1,"GESTIONADO"]
[null,226122026,"AREA DE ATENCION A LA CIUDADANIA","WEB","DERECHO DE PETICION DE INTERES GENERAL",1,"GESTIONADO"]
[null,226292026,"AREA DE ATENCION A LA CIUDADANIA","E-MAIL","DERECHO DE PETICION DE INTERES PARTICULAR",1,"GESTIONADO"]
[null,226772026,"OFICINA DE CONTROL DISCIPLINARIO INTERNO","WEB","DERECHO DE PETICION DE INTERES GENERAL",2,"GESTIONADO"]
[null,226882026,"AREA DE ATENCION A LA CIUDADANIA","WEB","DERECHO DE PETICION DE INTERES GENERAL",1,"GESTIONADO"]
[null,228472026,"AREA DE ATENCION A LA CIUDADANIA","WEB","DERECHO DE PETICION DE INTERES GENERAL",1,"GESTIONADO"]
[null,229282026,"SUBDIRECCION DE GESTION INMOBILIARIA Y DEL ESPACIO PUBLICO","E-MAIL","DERECHO DE PETICION DE INTERES GENERAL",13,"GESTIONADO"]
[null,229452026,"AREA DE ATENCION A LA CIUDADANIA","WEB","DERECHO DE PETICION DE INTERES PARTICULAR",1,"GESTIONADO"]
[null,229812026,"AREA DE ATENCION A LA CIUDADANIA","E-MAIL","DERECHO DE PETICION DE INTERES PARTICULAR",1,"GESTIONADO"]
[null,230122026,"AREA DE ATENCION A LA CIUDADANIA","WEB","DERECHO DE PETICION DE INTERES PARTICULAR",1,"GESTIONADO"]
[null,231792026,"AREA DE ATENCION A LA CIUDADANIA","WEB","DERECHO DE PETICION DE INTERES GENERAL",1,"GESTIONADO"]
[null,232262026,"AREA DE ATENCION A LA CIUDADANIA","WEB","DERECHO DE PETICION DE INTERES GENERAL",1,"GESTIONADO"]
[null,232332026,"AREA DE ATENCION A LA CIUDADANIA","WEB","DERECHO DE PETICION DE INTERES GENERAL",1,"GESTIONADO"]
[null,232412026,"AREA DE ATENCION A LA CIUDADANIA","WEB","RECLAMO",1,"GESTIONADO"]
[null,233102026,"AREA DE ATENCION A LA CIUDADANIA","WEB","DERECHO DE PETICION DE INTERES GENERAL",1,"GESTIONADO"]
[null,233922026,"AREA DE ATENCION A LA CIUDADANIA","E-MAIL","DERECHO DE PETICION DE INTERES GENERAL",1,"GESTIONADO"]
[null,234572026,"AREA DE ATENCION A LA CIUDADANIA","E-MAIL","DERECHO DE PETICION DE INTERES GENERAL",1,"GESTIONADO"]
[null,234682026,"AREA DE ATENCION A LA CIUDADANIA","WEB","DERECHO DE PETICION DE INTERES GENERAL",1,"GESTIONADO"]
[null,234752026,"OFICINA DE CONTROL DISCIPLINARIO INTERNO","WEB","DERECHO DE PETICION DE INTERES GENERAL",2,"GESTIONADO"]
[null,235502026,"AREA DE ATENCION A LA CIUDADANIA","ESCRITO","DERECHO DE PETICION DE INTERES PARTICULAR",1,"GESTIONADO"]
[null,236442026,"AREA DE ATENCION A LA CIUDADANIA","WEB","DERECHO DE PETICION DE INTERES GENERAL",1,"GESTIONADO"]
[null,239652026,"AREA DE ATENCION A LA CIUDADANIA","WEB","DERECHO DE PETICION DE INTERES GENERAL",1,"GESTIONADO"]
[null,241662026,"AREA DE ATENCION A LA CIUDADANIA","WEB","DERECHO DE PETICION DE INTERES GENERAL",1,"GESTIONADO"]
[null,241792026,"AREA DE ATENCION A LA CIUDADANIA","WEB","DERECHO DE PETICION DE INTERES GENERAL",1,"GESTIONADO"]
[null,249952026,"AREA DE ATENCION A LA CIUDADANIA","E-MAIL","DERECHO DE PETICION DE INTERES GENERAL",1,"GESTIONADO"]
[null,253342026,"AREA DE ATENCION A LA CIUDADANIA","WEB","DERECHO DE PETICION DE INTERES PARTICULAR",1,"GESTIONADO"]
[null,253772026,"AREA DE ATENCION A LA CIUDADANIA","E-MAIL","DERECHO DE PETICION DE INTERES GENERAL",1,"GESTIONADO"]
[null,254072026,"AREA DE ATENCION A LA CIUDADANIA","WEB","DERECHO DE PETICION DE INTERES PARTICULAR",1,"GESTIONADO"]
[null,254942026,"AREA DE ATENCION A LA CIUDADANIA","WEB","DERECHO DE PETICION DE INTERES GENERAL",1,"GESTIONADO"]
[null,255392026,"AREA DE ATENCION A LA CIUDADANIA","WEB","QUEJA",1,"GESTIONADO"]
[null,255462026,"AREA DE ATENCION A LA CIUDADANIA","WEB","DERECHO DE PETICION DE INTERES GENERAL",1,"GESTIONADO"]
[null,255572026,"AREA DE ATENCION A LA CIUDADANIA","WEB","DERECHO DE PETICION DE INTERES PARTICULAR",1,"GESTIONADO"]
[null,257972026,"AREA DE ATENCION A LA CIUDADANIA","WEB","CONSULTA",1,"GESTIONADO"]
[null,259592026,"AREA DE ATENCION A LA CIUDADANIA","WEB","DERECHO DE PETICION DE INTERES PARTICULAR",1,"GESTIONADO"]
[null,259642026,"AREA DE ATENCION A LA CIUDADANIA","WEB","DERECHO DE PETICION DE INTERES GENERAL",1,"GESTIONADO"]
[null,259992026,"AREA DE ATENCION A LA CIUDADANIA","WEB","QUEJA",1,"GESTIONADO"]
[null,261072026,"AREA DE ATENCION A LA CIUDADANIA","WEB","DERECHO DE PETICION DE INTERES GENERAL",1,"GESTIONADO"]
[null,261202026,"AREA DE ATENCION A LA CIUDADANIA","WEB","DERECHO DE PETICION DE INTERES GENERAL",1,"GESTIONADO"]
[null,261742026,"AREA DE ATENCION A LA CIUDADANIA","WEB","DERECHO DE PETICION DE INTERES PARTICULAR",1,"GESTIONADO"]
[null,262332026,"AREA DE ATENCION A LA CIUDADANIA","WEB","DERECHO DE PETICION DE INTERES GENERAL",1,"GESTIONADO"]
[null,263502026,"AREA DE ATENCION A LA CIUDADANIA","WEB","DERECHO DE PETICION DE INTERES PARTICULAR",1,"GESTIONADO"]
[null,263572026,"AREA DE ATENCION A LA CIUDADANIA","E-MAIL","DERECHO DE PETICION DE INTERES GENERAL",1,"GESTIONADO"]
[null,263972026,"AREA DE ATENCION A LA CIUDADANIA","WEB","DERECHO DE PETICION DE INTERES GENERAL",1,"GESTIONADO"]
[null,265462026,"AREA DE ATENCION A LA CIUDADANIA","WEB","DERECHO DE PETICION DE INTERES GENERAL",1,"GESTIONADO"]
[null,265512026,"AREA DE ATENCION A LA CIUDADANIA","WEB","DERECHO DE PETICION DE INTERES GENERAL",1,"GESTIONADO"]
[null,265542026,"AREA DE ATENCION A LA CIUDADANIA","WEB","DERECHO DE PETICION DE INTERES GENERAL",1,"GESTIONADO"]
[null,266882026,"AREA DE ATENCION A LA CIUDADANIA","WEB","QUEJA",1,"GESTIONADO"]
[null,269332026,"AREA DE ATENCION A LA CIUDADANIA","WEB","QUEJA",1,"GESTIONADO"]
[null,270002026,"AREA DE ATENCION A LA CIUDADANIA","WEB","DERECHO DE PETICION DE INTERES GENERAL",1,"GESTIONADO"]
[null,270562026,"AREA DE ATENCION A LA CIUDADANIA","WEB","DERECHO DE PETICION DE INTERES GENERAL",1,"GESTIONADO"]
[null,277402026,"OFICINA DE CONTROL DISCIPLINARIO INTERNO","WEB","DERECHO DE PETICION DE INTERES GENERAL",1,"GESTIONADO"]
[null,281852026,"AREA DE ATENCION A LA CIUDADANIA","WEB","CONSULTA",1,"GESTIONADO"]
[null,281922026,"AREA DE ATENCION A LA CIUDADANIA","TELEFONO","SUGERENCIA",1,"GESTIONADO"]
[null,282482026,"AREA DE ATENCION A LA CIUDADANIA","WEB","DERECHO DE PETICION DE INTERES GENERAL",1,"GESTIONADO"]
[null,284352026,"AREA DE ATENCION A LA CIUDADANIA","WEB","DERECHO DE PETICION DE INTERES GENERAL",1,"GESTIONADO"]
[null,284772026,"AREA DE ATENCION A LA CIUDADANIA","WEB","DERECHO DE PETICION DE INTERES GENERAL",1,"GESTIONADO"]
[null,285712026,"AREA DE ATENCION A LA CIUDADANIA","WEB","DERECHO DE PETICION DE INTERES PARTICULAR",1,"GESTIONADO"]
[null,287602026,"AREA DE ATENCION A LA CIUDADANIA","E-MAIL","DERECHO DE PETICION DE INTERES GENERAL",1,"GESTIONADO"]
[null,288222026,"AREA DE ATENCION A LA CIUDADANIA","WEB","CONSULTA",1,"GESTIONADO"]
[null,288732026,"AREA DE ATENCION A LA CIUDADANIA","WEB","DERECHO DE PETICION DE INTERES GENERAL",1,"GESTIONADO"]
[null,288812026,"AREA DE ATENCION A LA CIUDADANIA","WEB","DERECHO DE PETICION DE INTERES GENERAL",1,"GESTIONADO"]
[null,289652026,"AREA DE ATENCION A LA CIUDADANIA","WEB","DERECHO DE PETICION DE INTERES GENERAL",1,"GESTIONADO"]
[null,289972026,"AREA DE ATENCION A LA CIUDADANIA","WEB","DERECHO DE PETICION DE INTERES GENERAL",1,"GESTIONADO"]
[null,293192026,"AREA DE ATENCION A LA CIUDADANIA","TELEFONO","DERECHO DE PETICION DE INTERES GENERAL",1,"GESTIONADO"]
[null,293472026,"AREA DE ATENCION A LA CIUDADANIA","TELEFONO","DERECHO DE PETICION DE INTERES GENERAL",1,"GESTIONADO"]
[null,293672026,"AREA DE ATENCION A LA CIUDADANIA","WEB","DERECHO DE PETICION DE INTERES GENERAL",1,"GESTIONADO"]
[null,293722026,"AREA DE ATENCION A LA CIUDADANIA","WEB","DERECHO DE PETICION DE INTERES GENERAL",1,"GESTIONADO"]
[null,295262026,"AREA DE ATENCION A LA CIUDADANIA","WEB","DERECHO DE PETICION DE INTERES GENERAL",1,"GESTIONADO"]
[null,295412026,"AREA DE ATENCION A LA CIUDADANIA","E-MAIL","DERECHO DE PETICION DE INTERES PARTICULAR",1,"GESTIONADO"]
[null,295702026,"SUBDIRECCION DE GESTION INMOBILIARIA Y DEL ESPACIO PUBLICO","WEB","DERECHO DE PETICION DE INTERES GENERAL",10,"PENDIENTE"]
[null,296912026,"AREA DE ATENCION A LA CIUDADANIA","E-MAIL","DERECHO DE PETICION DE INTERES GENERAL",1,"GESTIONADO"]
[null,296942026,"AREA DE ATENCION A LA CIUDADANIA","WEB","DERECHO DE PETICION DE INTERES GENERAL",1,"GESTIONADO"]
[null,297022026,"SUBDIRECCION DE GESTION INMOBILIARIA Y DEL ESPACIO PUBLICO","ESCRITO","DERECHO DE PETICION DE INTERES GENERAL",10,"PENDIENTE"]
[null,302002026,"AREA DE ATENCION A LA CIUDADANIA","WEB","DERECHO DE PETICION DE INTERES GENERAL",1,"GESTIONADO"]
[null,302282026,"AREA DE ATENCION A LA CIUDADANIA","WEB","DERECHO DE PETICION DE INTERES GENERAL",1,"GESTIONADO"]
[null,303012026,"AREA DE ATENCION A LA CIUDADANIA","ESCRITO","DERECHO DE PETICION DE INTERES PARTICULAR",1,"GESTIONADO"]
[null,303062026,"AREA DE ATENCION A LA CIUDADANIA","WEB","DERECHO DE PETICION DE INTERES GENERAL",1,"GESTIONADO"]
[null,303142026,"AREA DE ATENCION A LA CIUDADANIA","WEB","DERECHO DE PETICION DE INTERES GENERAL",1,"GESTIONADO"]
[null,303172026,"AREA DE ATENCION A LA CIUDADANIA","WEB","DERECHO DE PETICION DE INTERES GENERAL",1,"GESTIONADO"]
[null,303182026,"AREA DE ATENCION A LA CIUDADANIA","WEB","DERECHO DE PETICION DE INTERES GENERAL",1,"GESTIONADO"]
[null,303202026,"AREA DE ATENCION A LA CIUDADANIA","WEB","DERECHO DE PETICION DE INTERES GENERAL",1,"GESTIONADO"]
[null,303222026,"AREA DE ATENCION A LA CIUDADANIA","WEB","DERECHO DE PETICION DE INTERES GENERAL",1,"GESTIONADO"]
[null,303242026,"AREA DE ATENCION A LA CIUDADANIA","WEB","DERECHO DE PETICION DE INTERES GENERAL",1,"GESTIONADO"]
[null,303252026,"AREA DE ATENCION A LA CIUDADANIA","WEB","DERECHO DE PETICION DE INTERES GENERAL",1,"GESTIONADO"]
[null,303322026,"AREA DE ATENCION A LA CIUDADANIA","WEB","QUEJA",1,"GESTIONADO"]
[null,303352026,"AREA DE ATENCION A LA CIUDADANIA","WEB","DERECHO DE PETICION DE INTERES GENERAL",1,"GESTIONADO"]
[null,303372026,"AREA DE ATENCION A LA CIUDADANIA","WEB","DERECHO DE PETICION DE INTERES GENERAL",1,"GESTIONADO"]
[null,303412026,"AREA DE ATENCION A LA CIUDADANIA","WEB","DERECHO DE PETICION DE INTERES GENERAL",1,"GESTIONADO"]
[null,303452026,"AREA DE ATENCION A LA CIUDADANIA","WEB","DERECHO DE PETICION DE INTERES GENERAL",1,"GESTIONADO"]
[null,303462026,"AREA DE ATENCION A LA CIUDADANIA","WEB","DERECHO DE PETICION DE INTERES GENERAL",1,"GESTIONADO"]
[null,316542026,"AREA DE ATENCION A LA CIUDADANIA","WEB","DERECHO DE PETICION DE INTERES GENERAL",1,"GESTIONADO"]
[null,316572026,"AREA DE ATENCION A LA CIUDADANIA","WEB","DERECHO DE PETICION DE INTERES GENERAL",1,"GESTIONADO"]
[null,316602026,"AREA DE ATENCION A LA CIUDADANIA","WEB","DERECHO DE PETICION DE INTERES GENERAL",1,"GESTIONADO"]
[null,316672026,"AREA DE ATENCION A LA CIUDADANIA","TELEFONO","DERECHO DE PETICION DE INTERES GENERAL",1,"GESTIONADO"]
[null,317042026,"SUBDIRECCION DE GESTION INMOBILIARIA Y DEL ESPACIO PUBLICO","WEB","DERECHO DE PETICION DE INTERES GENERAL",10,"PENDIENTE"]
[null,317412026,"AREA DE ATENCION A LA CIUDADANIA","WEB","QUEJA",1,"GESTIONADO"]
[null,317422026,"AREA DE ATENCION A LA CIUDADANIA","WEB","DERECHO DE PETICION DE INTERES GENERAL",1,"GESTIONADO"]
[null,317472026,"AREA DE ATENCION A LA CIUDADANIA","TELEFONO","DERECHO DE PETICION DE INTERES GENERAL",1,"GESTIONADO"]
[null,317702026,"AREA DE ATENCION A LA CIUDADANIA","WEB","DERECHO DE PETICION DE INTERES PARTICULAR",1,"GESTIONADO"]
[null,317892026,"AREA DE ATENCION A LA CIUDADANIA","WEB","DERECHO DE PETICION DE INTERES GENERAL",1,"GESTIONADO"]
[null,317912026,"AREA DE ATENCION A LA CIUDADANIA","WEB","DERECHO DE PETICION DE INTERES GENERAL",1,"GESTIONADO"]
[null,317932026,"AREA DE ATENCION A LA CIUDADANIA","WEB","DERECHO DE PETICION DE INTERES GENERAL",1,"GESTIONADO"]
[null,318132026,"AREA DE ATENCION A LA CIUDADANIA","WEB","DERECHO DE PETICION DE INTERES GENERAL",1,"GESTIONADO"]
[null,318482026,"AREA DE ATENCION A LA CIUDADANIA","WEB","QUEJA",1,"GESTIONADO"]
[null,318592026,"AREA DE ATENCION A LA CIUDADANIA","WEB","DERECHO DE PETICION DE INTERES GENERAL",1,"GESTIONADO"]
[null,318712026,"AREA DE ATENCION A LA CIUDADANIA","WEB","DERECHO DE PETICION DE INTERES GENERAL",1,"GESTIONADO"]
[null,321272026,"AREA DE ATENCION A LA CIUDADANIA","WEB","DERECHO DE PETICION DE INTERES GENERAL",1,"GESTIONADO"]
[null,322802026,"AREA DE ATENCION A LA CIUDADANIA","WEB","DERECHO DE PETICION DE INTERES GENERAL",1,"GESTIONADO"]
[null,322852026,"AREA DE ATENCION A LA CIUDADANIA","TELEFONO","DERECHO DE PETICION DE INTERES PARTICULAR",1,"GESTIONADO"]
[null,322922026,"AREA DE ATENCION A LA CIUDADANIA","WEB","DERECHO DE PETICION DE INTERES GENERAL",1,"GESTIONADO"]
[null,322982026,"AREA DE ATENCION A LA CIUDADANIA","WEB","DERECHO DE PETICION DE INTERES GENERAL",1,"GESTIONADO"]
[null,323072026,"AREA DE ATENCION A LA CIUDADANIA","WEB","DERECHO DE PETICION DE INTERES GENERAL",1,"GESTIONADO"]
[null,323142026,"AREA DE ATENCION A LA CIUDADANIA","WEB","DERECHO DE PETICION DE INTERES GENERAL",1,"GESTIONADO"]
[null,324072026,"AREA DE ATENCION A LA CIUDADANIA","WEB","DERECHO DE PETICION DE INTERES GENERAL",1,"GESTIONADO"]
[null,324092026,"AREA DE ATENCION A LA CIUDADANIA","WEB","DERECHO DE PETICION DE INTERES GENERAL",1,"GESTIONADO"]
[null,324952026,"AREA DE ATENCION A LA CIUDADANIA","WEB","DERECHO DE PETICION DE INTERES GENERAL",1,"GESTIONADO"]
[null,325282026,"AREA DE ATENCION A LA CIUDADANIA","WEB","DERECHO DE PETICION DE INTERES GENERAL",1,"GESTIONADO"]
[null,325572026,"AREA DE ATENCION A LA CIUDADANIA","WEB","DERECHO DE PETICION DE INTERES GENERAL",1,"GESTIONADO"]
[null,326022026,"AREA DE ATENCION A LA CIUDADANIA","WEB","DERECHO DE PETICION DE INTERES GENERAL",1,"GESTIONADO"]
[null,327022026,"AREA DE ATENCION A LA CIUDADANIA","WEB","DERECHO DE PETICION DE INTERES GENERAL",1,"GESTIONADO"]
[null,327032026,"AREA DE ATENCION A LA CIUDADANIA","WEB","DERECHO DE PETICION DE INTERES GENERAL",1,"GESTIONADO"]
[null,327072026,"AREA DE ATENCION A LA CIUDADANIA","WEB","DERECHO DE PETICION DE INTERES GENERAL",1,"GESTIONADO"]
[null,329702026,"AREA DE ATENCION A LA CIUDADANIA","WEB","DERECHO DE PETICION DE INTERES GENERAL",1,"GESTIONADO"]
[null,330322026,"AREA DE ATENCION A LA CIUDADANIA","WEB","DERECHO DE PETICION DE INTERES GENERAL",1,"GESTIONADO"]
[null,331042026,"AREA DE ATENCION A LA CIUDADANIA","WEB","DERECHO DE PETICION DE INTERES GENERAL",1,"GESTIONADO"]
[null,331062026,"AREA DE ATENCION A LA CIUDADANIA","WEB","DERECHO DE PETICION DE INTERES GENERAL",1,"GESTIONADO"]
[null,331102026,"AREA DE ATENCION A LA CIUDADANIA","WEB","DERECHO DE PETICION DE INTERES GENERAL",1,"GESTIONADO"]
[null,331932026,"AREA DE ATENCION A LA CIUDADANIA","WEB","DERECHO DE PETICION DE INTERES GENERAL",1,"GESTIONADO"]
[null,332792026,"AREA DE ATENCION A LA CIUDADANIA","WEB","CONSULTA",1,"GESTIONADO"]
[null,333722026,"AREA DE ATENCION A LA CIUDADANIA","WEB","DERECHO DE PETICION DE INTERES GENERAL",1,"GESTIONADO"]
[null,333782026,"AREA DE ATENCION A LA CIUDADANIA","WEB","DERECHO DE PETICION DE INTERES GENERAL",1,"GESTIONADO"]
[null,334262026,"AREA DE ATENCION A LA CIUDADANIA","WEB","DERECHO DE PETICION DE INTERES GENERAL",1,"GESTIONADO"]
[null,334442026,"SUBDIRECCION DE GESTION INMOBILIARIA Y DEL ESPACIO PUBLICO","E-MAIL","DERECHO DE PETICION DE INTERES GENERAL",9,"GESTIONADO"]
[null,334462026,"AREA DE ATENCION A LA CIUDADANIA","WEB","DERECHO DE PETICION DE INTERES GENERAL",1,"GESTIONADO"]
[null,335232026,"AREA DE ATENCION A LA CIUDADANIA","WEB","DERECHO DE PETICION DE INTERES GENERAL",1,"GESTIONADO"]
[null,335992026,"AREA DE ATENCION A LA CIUDADANIA","E-MAIL","DERECHO DE PETICION DE INTERES PARTICULAR",1,"GESTIONADO"]
[null,337982026,"AREA DE ATENCION A LA CIUDADANIA","WEB","DERECHO DE PETICION DE INTERES PARTICULAR",1,"GESTIONADO"]
[null,338642026,"AREA DE ATENCION A LA CIUDADANIA","WEB","DERECHO DE PETICION DE INTERES GENERAL",1,"GESTIONADO"]
[null,339482026,"AREA DE ATENCION A LA CIUDADANIA","WEB","DERECHO DE PETICION DE INTERES PARTICULAR",1,"GESTIONADO"]
[null,340582026,"AREA DE ATENCION A LA CIUDADANIA","E-MAIL","DERECHO DE PETICION DE INTERES GENERAL",1,"GESTIONADO"]
[null,341082026,"AREA DE ATENCION A LA CIUDADANIA","WEB","DERECHO DE PETICION DE INTERES GENERAL",2,"GESTIONADO"]
[null,344772026,"AREA DE ATENCION A LA CIUDADANIA","WEB","DERECHO DE PETICION DE INTERES GENERAL",2,"GESTIONADO"]
[null,345162026,"AREA DE ATENCION A LA CIUDADANIA","WEB","DERECHO DE PETICION DE INTERES GENERAL",1,"GESTIONADO"]
[null,345292026,"OFICINA DE CONTROL DISCIPLINARIO INTERNO","WEB","DERECHO DE PETICION DE INTERES GENERAL",2,"GESTIONADO"]
[null,345882026,"AREA DE ATENCION A LA CIUDADANIA","WEB","CONSULTA",1,"GESTIONADO"]
[null,347022026,"AREA DE ATENCION A LA CIUDADANIA","WEB","QUEJA",1,"GESTIONADO"]
[null,348072026,"AREA DE ATENCION A LA CIUDADANIA","WEB","DERECHO DE PETICION DE INTERES PARTICULAR",1,"GESTIONADO"]
[null,350222026,"AREA DE ATENCION A LA CIUDADANIA","BUZON","DERECHO DE PETICION DE INTERES PARTICULAR",1,"GESTIONADO"]
[null,357352026,"AREA DE ATENCION A LA CIUDADANIA","WEB","DERECHO DE PETICION DE INTERES GENERAL",1,"GESTIONADO"]
[null,359222026,"AREA DE ATENCION A LA CIUDADANIA","WEB","DERECHO DE PETICION DE INTERES PARTICULAR",1,"GESTIONADO"]
[null,362222026,"AREA DE ATENCION A LA CIUDADANIA","WEB","DERECHO DE PETICION DE INTERES GENERAL",1,"GESTIONADO"]
[null,362382026,"AREA DE ATENCION A LA CIUDADANIA","WEB","DERECHO DE PETICION DE INTERES GENERAL",1,"GESTIONADO"]
[null,362772026,"AREA DE ATENCION A LA CIUDADANIA","TELEFONO","DERECHO DE PETICION DE INTERES GENERAL",1,"GESTIONADO"]
[null,362902026,"AREA DE ATENCION A LA CIUDADANIA","E-MAIL","DERECHO DE PETICION DE INTERES GENERAL",1,"GESTIONADO"]
[null,363302026,"AREA DE ATENCION A LA CIUDADANIA","TELEFONO","DERECHO DE PETICION DE INTERES GENERAL",1,"GESTIONADO"]
[null,365492026,"AREA DE ATENCION A LA CIUDADANIA","E-MAIL","DERECHO DE PETICION DE INTERES PARTICULAR",1,"GESTIONADO"]
[null,365992026,"AREA DE ATENCION A LA CIUDADANIA","E-MAIL","DERECHO DE PETICION DE INTERES PARTICULAR",1,"GESTIONADO"]
[null,367572026,"AREA DE ATENCION A LA CIUDADANIA","WEB","DERECHO DE PETICION DE INTERES GENERAL",1,"GESTIONADO"]
[null,369012026,"AREA DE ATENCION A LA CIUDADANIA","E-MAIL","DERECHO DE PETICION DE INTERES PARTICULAR",1,"GESTIONADO"]
[null,369472026,"AREA DE ATENCION A LA CIUDADANIA","WEB","DERECHO DE PETICION DE INTERES GENERAL",1,"GESTIONADO"]
[null,369652026,"AREA DE ATENCION A LA CIUDADANIA","ESCRITO","DERECHO DE PETICION DE INTERES GENERAL",1,"GESTIONADO"]
[null,369682026,"SUBDIRECCION DE GESTION INMOBILIARIA Y DEL ESPACIO PUBLICO","E-MAIL","DERECHO DE PETICION DE INTERES GENERAL",8,"PENDIENTE"]
[null,370452026,"AREA DE ATENCION A LA CIUDADANIA","ESCRITO","DERECHO DE PETICION DE INTERES GENERAL",1,"GESTIONADO"]
[null,371932026,"AREA DE ATENCION A LA CIUDADANIA","WEB","DERECHO DE PETICION DE INTERES GENERAL",1,"GESTIONADO"]
[null,373422026,"AREA DE ATENCION A LA CIUDADANIA","WEB","DERECHO DE PETICION DE INTERES GENERAL",1,"GESTIONADO"]
[null,373632026,"AREA DE ATENCION A LA CIUDADANIA","WEB","DERECHO DE PETICION DE INTERES GENERAL",1,"GESTIONADO"]
[null,373852026,"AREA DE ATENCION A LA CIUDADANIA","WEB","DERECHO DE PETICION DE INTERES GENERAL",1,"GESTIONADO"]
[null,374922026,"AREA DE ATENCION A LA CIUDADANIA","WEB","DERECHO DE PETICION DE INTERES PARTICULAR",1,"GESTIONADO"]
[null,375422026,"AREA DE ATENCION A LA CIUDADANIA","WEB","DERECHO DE PETICION DE INTERES GENERAL",1,"GESTIONADO"]
[null,376162026,"AREA DE ATENCION A LA CIUDADANIA","WEB","DERECHO DE PETICION DE INTERES GENERAL",1,"GESTIONADO"]
[null,378122026,"AREA DE ATENCION A LA CIUDADANIA","WEB","DERECHO DE PETICION DE INTERES GENERAL",1,"GESTIONADO"]
[null,378172026,"SUBDIRECCION DE GESTION INMOBILIARIA Y DEL ESPACIO PUBLICO","WEB","DERECHO DE PETICION DE INTERES GENERAL",6,"PENDIENTE"]
[null,378792026,"AREA DE ATENCION A LA CIUDADANIA","ESCRITO","DERECHO DE PETICION DE INTERES PARTICULAR",1,"GESTIONADO"]
[null,379722026,"AREA DE ATENCION A LA CIUDADANIA","WEB","DERECHO DE PETICION DE INTERES GENERAL",1,"GESTIONADO"]
[null,379852026,"AREA DE ATENCION A LA CIUDADANIA","E-MAIL","DERECHO DE PETICION DE INTERES GENERAL",1,"GESTIONADO"]
[null,380212026,"AREA DE ATENCION A LA CIUDADANIA","TELEFONO","DERECHO DE PETICION DE INTERES GENERAL",1,"GESTIONADO"]
[null,381382026,"SUBDIRECCION DE REGISTRO INMOBILIARIO","WEB","CONSULTA",2,"PENDIENTE"]
[null,381552026,"AREA DE ATENCION A LA CIUDADANIA","E-MAIL","DERECHO DE PETICION DE INTERES GENERAL",1,"GESTIONADO"]
[null,381952026,"AREA DE ATENCION A LA CIUDADANIA","WEB","DERECHO DE PETICION DE INTERES GENERAL",1,"GESTIONADO"]
[null,383112026,"AREA DE ATENCION A LA CIUDADANIA","TELEFONO","DERECHO DE PETICION DE INTERES GENERAL",1,"GESTIONADO"]
[null,383292026,"AREA DE ATENCION A LA CIUDADANIA","WEB","DERECHO DE PETICION DE INTERES GENERAL",1,"GESTIONADO"]
[null,384532026,"AREA DE ATENCION A LA CIUDADANIA","WEB","DERECHO DE PETICION DE INTERES GENERAL",1,"GESTIONADO"]
[null,384702026,"AREA DE ATENCION A LA CIUDADANIA","WEB","DERECHO DE PETICION DE INTERES GENERAL",1,"GESTIONADO"]
[null,385572026,"AREA DE ATENCION A LA CIUDADANIA","WEB","QUEJA",1,"GESTIONADO"]
[null,387562026,"AREA DE ATENCION A LA CIUDADANIA","WEB","DERECHO DE PETICION DE INTERES GENERAL",1,"GESTIONADO"]
[null,398622026,"AREA DE ATENCION A LA CIUDADANIA","WEB","DERECHO DE PETICION DE INTERES GENERAL",1,"GESTIONADO"]
[null,401122026,"AREA DE ATENCION A LA CIUDADANIA","WEB","DERECHO DE PETICION DE INTERES PARTICULAR",1,"GESTIONADO"]
[null,402362026,"SUBDIRECCION DE GESTION INMOBILIARIA Y DEL ESPACIO PUBLICO","E-MAIL","DERECHO DE PETICION DE INTERES GENERAL",7,"PENDIENTE"]
[null,402452026,"AREA DE ATENCION A LA CIUDADANIA","WEB","DERECHO DE PETICION DE INTERES GENERAL",1,"GESTIONADO"]
[null,402482026,"AREA DE ATENCION A LA CIUDADANIA","WEB","DERECHO DE PETICION DE INTERES GENERAL",1,"GESTIONADO"]
[null,402512026,"AREA DE ATENCION A LA CIUDADANIA","TELEFONO","DERECHO DE PETICION DE INTERES GENERAL",1,"GESTIONADO"]
[null,402812026,"AREA DE ATENCION A LA CIUDADANIA","WEB","DERECHO DE PETICION DE INTERES GENERAL",1,"GESTIONADO"]
[null,404722026,"AREA DE ATENCION A LA CIUDADANIA","WEB","DERECHO DE PETICION DE INTERES GENERAL",1,"GESTIONADO"]
[null,405182026,"AREA DE ATENCION A LA CIUDADANIA","E-MAIL","DERECHO DE PETICION DE INTERES GENERAL",1,"GESTIONADO"]
[null,406272026,"AREA DE ATENCION A LA CIUDADANIA","WEB","DERECHO DE PETICION DE INTERES PARTICULAR",1,"GESTIONADO"]
[null,406462026,"AREA DE ATENCION A LA CIUDADANIA","WEB","DERECHO DE PETICION DE INTERES GENERAL",1,"GESTIONADO"]
[null,406502026,"AREA DE ATENCION A LA CIUDADANIA","WEB","DERECHO DE PETICION DE INTERES GENERAL",1,"GESTIONADO"]
[null,406602026,"AREA DE ATENCION A LA CIUDADANIA","WEB","DERECHO DE PETICION DE INTERES GENERAL",1,"GESTIONADO"]
[null,406622026,"AREA DE ATENCION A LA CIUDADANIA","E-MAIL","DERECHO DE PETICION DE INTERES GENERAL",1,"GESTIONADO"]
[null,407792026,"AREA DE ATENCION A LA CIUDADANIA","WEB","DERECHO DE PETICION DE INTERES GENERAL",1,"GESTIONADO"]
[null,407882026,"AREA DE ATENCION A LA CIUDADANIA","WEB","DERECHO DE PETICION DE INTERES GENERAL",1,"GESTIONADO"]
[null,411222026,"AREA DE ATENCION A LA CIUDADANIA","WEB","DERECHO DE PETICION DE INTERES GENERAL",1,"GESTIONADO"]
[null,411612026,"AREA DE ATENCION A LA CIUDADANIA","WEB","DERECHO DE PETICION DE INTERES GENERAL",1,"GESTIONADO"]
[null,411642026,"AREA DE ATENCION A LA CIUDADANIA","WEB","DERECHO DE PETICION DE INTERES PARTICULAR",1,"GESTIONADO"]
[null,412152026,"SUBDIRECCION DE GESTION INMOBILIARIA Y DEL ESPACIO PUBLICO","TELEFONO","DERECHO DE PETICION DE INTERES GENERAL",6,"PENDIENTE"]
[null,412332026,"AREA DE ATENCION A LA CIUDADANIA","WEB","DERECHO DE PETICION DE INTERES GENERAL",1,"GESTIONADO"]
[null,414042026,"AREA DE ATENCION A LA CIUDADANIA","E-MAIL","DERECHO DE PETICION DE INTERES PARTICULAR",1,"PENDIENTE"]
[null,414062026,"AREA DE ATENCION A LA CIUDADANIA","WEB","QUEJA",1,"GESTIONADO"]
[null,414282026,"AREA DE ATENCION A LA CIUDADANIA","WEB","DERECHO DE PETICION DE INTERES GENERAL",1,"GESTIONADO"]
[null,414372026,"AREA DE ATENCION A LA CIUDADANIA","WEB","DERECHO DE PETICION DE INTERES GENERAL",1,"GESTIONADO"]
[null,415912026,"AREA DE ATENCION A LA CIUDADANIA","WEB","DERECHO DE PETICION DE INTERES GENERAL",1,"GESTIONADO"]
[null,416782026,"AREA DE ATENCION A LA CIUDADANIA","WEB","DERECHO DE PETICION DE INTERES GENERAL",1,"GESTIONADO"]
[null,418462026,"AREA DE ATENCION A LA CIUDADANIA","WEB","DERECHO DE PETICION DE INTERES GENERAL",1,"GESTIONADO"]
[null,418692026,"AREA DE ATENCION A LA CIUDADANIA","WEB","DERECHO DE PETICION DE INTERES GENERAL",1,"GESTIONADO"]
[null,420762026,"AREA DE ATENCION A LA CIUDADANIA","WEB","DERECHO DE PETICION DE INTERES GENERAL",1,"GESTIONADO"]
[null,420962026,"AREA DE ATENCION A LA CIUDADANIA","WEB","DERECHO DE PETICION DE INTERES GENERAL",1,"GESTIONADO"]
[null,421102026,"AREA DE ATENCION A LA CIUDADANIA","WEB","QUEJA",1,"GESTIONADO"]
[null,421352026,"AREA DE ATENCION A LA CIUDADANIA","WEB","DERECHO DE PETICION DE INTERES GENERAL",1,"GESTIONADO"]
[null,421542026,"AREA DE ATENCION A LA CIUDADANIA","WEB","DERECHO DE PETICION DE INTERES GENERAL",2,"GESTIONADO"]
[null,421582026,"AREA DE ATENCION A LA CIUDADANIA","WEB","QUEJA",1,"GESTIONADO"]
[null,422492026,"AREA DE ATENCION A LA CIUDADANIA","WEB","DERECHO DE PETICION DE INTERES GENERAL",1,"GESTIONADO"]
[null,424452026,"AREA DE ATENCION A LA CIUDADANIA","E-MAIL","DERECHO DE PETICION DE INTERES GENERAL",1,"GESTIONADO"]
[null,424762026,"AREA DE ATENCION A LA CIUDADANIA","WEB","DERECHO DE PETICION DE INTERES GENERAL",1,"GESTIONADO"]
[null,424942026,"AREA DE ATENCION A LA CIUDADANIA","WEB","QUEJA",1,"GESTIONADO"]
[null,425332026,"AREA DE ATENCION A LA CIUDADANIA","WEB","DERECHO DE PETICION DE INTERES GENERAL",1,"GESTIONADO"]
[null,425482026,"AREA DE ATENCION A LA CIUDADANIA","WEB","DERECHO DE PETICION DE INTERES GENERAL",1,"GESTIONADO"]
[null,425612026,"SUBDIRECCION DE GESTION INMOBILIARIA Y DEL ESPACIO PUBLICO","WEB","DERECHO DE PETICION DE INTERES GENERAL",7,"PENDIENTE"]
[null,434052026,"AREA DE ATENCION A LA CIUDADANIA","WEB","DERECHO DE PETICION DE INTERES GENERAL",1,"GESTIONADO"]
[null,435702026,"AREA DE ATENCION A LA CIUDADANIA","WEB","SUGERENCIA",1,"GESTIONADO"]
[null,435732026,"AREA DE ATENCION A LA CIUDADANIA","REDES SOCIALES","DERECHO DE PETICION DE INTERES GENERAL",1,"GESTIONADO"]
[null,435822026,"AREA DE ATENCION A LA CIUDADANIA","WEB","DERECHO DE PETICION DE INTERES PARTICULAR",1,"GESTIONADO"]
[null,436082026,"AREA DE ATENCION A LA CIUDADANIA","E-MAIL","DERECHO DE PETICION DE INTERES GENERAL",1,"GESTIONADO"]
[null,436222026,"AREA DE ATENCION A LA CIUDADANIA","WEB","DERECHO DE PETICION DE INTERES GENERAL",1,"GESTIONADO"]
[null,436342026,"AREA DE ATENCION A LA CIUDADANIA","WEB","DERECHO DE PETICION DE INTERES GENERAL",1,"GESTIONADO"]
[null,436512026,"AREA DE ATENCION A LA CIUDADANIA","WEB","DERECHO DE PETICION DE INTERES GENERAL",1,"GESTIONADO"]
[null,436612026,"AREA DE ATENCION A LA CIUDADANIA","WEB","DERECHO DE PETICION DE INTERES GENERAL",1,"GESTIONADO"]
[null,436982026,"SUBDIRECCION DE GESTION CORPORATIVA","E-MAIL","DERECHO DE PETICION DE INTERES PARTICULAR",1,"GESTIONADO"]
[null,437762026,"AREA DE ATENCION A LA CIUDADANIA","E-MAIL","DERECHO DE PETICION DE INTERES GENERAL",1,"GESTIONADO"]
[null,442282026,"SUBDIRECCION DE GESTION INMOBILIARIA Y DEL ESPACIO PUBLICO","E-MAIL","DERECHO DE PETICION DE INTERES PARTICULAR",6,"PENDIENTE"]
[null,442562026,"AREA DE ATENCION A LA CIUDADANIA","WEB","DERECHO DE PETICION DE INTERES GENERAL",1,"GESTIONADO"]
[null,442632026,"AREA DE ATENCION A LA CIUDADANIA","WEB","DERECHO DE PETICION DE INTERES GENERAL",1,"PENDIENTE"]
[null,442912026,"AREA DE ATENCION A LA CIUDADANIA","E-MAIL","DERECHO DE PETICION DE INTERES PARTICULAR",1,"GESTIONADO"]
[null,443642026,"AREA DE ATENCION A LA CIUDADANIA","WEB","DERECHO DE PETICION DE INTERES GENERAL",1,"GESTIONADO"]
[null,443952026,"AREA DE ATENCION A LA CIUDADANIA","WEB","DERECHO DE PETICION DE INTERES GENERAL",1,"GESTIONADO"]
[null,444282026,"AREA DE ATENCION A LA CIUDADANIA","WEB","DERECHO DE PETICION DE INTERES GENERAL",1,"GESTIONADO"]
[null,444482026,"AREA DE ATENCION A LA CIUDADANIA","WEB","DERECHO DE PETICION DE INTERES GENERAL",1,"GESTIONADO"]
[null,444492026,"AREA DE ATENCION A LA CIUDADANIA","WEB","DERECHO DE PETICION DE INTERES GENERAL",1,"GESTIONADO"]
[null,444532026,"AREA DE ATENCION A LA CIUDADANIA","WEB","DERECHO DE PETICION DE INTERES GENERAL",1,"GESTIONADO"]
[null,444572026,"AREA DE ATENCION A LA CIUDADANIA","WEB","DERECHO DE PETICION DE INTERES GENERAL",1,"GESTIONADO"]
[null,444742026,"AREA DE ATENCION A LA CIUDADANIA","WEB","DERECHO DE PETICION DE INTERES GENERAL",1,"GESTIONADO"]
[null,444782026,"AREA DE ATENCION A LA CIUDADANIA","WEB","DERECHO DE PETICION DE INTERES GENERAL",1,"GESTIONADO"]
[null,444902026,"AREA DE ATENCION A LA CIUDADANIA","WEB","DERECHO DE PETICION DE INTERES GENERAL",1,"GESTIONADO"]
[null,444922026,"AREA DE ATENCION A LA CIUDADANIA","WEB","DERECHO DE PETICION DE INTERES GENERAL",1,"GESTIONADO"]
[null,444942026,"AREA DE ATENCION A LA CIUDADANIA","WEB","DERECHO DE PETICION DE INTERES GENERAL",1,"GESTIONADO"]
[null,444972026,"AREA DE ATENCION A LA CIUDADANIA","WEB","DERECHO DE PETICION DE INTERES GENERAL",1,"GESTIONADO"]
[null,444992026,"AREA DE ATENCION A LA CIUDADANIA","WEB","DERECHO DE PETICION DE INTERES GENERAL",1,"GESTIONADO"]
[null,445012026,"AREA DE ATENCION A LA CIUDADANIA","WEB","DERECHO DE PETICION DE INTERES GENERAL",1,"GESTIONADO"]
[null,445062026,"AREA DE ATENCION A LA CIUDADANIA","WEB","DERECHO DE PETICION DE INTERES GENERAL",1,"GESTIONADO"]
[null,445082026,"AREA DE ATENCION A LA CIUDADANIA","WEB","DERECHO DE PETICION DE INTERES GENERAL",1,"GESTIONADO"]
[null,445102026,"AREA DE ATENCION A LA CIUDADANIA","WEB","DERECHO DE PETICION DE INTERES GENERAL",1,"GESTIONADO"]
[null,445122026,"AREA DE ATENCION A LA CIUDADANIA","WEB","DERECHO DE PETICION DE INTERES GENERAL",1,"GESTIONADO"]
[null,445132026,"AREA DE ATENCION A LA CIUDADANIA","WEB","DERECHO DE PETICION DE INTERES GENERAL",1,"GESTIONADO"]
[null,445142026,"AREA DE ATENCION A LA CIUDADANIA","WEB","DERECHO DE PETICION DE INTERES GENERAL",1,"GESTIONADO"]
[null,445152026,"AREA DE ATENCION A LA CIUDADANIA","WEB","DERECHO DE PETICION DE INTERES GENERAL",1,"GESTIONADO"]
[null,445162026,"AREA DE ATENCION A LA CIUDADANIA","WEB","DERECHO DE PETICION DE INTERES GENERAL",1,"GESTIONADO"]
[null,445182026,"AREA DE ATENCION A LA CIUDADANIA","WEB","DERECHO DE PETICION DE INTERES GENERAL",1,"GESTIONADO"]
[null,445192026,"AREA DE ATENCION A LA CIUDADANIA","WEB","DERECHO DE PETICION DE INTERES GENERAL",1,"GESTIONADO"]
[null,445202026,"AREA DE ATENCION A LA CIUDADANIA","WEB","DERECHO DE PETICION DE INTERES GENERAL",1,"GESTIONADO"]
[null,445232026,"AREA DE ATENCION A LA CIUDADANIA","WEB","DERECHO DE PETICION DE INTERES GENERAL",1,"GESTIONADO"]
[null,445242026,"AREA DE ATENCION A LA CIUDADANIA","WEB","DERECHO DE PETICION DE INTERES GENERAL",1,"GESTIONADO"]
[null,445252026,"AREA DE ATENCION A LA CIUDADANIA","WEB","DERECHO DE PETICION DE INTERES GENERAL",1,"GESTIONADO"]
[null,445372026,"AREA DE ATENCION A LA CIUDADANIA","WEB","DERECHO DE PETICION DE INTERES GENERAL",1,"GESTIONADO"]
[null,445392026,"AREA DE ATENCION A LA CIUDADANIA","WEB","DERECHO DE PETICION DE INTERES GENERAL",1,"GESTIONADO"]
[null,445412026,"AREA DE ATENCION A LA CIUDADANIA","WEB","DERECHO DE PETICION DE INTERES GENERAL",1,"GESTIONADO"]
[null,445602026,"AREA DE ATENCION A LA CIUDADANIA","WEB","DERECHO DE PETICION DE INTERES PARTICULAR",1,"GESTIONADO"]
[null,445952026,"AREA DE ATENCION A LA CIUDADANIA","ESCRITO","DERECHO DE PETICION DE INTERES GENERAL",1,"GESTIONADO"]
[null,446432026,"AREA DE ATENCION A LA CIUDADANIA","WEB","DERECHO DE PETICION DE INTERES GENERAL",1,"GESTIONADO"]
[null,446542026,"AREA DE ATENCION A LA CIUDADANIA","WEB","DERECHO DE PETICION DE INTERES GENERAL",1,"GESTIONADO"]
[null,446592026,"AREA DE ATENCION A LA CIUDADANIA","WEB","DERECHO DE PETICION DE INTERES GENERAL",1,"GESTIONADO"]
[null,446602026,"AREA DE ATENCION A LA CIUDADANIA","WEB","DERECHO DE PETICION DE INTERES GENERAL",1,"GESTIONADO"]
[null,446612026,"AREA DE ATENCION A LA CIUDADANIA","WEB","DERECHO DE PETICION DE INTERES GENERAL",1,"GESTIONADO"]
[null,446622026,"AREA DE ATENCION A LA CIUDADANIA","WEB","DERECHO DE PETICION DE INTERES GENERAL",1,"GESTIONADO"]
[null,446712026,"AREA DE ATENCION A LA CIUDADANIA","WEB","DERECHO DE PETICION DE INTERES GENERAL",1,"GESTIONADO"]
[null,446742026,"AREA DE ATENCION A LA CIUDADANIA","WEB","DERECHO DE PETICION DE INTERES GENERAL",1,"GESTIONADO"]
[null,448002026,"AREA DE ATENCION A LA CIUDADANIA","WEB","DERECHO DE PETICION DE INTERES GENERAL",1,"GESTIONADO"]
[null,448012026,"AREA DE ATENCION A LA CIUDADANIA","WEB","DERECHO DE PETICION DE INTERES GENERAL",1,"GESTIONADO"]
[null,448022026,"AREA DE ATENCION A LA CIUDADANIA","WEB","DERECHO DE PETICION DE INTERES GENERAL",1,"GESTIONADO"]
[null,448042026,"AREA DE ATENCION A LA CIUDADANIA","WEB","DERECHO DE PETICION DE INTERES GENERAL",1,"GESTIONADO"]
[null,448072026,"AREA DE ATENCION A LA CIUDADANIA","WEB","DERECHO DE PETICION DE INTERES GENERAL",1,"GESTIONADO"]
[null,448082026,"AREA DE ATENCION A LA CIUDADANIA","WEB","DERECHO DE PETICION DE INTERES GENERAL",1,"GESTIONADO"]
[null,448092026,"AREA DE ATENCION A LA CIUDADANIA","WEB","DERECHO DE PETICION DE INTERES GENERAL",1,"GESTIONADO"]
[null,448102026,"AREA DE ATENCION A LA CIUDADANIA","WEB","DERECHO DE PETICION DE INTERES GENERAL",1,"GESTIONADO"]
[null,448122026,"AREA DE ATENCION A LA CIUDADANIA","WEB","DERECHO DE PETICION DE INTERES GENERAL",1,"GESTIONADO"]
[null,448132026,"AREA DE ATENCION A LA CIUDADANIA","WEB","DERECHO DE PETICION DE INTERES GENERAL",1,"GESTIONADO"]
[null,448142026,"AREA DE ATENCION A LA CIUDADANIA","WEB","DERECHO DE PETICION DE INTERES GENERAL",1,"GESTIONADO"]
[null,448162026,"AREA DE ATENCION A LA CIUDADANIA","WEB","DERECHO DE PETICION DE INTERES GENERAL",1,"GESTIONADO"]
[null,448402026,"AREA DE ATENCION A LA CIUDADANIA","WEB","DERECHO DE PETICION DE INTERES GENERAL",1,"GESTIONADO"]
[null,448872026,"AREA DE ATENCION A LA CIUDADANIA","WEB","DERECHO DE PETICION DE INTERES GENERAL",1,"GESTIONADO"]
[null,449652026,"AREA DE ATENCION A LA CIUDADANIA","WEB","DERECHO DE PETICION DE INTERES GENERAL",1,"GESTIONADO"]
[null,450412026,"AREA DE ATENCION A LA CIUDADANIA","WEB","DERECHO DE PETICION DE INTERES GENERAL",2,"GESTIONADO"]
[null,450582026,"AREA DE ATENCION A LA CIUDADANIA","WEB","DERECHO DE PETICION DE INTERES GENERAL",1,"GESTIONADO"]
[null,451132026,"AREA DE ATENCION A LA CIUDADANIA","WEB","DERECHO DE PETICION DE INTERES GENERAL",1,"GESTIONADO"]
[null,451212026,"AREA DE ATENCION A LA CIUDADANIA","WEB","DERECHO DE PETICION DE INTERES GENERAL",1,"GESTIONADO"]
[null,451352026,"AREA DE ATENCION A LA CIUDADANIA","WEB","DERECHO DE PETICION DE INTERES GENERAL",1,"GESTIONADO"]
[null,452082026,"AREA DE ATENCION A LA CIUDADANIA","WEB","DERECHO DE PETICION DE INTERES GENERAL",1,"GESTIONADO"]
[null,452662026,"AREA DE ATENCION A LA CIUDADANIA","WEB","CONSULTA",2,"GESTIONADO"]
[null,453552026,"AREA DE ATENCION A LA CIUDADANIA","E-MAIL","DERECHO DE PETICION DE INTERES PARTICULAR",1,"GESTIONADO"]
[null,453652026,"AREA DE ATENCION A LA CIUDADANIA","WEB","CONSULTA",1,"GESTIONADO"]
[null,453702026,"AREA DE ATENCION A LA CIUDADANIA","WEB","DERECHO DE PETICION DE INTERES GENERAL",1,"GESTIONADO"]
[null,453722026,"AREA DE ATENCION A LA CIUDADANIA","WEB","QUEJA",1,"GESTIONADO"]
[null,454002026,"AREA DE ATENCION A LA CIUDADANIA","WEB","QUEJA",1,"GESTIONADO"]
[null,454392026,"AREA DE ATENCION A LA CIUDADANIA","WEB","DERECHO DE PETICION DE INTERES PARTICULAR",1,"GESTIONADO"]
[null,454502026,"AREA DE ATENCION A LA CIUDADANIA","ESCRITO","DERECHO DE PETICION DE INTERES GENERAL",1,"GESTIONADO"]
[null,455332026,"OFICINA DE CONTROL DISCIPLINARIO INTERNO","WEB","DERECHO DE PETICION DE INTERES GENERAL",3,"GESTIONADO"]
[null,457462026,"SUBDIRECCION DE GESTION INMOBILIARIA Y DEL ESPACIO PUBLICO","WEB","DERECHO DE PETICION DE INTERES GENERAL",6,"PENDIENTE"]
[null,458992026,"AREA DE ATENCION A LA CIUDADANIA","WEB","DERECHO DE PETICION DE INTERES PARTICULAR",1,"GESTIONADO"]
[null,467662026,"AREA DE ATENCION A LA CIUDADANIA","WEB","DERECHO DE PETICION DE INTERES GENERAL",1,"GESTIONADO"]
[null,467942026,"AREA DE ATENCION A LA CIUDADANIA","TELEFONO","DERECHO DE PETICION DE INTERES GENERAL",1,"GESTIONADO"]
[null,468872026,"AREA DE ATENCION A LA CIUDADANIA","WEB","DERECHO DE PETICION DE INTERES GENERAL",1,"GESTIONADO"]
[null,469462026,"AREA DE ATENCION A LA CIUDADANIA","WEB","DERECHO DE PETICION DE INTERES GENERAL",1,"GESTIONADO"]
[null,470492026,"AREA DE ATENCION A LA CIUDADANIA","E-MAIL","DERECHO DE PETICION DE INTERES GENERAL",1,"GESTIONADO"]
[null,471292026,"SUBDIRECCION DE GESTION INMOBILIARIA Y DEL ESPACIO PUBLICO","ESCRITO","DERECHO DE PETICION DE INTERES GENERAL",5,"PENDIENTE"]
[null,472342026,"AREA DE ATENCION A LA CIUDADANIA","E-MAIL","DERECHO DE PETICION DE INTERES GENERAL",1,"GESTIONADO"]
[null,472622026,"AREA DE ATENCION A LA CIUDADANIA","E-MAIL","DERECHO DE PETICION DE INTERES GENERAL",1,"GESTIONADO"]
[null,473102026,"AREA DE ATENCION A LA CIUDADANIA","E-MAIL","DERECHO DE PETICION DE INTERES GENERAL",1,"GESTIONADO"]
[null,473292026,"AREA DE ATENCION A LA CIUDADANIA","WEB","DERECHO DE PETICION DE INTERES GENERAL",1,"GESTIONADO"]
[null,473912026,"AREA DE ATENCION A LA CIUDADANIA","E-MAIL","DERECHO DE PETICION DE INTERES GENERAL",1,"GESTIONADO"]
[null,474032026,"AREA DE ATENCION A LA CIUDADANIA","WEB","DERECHO DE PETICION DE INTERES GENERAL",1,"GESTIONADO"]
[null,474412026,"SUBDIRECCION DE GESTION INMOBILIARIA Y DEL ESPACIO PUBLICO","E-MAIL","DERECHO DE PETICION DE INTERES GENERAL",5,"PENDIENTE"]
[null,475402026,"AREA DE ATENCION A LA CIUDADANIA","WEB","QUEJA",2,"GESTIONADO"]
[null,475692026,"AREA DE ATENCION A LA CIUDADANIA","WEB","DERECHO DE PETICION DE INTERES GENERAL",1,"GESTIONADO"]
[null,476282026,"AREA DE ATENCION A LA CIUDADANIA","ESCRITO","DERECHO DE PETICION DE INTERES PARTICULAR",1,"GESTIONADO"]
[null,476572026,"AREA DE ATENCION A LA CIUDADANIA","WEB","DERECHO DE PETICION DE INTERES GENERAL",1,"GESTIONADO"]
[null,477342026,"AREA DE ATENCION A LA CIUDADANIA","WEB","DERECHO DE PETICION DE INTERES GENERAL",1,"GESTIONADO"]
[null,477832026,"AREA DE ATENCION A LA CIUDADANIA","E-MAIL","DERECHO DE PETICION DE INTERES GENERAL",1,"GESTIONADO"]
[null,477962026,"AREA DE ATENCION A LA CIUDADANIA","WEB","DERECHO DE PETICION DE INTERES GENERAL",1,"GESTIONADO"]
[null,478772026,"AREA DE ATENCION A LA CIUDADANIA","E-MAIL","DERECHO DE PETICION DE INTERES GENERAL",1,"GESTIONADO"]
[null,480032026,"AREA DE ATENCION A LA CIUDADANIA","WEB","DERECHO DE PETICION DE INTERES GENERAL",1,"GESTIONADO"]
[null,480582026,"AREA DE ATENCION A LA CIUDADANIA","E-MAIL","DERECHO DE PETICION DE INTERES PARTICULAR",1,"GESTIONADO"]
[null,482872026,"AREA DE ATENCION A LA CIUDADANIA","PRESENCIAL","DERECHO DE PETICION DE INTERES PARTICULAR",1,"GESTIONADO"]
[null,484342026,"AREA DE ATENCION A LA CIUDADANIA","TELEFONO","DERECHO DE PETICION DE INTERES GENERAL",1,"GESTIONADO"]
[null,484432026,"OFICINA DE CONTROL DISCIPLINARIO INTERNO","WEB","DERECHO DE PETICION DE INTERES GENERAL",2,"GESTIONADO"]
[null,485292026,"AREA DE ATENCION A LA CIUDADANIA","WEB","DERECHO DE PETICION DE INTERES GENERAL",2,"GESTIONADO"]
[null,485322026,"AREA DE ATENCION A LA CIUDADANIA","WEB","DERECHO DE PETICION DE INTERES GENERAL",1,"GESTIONADO"]
[null,486632026,"AREA DE ATENCION A LA CIUDADANIA","TELEFONO","DERECHO DE PETICION DE INTERES GENERAL",1,"GESTIONADO"]
[null,487012026,"AREA DE ATENCION A LA CIUDADANIA","WEB","DERECHO DE PETICION DE INTERES PARTICULAR",1,"GESTIONADO"]
[null,487942026,"AREA DE ATENCION A LA CIUDADANIA","WEB","DERECHO DE PETICION DE INTERES GENERAL",1,"GESTIONADO"]
[null,489732026,"AREA DE ATENCION A LA CIUDADANIA","WEB","DERECHO DE PETICION DE INTERES GENERAL",2,"GESTIONADO"]
[null,490372026,"AREA DE ATENCION A LA CIUDADANIA","TELEFONO","RECLAMO",1,"GESTIONADO"]
[null,493032026,"AREA DE ATENCION A LA CIUDADANIA","WEB","DERECHO DE PETICION DE INTERES GENERAL",1,"GESTIONADO"]
[null,497902026,"AREA DE ATENCION A LA CIUDADANIA","WEB","DERECHO DE PETICION DE INTERES GENERAL",1,"GESTIONADO"]
[null,498802026,"AREA DE ATENCION A LA CIUDADANIA","WEB","DERECHO DE PETICION DE INTERES GENERAL",1,"GESTIONADO"]
[null,499102026,"AREA DE ATENCION A LA CIUDADANIA","WEB","DERECHO DE PETICION DE INTERES GENERAL",1,"GESTIONADO"]
[null,499342026,"AREA DE ATENCION A LA CIUDADANIA","WEB","QUEJA",1,"GESTIONADO"]
[null,499392026,"AREA DE ATENCION A LA CIUDADANIA","WEB","CONSULTA",2,"GESTIONADO"]
[null,500292026,"AREA DE ATENCION A LA CIUDADANIA","WEB","DERECHO DE PETICION DE INTERES PARTICULAR",1,"GESTIONADO"]
[null,500382026,"AREA DE ATENCION A LA CIUDADANIA","WEB","DERECHO DE PETICION DE INTERES PARTICULAR",1,"GESTIONADO"]
[null,500602026,"AREA DE ATENCION A LA CIUDADANIA","WEB","DERECHO DE PETICION DE INTERES GENERAL",1,"GESTIONADO"]
[null,500622026,"AREA DE ATENCION A LA CIUDADANIA","WEB","DERECHO DE PETICION DE INTERES GENERAL",1,"GESTIONADO"]
[null,500722026,"AREA DE ATENCION A LA CIUDADANIA","WEB","DERECHO DE PETICION DE INTERES PARTICULAR",1,"GESTIONADO"]
[null,500752026,"AREA DE ATENCION A LA CIUDADANIA","WEB","DERECHO DE PETICION DE INTERES GENERAL",1,"GESTIONADO"]
[null,500792026,"AREA DE ATENCION A LA CIUDADANIA","WEB","DERECHO DE PETICION DE INTERES GENERAL",1,"GESTIONADO"]
[null,500802026,"AREA DE ATENCION A LA CIUDADANIA","WEB","DERECHO DE PETICION DE INTERES GENERAL",1,"GESTIONADO"]
[null,500862026,"AREA DE ATENCION A LA CIUDADANIA","WEB","DERECHO DE PETICION DE INTERES GENERAL",1,"GESTIONADO"]
[null,501102026,"AREA DE ATENCION A LA CIUDADANIA","WEB","DERECHO DE PETICION DE INTERES GENERAL",1,"GESTIONADO"]
[null,501792026,"SUBDIRECCION DE GESTION INMOBILIARIA Y DEL ESPACIO PUBLICO","WEB","DERECHO DE PETICION DE INTERES GENERAL",5,"PENDIENTE"]
[null,502072026,"AREA DE ATENCION A LA CIUDADANIA","WEB","QUEJA",1,"GESTIONADO"]
[null,502222026,"AREA DE ATENCION A LA CIUDADANIA","WEB","DERECHO DE PETICION DE INTERES GENERAL",1,"GESTIONADO"]
[null,504122026,"AREA DE ATENCION A LA CIUDADANIA","WEB","DERECHO DE PETICION DE INTERES GENERAL",2,"GESTIONADO"]
[null,504502026,"AREA DE ATENCION A LA CIUDADANIA","WEB","DERECHO DE PETICION DE INTERES GENERAL",1,"GESTIONADO"]
[null,504562026,"AREA DE ATENCION A LA CIUDADANIA","WEB","DERECHO DE PETICION DE INTERES GENERAL",1,"GESTIONADO"]
[null,505632026,"AREA DE ATENCION A LA CIUDADANIA","WEB","DERECHO DE PETICION DE INTERES GENERAL",1,"GESTIONADO"]
[null,505682026,"AREA DE ATENCION A LA CIUDADANIA","WEB","DERECHO DE PETICION DE INTERES GENERAL",1,"GESTIONADO"]
[null,506292026,"AREA DE ATENCION A LA CIUDADANIA","WEB","DERECHO DE PETICION DE INTERES GENERAL",1,"GESTIONADO"]
[null,506352026,"AREA DE ATENCION A LA CIUDADANIA","WEB","DERECHO DE PETICION DE INTERES GENERAL",1,"GESTIONADO"]
[null,507062026,"AREA DE ATENCION A LA CIUDADANIA","WEB","DERECHO DE PETICION DE INTERES GENERAL",1,"GESTIONADO"]
[null,507302026,"AREA DE ATENCION A LA CIUDADANIA","E-MAIL","DERECHO DE PETICION DE INTERES GENERAL",1,"GESTIONADO"]
[null,507812026,"AREA DE ATENCION A LA CIUDADANIA","WEB","DERECHO DE PETICION DE INTERES GENERAL",1,"GESTIONADO"]
[null,510192026,"AREA DE ATENCION A LA CIUDADANIA","ESCRITO","DERECHO DE PETICION DE INTERES PARTICULAR",1,"GESTIONADO"]
[null,510562026,"AREA DE ATENCION A LA CIUDADANIA","E-MAIL","DERECHO DE PETICION DE INTERES PARTICULAR",1,"GESTIONADO"]
[null,510722026,"SUBDIRECCION DE GESTION INMOBILIARIA Y DEL ESPACIO PUBLICO","E-MAIL","DERECHO DE PETICION DE INTERES GENERAL",4,"PENDIENTE"]
[null,511642026,"SUBDIRECCION DE GESTION INMOBILIARIA Y DEL ESPACIO PUBLICO","E-MAIL","DERECHO DE PETICION DE INTERES PARTICULAR",4,"PENDIENTE"]
[null,512512026,"AREA DE ATENCION A LA CIUDADANIA","WEB","DERECHO DE PETICION DE INTERES GENERAL",1,"GESTIONADO"]
[null,513802026,"AREA DE ATENCION A LA CIUDADANIA","WEB","QUEJA",1,"GESTIONADO"]
[null,513952026,"AREA DE ATENCION A LA CIUDADANIA","WEB","DERECHO DE PETICION DE INTERES GENERAL",1,"GESTIONADO"]
[null,514302026,"AREA DE ATENCION A LA CIUDADANIA","E-MAIL","DERECHO DE PETICION DE INTERES PARTICULAR",1,"GESTIONADO"]
[null,516532026,"AREA DE ATENCION A LA CIUDADANIA","WEB","QUEJA",1,"GESTIONADO"]
[null,517112026,"AREA DE ATENCION A LA CIUDADANIA","WEB","DERECHO DE PETICION DE INTERES PARTICULAR",1,"GESTIONADO"]
[null,517162026,"AREA DE ATENCION A LA CIUDADANIA","WEB","DERECHO DE PETICION DE INTERES GENERAL",1,"GESTIONADO"]
[null,517322026,"AREA DE ATENCION A LA CIUDADANIA","WEB","DERECHO DE PETICION DE INTERES GENERAL",2,"GESTIONADO"]
[null,518582026,"AREA DE ATENCION A LA CIUDADANIA","WEB","DERECHO DE PETICION DE INTERES GENERAL",1,"GESTIONADO"]
[null,519362026,"AREA DE ATENCION A LA CIUDADANIA","WEB","DERECHO DE PETICION DE INTERES PARTICULAR",1,"GESTIONADO"]
[null,519592026,"AREA DE ATENCION A LA CIUDADANIA","WEB","DERECHO DE PETICION DE INTERES GENERAL",1,"GESTIONADO"]
[null,520412026,"AREA DE ATENCION A LA CIUDADANIA","WEB","DERECHO DE PETICION DE INTERES GENERAL",1,"GESTIONADO"]
[null,521482026,"AREA DE ATENCION A LA CIUDADANIA","WEB","DERECHO DE PETICION DE INTERES GENERAL",1,"GESTIONADO"]
[null,522222026,"SUBDIRECCION DE GESTION INMOBILIARIA Y DEL ESPACIO PUBLICO","WEB","DERECHO DE PETICION DE INTERES GENERAL",4,"PENDIENTE"]
[null,523052026,"AREA DE ATENCION A LA CIUDADANIA","E-MAIL","DERECHO DE PETICION DE INTERES GENERAL",1,"GESTIONADO"]
[null,525812026,"AREA DE ATENCION A LA CIUDADANIA","E-MAIL","DERECHO DE PETICION DE INTERES PARTICULAR",1,"GESTIONADO"]
[null,527022026,"AREA DE ATENCION A LA CIUDADANIA","WEB","DERECHO DE PETICION DE INTERES GENERAL",1,"GESTIONADO"]
[null,527332026,"AREA DE ATENCION A LA CIUDADANIA","E-MAIL","DERECHO DE PETICION DE INTERES PARTICULAR",1,"GESTIONADO"]
[null,527602026,"SUBDIRECCION DE GESTION INMOBILIARIA Y DEL ESPACIO PUBLICO","E-MAIL","DERECHO DE PETICION DE INTERES GENERAL",2,"PENDIENTE"]
[null,528462026,"AREA DE ATENCION A LA CIUDADANIA","WEB","DERECHO DE PETICION DE INTERES GENERAL",1,"GESTIONADO"]
[null,529122026,"AREA DE ATENCION A LA CIUDADANIA","WEB","DERECHO DE PETICION DE INTERES GENERAL",1,"GESTIONADO"]
[null,529422026,"AREA DE ATENCION A LA CIUDADANIA","WEB","DERECHO DE PETICION DE INTERES GENERAL",1,"GESTIONADO"]
[null,531302026,"AREA DE ATENCION A LA CIUDADANIA","WEB","DERECHO DE PETICION DE INTERES GENERAL",1,"GESTIONADO"]
[null,531392026,"SUBDIRECCION DE GESTION INMOBILIARIA Y DEL ESPACIO PUBLICO","WEB","DERECHO DE PETICION DE INTERES GENERAL",3,"PENDIENTE"]
[null,531432026,"AREA DE ATENCION A LA CIUDADANIA","E-MAIL","DERECHO DE PETICION DE INTERES GENERAL",1,"GESTIONADO"]
[null,531822026,"AREA DE ATENCION A LA CIUDADANIA","WEB","DERECHO DE PETICION DE INTERES GENERAL",2,"GESTIONADO"]
[null,532422026,"AREA DE ATENCION A LA CIUDADANIA","WEB","DERECHO DE PETICION DE INTERES GENERAL",1,"GESTIONADO"]
[null,532452026,"AREA DE ATENCION A LA CIUDADANIA","WEB","DERECHO DE PETICION DE INTERES GENERAL",1,"GESTIONADO"]
[null,532472026,"AREA DE ATENCION A LA CIUDADANIA","WEB","DERECHO DE PETICION DE INTERES GENERAL",1,"GESTIONADO"]
[null,532482026,"AREA DE ATENCION A LA CIUDADANIA","WEB","DERECHO DE PETICION DE INTERES GENERAL",1,"GESTIONADO"]
[null,532492026,"AREA DE ATENCION A LA CIUDADANIA","WEB","DERECHO DE PETICION DE INTERES GENERAL",1,"GESTIONADO"]
[null,532542026,"AREA DE ATENCION A LA CIUDADANIA","WEB","DERECHO DE PETICION DE INTERES GENERAL",1,"GESTIONADO"]
[null,532552026,"AREA DE ATENCION A LA CIUDADANIA","WEB","DERECHO DE PETICION DE INTERES GENERAL",1,"GESTIONADO"]
[null,532562026,"AREA DE ATENCION A LA CIUDADANIA","WEB","DERECHO DE PETICION DE INTERES GENERAL",1,"GESTIONADO"]
[null,532572026,"AREA DE ATENCION A LA CIUDADANIA","WEB","DERECHO DE PETICION DE INTERES GENERAL",1,"GESTIONADO"]
[null,532582026,"AREA DE ATENCION A LA CIUDADANIA","WEB","DERECHO DE PETICION DE INTERES GENERAL",1,"GESTIONADO"]
[null,532602026,"AREA DE ATENCION A LA CIUDADANIA","WEB","DERECHO DE PETICION DE INTERES GENERAL",1,"GESTIONADO"]
[null,532622026,"AREA DE ATENCION A LA CIUDADANIA","WEB","DERECHO DE PETICION DE INTERES GENERAL",1,"GESTIONADO"]
[null,532632026,"AREA DE ATENCION A LA CIUDADANIA","WEB","DERECHO DE PETICION DE INTERES GENERAL",1,"GESTIONADO"]
[null,532642026,"AREA DE ATENCION A LA CIUDADANIA","WEB","DERECHO DE PETICION DE INTERES GENERAL",1,"GESTIONADO"]
[null,532652026,"AREA DE ATENCION A LA CIUDADANIA","WEB","DERECHO DE PETICION DE INTERES GENERAL",1,"GESTIONADO"]
[null,532672026,"AREA DE ATENCION A LA CIUDADANIA","WEB","DERECHO DE PETICION DE INTERES GENERAL",1,"GESTIONADO"]
[null,532692026,"AREA DE ATENCION A LA CIUDADANIA","WEB","DERECHO DE PETICION DE INTERES GENERAL",1,"GESTIONADO"]
[null,532702026,"AREA DE ATENCION A LA CIUDADANIA","WEB","DERECHO DE PETICION DE INTERES GENERAL",1,"GESTIONADO"]
[null,532712026,"AREA DE ATENCION A LA CIUDADANIA","WEB","DERECHO DE PETICION DE INTERES GENERAL",1,"GESTIONADO"]
[null,532732026,"AREA DE ATENCION A LA CIUDADANIA","WEB","DERECHO DE PETICION DE INTERES GENERAL",1,"GESTIONADO"]
[null,532752026,"AREA DE ATENCION A LA CIUDADANIA","WEB","DERECHO DE PETICION DE INTERES GENERAL",1,"GESTIONADO"]
[null,532762026,"AREA DE ATENCION A LA CIUDADANIA","WEB","DERECHO DE PETICION DE INTERES GENERAL",1,"GESTIONADO"]
[null,532782026,"AREA DE ATENCION A LA CIUDADANIA","WEB","DERECHO DE PETICION DE INTERES GENERAL",1,"GESTIONADO"]
[null,532982026,"AREA DE ATENCION A LA CIUDADANIA","WEB","DERECHO DE PETICION DE INTERES GENERAL",1,"GESTIONADO"]
[null,534132026,"AREA DE ATENCION A LA CIUDADANIA","WEB","RECLAMO",1,"GESTIONADO"]
[null,546112026,"AREA DE ATENCION A LA CIUDADANIA","TELEFONO","RECLAMO",1,"GESTIONADO"]
[null,546432026,"AREA DE ATENCION A LA CIUDADANIA","WEB","DERECHO DE PETICION DE INTERES GENERAL",1,"GESTIONADO"]
[null,546582026,"AREA DE ATENCION A LA CIUDADANIA","E-MAIL","DERECHO DE PETICION DE INTERES GENERAL",1,"GESTIONADO"]
[null,547062026,"AREA DE ATENCION A LA CIUDADANIA","E-MAIL","DERECHO DE PETICION DE INTERES GENERAL",1,"GESTIONADO"]
[null,547102026,"AREA DE ATENCION A LA CIUDADANIA","E-MAIL","DERECHO DE PETICION DE INTERES PARTICULAR",1,"GESTIONADO"]
[null,547532026,"AREA DE ATENCION A LA CIUDADANIA","E-MAIL","DERECHO DE PETICION DE INTERES GENERAL",1,"GESTIONADO"]
[null,548132026,"AREA DE ATENCION A LA CIUDADANIA","WEB","DERECHO DE PETICION DE INTERES GENERAL",1,"GESTIONADO"]
[null,548202026,"AREA DE ATENCION A LA CIUDADANIA","WEB","DERECHO DE PETICION DE INTERES PARTICULAR",1,"GESTIONADO"]
[null,549362026,"AREA DE ATENCION A LA CIUDADANIA","WEB","DERECHO DE PETICION DE INTERES PARTICULAR",1,"PENDIENTE"]
[null,550302026,"SUBDIRECCION DE GESTION INMOBILIARIA Y DEL ESPACIO PUBLICO","WEB","CONSULTA",3,"PENDIENTE"]
[null,550312026,"AREA DE ATENCION A LA CIUDADANIA","WEB","DERECHO DE PETICION DE INTERES GENERAL",1,"GESTIONADO"]
[null,550402026,"AREA DE ATENCION A LA CIUDADANIA","E-MAIL","DERECHO DE PETICION DE INTERES PARTICULAR",1,"GESTIONADO"]
[null,551042026,"AREA DE ATENCION A LA CIUDADANIA","WEB","QUEJA",1,"GESTIONADO"]
[null,551102026,"AREA DE ATENCION A LA CIUDADANIA","WEB","QUEJA",1,"GESTIONADO"]
[null,551382026,"AREA DE ATENCION A LA CIUDADANIA","WEB","DERECHO DE PETICION DE INTERES GENERAL",1,"GESTIONADO"]
[null,551622026,"AREA DE ATENCION A LA CIUDADANIA","E-MAIL","DERECHO DE PETICION DE INTERES GENERAL",1,"GESTIONADO"]
[null,552352026,"AREA DE ATENCION A LA CIUDADANIA","WEB","CONSULTA",3,"PENDIENTE"]
[null,555512026,"AREA DE ATENCION A LA CIUDADANIA","E-MAIL","QUEJA",1,"GESTIONADO"]
[null,555592026,"AREA DE ATENCION A LA CIUDADANIA","WEB","DERECHO DE PETICION DE INTERES PARTICULAR",1,"GESTIONADO"]
[null,556472026,"AREA DE ATENCION A LA CIUDADANIA","WEB","DERECHO DE PETICION DE INTERES GENERAL",1,"GESTIONADO"]
[null,556982026,"AREA DE ATENCION A LA CIUDADANIA","WEB","DERECHO DE PETICION DE INTERES GENERAL",1,"GESTIONADO"]
[null,557002026,"AREA DE ATENCION A LA CIUDADANIA","WEB","DERECHO DE PETICION DE INTERES GENERAL",1,"GESTIONADO"]
[null,557012026,"AREA DE ATENCION A LA CIUDADANIA","WEB","DERECHO DE PETICION DE INTERES GENERAL",1,"GESTIONADO"]
[null,557082026,"AREA DE ATENCION A LA CIUDADANIA","WEB","DERECHO DE PETICION DE INTERES GENERAL",1,"GESTIONADO"]
[null,557092026,"AREA DE ATENCION A LA CIUDADANIA","WEB","DERECHO DE PETICION DE INTERES GENERAL",1,"GESTIONADO"]
[null,557192026,"AREA DE ATENCION A LA CIUDADANIA","WEB","DERECHO DE PETICION DE INTERES GENERAL",1,"GESTIONADO"]
[null,558072026,"AREA DE ATENCION A LA CIUDADANIA","WEB","DERECHO DE PETICION DE INTERES GENERAL",1,"GESTIONADO"]
[null,558352026,"AREA DE ATENCION A LA CIUDADANIA","WEB","RECLAMO",1,"GESTIONADO"]
[null,558632026,"AREA DE ATENCION A LA CIUDADANIA","WEB","DERECHO DE PETICION DE INTERES PARTICULAR",1,"GESTIONADO"]
[null,558922026,"AREA DE ATENCION A LA CIUDADANIA","WEB","DERECHO DE PETICION DE INTERES GENERAL",1,"GESTIONADO"]
[null,559362026,"AREA DE ATENCION A LA CIUDADANIA","WEB","DERECHO DE PETICION DE INTERES GENERAL",1,"GESTIONADO"]
[null,561162026,"AREA DE ATENCION A LA CIUDADANIA","E-MAIL","DERECHO DE PETICION DE INTERES GENERAL",1,"GESTIONADO"]
[null,561312026,"AREA DE ATENCION A LA CIUDADANIA","WEB","DERECHO DE PETICION DE INTERES GENERAL",1,"GESTIONADO"]
[null,561702026,"AREA DE ATENCION A LA CIUDADANIA","E-MAIL","DERECHO DE PETICION DE INTERES GENERAL",1,"GESTIONADO"]
[null,561732026,"AREA DE ATENCION A LA CIUDADANIA","WEB","DERECHO DE PETICION DE INTERES GENERAL",1,"GESTIONADO"]
[null,561802026,"AREA DE ATENCION A LA CIUDADANIA","WEB","DERECHO DE PETICION DE INTERES GENERAL",1,"GESTIONADO"]
[null,561962026,"SUBDIRECCION DE GESTION INMOBILIARIA Y DEL ESPACIO PUBLICO","WEB","DERECHO DE PETICION DE INTERES GENERAL",3,"PENDIENTE"]
[null,562022026,"AREA DE ATENCION A LA CIUDADANIA","WEB","DERECHO DE PETICION DE INTERES GENERAL",1,"GESTIONADO"]
[null,565922026,"AREA DE ATENCION A LA CIUDADANIA","WEB","RECLAMO",1,"PENDIENTE"]
[null,566522026,"SUBDIRECCION DE REGISTRO INMOBILIARIO","WEB","CONSULTA",3,"PENDIENTE"]
[null,566962026,"AREA DE ATENCION A LA CIUDADANIA","WEB","DERECHO DE PETICION DE INTERES PARTICULAR",1,"GESTIONADO"]
[null,567182026,"AREA DE ATENCION A LA CIUDADANIA","WEB","DERECHO DE PETICION DE INTERES GENERAL",1,"GESTIONADO"]
[null,567242026,"AREA DE ATENCION A LA CIUDADANIA","WEB","DERECHO DE PETICION DE INTERES GENERAL",1,"GESTIONADO"]
[null,567382026,"AREA DE ATENCION A LA CIUDADANIA","WEB","DERECHO DE PETICION DE INTERES GENERAL",1,"GESTIONADO"]
[null,568102026,"AREA DE ATENCION A LA CIUDADANIA","WEB","DERECHO DE PETICION DE INTERES GENERAL",1,"GESTIONADO"]
[null,568192026,"AREA DE ATENCION A LA CIUDADANIA","WEB","DERECHO DE PETICION DE INTERES GENERAL",1,"PENDIENTE"]
[null,568622026,"AREA DE ATENCION A LA CIUDADANIA","WEB","RECLAMO",1,"GESTIONADO"]
[null,568742026,"AREA DE ATENCION A LA CIUDADANIA","WEB","DERECHO DE PETICION DE INTERES GENERAL",1,"GESTIONADO"]
[null,568752026,"AREA DE ATENCION A LA CIUDADANIA","WEB","DERECHO DE PETICION DE INTERES GENERAL",1,"GESTIONADO"]
[null,568762026,"AREA DE ATENCION A LA CIUDADANIA","WEB","DERECHO DE PETICION DE INTERES GENERAL",1,"GESTIONADO"]
[null,568772026,"AREA DE ATENCION A LA CIUDADANIA","WEB","DERECHO DE PETICION DE INTERES GENERAL",1,"GESTIONADO"]
[null,568782026,"AREA DE ATENCION A LA CIUDADANIA","WEB","DERECHO DE PETICION DE INTERES GENERAL",1,"GESTIONADO"]
[null,568792026,"AREA DE ATENCION A LA CIUDADANIA","WEB","DERECHO DE PETICION DE INTERES GENERAL",1,"GESTIONADO"]
[null,569032026,"AREA DE ATENCION A LA CIUDADANIA","WEB","DERECHO DE PETICION DE INTERES GENERAL",2,"GESTIONADO"]
[null,572692026,"AREA DE ATENCION A LA CIUDADANIA","WEB","QUEJA",1,"GESTIONADO"]
[null,573722026,"SUBDIRECCION DE REGISTRO INMOBILIARIO","WEB","CONSULTA",1,"PENDIENTE"]
[null,574112026,"AREA DE ATENCION A LA CIUDADANIA","WEB","DERECHO DE PETICION DE INTERES GENERAL",1,"GESTIONADO"]
[null,574362026,"AREA DE ATENCION A LA CIUDADANIA","WEB","DERECHO DE PETICION DE INTERES GENERAL",1,"GESTIONADO"]
[null,583832026,"AREA DE ATENCION A LA CIUDADANIA","E-MAIL","DERECHO DE PETICION DE INTERES GENERAL",1,"GESTIONADO"]
[null,583992026,"AREA DE ATENCION A LA CIUDADANIA","WEB","DERECHO DE PETICION DE INTERES GENERAL",1,"GESTIONADO"]
[null,584032026,"AREA DE ATENCION A LA CIUDADANIA","WEB","DERECHO DE PETICION DE INTERES GENERAL",2,"GESTIONADO"]
[null,584082026,"AREA DE ATENCION A LA CIUDADANIA","E-MAIL","DERECHO DE PETICION DE INTERES GENERAL",1,"GESTIONADO"]
[null,584542026,"AREA DE ATENCION A LA CIUDADANIA","WEB","DERECHO DE PETICION DE INTERES GENERAL",2,"GESTIONADO"]
[null,585222026,"AREA DE ATENCION A LA CIUDADANIA","WEB","DERECHO DE PETICION DE INTERES GENERAL",1,"GESTIONADO"]
[null,586812026,"AREA DE ATENCION A LA CIUDADANIA","ESCRITO","DERECHO DE PETICION DE INTERES GENERAL",1,"GESTIONADO"]
[null,588462026,"AREA DE ATENCION A LA CIUDADANIA","WEB","DERECHO DE PETICION DE INTERES GENERAL",2,"GESTIONADO"]
[null,590232026,"AREA DE ATENCION A LA CIUDADANIA","E-MAIL","DERECHO DE PETICION DE INTERES PARTICULAR",1,"GESTIONADO"]
[null,591342026,"AREA DE ATENCION A LA CIUDADANIA","WEB","DERECHO DE PETICION DE INTERES GENERAL",2,"GESTIONADO"]
[null,591612026,"AREA DE ATENCION A LA CIUDADANIA","WEB","DERECHO DE PETICION DE INTERES GENERAL",2,"GESTIONADO"]
[null,591992026,"AREA DE ATENCION A LA CIUDADANIA","WEB","DERECHO DE PETICION DE INTERES GENERAL",1,"GESTIONADO"]
[null,592092026,"AREA DE ATENCION A LA CIUDADANIA","E-MAIL","DERECHO DE PETICION DE INTERES GENERAL",1,"GESTIONADO"]
[null,594492026,"AREA DE ATENCION A LA CIUDADANIA","WEB","DERECHO DE PETICION DE INTERES GENERAL",1,"GESTIONADO"]
[null,594872026,"AREA DE ATENCION A LA CIUDADANIA","WEB","DERECHO DE PETICION DE INTERES GENERAL",1,"GESTIONADO"]
[null,595752026,"AREA DE ATENCION A LA CIUDADANIA","WEB","DERECHO DE PETICION DE INTERES GENERAL",2,"GESTIONADO"]
[null,596572026,"AREA DE ATENCION A LA CIUDADANIA","WEB","DERECHO DE PETICION DE INTERES GENERAL",1,"GESTIONADO"]
[null,597702026,"AREA DE ATENCION A LA CIUDADANIA","WEB","DERECHO DE PETICION DE INTERES GENERAL",1,"GESTIONADO"]
[null,598212026,"AREA DE ATENCION A LA CIUDADANIA","WEB","DERECHO DE PETICION DE INTERES GENERAL",2,"GESTIONADO"]
[null,598792026,"AREA DE ATENCION A LA CIUDADANIA","WEB","DERECHO DE PETICION DE INTERES GENERAL",1,"GESTIONADO"]
[null,600092026,"AREA DE ATENCION A LA CIUDADANIA","WEB","DERECHO DE PETICION DE INTERES GENERAL",1,"GESTIONADO"]
[null,600442026,"AREA DE ATENCION A LA CIUDADANIA","WEB","DERECHO DE PETICION DE INTERES GENERAL",1,"GESTIONADO"]
[null,602302026,"AREA DE ATENCION A LA CIUDADANIA","E-MAIL","DERECHO DE PETICION DE INTERES GENERAL",1,"GESTIONADO"]
[null,602852026,"AREA DE ATENCION A LA CIUDADANIA","WEB","CONSULTA",2,"PENDIENTE"]
[null,602912026,"SUBDIRECCION DE GESTION INMOBILIARIA Y DEL ESPACIO PUBLICO","E-MAIL","DERECHO DE PETICION DE INTERES GENERAL",2,"PENDIENTE"]
[null,605262026,"AREA DE ATENCION A LA CIUDADANIA","WEB","DERECHO DE PETICION DE INTERES GENERAL",1,"GESTIONADO"]
[null,605782026,"SUBDIRECCION DE GESTION INMOBILIARIA Y DEL ESPACIO PUBLICO","WEB","DERECHO DE PETICION DE INTERES GENERAL",2,"PENDIENTE"]
[null,606222026,"AREA DE ATENCION A LA CIUDADANIA","WEB","DERECHO DE PETICION DE INTERES GENERAL",1,"GESTIONADO"]
[null,606772026,"AREA DE ATENCION A LA CIUDADANIA","WEB","DERECHO DE PETICION DE INTERES GENERAL",1,"GESTIONADO"]
[null,606842026,"AREA DE ATENCION A LA CIUDADANIA","WEB","DERECHO DE PETICION DE INTERES PARTICULAR",1,"GESTIONADO"]
[null,607992026,"AREA DE ATENCION A LA CIUDADANIA","WEB","DERECHO DE PETICION DE INTERES GENERAL",1,"GESTIONADO"]
[null,608502026,"AREA DE ATENCION A LA CIUDADANIA","WEB","DERECHO DE PETICION DE INTERES GENERAL",1,"GESTIONADO"]
[null,619942026,"AREA DE ATENCION A LA CIUDADANIA","WEB","DERECHO DE PETICION DE INTERES GENERAL",1,"GESTIONADO"]
[null,622732026,"AREA DE ATENCION A LA CIUDADANIA","WEB","DERECHO DE PETICION DE INTERES GENERAL",1,"GESTIONADO"]
[null,623152026,"AREA DE ATENCION A LA CIUDADANIA","WEB","DERECHO DE PETICION DE INTERES GENERAL",1,"GESTIONADO"]
[null,624002026,"AREA DE ATENCION A LA CIUDADANIA","E-MAIL","DERECHO DE PETICION DE INTERES PARTICULAR",1,"PENDIENTE"]
[null,624632026,"AREA DE ATENCION A LA CIUDADANIA","WEB","DERECHO DE PETICION DE INTERES GENERAL",1,"GESTIONADO"]
[null,624952026,"AREA DE ATENCION A LA CIUDADANIA","WEB","DERECHO DE PETICION DE INTERES GENERAL",1,"GESTIONADO"]
[null,625312026,"AREA DE ATENCION A LA CIUDADANIA","WEB","SUGERENCIA",1,"GESTIONADO"]
[null,625362026,"SUBDIRECCION DE GESTION INMOBILIARIA Y DEL ESPACIO PUBLICO","WEB","DERECHO DE PETICION DE INTERES PARTICULAR",1,"PENDIENTE"]
[null,626112026,"AREA DE ATENCION A LA CIUDADANIA","WEB","DERECHO DE PETICION DE INTERES PARTICULAR",1,"GESTIONADO"]
[null,627172026,"AREA DE ATENCION A LA CIUDADANIA","TELEFONO","DERECHO DE PETICION DE INTERES GENERAL",1,"PENDIENTE"]
[null,629332026,"AREA DE ATENCION A LA CIUDADANIA","WEB","DERECHO DE PETICION DE INTERES GENERAL",1,"PENDIENTE"]
[null,629692026,"SUBDIRECCION DE GESTION INMOBILIARIA Y DEL ESPACIO PUBLICO","WEB","CONSULTA",1,"PENDIENTE"]
[null,630332026,"SUBDIRECCION DE GESTION INMOBILIARIA Y DEL ESPACIO PUBLICO","E-MAIL","DERECHO DE PETICION DE INTERES GENERAL",1,"PENDIENTE"]
[null,631572026,"AREA DE ATENCION A LA CIUDADANIA","E-MAIL","DERECHO DE PETICION DE INTERES PARTICULAR",1,"PENDIENTE"]
[null,632372026,"AREA DE ATENCION A LA CIUDADANIA","WEB","DERECHO DE PETICION DE INTERES GENERAL",1,"GESTIONADO"]
[null,632652026,"SUBDIRECCION DE GESTION INMOBILIARIA Y DEL ESPACIO PUBLICO","E-MAIL","DERECHO DE PETICION DE INTERES GENERAL",1,"PENDIENTE"]
[null,633362026,"AREA DE ATENCION A LA CIUDADANIA","ESCRITO","DERECHO DE PETICION DE INTERES GENERAL",1,"GESTIONADO"]
[null,633752026,"AREA DE ATENCION A LA CIUDADANIA","E-MAIL","DERECHO DE PETICION DE INTERES GENERAL",1,"GESTIONADO"]
[null,634342026,"AREA DE ATENCION A LA CIUDADANIA","E-MAIL","DERECHO DE PETICION DE INTERES GENERAL",1,"GESTIONADO"]
[null,634962026,"AREA DE ATENCION A LA CIUDADANIA","E-MAIL","DERECHO DE PETICION DE INTERES GENERAL",1,"GESTIONADO"]
[null,638022026,"AREA DE ATENCION A LA CIUDADANIA","WEB","DERECHO DE PETICION DE INTERES GENERAL",1,"GESTIONADO"]
[null,639262026,"AREA DE ATENCION A LA CIUDADANIA","WEB","DERECHO DE PETICION DE INTERES GENERAL",1,"GESTIONADO"]
[null,639762026,"AREA DE ATENCION A LA CIUDADANIA","WEB","DERECHO DE PETICION DE INTERES GENERAL",1,"GESTIONADO"]
[null,640142026,"AREA DE ATENCION A LA CIUDADANIA","WEB","DERECHO DE PETICION DE INTERES GENERAL",1,"PENDIENTE"]
[null,644362026,"AREA DE ATENCION A LA CIUDADANIA","WEB","DERECHO DE PETICION DE INTERES GENERAL",1,"GESTIONADO"]
[null,652942026,"AREA DE ATENCION A LA CIUDADANIA","TELEFONO","DERECHO DE PETICION DE INTERES GENERAL",1,"PENDIENTE"]
[null,654732026,"AREA DE ATENCION A LA CIUDADANIA","E-MAIL","DERECHO DE PETICION DE INTERES GENERAL",1,"GESTIONADO"]
[null,656502026,"AREA DE ATENCION A LA CIUDADANIA","TELEFONO","DERECHO DE PETICION DE INTERES GENERAL",1,"PENDIENTE"]
[null,657912026,"AREA DE ATENCION A LA CIUDADANIA","WEB","DERECHO DE PETICION DE INTERES GENERAL",1,"PENDIENTE"]
[null,658262026,"AREA DE ATENCION A LA CIUDADANIA","WEB","QUEJA",1,"PENDIENTE"]
[null,659182026,"AREA DE ATENCION A LA CIUDADANIA","E-MAIL","QUEJA",1,"PENDIENTE"]
[null,660132026,"AREA DE ATENCION A LA CIUDADANIA","WEB","DERECHO DE PETICION DE INTERES GENERAL",1,"PENDIENTE"]
[null,660352026,"AREA DE ATENCION A LA CIUDADANIA","ESCRITO","DERECHO DE PETICION DE INTERES PARTICULAR",1,"PENDIENTE"]
[null,660492026,"AREA DE ATENCION A LA CIUDADANIA","PRESENCIAL","DERECHO DE PETICION DE INTERES PARTICULAR",1,"PENDIENTE"]
[null,660762026,"AREA DE ATENCION A LA CIUDADANIA","E-MAIL","QUEJA",1,"PENDIENTE"]
[null,661172026,"AREA DE ATENCION A LA CIUDADANIA","WEB","QUEJA",1,"PENDIENTE"]
[null,661822026,"AREA DE ATENCION A LA CIUDADANIA","WEB","DERECHO DE PETICION DE INTERES GENERAL",1,"PENDIENTE"]
[null,661912026,"AREA DE ATENCION A LA CIUDADANIA","WEB","RECLAMO",1,"PENDIENTE"]
[null,661942026,"AREA DE ATENCION A LA CIUDADANIA","WEB","DERECHO DE PETICION DE INTERES GENERAL",1,"PENDIENTE"]
[null,663252026,"AREA DE ATENCION A LA CIUDADANIA","WEB","DERECHO DE PETICION DE INTERES GENERAL",1,"PENDIENTE"]
[null,664262026,"AREA DE ATENCION A LA CIUDADANIA","WEB","DERECHO DE PETICION DE INTERES GENERAL",1,"PENDIENTE"]
[null,664432026,"AREA DE ATENCION A LA CIUDADANIA","WEB","QUEJA",1,"PENDIENTE"]
[null,665212026,"AREA DE ATENCION A LA CIUDADANIA","WEB","QUEJA",1,"PENDIENTE"]
[null,665422026,"AREA DE ATENCION A LA CIUDADANIA","WEB","DERECHO DE PETICION DE INTERES GENERAL",1,"PENDIENTE"]
[null,666202026,"AREA DE ATENCION A LA CIUDADANIA","WEB","DERECHO DE PETICION DE INTERES GENERAL",1,"PENDIENTE"]
[null,666652026,"AREA DE ATENCION A LA CIUDADANIA","WEB","QUEJA",1,"PENDIENTE"]
[null,667682026,"AREA DE ATENCION A LA CIUDADANIA","WEB","QUEJA",1,"PENDIENTE"]
[null,667962026,"AREA DE ATENCION A LA CIUDADANIA","WEB","QUEJA",1,"PENDIENTE"]
[null,670882026,"AREA DE ATENCION A LA CIUDADANIA","WEB","DERECHO DE PETICION DE INTERES GENERAL",1,"PENDIENTE"]
[null,670962026,"AREA DE ATENCION A LA CIUDADANIA","WEB","DERECHO DE PETICION DE INTERES GENERAL",1,"PENDIENTE"]
[null,670982026,"AREA DE ATENCION A LA CIUDADANIA","WEB","QUEJA",1,"PENDIENTE"]
[null,671272026,"AREA DE ATENCION A LA CIUDADANIA","WEB","QUEJA",1,"PENDIENTE"]
[null,673472026,"AREA DE ATENCION A LA CIUDADANIA","WEB","DERECHO DE PETICION DE INTERES GENERAL",1,"PENDIENTE"]
[null,682612026,"AREA DE ATENCION A LA CIUDADANIA","WEB","RECLAMO",1,"PENDIENTE"]
[null,682922026,"AREA DE ATENCION A LA CIUDADANIA","WEB","DERECHO DE PETICION DE INTERES GENERAL",1,"PENDIENTE"]
[null,683302026,"AREA DE ATENCION A LA CIUDADANIA","WEB","QUEJA",1,"PENDIENTE"]
[null,683512026,"AREA DE ATENCION A LA CIUDADANIA","WEB","QUEJA",1,"PENDIENTE"]
[null,684292026,"AREA DE ATENCION A LA CIUDADANIA","WEB","DERECHO DE PETICION DE INTERES GENERAL",1,"PENDIENTE"]
[null,684672026,"AREA DE ATENCION A LA CIUDADANIA","WEB","DERECHO DE PETICION DE INTERES GENERAL",1,"PENDIENTE"]
[null,684812026,"AREA DE ATENCION A LA CIUDADANIA","WEB","RECLAMO",1,"PENDIENTE"]
[null,684992026,"AREA DE ATENCION A LA CIUDADANIA","WEB","DERECHO DE PETICION DE INTERES PARTICULAR",1,"PENDIENTE"]
[null,685162026,"AREA DE ATENCION A LA CIUDADANIA","WEB","QUEJA",1,"PENDIENTE"]
[null,685172026,"AREA DE ATENCION A LA CIUDADANIA","WEB","DERECHO DE PETICION DE INTERES GENERAL",1,"PENDIENTE"]
[null,685442026,"AREA DE ATENCION A LA CIUDADANIA","WEB","SOLICITUD DE ACCESO A LA INFORMACION",1,"PENDIENTE"]
[null,685492026,"AREA DE ATENCION A LA CIUDADANIA","WEB","DERECHO DE PETICION DE INTERES GENERAL",1,"PENDIENTE"]
[null,685572026,"AREA DE ATENCION A LA CIUDADANIA","WEB","DERECHO DE PETICION DE INTERES GENERAL",1,"PENDIENTE"]
[null,685602026,"AREA DE ATENCION A LA CIUDADANIA","WEB","DERECHO DE PETICION DE INTERES GENERAL",1,"PENDIENTE"]
[null,685642026,"AREA DE ATENCION A LA CIUDADANIA","WEB","DERECHO DE PETICION DE INTERES GENERAL",1,"PENDIENTE"]
[null,7050902025,"AREA DE ATENCION A LA CIUDADANIA","WEB","RECLAMO",1,"GESTIONADO"]
[null,7153172025,"AREA DE ATENCION A LA CIUDADANIA","E-MAIL","DERECHO DE PETICION DE INTERES GENERAL",1,"GESTIONADO"]
[null,7186722025,"AREA DE ATENCION A LA CIUDADANIA","WEB","CONSULTA",1,"GESTIONADO"]
[null,7194992025,"AREA DE ATENCION A LA CIUDADANIA","E-MAIL","DERECHO DE PETICION DE INTERES GENERAL",1,"GESTIONADO"]
[null,7216892025,"AREA DE ATENCION A LA CIUDADANIA","TELEFONO","QUEJA",1,"GESTIONADO"]
[null,7241682025,"AREA DE ATENCION A LA CIUDADANIA","WEB","DERECHO DE PETICION DE INTERES GENERAL",1,"GESTIONADO"]
[null,7250842025,"AREA DE ATENCION A LA CIUDADANIA","WEB","RECLAMO",1,"GESTIONADO"]
[null,7253842025,"AREA DE ATENCION A LA CIUDADANIA","WEB","DERECHO DE PETICION DE INTERES PARTICULAR",1,"GESTIONADO"]
[null,7261592025,"AREA DE ATENCION A LA CIUDADANIA","E-MAIL","DERECHO DE PETICION DE INTERES PARTICULAR",1,"GESTIONADO"]
[null,7261672025,"AREA DE ATENCION A LA CIUDADANIA","E-MAIL","DERECHO DE PETICION DE INTERES GENERAL",1,"GESTIONADO"]
[null,7278922025,"AREA DE ATENCION A LA CIUDADANIA","WEB","DERECHO DE PETICION DE INTERES GENERAL",1,"GESTIONADO"]
[null,7279912025,"AREA DE ATENCION A LA CIUDADANIA","WEB","DERECHO DE PETICION DE INTERES GENERAL",1,"GESTIONADO"]

{"sheet":"Traslados","index":3,"n_rows":449,"n_cols":8,"rows_kept":449,"cut":false,"hidden":false,"merged":[[10,3,14,5],[8,1,9,1],[10,1,16,2]]}
[]
[]
[]
[]
[]
[]
[]
[]
[]
[]
[null,"REPORTE  GESTIÓN DE PETICIONES\n\nFecha:  2026- 01- 01    a   2026 - 01 - 31\nEstado de Petición:  Al Periodo"]
[]
[]
[]
[]
[]
[]
[]
[null,"Número petición\nNumero de registro en el Sistema","Dependencia:\nNombre asociado al usuario que tiene a cargo la petición ","Canal:\nNombre del canal parametrizado en el sistema por el cual fue registrada la petición","Tipología actualizada: \nTipo de documento utilizado por la entidad","Traslado a otras Entidades: \nPeticiones que por competencia son trasladadas a otras entidades.","Entidad Destino","Estado del Requerimiento\n \"Gestionado\" o \"Pendiente\" de respuesta definitiva por  parte de la Defensoría del Espacio Público o de las entidades competentes"]
[null,1802026,"AREA DE ATENCION A LA CIUDADANIA","WEB","DERECHO DE PETICION DE INTERES GENERAL","Solucionado - Por traslado","INSTITUTO DE DESARROLLO URBANO - IDU","GESTIONADO"]
[null,1832026,"AREA DE ATENCION A LA CIUDADANIA","WEB","DERECHO DE PETICION DE INTERES GENERAL","Solucionado - Por traslado","UNIDAD ADMINISTRATIVA ESPECIAL DE SERVICIOS PUBLICOS -UAESP","GESTIONADO"]
[null,2762026,"AREA DE ATENCION A LA CIUDADANIA","WEB","DERECHO DE PETICION DE INTERES GENERAL","Solucionado - Por traslado","ENTIDAD NACIONAL","GESTIONADO"]
[null,6302026,"AREA DE ATENCION A LA CIUDADANIA","E-MAIL","DERECHO DE PETICION DE INTERES GENERAL","Solucionado por asignar - Trasladar","SECRETARIA DISTRITAL DE GOBIERNO","GESTIONADO"]
[null,6452026,"AREA DE ATENCION A LA CIUDADANIA","E-MAIL","DERECHO DE PETICION DE INTERES GENERAL","Solucionado - Por traslado","SECRETARIA DISTRITAL DE PLANEACION","GESTIONADO"]
[null,6542026,"AREA DE ATENCION A LA CIUDADANIA","E-MAIL","DERECHO DE PETICION DE INTERES GENERAL","Solucionado - Por traslado","SECRETARIA DISTRITAL DE GOBIERNO","GESTIONADO"]
[null,6972026,"AREA DE ATENCION A LA CIUDADANIA","WEB","DERECHO DE PETICION DE INTERES PARTICULAR","Solucionado - Por traslado","UNIDAD ADMINISTRATIVA ESPECIAL DE SERVICIOS PUBLICOS -UAESP","GESTIONADO"]
[null,8952026,"AREA DE ATENCION A LA CIUDADANIA","WEB","DERECHO DE PETICION DE INTERES GENERAL","Solucionado - Por traslado","ENTIDAD NACIONAL","GESTIONADO"]
[null,9962026,"AREA DE ATENCION A LA CIUDADANIA","WEB","CONSULTA","Solucionado - Por traslado","SECRETARIA DISTRITAL DE GOBIERNO","GESTIONADO"]
[null,9992026,"AREA DE ATENCION A LA CIUDADANIA","WEB","DERECHO DE PETICION DE INTERES PARTICULAR","Solucionado - Por traslado","SECRETARIA DISTRITAL DE GOBIERNO","GESTIONADO"]
[null,10382026,"AREA DE ATENCION A LA CIUDADANIA","WEB","DERECHO DE PETICION DE INTERES GENERAL","Solucionado - Por traslado","SECRETARIA DISTRITAL DE INTEGRACION SOCIAL","GESTIONADO"]
[null,10602026,"AREA DE ATENCION A LA CIUDADANIA","WEB","DERECHO DE PETICION DE INTERES GENERAL","Solucionado - Por traslado","SECRETARIA DISTRITAL DE GOBIERNO","GESTIONADO"]
[null,10612026,"AREA DE ATENCION A LA CIUDADANIA","WEB","DERECHO DE PETICION DE INTERES GENERAL","Solucionado - Por traslado","SECRETARIA DISTRITAL DE GOBIERNO","GESTIONADO"]
[null,18912026,"AREA DE ATENCION A LA CIUDADANIA","WEB","DERECHO DE PETICION DE INTERES PARTICULAR","Solucionado - Por traslado","SECRETARIA DISTRITAL DE GOBIERNO","GESTIONADO"]
[null,19882026,"AREA DE ATENCION A LA CIUDADANIA","WEB","DERECHO DE PETICION DE INTERES GENERAL","Solucionado - Por traslado","UNIDAD ADMINISTRATIVA ESPECIAL DE REHABILITACION Y MANTENIMIENTO VIAL - UAERMV","GESTIONADO"]
[null,21092026,"AREA DE ATENCION A LA CIUDADANIA","WEB","DERECHO DE PETICION DE INTERES PARTICULAR","Solucionado - Por traslado","UNIDAD ADMINISTRATIVA ESPECIAL DE SERVICIOS PUBLICOS -UAESP","GESTIONADO"]
[null,21792026,"AREA DE ATENCION A LA CIUDADANIA","WEB","DERECHO DE PETICION DE INTERES PARTICULAR","Solucionado - Por traslado","SECRETARIA DISTRITAL DE GOBIERNO","GESTIONADO"]
[null,21942026,"AREA DE ATENCION A LA CIUDADANIA","WEB","DERECHO DE PETICION DE INTERES PARTICULAR","Solucionado - Por traslado","SECRETARIA DISTRITAL DE GOBIERNO","GESTIONADO"]
[null,23912026,"AREA DE ATENCION A LA CIUDADANIA","WEB","DERECHO DE PETICION DE INTERES GENERAL","Solucionado - Por traslado","SECRETARIA DISTRITAL DE INTEGRACION SOCIAL","GESTIONADO"]
[null,24142026,"AREA DE ATENCION A LA CIUDADANIA","WEB","DERECHO DE PETICION DE INTERES GENERAL","Solucionado - Por traslado","SECRETARIA DISTRITAL DE GOBIERNO","GESTIONADO"]
[null,25852026,"AREA DE ATENCION A LA CIUDADANIA","WEB","DERECHO DE PETICION DE INTERES GENERAL","Solucionado - Por traslado","SECRETARIA DISTRITAL DE MOVILIDAD","GESTIONADO"]
[null,25872026,"AREA DE ATENCION A LA CIUDADANIA","WEB","DERECHO DE PETICION DE INTERES GENERAL","Solucionado - Por traslado","SECRETARIA DISTRITAL DE MOVILIDAD","GESTIONADO"]
[null,26132026,"AREA DE ATENCION A LA CIUDADANIA","TELEFONO","DERECHO DE PETICION DE INTERES GENERAL","Solucionado - Por traslado","SECRETARIA DISTRITAL DE GOBIERNO","GESTIONADO"]
[null,26232026,"AREA DE ATENCION A LA CIUDADANIA","E-MAIL","DERECHO DE PETICION DE INTERES GENERAL","Solucionado por asignar - Trasladar","SECRETARIA DISTRITAL DE GOBIERNO","GESTIONADO"]
[null,26492026,"AREA DE ATENCION A LA CIUDADANIA","E-MAIL","DERECHO DE PETICION DE INTERES GENERAL","Solucionado - Por traslado","SECRETARIA DISTRITAL DE GOBIERNO","GESTIONADO"]
[null,26742026,"AREA DE ATENCION A LA CIUDADANIA","E-MAIL","DERECHO DE PETICION DE INTERES PARTICULAR","Solucionado por asignar - Trasladar","SECRETARIA DISTRITAL DE GOBIERNO","GESTIONADO"]
[null,27182026,"AREA DE ATENCION A LA CIUDADANIA","E-MAIL","DERECHO DE PETICION DE INTERES GENERAL","Solucionado - Por traslado","SECRETARIA DISTRITAL DE GOBIERNO","GESTIONADO"]
[null,28492026,"AREA DE ATENCION A LA CIUDADANIA","WEB","DERECHO DE PETICION DE INTERES GENERAL","Solucionado - Por traslado","SECRETARIA DISTRITAL DE MOVILIDAD","GESTIONADO"]
[null,31152026,"AREA DE ATENCION A LA CIUDADANIA","WEB","DERECHO DE PETICION DE INTERES GENERAL","Solucionado - Por traslado","SECRETARIA DISTRITAL DE MOVILIDAD","GESTIONADO"]
[null,34142026,"AREA DE ATENCION A LA CIUDADANIA","WEB","SUGERENCIA","Solucionado - Por traslado","UNIDAD ADMINISTRATIVA ESPECIAL DE SERVICIOS PUBLICOS -UAESP","GESTIONADO"]
[null,38722026,"AREA DE ATENCION A LA CIUDADANIA","WEB","QUEJA","Solucionado - Por traslado","SECRETARIA DISTRITAL DE GOBIERNO","GESTIONADO"]
[null,39372026,"AREA DE ATENCION A LA CIUDADANIA","WEB","QUEJA","Solucionado - Por traslado","INSTITUTO PARA LA ECONOMIA SOCIAL - IPES","GESTIONADO"]
[null,56912026,"AREA DE ATENCION A LA CIUDADANIA","WEB","DERECHO DE PETICION DE INTERES GENERAL","Solucionado - Por traslado","SECRETARIA DISTRITAL DE GOBIERNO","GESTIONADO"]
[null,57962026,"AREA DE ATENCION A LA CIUDADANIA","WEB","DERECHO DE PETICION DE INTERES GENERAL","Solucionado - Por traslado","SECRETARIA DISTRITAL DE GOBIERNO","GESTIONADO"]
[null,58052026,"AREA DE ATENCION A LA CIUDADANIA","WEB","DERECHO DE PETICION DE INTERES GENERAL","Solucionado - Por traslado","SECRETARIA DISTRITAL DE GOBIERNO","GESTIONADO"]
[null,58102026,"AREA DE ATENCION A LA CIUDADANIA","WEB","DERECHO DE PETICION DE INTERES GENERAL","Solucionado - Por traslado","SECRETARIA DISTRITAL DE GOBIERNO","GESTIONADO"]
[null,58342026,"AREA DE ATENCION A LA CIUDADANIA","WEB","DERECHO DE PETICION DE INTERES PARTICULAR","Solucionado - Por traslado","SECRETARIA DISTRITAL DE SEGURIDAD  CONVIVENCIA Y JUSTICIA","GESTIONADO"]
[null,62692026,"AREA DE ATENCION A LA CIUDADANIA","WEB","DERECHO DE PETICION DE INTERES GENERAL","Solucionado - Por traslado","SECRETARIA DISTRITAL DE GOBIERNO","GESTIONADO"]
[null,65762026,"AREA DE ATENCION A LA CIUDADANIA","E-MAIL","DERECHO DE PETICION DE INTERES GENERAL","Solucionado - Por traslado","SECRETARIA DISTRITAL DE GOBIERNO","GESTIONADO"]
[null,66042026,"AREA DE ATENCION A LA CIUDADANIA","E-MAIL","DERECHO DE PETICION DE INTERES GENERAL","Solucionado por asignar - Trasladar","SECRETARIA DISTRITAL DE GOBIERNO","GESTIONADO"]
[null,66432026,"AREA DE ATENCION A LA CIUDADANIA","E-MAIL","DERECHO DE PETICION DE INTERES GENERAL","Solucionado por asignar - Trasladar","SECRETARIA DISTRITAL DE GOBIERNO","GESTIONADO"]
[null,69032026,"AREA DE ATENCION A LA CIUDADANIA","WEB","QUEJA","Solucionado - Por traslado","SUBRED INTEGRADA DE SERVICIOS DE SALUD NORTE E.S.E.","GESTIONADO"]
[null,71132026,"AREA DE ATENCION A LA CIUDADANIA","WEB","DERECHO DE PETICION DE INTERES PARTICULAR","Solucionado - Por traslado","TERMINAL DE TRANSPORTES S.A.","GESTIONADO"]
[null,87502026,"AREA DE ATENCION A LA CIUDADANIA","WEB","DERECHO DE PETICION DE INTERES GENERAL","Solucionado - Por traslado","INSTITUTO PARA LA ECONOMIA SOCIAL - IPES","GESTIONADO"]
[null,88632026,"AREA DE ATENCION A LA CIUDADANIA","WEB","QUEJA","Solucionado - Por traslado","SECRETARIA DISTRITAL DE MOVILIDAD","GESTIONADO"]
[null,91552026,"AREA DE ATENCION A LA CIUDADANIA","ESCRITO","DERECHO DE PETICION DE INTERES GENERAL","Solucionado - Por traslado","SECRETARIA DISTRITAL DE GOBIERNO","GESTIONADO"]
[null,91762026,"AREA DE ATENCION A LA CIUDADANIA","WEB","QUEJA","Solucionado - Por traslado","SECRETARIA DISTRITAL DE MOVILIDAD","GESTIONADO"]
[null,93302026,"AREA DE ATENCION A LA CIUDADANIA","WEB","DERECHO DE PETICION DE INTERES GENERAL","Solucionado - Por traslado","SUBRED INTEGRADA DE SERVICIOS DE SALUD NORTE E.S.E.","GESTIONADO"]
[null,93602026,"AREA DE ATENCION A LA CIUDADANIA","WEB","DERECHO DE PETICION DE INTERES PARTICULAR","Solucionado - Por traslado","INSTITUTO DE DESARROLLO URBANO - IDU","GESTIONADO"]
[null,95062026,"AREA DE ATENCION A LA CIUDADANIA","WEB","DERECHO DE PETICION DE INTERES GENERAL","Solucionado - Por traslado","INSTITUTO PARA LA ECONOMIA SOCIAL - IPES","GESTIONADO"]
[null,96942026,"AREA DE ATENCION A LA CIUDADANIA","WEB","CONSULTA","Solucionado - Por traslado","SECRETARIA DISTRITAL DE GOBIERNO","GESTIONADO"]
[null,97272026,"AREA DE ATENCION A LA CIUDADANIA","E-MAIL","DERECHO DE PETICION DE INTERES GENERAL","Solucionado - Por traslado","SECRETARIA DISTRITAL DE GOBIERNO","GESTIONADO"]
[null,97372026,"AREA DE ATENCION A LA CIUDADANIA","WEB","QUEJA","Solucionado - Por traslado","SECRETARIA DISTRITAL DE MOVILIDAD","GESTIONADO"]
[null,97722026,"AREA DE ATENCION A LA CIUDADANIA","WEB","QUEJA","Solucionado - Por traslado","SECRETARIA DISTRITAL DE MOVILIDAD","GESTIONADO"]
[null,97822026,"AREA DE ATENCION A LA CIUDADANIA","WEB","QUEJA","Solucionado - Por traslado","SECRETARIA DISTRITAL DE MOVILIDAD","GESTIONADO"]
[null,99902026,"AREA DE ATENCION A LA CIUDADANIA","WEB","DERECHO DE PETICION DE INTERES GENERAL","Solucionado - Por traslado","SECRETARIA DISTRITAL DE GOBIERNO","GESTIONADO"]
[null,100532026,"AREA DE ATENCION A LA CIUDADANIA","WEB","QUEJA","Solucionado - Por traslado","SECRETARIA DISTRITAL DE GOBIERNO","GESTIONADO"]
[null,101062026,"AREA DE ATENCION A LA CIUDADANIA","WEB","DERECHO DE PETICION DE INTERES GENERAL","Solucionado - Por traslado","SECRETARIA DISTRITAL DE MOVILIDAD","GESTIONADO"]
[null,105152026,"AREA DE ATENCION A LA CIUDADANIA","WEB","DERECHO DE PETICION DE INTERES GENERAL","Solucionado - Por traslado","SECRETARIA DISTRITAL DE GOBIERNO","GESTIONADO"]
[null,115262026,"AREA DE ATENCION A LA CIUDADANIA","WEB","QUEJA","Solucionado - Por traslado","SECRETARIA DISTRITAL DE MOVILIDAD","GESTIONADO"]
[null,115512026,"AREA DE ATENCION A LA CIUDADANIA","WEB","DERECHO DE PETICION DE INTERES GENERAL","Solucionado - Por traslado","INSTITUTO PARA LA ECONOMIA SOCIAL - IPES","GESTIONADO"]
[null,115722026,"AREA DE ATENCION A LA CIUDADANIA","E-MAIL","DERECHO DE PETICION DE INTERES GENERAL","Solucionado - Por traslado","SECRETARIA DISTRITAL DE GOBIERNO","GESTIONADO"]
[null,119312026,"AREA DE ATENCION A LA CIUDADANIA","WEB","DERECHO DE PETICION DE INTERES GENERAL","Solucionado - Por traslado","SECRETARIA DISTRITAL DE MOVILIDAD","GESTIONADO"]
[null,121282026,"AREA DE ATENCION A LA CIUDADANIA","WEB","DERECHO DE PETICION DE INTERES GENERAL","Solucionado - Por traslado","INSTITUTO PARA LA ECONOMIA SOCIAL - IPES","GESTIONADO"]
[null,122922026,"AREA DE ATENCION A LA CIUDADANIA","WEB","DERECHO DE PETICION DE INTERES GENERAL","Solucionado - Por traslado","SECRETARIA DISTRITAL DE GOBIERNO","GESTIONADO"]
[null,123002026,"AREA DE ATENCION A LA CIUDADANIA","WEB","DERECHO DE PETICION DE INTERES GENERAL","Solucionado - Por traslado","SECRETARIA DISTRITAL DE MOVILIDAD","GESTIONADO"]
[null,123172026,"AREA DE ATENCION A LA CIUDADANIA","WEB","QUEJA","Solucionado - Por traslado","SECRETARIA DISTRITAL DE AMBIENTE","GESTIONADO"]
[null,123342026,"AREA DE ATENCION A LA CIUDADANIA","WEB","DERECHO DE PETICION DE INTERES GENERAL","Solucionado - Por traslado","SECRETARIA DISTRITAL DE MOVILIDAD","GESTIONADO"]
[null,123602026,"AREA DE ATENCION A LA CIUDADANIA","E-MAIL","DERECHO DE PETICION DE INTERES PARTICULAR","Solucionado por asignar - Trasladar","SECRETARIA DISTRITAL DE GOBIERNO","GESTIONADO"]
[null,125822026,"AREA DE ATENCION A LA CIUDADANIA","WEB","DERECHO DE PETICION DE INTERES GENERAL","Solucionado - Por traslado","SECRETARIA DISTRITAL DE GOBIERNO","GESTIONADO"]
[null,126312026,"AREA DE ATENCION A LA CIUDADANIA","WEB","DERECHO DE PETICION DE INTERES GENERAL","Solucionado - Por traslado","INSTITUTO DE DESARROLLO URBANO - IDU","GESTIONADO"]
[null,127062026,"AREA DE ATENCION A LA CIUDADANIA","E-MAIL","DERECHO DE PETICION DE INTERES PARTICULAR","Solucionado por asignar - Trasladar","SECRETARIA DISTRITAL DE GOBIERNO","GESTIONADO"]
[null,127292026,"AREA DE ATENCION A LA CIUDADANIA","WEB","DERECHO DE PETICION DE INTERES GENERAL","Solucionado - Por traslado","UNIDAD ADMINISTRATIVA ESPECIAL DE SERVICIOS PUBLICOS -UAESP","GESTIONADO"]
[null,127712026,"AREA DE ATENCION A LA CIUDADANIA","WEB","DERECHO DE PETICION DE INTERES GENERAL","Solucionado - Por traslado","SECRETARIA DISTRITAL DE GOBIERNO","GESTIONADO"]
[null,130232026,"AREA DE ATENCION A LA CIUDADANIA","WEB","DERECHO DE PETICION DE INTERES GENERAL","Solucionado - Por traslado","INSTITUTO PARA LA ECONOMIA SOCIAL - IPES","GESTIONADO"]
[null,145242026,"AREA DE ATENCION A LA CIUDADANIA","E-MAIL","DERECHO DE PETICION DE INTERES PARTICULAR","Solucionado - Por traslado","SECRETARIA DISTRITAL DE GOBIERNO","GESTIONADO"]
[null,146592026,"AREA DE ATENCION A LA CIUDADANIA","WEB","QUEJA","Solucionado - Por traslado","UNIDAD ADMINISTRATIVA ESPECIAL DE SERVICIOS PUBLICOS -UAESP","GESTIONADO"]
[null,147342026,"AREA DE ATENCION A LA CIUDADANIA","E-MAIL","DERECHO DE PETICION DE INTERES GENERAL","Solucionado - Por traslado","SECRETARIA DISTRITAL DE GOBIERNO","GESTIONADO"]
[null,147412026,"AREA DE ATENCION A LA CIUDADANIA","E-MAIL","DERECHO DE PETICION DE INTERES PARTICULAR","Solucionado - Por traslado","UNIDAD ADMINISTRATIVA ESPECIAL DE SERVICIOS PUBLICOS -UAESP","GESTIONADO"]
[null,148132026,"AREA DE ATENCION A LA CIUDADANIA","WEB","DERECHO DE PETICION DE INTERES GENERAL","Solucionado - Por traslado","EMPRESA DE ACUEDUCTO Y ALCANTARILLADO DE BOGOTA EAAB - ESP","GESTIONADO"]
[null,148232026,"AREA DE ATENCION A LA CIUDADANIA","WEB","DERECHO DE PETICION DE INTERES GENERAL","Solucionado - Por traslado","UNIDAD ADMINISTRATIVA ESPECIAL DE SERVICIOS PUBLICOS -UAESP","GESTIONADO"]
[null,148812026,"AREA DE ATENCION A LA CIUDADANIA","WEB","QUEJA","Solucionado - Por traslado","UNIDAD ADMINISTRATIVA ESPECIAL DE SERVICIOS PUBLICOS -UAESP","GESTIONADO"]
[null,152322026,"AREA DE ATENCION A LA CIUDADANIA","E-MAIL","CONSULTA","Solucionado por asignar - Trasladar","SECRETARIA DISTRITAL DE GOBIERNO","GESTIONADO"]
[null,153062026,"AREA DE ATENCION A LA CIUDADANIA","WEB","RECLAMO","Solucionado - Por traslado","SECRETARIA DISTRITAL DE MOVILIDAD","GESTIONADO"]
[null,156002026,"AREA DE ATENCION A LA CIUDADANIA","WEB","DERECHO DE PETICION DE INTERES GENERAL","Solucionado - Por traslado","INSTITUTO PARA LA ECONOMIA SOCIAL - IPES","GESTIONADO"]
[null,156032026,"AREA DE ATENCION A LA CIUDADANIA","WEB","QUEJA","Solucionado - Por traslado","SECRETARIA DISTRITAL DE MOVILIDAD","GESTIONADO"]
[null,156872026,"AREA DE ATENCION A LA CIUDADANIA","ESCRITO","DERECHO DE PETICION DE INTERES GENERAL","Solucionado - Por traslado","SECRETARIA DISTRITAL DE GOBIERNO","GESTIONADO"]
[null,158832026,"AREA DE ATENCION A LA CIUDADANIA","WEB","DERECHO DE PETICION DE INTERES GENERAL","Solucionado - Por traslado","INSTITUTO DE DESARROLLO URBANO - IDU","GESTIONADO"]
[null,173602026,"AREA DE ATENCION A LA CIUDADANIA","WEB","DERECHO DE PETICION DE INTERES GENERAL","Solucionado por asignar - Trasladar","SECRETARIA DISTRITAL DE PLANEACION","GESTIONADO"]
[null,174292026,"AREA DE ATENCION A LA CIUDADANIA","WEB","DERECHO DE PETICION DE INTERES GENERAL","Solucionado - Por traslado","SECRETARIA DISTRITAL DE GOBIERNO","GESTIONADO"]
[null,174462026,"AREA DE ATENCION A LA CIUDADANIA","WEB","DERECHO DE PETICION DE INTERES GENERAL","Solucionado - Por traslado","UNIDAD ADMINISTRATIVA ESPECIAL DE SERVICIOS PUBLICOS -UAESP","GESTIONADO"]
[null,179072026,"AREA DE ATENCION A LA CIUDADANIA","WEB","DERECHO DE PETICION DE INTERES GENERAL","Solucionado - Por traslado","SECRETARIA DISTRITAL DE MOVILIDAD","GESTIONADO"]
[null,179082026,"AREA DE ATENCION A LA CIUDADANIA","WEB","DERECHO DE PETICION DE INTERES PARTICULAR","Solucionado - Por traslado","INSTITUTO DE DESARROLLO URBANO - IDU","GESTIONADO"]
[null,179202026,"AREA DE ATENCION A LA CIUDADANIA","WEB","DERECHO DE PETICION DE INTERES PARTICULAR","Solucionado - Por traslado","INSTITUTO PARA LA ECONOMIA SOCIAL - IPES","GESTIONADO"]
[null,179642026,"AREA DE ATENCION A LA CIUDADANIA","WEB","DERECHO DE PETICION DE INTERES GENERAL","Solucionado - Por traslado","INSTITUTO PARA LA ECONOMIA SOCIAL - IPES","GESTIONADO"]
[null,179652026,"AREA DE ATENCION A LA CIUDADANIA","WEB","DERECHO DE PETICION DE INTERES PARTICULAR","Solucionado - Por traslado","SECRETARIA DISTRITAL DE SALUD","GESTIONADO"]
[null,179722026,"AREA DE ATENCION A LA CIUDADANIA","WEB","DERECHO DE PETICION DE INTERES GENERAL","Solucionado - Por traslado","SECRETARIA DISTRITAL DE GOBIERNO","GESTIONADO"]
[null,180152026,"AREA DE ATENCION A LA CIUDADANIA","WEB","DERECHO DE PETICION DE INTERES GENERAL","Solucionado - Por traslado","SECRETARIA DISTRITAL DE MOVILIDAD","GESTIONADO"]
[null,180492026,"AREA DE ATENCION A LA CIUDADANIA","WEB","DERECHO DE PETICION DE INTERES GENERAL","Solucionado - Por traslado","ENTIDAD NACIONAL","GESTIONADO"]
[null,180792026,"AREA DE ATENCION A LA CIUDADANIA","WEB","DERECHO DE PETICION DE INTERES GENERAL","Solucionado - Por traslado","UNIDAD ADMINISTRATIVA ESPECIAL DE REHABILITACION Y MANTENIMIENTO VIAL - UAERMV","GESTIONADO"]
[null,181142026,"AREA DE ATENCION A LA CIUDADANIA","WEB","DERECHO DE PETICION DE INTERES GENERAL","Solucionado por asignar - Trasladar","SECRETARIA DISTRITAL DE GOBIERNO","GESTIONADO"]
[null,181202026,"AREA DE ATENCION A LA CIUDADANIA","WEB","DERECHO DE PETICION DE INTERES GENERAL","Solucionado por asignar - Trasladar","SECRETARIA DISTRITAL DE GOBIERNO","GESTIONADO"]
[null,181212026,"AREA DE ATENCION A LA CIUDADANIA","WEB","DERECHO DE PETICION DE INTERES GENERAL","Solucionado - Por traslado","UNIDAD ADMINISTRATIVA ESPECIAL DE SERVICIOS PUBLICOS -UAESP","GESTIONADO"]
[null,181392026,"AREA DE ATENCION A LA CIUDADANIA","WEB","DERECHO DE PETICION DE INTERES GENERAL","Solucionado - Por traslado","INSTITUTO PARA LA ECONOMIA SOCIAL - IPES","GESTIONADO"]
[null,182312026,"AREA DE ATENCION A LA CIUDADANIA","WEB","DERECHO DE PETICION DE INTERES GENERAL","Solucionado por asignar - Trasladar","SECRETARIA DISTRITAL DE PLANEACION","GESTIONADO"]
[null,182482026,"AREA DE ATENCION A LA CIUDADANIA","WEB","DERECHO DE PETICION DE INTERES GENERAL","Solucionado - Por traslado","SECRETARIA DISTRITAL DE SEGURIDAD  CONVIVENCIA Y JUSTICIA","GESTIONADO"]
[null,182502026,"AREA DE ATENCION A LA CIUDADANIA","WEB","DERECHO DE PETICION DE INTERES GENERAL","Solucionado - Por traslado","ENEL COLOMBIA S.A. ESP","GESTIONADO"]
[null,182642026,"AREA DE ATENCION A LA CIUDADANIA","WEB","DERECHO DE PETICION DE INTERES GENERAL","Solucionado - Por traslado","SECRETARIA DISTRITAL DE MOVILIDAD","GESTIONADO"]
[null,182702026,"AREA DE ATENCION A LA CIUDADANIA","WEB","DERECHO DE PETICION DE INTERES GENERAL","Solucionado - Por traslado","SECRETARIA DISTRITAL DE MOVILIDAD","GESTIONADO"]
[null,182772026,"AREA DE ATENCION A LA CIUDADANIA","WEB","DERECHO DE PETICION DE INTERES GENERAL","Solucionado por asignar - Trasladar","SECRETARIA DISTRITAL DE GOBIERNO","GESTIONADO"]
[null,186422026,"AREA DE ATENCION A LA CIUDADANIA","WEB","DERECHO DE PETICION DE INTERES GENERAL","Solucionado - Por traslado","INSTITUTO PARA LA ECONOMIA SOCIAL - IPES","GESTIONADO"]
[null,186452026,"AREA DE ATENCION A LA CIUDADANIA","WEB","DERECHO DE PETICION DE INTERES PARTICULAR","Solucionado - Por traslado","SUBRED INTEGRADA DE SERVICIOS DE SALUD NORTE E.S.E.","GESTIONADO"]
[null,186982026,"AREA DE ATENCION A LA CIUDADANIA","E-MAIL","DERECHO DE PETICION DE INTERES GENERAL","Solucionado - Por traslado","SECRETARIA DISTRITAL DE GOBIERNO","GESTIONADO"]
[null,187682026,"AREA DE ATENCION A LA CIUDADANIA","WEB","DERECHO DE PETICION DE INTERES GENERAL","Solucionado - Por traslado","SECRETARIA DISTRITAL DE SEGURIDAD  CONVIVENCIA Y JUSTICIA","GESTIONADO"]
[null,187912026,"AREA DE ATENCION A LA CIUDADANIA","E-MAIL","DERECHO DE PETICION DE INTERES GENERAL","Solucionado - Por traslado","SECRETARIA DISTRITAL DE GOBIERNO","GESTIONADO"]
[null,188242026,"AREA DE ATENCION A LA CIUDADANIA","E-MAIL","DERECHO DE PETICION DE INTERES GENERAL","Solucionado - Por traslado","SECRETARIA DISTRITAL DE GOBIERNO","GESTIONADO"]
[null,188512026,"AREA DE ATENCION A LA CIUDADANIA","WEB","DERECHO DE PETICION DE INTERES GENERAL","Solucionado - Por traslado","SECRETARIA DISTRITAL DE GOBIERNO","GESTIONADO"]
[null,188612026,"AREA DE ATENCION A LA CIUDADANIA","WEB","DERECHO DE PETICION DE INTERES GENERAL","Solucionado - Por traslado","SECRETARIA DISTRITAL DE GOBIERNO","GESTIONADO"]
[null,191102026,"AREA DE ATENCION A LA CIUDADANIA","WEB","DERECHO DE PETICION DE INTERES GENERAL","Solucionado - Por traslado","UNIDAD ADMINISTRATIVA ESPECIAL DE REHABILITACION Y MANTENIMIENTO VIAL - UAERMV","GESTIONADO"]
[null,192152026,"AREA DE ATENCION A LA CIUDADANIA","ESCRITO","DERECHO DE PETICION DE INTERES GENERAL","Solucionado - Por traslado","INSTITUTO DISTRITAL DE LA PARTICIPACION Y ACCION COMUNAL - IDPAC","GESTIONADO"]
[null,192692026,"AREA DE ATENCION A LA CIUDADANIA","WEB","DERECHO DE PETICION DE INTERES GENERAL","Solucionado - Por traslado","SECRETARIA DISTRITAL DE GOBIERNO","GESTIONADO"]
[null,194412026,"AREA DE ATENCION A LA CIUDADANIA","E-MAIL","DERECHO DE PETICION DE INTERES GENERAL","Solucionado - Por traslado","SECRETARIA DISTRITAL DE GOBIERNO","GESTIONADO"]
[null,194652026,"AREA DE ATENCION A LA CIUDADANIA","WEB","DERECHO DE PETICION DE INTERES GENERAL","Solucionado - Por traslado","SECRETARIA DISTRITAL DE GOBIERNO","GESTIONADO"]
[null,194822026,"AREA DE ATENCION A LA CIUDADANIA","WEB","DERECHO DE PETICION DE INTERES GENERAL","Solucionado - Por traslado","INSTITUTO DE DESARROLLO URBANO - IDU","GESTIONADO"]
[null,194852026,"AREA DE ATENCION A LA CIUDADANIA","E-MAIL","DERECHO DE PETICION DE INTERES GENERAL","Solucionado por asignar - Trasladar","SECRETARIA DISTRITAL DE GOBIERNO","GESTIONADO"]
[null,194992026,"AREA DE ATENCION A LA CIUDADANIA","WEB","DERECHO DE PETICION DE INTERES GENERAL","Solucionado - Por traslado","SECRETARIA DISTRITAL DE GOBIERNO","GESTIONADO"]
[null,195142026,"AREA DE ATENCION A LA CIUDADANIA","WEB","DERECHO DE PETICION DE INTERES GENERAL","Solucionado - Por traslado","ENTIDAD NACIONAL","GESTIONADO"]
[null,195822026,"AREA DE ATENCION A LA CIUDADANIA","WEB","DERECHO DE PETICION DE INTERES GENERAL","Solucionado por asignar - Trasladar","INSTITUTO DE DESARROLLO URBANO - IDU","GESTIONADO"]
[null,197092026,"AREA DE ATENCION A LA CIUDADANIA","E-MAIL","DERECHO DE PETICION DE INTERES GENERAL","Solucionado - Por traslado","SECRETARIA DISTRITAL DE GOBIERNO","GESTIONADO"]
[null,199052026,"AREA DE ATENCION A LA CIUDADANIA","WEB","DERECHO DE PETICION DE INTERES GENERAL","Solucionado - Por traslado","SECRETARIA DISTRITAL DE GOBIERNO","GESTIONADO"]
[null,199202026,"AREA DE ATENCION A LA CIUDADANIA","WEB","DERECHO DE PETICION DE INTERES GENERAL","Solucionado - Por traslado","SECRETARIA DISTRITAL DE GOBIERNO","GESTIONADO"]
[null,199882026,"AREA DE ATENCION A LA CIUDADANIA","WEB","DERECHO DE PETICION DE INTERES GENERAL","Solucionado - Por traslado","SECRETARIA DISTRITAL DE MOVILIDAD","GESTIONADO"]
[null,199982026,"AREA DE ATENCION A LA CIUDADANIA","WEB","DERECHO DE PETICION DE INTERES GENERAL","Solucionado - Por traslado","SECRETARIA DISTRITAL DE MOVILIDAD","GESTIONADO"]
[null,200022026,"AREA DE ATENCION A LA CIUDADANIA","WEB","DERECHO DE PETICION DE INTERES GENERAL","Solucionado - Por traslado","SECRETARIA DISTRITAL DE MOVILIDAD","GESTIONADO"]
[null,200052026,"AREA DE ATENCION A LA CIUDADANIA","WEB","DERECHO DE PETICION DE INTERES GENERAL","Solucionado - Por traslado","SECRETARIA DISTRITAL DE MOVILIDAD","GESTIONADO"]
[null,200782026,"AREA DE ATENCION A LA CIUDADANIA","WEB","DERECHO DE PETICION DE INTERES GENERAL","Solucionado - Por traslado","SECRETARIA DISTRITAL DE GOBIERNO","GESTIONADO"]
[null,201452026,"AREA DE ATENCION A LA CIUDADANIA","WEB","DERECHO DE PETICION DE INTERES GENERAL","Solucionado - Por traslado","SUBRED INTEGRADA DE SERVICIOS DE SALUD CENTRO ORIENTE E.S.E.","GESTIONADO"]
[null,219132026,"AREA DE ATENCION A LA CIUDADANIA","WEB","DERECHO DE PETICION DE INTERES GENERAL","Solucionado - Por traslado","SECRETARIA DISTRITAL DE GOBIERNO","GESTIONADO"]
[null,221602026,"AREA DE ATENCION A LA CIUDADANIA","E-MAIL","DERECHO DE PETICION DE INTERES GENERAL","Solucionado - Por traslado","INSTITUTO DISTRITAL DE PROTECCION Y BIENESTAR ANIMAL - IDPYBA","GESTIONADO"]
[null,222812026,"AREA DE ATENCION A LA CIUDADANIA","WEB","DERECHO DE PETICION DE INTERES GENERAL","Solucionado - Por traslado","SECRETARIA DISTRITAL DE MOVILIDAD","GESTIONADO"]
[null,224902026,"AREA DE ATENCION A LA CIUDADANIA","WEB","DERECHO DE PETICION DE INTERES GENERAL","Solucionado - Por traslado","SECRETARIA DISTRITAL DE GOBIERNO","GESTIONADO"]
[null,225902026,"AREA DE ATENCION A LA CIUDADANIA","WEB","DERECHO DE PETICION DE INTERES GENERAL","Solucionado - Por traslado","INSTITUTO DE DESARROLLO URBANO - IDU","GESTIONADO"]
[null,226292026,"AREA DE ATENCION A LA CIUDADANIA","E-MAIL","DERECHO DE PETICION DE INTERES PARTICULAR","Solucionado por asignar - Trasladar","SECRETARIA DISTRITAL DE GOBIERNO","GESTIONADO"]
[null,226772026,"AREA DE ATENCION A LA CIUDADANIA","WEB","DERECHO DE PETICION DE INTERES GENERAL","Solucionado - Por traslado","SECRETARIA DISTRITAL DE GOBIERNO","GESTIONADO"]
[null,226882026,"AREA DE ATENCION A LA CIUDADANIA","WEB","DERECHO DE PETICION DE INTERES GENERAL","Solucionado - Por traslado","SECRETARIA DISTRITAL DE INTEGRACION SOCIAL","GESTIONADO"]
[null,228472026,"AREA DE ATENCION A LA CIUDADANIA","WEB","DERECHO DE PETICION DE INTERES GENERAL","Solucionado - Por traslado","SECRETARIA DISTRITAL DE GOBIERNO","GESTIONADO"]
[null,229282026,"AREA DE ATENCION A LA CIUDADANIA","E-MAIL","DERECHO DE PETICION DE INTERES GENERAL","Solucionado por asignar - Trasladar","EMPRESA DE TRANSPORTE DEL TERCER MILENIO TRANSMILENIO S.A.","GESTIONADO"]
[null,229452026,"AREA DE ATENCION A LA CIUDADANIA","WEB","DERECHO DE PETICION DE INTERES PARTICULAR","Solucionado - Por traslado","SECRETARIA DISTRITAL DE MOVILIDAD","GESTIONADO"]
[null,231792026,"AREA DE ATENCION A LA CIUDADANIA","WEB","DERECHO DE PETICION DE INTERES GENERAL","Solucionado - Por traslado","SECRETARIA DISTRITAL DE INTEGRACION SOCIAL","GESTIONADO"]
[null,232262026,"AREA DE ATENCION A LA CIUDADANIA","WEB","DERECHO DE PETICION DE INTERES GENERAL","Solucionado por asignar - Trasladar","SECRETARIA DISTRITAL DE GOBIERNO","GESTIONADO"]
[null,232332026,"AREA DE ATENCION A LA CIUDADANIA","WEB","DERECHO DE PETICION DE INTERES GENERAL","Solucionado - Por traslado","SECRETARIA DISTRITAL DE AMBIENTE","GESTIONADO"]
[null,233102026,"AREA DE ATENCION A LA CIUDADANIA","WEB","DERECHO DE PETICION DE INTERES GENERAL","Solucionado - Por traslado","SECRETARIA DISTRITAL DE GOBIERNO","GESTIONADO"]
[null,234572026,"AREA DE ATENCION A LA CIUDADANIA","E-MAIL","DERECHO DE PETICION DE INTERES GENERAL","Solucionado - Por traslado","SECRETARIA DISTRITAL DE GOBIERNO","GESTIONADO"]
[null,234752026,"AREA DE ATENCION A LA CIUDADANIA","WEB","DERECHO DE PETICION DE INTERES GENERAL","Solucionado - Por traslado","SECRETARIA DISTRITAL DE GOBIERNO","GESTIONADO"]
[null,236442026,"AREA DE ATENCION A LA CIUDADANIA","WEB","DERECHO DE PETICION DE INTERES GENERAL","Solucionado - Por traslado","SECRETARIA DISTRITAL DE MOVILIDAD","GESTIONADO"]
[null,241662026,"AREA DE ATENCION A LA CIUDADANIA","WEB","DERECHO DE PETICION DE INTERES GENERAL","Solucionado - Por traslado","SECRETARIA DISTRITAL DE MOVILIDAD","GESTIONADO"]
[null,241792026,"AREA DE ATENCION A LA CIUDADANIA","WEB","DERECHO DE PETICION DE INTERES GENERAL","Solucionado - Por traslado","SECRETARIA DISTRITAL DE MOVILIDAD","GESTIONADO"]
[null,253342026,"AREA DE ATENCION A LA CIUDADANIA","WEB","DERECHO DE PETICION DE INTERES PARTICULAR","Solucionado - Por traslado","SECRETARIA DISTRITAL DE GOBIERNO","GESTIONADO"]
[null,253772026,"AREA DE ATENCION A LA CIUDADANIA","E-MAIL","DERECHO DE PETICION DE INTERES GENERAL","Solucionado - Por traslado","SECRETARIA DISTRITAL DE GOBIERNO","GESTIONADO"]
[null,254942026,"AREA DE ATENCION A LA CIUDADANIA","WEB","DERECHO DE PETICION DE INTERES GENERAL","Solucionado - Por traslado","INSTITUTO PARA LA ECONOMIA SOCIAL - IPES","GESTIONADO"]
[null,255462026,"AREA DE ATENCION A LA CIUDADANIA","WEB","DERECHO DE PETICION DE INTERES GENERAL","Solucionado - Por traslado","INSTITUTO DISTRITAL DE PROTECCION Y BIENESTAR ANIMAL - IDPYBA","GESTIONADO"]
[null,255572026,"AREA DE ATENCION A LA CIUDADANIA","WEB","DERECHO DE PETICION DE INTERES PARTICULAR","Solucionado - Por traslado","SECRETARIA DISTRITAL DE MOVILIDAD","GESTIONADO"]
[null,257972026,"AREA DE ATENCION A LA CIUDADANIA","WEB","CONSULTA","Solucionado - Por traslado","SECRETARIA DISTRITAL DE GOBIERNO","GESTIONADO"]
[null,259592026,"AREA DE ATENCION A LA CIUDADANIA","WEB","DERECHO DE PETICION DE INTERES PARTICULAR","Solucionado - Por traslado","UNIDAD ADMINISTRATIVA ESPECIAL DE SERVICIOS PUBLICOS -UAESP","GESTIONADO"]
[null,259642026,"AREA DE ATENCION A LA CIUDADANIA","WEB","DERECHO DE PETICION DE INTERES GENERAL","Solucionado - Por traslado","SECRETARIA DISTRITAL DE MOVILIDAD","GESTIONADO"]
[null,259992026,"AREA DE ATENCION A LA CIUDADANIA","WEB","QUEJA","Solucionado - Por traslado","SECRETARIA DISTRITAL DE GOBIERNO","GESTIONADO"]
[null,261072026,"AREA DE ATENCION A LA CIUDADANIA","WEB","DERECHO DE PETICION DE INTERES GENERAL","Solucionado - Por traslado","SECRETARIA DISTRITAL DE GOBIERNO","GESTIONADO"]
[null,261202026,"AREA DE ATENCION A LA CIUDADANIA","WEB","DERECHO DE PETICION DE INTERES GENERAL","Solucionado - Por traslado","SECRETARIA DISTRITAL DE MOVILIDAD","GESTIONADO"]
[null,261742026,"AREA DE ATENCION A LA CIUDADANIA","WEB","DERECHO DE PETICION DE INTERES PARTICULAR","Solucionado - Por traslado","SUBRED INTEGRADA DE SERVICIOS DE SALUD NORTE E.S.E.","GESTIONADO"]
[null,262332026,"AREA DE ATENCION A LA CIUDADANIA","WEB","DERECHO DE PETICION DE INTERES GENERAL","Solucionado - Por traslado","UNIDAD ADMINISTRATIVA ESPECIAL DE SERVICIOS PUBLICOS -UAESP","GESTIONADO"]
[null,263572026,"AREA DE ATENCION A LA CIUDADANIA","E-MAIL","DERECHO DE PETICION DE INTERES GENERAL","Solucionado - Por traslado","INSTITUTO DE DESARROLLO URBANO - IDU","GESTIONADO"]
[null,263972026,"AREA DE ATENCION A LA CIUDADANIA","WEB","DERECHO DE PETICION DE INTERES GENERAL","Solucionado - Por traslado","SECRETARIA DISTRITAL DE GOBIERNO","GESTIONADO"]
[null,265462026,"AREA DE ATENCION A LA CIUDADANIA","WEB","DERECHO DE PETICION DE INTERES GENERAL","Solucionado - Por traslado","SECRETARIA DISTRITAL DE GOBIERNO","GESTIONADO"]
[null,265512026,"AREA DE ATENCION A LA CIUDADANIA","WEB","DERECHO DE PETICION DE INTERES GENERAL","Solucionado - Por traslado","SECRETARIA DISTRITAL DE GOBIERNO","GESTIONADO"]
[null,265542026,"AREA DE ATENCION A LA CIUDADANIA","WEB","DERECHO DE PETICION DE INTERES GENERAL","Solucionado - Por traslado","SECRETARIA DISTRITAL DE GOBIERNO","GESTIONADO"]
[null,270002026,"AREA DE ATENCION A LA CIUDADANIA","WEB","DERECHO DE PETICION DE INTERES GENERAL","Solucionado - Por traslado","ENTIDAD NACIONAL","GESTIONADO"]
[null,282482026,"AREA DE ATENCION A LA CIUDADANIA","WEB","DERECHO DE PETICION DE INTERES GENERAL","Solucionado - Por traslado","SECRETARIA DISTRITAL DE GOBIERNO","GESTIONADO"]
[null,284772026,"AREA DE ATENCION A LA CIUDADANIA","WEB","DERECHO DE PETICION DE INTERES GENERAL","Solucionado - Por traslado","SECRETARIA DISTRITAL DE GOBIERNO","GESTIONADO"]
[null,285712026,"AREA DE ATENCION A LA CIUDADANIA","WEB","DERECHO DE PETICION DE INTERES PARTICULAR","Solucionado - Por traslado","ENTIDAD NACIONAL","GESTIONADO"]
[null,288732026,"AREA DE ATENCION A LA CIUDADANIA","WEB","DERECHO DE PETICION DE INTERES GENERAL","Solucionado - Por traslado","SECRETARIA DISTRITAL DE GOBIERNO","GESTIONADO"]
[null,288812026,"AREA DE ATENCION A LA CIUDADANIA","WEB","DERECHO DE PETICION DE INTERES GENERAL","Solucionado - Por traslado","SECRETARIA DISTRITAL DE GOBIERNO","GESTIONADO"]
[null,289652026,"AREA DE ATENCION A LA CIUDADANIA","WEB","DERECHO DE PETICION DE INTERES GENERAL","Solucionado - Por traslado","SECRETARIA DISTRITAL DE GOBIERNO","GESTIONADO"]
[null,289972026,"AREA DE ATENCION A LA CIUDADANIA","WEB","DERECHO DE PETICION DE INTERES GENERAL","Solucionado - Por traslado","SECRETARIA DISTRITAL DE MOVILIDAD","GESTIONADO"]
[null,293472026,"AREA DE ATENCION A LA CIUDADANIA","TELEFONO","DERECHO DE PETICION DE INTERES GENERAL","Solucionado - Por traslado","INSTITUTO DISTRITAL DE PROTECCION Y BIENESTAR ANIMAL - IDPYBA","GESTIONADO"]
[null,293672026,"AREA DE ATENCION A LA CIUDADANIA","WEB","DERECHO DE PETICION DE INTERES GENERAL","Solucionado - Por traslado","EMPRESA DE TRANSPORTE DEL TERCER MILENIO TRANSMILENIO S.A.","GESTIONADO"]
[null,293722026,"AREA DE ATENCION A LA CIUDADANIA","WEB","DERECHO DE PETICION DE INTERES GENERAL","Solucionado - Por traslado","SECRETARIA DISTRITAL DE MOVILIDAD","GESTIONADO"]
[null,295262026,"AREA DE ATENCION A LA CIUDADANIA","WEB","DERECHO DE PETICION DE INTERES GENERAL","Solucionado - Por traslado","ENTIDAD NACIONAL","GESTIONADO"]
[null,295702026,"AREA DE ATENCION A LA CIUDADANIA","WEB","DERECHO DE PETICION DE INTERES GENERAL","Solucionado por asignar - Trasladar","SECRETARIA DISTRITAL DE MOVILIDAD","PENDIENTE"]
[null,296912026,"AREA DE ATENCION A LA CIUDADANIA","E-MAIL","DERECHO DE PETICION DE INTERES GENERAL","Solucionado - Por traslado","SECRETARIA DISTRITAL DE GOBIERNO","GESTIONADO"]
[null,297022026,"AREA DE ATENCION A LA CIUDADANIA","ESCRITO","DERECHO DE PETICION DE INTERES GENERAL","Solucionado por asignar - Trasladar","INSTITUTO DISTRITAL DE PROTECCION Y BIENESTAR ANIMAL - IDPYBA","PENDIENTE"]
[null,302002026,"AREA DE ATENCION A LA CIUDADANIA","WEB","DERECHO DE PETICION DE INTERES GENERAL","Solucionado - Por traslado","SECRETARIA DISTRITAL DE GOBIERNO","GESTIONADO"]
[null,316542026,"AREA DE ATENCION A LA CIUDADANIA","WEB","DERECHO DE PETICION DE INTERES GENERAL","Solucionado - Por traslado","SECRETARIA DISTRITAL DE GOBIERNO","GESTIONADO"]
[null,316572026,"AREA DE ATENCION A LA CIUDADANIA","WEB","DERECHO DE PETICION DE INTERES GENERAL","Solucionado - Por traslado","INSTITUTO DISTRITAL DE RECREACION Y DEPORTE - IDRD","GESTIONADO"]
[null,316602026,"AREA DE ATENCION A LA CIUDADANIA","WEB","DERECHO DE PETICION DE INTERES GENERAL","Solucionado - Por traslado","INSTITUTO DE DESARROLLO URBANO - IDU","GESTIONADO"]
[null,317042026,"AREA DE ATENCION A LA CIUDADANIA","WEB","DERECHO DE PETICION DE INTERES GENERAL","Solucionado por asignar - Trasladar","SECRETARIA DISTRITAL DE MOVILIDAD","PENDIENTE"]
[null,317412026,"AREA DE ATENCION A LA CIUDADANIA","WEB","QUEJA","Solucionado - Por traslado","INSTITUTO DE DESARROLLO URBANO - IDU","GESTIONADO"]
[null,317422026,"AREA DE ATENCION A LA CIUDADANIA","WEB","DERECHO DE PETICION DE INTERES GENERAL","Solucionado - Por traslado","INSTITUTO PARA LA ECONOMIA SOCIAL - IPES","GESTIONADO"]
[null,317472026,"AREA DE ATENCION A LA CIUDADANIA","TELEFONO","DERECHO DE PETICION DE INTERES GENERAL","Solucionado - Por traslado","SECRETARIA DISTRITAL DE MOVILIDAD","GESTIONADO"]
[null,317892026,"AREA DE ATENCION A LA CIUDADANIA","WEB","DERECHO DE PETICION DE INTERES GENERAL","Solucionado por asignar - Trasladar","INSTITUTO DE DESARROLLO URBANO - IDU","GESTIONADO"]
[null,317912026,"AREA DE ATENCION A LA CIUDADANIA","WEB","DERECHO DE PETICION DE INTERES GENERAL","Solucionado - Por traslado","SECRETARIA DISTRITAL DE GOBIERNO","GESTIONADO"]
[null,317932026,"AREA DE ATENCION A LA CIUDADANIA","WEB","DERECHO DE PETICION DE INTERES GENERAL","Solucionado - Por traslado","EMPRESA DE TRANSPORTE DEL TERCER MILENIO TRANSMILENIO S.A.","GESTIONADO"]
[null,318132026,"AREA DE ATENCION A LA CIUDADANIA","WEB","DERECHO DE PETICION DE INTERES GENERAL","Solucionado - Por traslado","SECRETARIA DISTRITAL DE MOVILIDAD","GESTIONADO"]
[null,318592026,"AREA DE ATENCION A LA CIUDADANIA","WEB","DERECHO DE PETICION DE INTERES GENERAL","Solucionado - Por traslado","SECRETARIA DISTRITAL DE MOVILIDAD","GESTIONADO"]
[null,318712026,"AREA DE ATENCION A LA CIUDADANIA","WEB","DERECHO DE PETICION DE INTERES GENERAL","Solucionado - Por traslado","SECRETARIA DISTRITAL DE INTEGRACION SOCIAL","GESTIONADO"]
[null,321272026,"AREA DE ATENCION A LA CIUDADANIA","WEB","DERECHO DE PETICION DE INTERES GENERAL","Solucionado - Por traslado","SECRETARIA DISTRITAL DE GOBIERNO","GESTIONADO"]
[null,322802026,"AREA DE ATENCION A LA CIUDADANIA","WEB","DERECHO DE PETICION DE INTERES GENERAL","Solucionado - Por traslado","SECRETARIA DISTRITAL DE GOBIERNO","GESTIONADO"]
[null,322922026,"AREA DE ATENCION A LA CIUDADANIA","WEB","DERECHO DE PETICION DE INTERES GENERAL","Solucionado - Por traslado","SECRETARIA DISTRITAL DE GOBIERNO","GESTIONADO"]
[null,322982026,"AREA DE ATENCION A LA CIUDADANIA","WEB","DERECHO DE PETICION DE INTERES GENERAL","Solucionado - Por traslado","INSTITUTO DISTRITAL DE GESTION DE RIESGOS Y CAMBIO CLIMATICO - IDIGER","GESTIONADO"]
[null,323072026,"AREA DE ATENCION A LA CIUDADANIA","WEB","DERECHO DE PETICION DE INTERES GENERAL","Solucionado - Por traslado","SECRETARIA DISTRITAL DE MOVILIDAD","GESTIONADO"]
[null,323142026,"AREA DE ATENCION A LA CIUDADANIA","WEB","DERECHO DE PETICION DE INTERES GENERAL","Solucionado - Por traslado","INSTITUTO DISTRITAL DE RECREACION Y DEPORTE - IDRD","GESTIONADO"]
[null,324072026,"AREA DE ATENCION A LA CIUDADANIA","WEB","DERECHO DE PETICION DE INTERES GENERAL","Solucionado - Por traslado","SECRETARIA DISTRITAL DE GOBIERNO","GESTIONADO"]
[null,324092026,"AREA DE ATENCION A LA CIUDADANIA","WEB","DERECHO DE PETICION DE INTERES GENERAL","Solucionado - Por traslado","SECRETARIA DISTRITAL DE GOBIERNO","GESTIONADO"]
[null,325282026,"AREA DE ATENCION A LA CIUDADANIA","WEB","DERECHO DE PETICION DE INTERES GENERAL","Solucionado - Por traslado","INSTITUTO PARA LA ECONOMIA SOCIAL - IPES","GESTIONADO"]
[null,325572026,"AREA DE ATENCION A LA CIUDADANIA","WEB","DERECHO DE PETICION DE INTERES GENERAL","Solucionado - Por traslado","UNIDAD ADMINISTRATIVA ESPECIAL DE SERVICIOS PUBLICOS -UAESP","GESTIONADO"]
[null,327022026,"AREA DE ATENCION A LA CIUDADANIA","WEB","DERECHO DE PETICION DE INTERES GENERAL","Solucionado - Por traslado","INSTITUTO PARA LA ECONOMIA SOCIAL - IPES","GESTIONADO"]
[null,327032026,"AREA DE ATENCION A LA CIUDADANIA","WEB","DERECHO DE PETICION DE INTERES GENERAL","Solucionado - Por traslado","INSTITUTO PARA LA ECONOMIA SOCIAL - IPES","GESTIONADO"]
[null,329702026,"AREA DE ATENCION A LA CIUDADANIA","WEB","DERECHO DE PETICION DE INTERES GENERAL","Solucionado - Por traslado","INSTITUTO DE DESARROLLO URBANO - IDU","GESTIONADO"]
[null,331042026,"AREA DE ATENCION A LA CIUDADANIA","WEB","DERECHO DE PETICION DE INTERES GENERAL","Solucionado - Por traslado","SECRETARIA DISTRITAL DE MOVILIDAD","GESTIONADO"]
[null,331062026,"AREA DE ATENCION A LA CIUDADANIA","WEB","DERECHO DE PETICION DE INTERES GENERAL","Solucionado - Por traslado","SECRETARIA DISTRITAL DE GOBIERNO","GESTIONADO"]
[null,331102026,"AREA DE ATENCION A LA CIUDADANIA","WEB","DERECHO DE PETICION DE INTERES GENERAL","Solucionado - Por traslado","INSTITUTO DE DESARROLLO URBANO - IDU","GESTIONADO"]
[null,331932026,"AREA DE ATENCION A LA CIUDADANIA","WEB","DERECHO DE PETICION DE INTERES GENERAL","Solucionado - Por traslado","SECRETARIA DISTRITAL DE MOVILIDAD","GESTIONADO"]
[null,333722026,"AREA DE ATENCION A LA CIUDADANIA","WEB","DERECHO DE PETICION DE INTERES GENERAL","Solucionado - Por traslado","INSTITUTO PARA LA ECONOMIA SOCIAL - IPES","GESTIONADO"]
[null,333782026,"AREA DE ATENCION A LA CIUDADANIA","WEB","DERECHO DE PETICION DE INTERES GENERAL","Solucionado - Por traslado","SECRETARIA DISTRITAL DE GOBIERNO","GESTIONADO"]
[null,334262026,"AREA DE ATENCION A LA CIUDADANIA","WEB","DERECHO DE PETICION DE INTERES GENERAL","Solucionado - Por traslado","SECRETARIA DISTRITAL DE GOBIERNO","GESTIONADO"]
[null,334442026,"AREA DE ATENCION A LA CIUDADANIA","E-MAIL","DERECHO DE PETICION DE INTERES GENERAL","Solucionado por asignar - Trasladar","SECRETARIA DISTRITAL DE GOBIERNO","GESTIONADO"]
[null,334462026,"AREA DE ATENCION A LA CIUDADANIA","WEB","DERECHO DE PETICION DE INTERES GENERAL","Solucionado - Por traslado","SECRETARIA DISTRITAL DE GOBIERNO","GESTIONADO"]
[null,335232026,"AREA DE ATENCION A LA CIUDADANIA","WEB","DERECHO DE PETICION DE INTERES GENERAL","Solucionado - Por traslado","SECRETARIA DISTRITAL DE GOBIERNO","GESTIONADO"]
[null,338642026,"AREA DE ATENCION A LA CIUDADANIA","WEB","DERECHO DE PETICION DE INTERES GENERAL","Solucionado - Por traslado","SECRETARIA DISTRITAL DE GOBIERNO","GESTIONADO"]
[null,339482026,"AREA DE ATENCION A LA CIUDADANIA","WEB","DERECHO DE PETICION DE INTERES PARTICULAR","Solucionado - Por traslado","EMPRESA DE ACUEDUCTO Y ALCANTARILLADO DE BOGOTA EAAB - ESP","GESTIONADO"]
[null,340582026,"AREA DE ATENCION A LA CIUDADANIA","E-MAIL","DERECHO DE PETICION DE INTERES GENERAL","Solucionado - Por traslado","SECRETARIA DISTRITAL DE GOBIERNO","GESTIONADO"]
[null,341082026,"AREA DE ATENCION A LA CIUDADANIA","WEB","DERECHO DE PETICION DE INTERES GENERAL","Solucionado - Por traslado","SECRETARIA DISTRITAL DE INTEGRACION SOCIAL","GESTIONADO"]
[null,344772026,"AREA DE ATENCION A LA CIUDADANIA","WEB","DERECHO DE PETICION DE INTERES GENERAL","Solucionado - Por traslado","ENTIDAD NACIONAL","GESTIONADO"]
[null,345162026,"AREA DE ATENCION A LA CIUDADANIA","WEB","DERECHO DE PETICION DE INTERES GENERAL","Solucionado - Por traslado","SECRETARIA DISTRITAL DE MOVILIDAD","GESTIONADO"]
[null,345292026,"AREA DE ATENCION A LA CIUDADANIA","WEB","DERECHO DE PETICION DE INTERES GENERAL","Solucionado por asignar - Trasladar","SECRETARIA DISTRITAL DE GOBIERNO","GESTIONADO"]
[null,357352026,"AREA DE ATENCION A LA CIUDADANIA","WEB","DERECHO DE PETICION DE INTERES GENERAL","Solucionado - Por traslado","SECRETARIA DISTRITAL DE GOBIERNO","GESTIONADO"]
[null,359222026,"AREA DE ATENCION A LA CIUDADANIA","WEB","DERECHO DE PETICION DE INTERES PARTICULAR","Solucionado - Por traslado","SECRETARIA DISTRITAL DE GOBIERNO","GESTIONADO"]
[null,362222026,"AREA DE ATENCION A LA CIUDADANIA","WEB","DERECHO DE PETICION DE INTERES GENERAL","Solucionado - Por traslado","SECRETARIA DISTRITAL DE GOBIERNO","GESTIONADO"]
[null,362382026,"AREA DE ATENCION A LA CIUDADANIA","WEB","DERECHO DE PETICION DE INTERES GENERAL","Solucionado - Por traslado","INSTITUTO DISTRITAL DE GESTION DE RIESGOS Y CAMBIO CLIMATICO - IDIGER","GESTIONADO"]
[null,362902026,"AREA DE ATENCION A LA CIUDADANIA","E-MAIL","DERECHO DE PETICION DE INTERES GENERAL","Solucionado - Por traslado","SECRETARIA DISTRITAL DE GOBIERNO","GESTIONADO"]
[null,367572026,"AREA DE ATENCION A LA CIUDADANIA","WEB","DERECHO DE PETICION DE INTERES GENERAL","Solucionado - Por traslado","SECRETARIA DISTRITAL DE GOBIERNO","GESTIONADO"]
[null,369012026,"AREA DE ATENCION A LA CIUDADANIA","E-MAIL","DERECHO DE PETICION DE INTERES PARTICULAR","Solucionado - Por traslado","INSTITUTO DE DESARROLLO URBANO - IDU","GESTIONADO"]
[null,369472026,"AREA DE ATENCION A LA CIUDADANIA","WEB","DERECHO DE PETICION DE INTERES GENERAL","Solucionado - Por traslado","INSTITUTO PARA LA ECONOMIA SOCIAL - IPES","GESTIONADO"]
[null,369682026,"AREA DE ATENCION A LA CIUDADANIA","E-MAIL","DERECHO DE PETICION DE INTERES GENERAL","Solucionado por asignar - Trasladar","SECRETARIA DISTRITAL DE GOBIERNO","PENDIENTE"]
[null,373852026,"AREA DE ATENCION A LA CIUDADANIA","WEB","DERECHO DE PETICION DE INTERES GENERAL","Solucionado - Por traslado","SECRETARIA DISTRITAL DE GOBIERNO","GESTIONADO"]
[null,374922026,"AREA DE ATENCION A LA CIUDADANIA","WEB","DERECHO DE PETICION DE INTERES PARTICULAR","Solucionado - Por traslado","INSTITUTO PARA LA ECONOMIA SOCIAL - IPES","GESTIONADO"]
[null,378122026,"AREA DE ATENCION A LA CIUDADANIA","WEB","DERECHO DE PETICION DE INTERES GENERAL","Solucionado - Por traslado","SECRETARIA DISTRITAL DE MOVILIDAD","GESTIONADO"]
[null,379852026,"AREA DE ATENCION A LA CIUDADANIA","E-MAIL","DERECHO DE PETICION DE INTERES GENERAL","Solucionado - Por traslado","SECRETARIA DISTRITAL DE GOBIERNO","GESTIONADO"]
[null,381382026,"SUBDIRECCION DE REGISTRO INMOBILIARIO","WEB","CONSULTA","Solucionado por asignar - Trasladar","SECRETARIA DISTRITAL DE PLANEACION","PENDIENTE"]
[null,381552026,"AREA DE ATENCION A LA CIUDADANIA","E-MAIL","DERECHO DE PETICION DE INTERES GENERAL","Solucionado - Por traslado","INSTITUTO PARA LA ECONOMIA SOCIAL - IPES","GESTIONADO"]
[null,383292026,"AREA DE ATENCION A LA CIUDADANIA","WEB","DERECHO DE PETICION DE INTERES GENERAL","Solucionado - Por traslado","SECRETARIA DISTRITAL DE GOBIERNO","GESTIONADO"]
[null,384532026,"AREA DE ATENCION A LA CIUDADANIA","WEB","DERECHO DE PETICION DE INTERES GENERAL","Solucionado - Por traslado","SECRETARIA DISTRITAL DE MOVILIDAD","GESTIONADO"]
[null,384702026,"AREA DE ATENCION A LA CIUDADANIA","WEB","DERECHO DE PETICION DE INTERES GENERAL","Solucionado - Por traslado","EMPRESA DE ACUEDUCTO Y ALCANTARILLADO DE BOGOTA EAAB - ESP","GESTIONADO"]
[null,387562026,"AREA DE ATENCION A LA CIUDADANIA","WEB","DERECHO DE PETICION DE INTERES GENERAL","Solucionado - Por traslado","INSTITUTO PARA LA ECONOMIA SOCIAL - IPES","GESTIONADO"]
[null,398622026,"AREA DE ATENCION A LA CIUDADANIA","WEB","DERECHO DE PETICION DE INTERES GENERAL","Solucionado - Por traslado","SECRETARIA DISTRITAL DE MOVILIDAD","GESTIONADO"]
[null,401122026,"AREA DE ATENCION A LA CIUDADANIA","WEB","DERECHO DE PETICION DE INTERES PARTICULAR","Solucionado - Por traslado","SECRETARIA DISTRITAL DE GOBIERNO","GESTIONADO"]
[null,402362026,"AREA DE ATENCION A LA CIUDADANIA","E-MAIL","DERECHO DE PETICION DE INTERES GENERAL","Solucionado por asignar - Trasladar","SECRETARIA DISTRITAL DE GOBIERNO","PENDIENTE"]
[null,402452026,"AREA DE ATENCION A LA CIUDADANIA","WEB","DERECHO DE PETICION DE INTERES GENERAL","Solucionado - Por traslado","SECRETARIA DISTRITAL DE MOVILIDAD","GESTIONADO"]
[null,402482026,"AREA DE ATENCION A LA CIUDADANIA","WEB","DERECHO DE PETICION DE INTERES GENERAL","Solucionado - Por traslado","SECRETARIA DISTRITAL DE GOBIERNO","GESTIONADO"]
[null,404722026,"AREA DE ATENCION A LA CIUDADANIA","WEB","DERECHO DE PETICION DE INTERES GENERAL","Solucionado - Por traslado","SECRETARIA DISTRITAL DE GOBIERNO","GESTIONADO"]
[null,406602026,"AREA DE ATENCION A LA CIUDADANIA","WEB","DERECHO DE PETICION DE INTERES GENERAL","Solucionado - Por traslado","SECRETARIA DISTRITAL DE GOBIERNO","GESTIONADO"]
[null,406622026,"AREA DE ATENCION A LA CIUDADANIA","E-MAIL","DERECHO DE PETICION DE INTERES GENERAL","Solucionado - Por traslado","SECRETARIA DISTRITAL DE GOBIERNO","GESTIONADO"]
[null,407882026,"AREA DE ATENCION A LA CIUDADANIA","WEB","DERECHO DE PETICION DE INTERES GENERAL","Solucionado - Por traslado","SECRETARIA DISTRITAL DE GOBIERNO","GESTIONADO"]
[null,411612026,"AREA DE ATENCION A LA CIUDADANIA","WEB","DERECHO DE PETICION DE INTERES GENERAL","Solucionado - Por traslado","SECRETARIA DISTRITAL DE MOVILIDAD","GESTIONADO"]
[null,412152026,"AREA DE ATENCION A LA CIUDADANIA","TELEFONO","DERECHO DE PETICION DE INTERES GENERAL","Solucionado por asignar - Trasladar","INSTITUTO DISTRITAL DE RECREACION Y DEPORTE - IDRD","PENDIENTE"]
[null,414282026,"AREA DE ATENCION A LA CIUDADANIA","WEB","DERECHO DE PETICION DE INTERES GENERAL","Solucionado - Por traslado","SECRETARIA DISTRITAL DE GOBIERNO","GESTIONADO"]
[null,414372026,"AREA DE ATENCION A LA CIUDADANIA","WEB","DERECHO DE PETICION DE INTERES GENERAL","Solucionado - Por traslado","INSTITUTO PARA LA ECONOMIA SOCIAL - IPES","GESTIONADO"]
[null,415912026,"AREA DE ATENCION A LA CIUDADANIA","WEB","DERECHO DE PETICION DE INTERES GENERAL","Solucionado - Por traslado","SECRETARIA DISTRITAL DE GOBIERNO","GESTIONADO"]
[null,416782026,"AREA DE ATENCION A LA CIUDADANIA","WEB","DERECHO DE PETICION DE INTERES GENERAL","Solucionado - Por traslado","UNIDAD ADMINISTRATIVA ESPECIAL DE SERVICIOS PUBLICOS -UAESP","GESTIONADO"]
[null,418692026,"AREA DE ATENCION A LA CIUDADANIA","WEB","DERECHO DE PETICION DE INTERES GENERAL","Solucionado - Por traslado","SECRETARIA DISTRITAL DE MOVILIDAD","GESTIONADO"]
[null,420762026,"AREA DE ATENCION A LA CIUDADANIA","WEB","DERECHO DE PETICION DE INTERES GENERAL","Solucionado - Por traslado","UNIDAD ADMINISTRATIVA ESPECIAL DE SERVICIOS PUBLICOS -UAESP","GESTIONADO"]
[null,420962026,"AREA DE ATENCION A LA CIUDADANIA","WEB","DERECHO DE PETICION DE INTERES GENERAL","Solucionado - Por traslado","INSTITUTO DE DESARROLLO URBANO - IDU","GESTIONADO"]
[null,421352026,"AREA DE ATENCION A LA CIUDADANIA","WEB","DERECHO DE PETICION DE INTERES GENERAL","Solucionado - Por traslado","SECRETARIA DISTRITAL DE MOVILIDAD","GESTIONADO"]
[null,421542026,"AREA DE ATENCION A LA CIUDADANIA","WEB","DERECHO DE PETICION DE INTERES GENERAL","Solucionado - Por traslado","ENTIDAD NACIONAL","GESTIONADO"]
[null,422492026,"AREA DE ATENCION A LA CIUDADANIA","WEB","DERECHO DE PETICION DE INTERES GENERAL","Solucionado - Por traslado","INSTITUTO PARA LA ECONOMIA SOCIAL - IPES","GESTIONADO"]
[null,424452026,"AREA DE ATENCION A LA CIUDADANIA","E-MAIL","DERECHO DE PETICION DE INTERES GENERAL","Solucionado - Por traslado","SECRETARIA DISTRITAL DE MOVILIDAD","GESTIONADO"]
[null,424762026,"AREA DE ATENCION A LA CIUDADANIA","WEB","DERECHO DE PETICION DE INTERES GENERAL","Solucionado - Por traslado","SECRETARIA DISTRITAL DE GOBIERNO","GESTIONADO"]
[null,425332026,"AREA DE ATENCION A LA CIUDADANIA","WEB","DERECHO DE PETICION DE INTERES GENERAL","Solucionado - Por traslado","SECRETARIA DISTRITAL DE GOBIERNO","GESTIONADO"]
[null,425482026,"AREA DE ATENCION A LA CIUDADANIA","WEB","DERECHO DE PETICION DE INTERES GENERAL","Solucionado - Por traslado","SECRETARIA DISTRITAL DE PLANEACION","GESTIONADO"]
[null,425612026,"AREA DE ATENCION A LA CIUDADANIA","WEB","DERECHO DE PETICION DE INTERES GENERAL","Solucionado por asignar - Trasladar","SECRETARIA DISTRITAL DE GOBIERNO","PENDIENTE"]
[null,434052026,"AREA DE ATENCION A LA CIUDADANIA","WEB","DERECHO DE PETICION DE INTERES GENERAL","Solucionado - Por traslado","SECRETARIA DISTRITAL DE MOVILIDAD","GESTIONADO"]
[null,436222026,"AREA DE ATENCION A LA CIUDADANIA","WEB","DERECHO DE PETICION DE INTERES GENERAL","Solucionado - Por traslado","INSTITUTO PARA LA ECONOMIA SOCIAL - IPES","GESTIONADO"]
[null,436342026,"AREA DE ATENCION A LA CIUDADANIA","WEB","DERECHO DE PETICION DE INTERES GENERAL","Solucionado por asignar - Trasladar","INSTITUTO DE DESARROLLO URBANO - IDU","GESTIONADO"]
[null,436512026,"AREA DE ATENCION A LA CIUDADANIA","WEB","DERECHO DE PETICION DE INTERES GENERAL","Solucionado - Por traslado","ENTIDAD NACIONAL","GESTIONADO"]
[null,436612026,"AREA DE ATENCION A LA CIUDADANIA","WEB","DERECHO DE PETICION DE INTERES GENERAL","Solucionado - Por traslado","SECRETARIA DISTRITAL DE GOBIERNO","GESTIONADO"]
[null,437762026,"AREA DE ATENCION A LA CIUDADANIA","E-MAIL","DERECHO DE PETICION DE INTERES GENERAL","Solucionado - Por traslado","SECRETARIA DISTRITAL DE GOBIERNO","GESTIONADO"]
[null,442282026,"AREA DE ATENCION A LA CIUDADANIA","E-MAIL","DERECHO DE PETICION DE INTERES PARTICULAR","Solucionado por asignar - Trasladar","SECRETARIA DISTRITAL DE GOBIERNO","PENDIENTE"]
[null,442562026,"AREA DE ATENCION A LA CIUDADANIA","WEB","DERECHO DE PETICION DE INTERES GENERAL","Solucionado - Por traslado","SECRETARIA DISTRITAL DE MOVILIDAD","GESTIONADO"]
[null,443642026,"AREA DE ATENCION A LA CIUDADANIA","WEB","DERECHO DE PETICION DE INTERES GENERAL","Solucionado - Por traslado","INSTITUTO PARA LA ECONOMIA SOCIAL - IPES","GESTIONADO"]
[null,444282026,"AREA DE ATENCION A LA CIUDADANIA","WEB","DERECHO DE PETICION DE INTERES GENERAL","Solucionado - Por traslado","SECRETARIA DISTRITAL DE GOBIERNO","GESTIONADO"]
[null,445602026,"AREA DE ATENCION A LA CIUDADANIA","WEB","DERECHO DE PETICION DE INTERES PARTICULAR","Solucionado - Por traslado","INSTITUTO PARA LA ECONOMIA SOCIAL - IPES","GESTIONADO"]
[null,448402026,"AREA DE ATENCION A LA CIUDADANIA","WEB","DERECHO DE PETICION DE INTERES GENERAL","Solucionado - Por traslado","SECRETARIA DISTRITAL DE MOVILIDAD","GESTIONADO"]
[null,450412026,"AREA DE ATENCION A LA CIUDADANIA","WEB","DERECHO DE PETICION DE INTERES GENERAL","Solucionado - Por traslado","SECRETARIA DISTRITAL DE GOBIERNO","GESTIONADO"]
[null,451132026,"AREA DE ATENCION A LA CIUDADANIA","WEB","DERECHO DE PETICION DE INTERES GENERAL","Solucionado - Por traslado","SECRETARIA DISTRITAL DE MOVILIDAD","GESTIONADO"]
[null,451212026,"AREA DE ATENCION A LA CIUDADANIA","WEB","DERECHO DE PETICION DE INTERES GENERAL","Solucionado - Por traslado","SECRETARIA DISTRITAL DE GOBIERNO","GESTIONADO"]
[null,451352026,"AREA DE ATENCION A LA CIUDADANIA","WEB","DERECHO DE PETICION DE INTERES GENERAL","Solucionado - Por traslado","SECRETARIA DISTRITAL DE GOBIERNO","GESTIONADO"]
[null,452082026,"AREA DE ATENCION A LA CIUDADANIA","WEB","DERECHO DE PETICION DE INTERES GENERAL","Solucionado - Por traslado","SECRETARIA DISTRITAL DE MOVILIDAD","GESTIONADO"]
[null,452662026,"AREA DE ATENCION A LA CIUDADANIA","WEB","CONSULTA","Solucionado por asignar - Trasladar","SECRETARIA DISTRITAL DE PLANEACION","GESTIONADO"]
[null,453552026,"AREA DE ATENCION A LA CIUDADANIA","E-MAIL","DERECHO DE PETICION DE INTERES PARTICULAR","Solucionado - Por traslado","SECRETARIA DISTRITAL DE GOBIERNO","GESTIONADO"]
[null,454002026,"AREA DE ATENCION A LA CIUDADANIA","WEB","QUEJA","Solucionado - Por traslado","SUBRED INTEGRADA DE SERVICIOS DE SALUD SUR E.S.E.","GESTIONADO"]
[null,454392026,"AREA DE ATENCION A LA CIUDADANIA","WEB","DERECHO DE PETICION DE INTERES PARTICULAR","Solucionado por asignar - Trasladar","SECRETARIA DISTRITAL DE PLANEACION","GESTIONADO"]
[null,455332026,"AREA DE ATENCION A LA CIUDADANIA","WEB","DERECHO DE PETICION DE INTERES GENERAL","Solucionado - Por traslado","SECRETARIA DISTRITAL DE GOBIERNO","GESTIONADO"]
[null,457462026,"AREA DE ATENCION A LA CIUDADANIA","WEB","DERECHO DE PETICION DE INTERES GENERAL","Solucionado por asignar - Trasladar","SECRETARIA DISTRITAL DE SEGURIDAD  CONVIVENCIA Y JUSTICIA","PENDIENTE"]
[null,458992026,"AREA DE ATENCION A LA CIUDADANIA","WEB","DERECHO DE PETICION DE INTERES PARTICULAR","Solucionado - Por traslado","UNIDAD ADMINISTRATIVA ESPECIAL DE SERVICIOS PUBLICOS -UAESP","GESTIONADO"]
[null,467662026,"AREA DE ATENCION A LA CIUDADANIA","WEB","DERECHO DE PETICION DE INTERES GENERAL","Solucionado - Por traslado","SECRETARIA DISTRITAL DE GOBIERNO","GESTIONADO"]
[null,468872026,"AREA DE ATENCION A LA CIUDADANIA","WEB","DERECHO DE PETICION DE INTERES GENERAL","Solucionado - Por traslado","UNIDAD ADMINISTRATIVA ESPECIAL DE SERVICIOS PUBLICOS -UAESP","GESTIONADO"]
[null,469462026,"AREA DE ATENCION A LA CIUDADANIA","WEB","DERECHO DE PETICION DE INTERES GENERAL","Solucionado - Por traslado","SECRETARIA DISTRITAL DE GOBIERNO","GESTIONADO"]
[null,470492026,"AREA DE ATENCION A LA CIUDADANIA","E-MAIL","DERECHO DE PETICION DE INTERES GENERAL","Solucionado - Por traslado","SECRETARIA DISTRITAL DE GOBIERNO","GESTIONADO"]
[null,471292026,"AREA DE ATENCION A LA CIUDADANIA","ESCRITO","DERECHO DE PETICION DE INTERES GENERAL","Solucionado por asignar - Trasladar","SECRETARIA DISTRITAL DE GOBIERNO","PENDIENTE"]
[null,472342026,"AREA DE ATENCION A LA CIUDADANIA","E-MAIL","DERECHO DE PETICION DE INTERES GENERAL","Solucionado - Por traslado","SECRETARIA DISTRITAL DE GOBIERNO","GESTIONADO"]
[null,472622026,"AREA DE ATENCION A LA CIUDADANIA","E-MAIL","DERECHO DE PETICION DE INTERES GENERAL","Solucionado - Por traslado","SECRETARIA DISTRITAL DE MOVILIDAD","GESTIONADO"]
[null,473102026,"AREA DE ATENCION A LA CIUDADANIA","E-MAIL","DERECHO DE PETICION DE INTERES GENERAL","Solucionado - Por traslado","SECRETARIA DISTRITAL DE GOBIERNO","GESTIONADO"]
[null,473292026,"AREA DE ATENCION A LA CIUDADANIA","WEB","DERECHO DE PETICION DE INTERES GENERAL","Solucionado - Por traslado","SECRETARIA DISTRITAL DE MOVILIDAD","GESTIONADO"]
[null,473912026,"AREA DE ATENCION A LA CIUDADANIA","E-MAIL","DERECHO DE PETICION DE INTERES GENERAL","Solucionado - Por traslado","SECRETARIA DISTRITAL DE GOBIERNO","GESTIONADO"]
[null,474412026,"AREA DE ATENCION A LA CIUDADANIA","E-MAIL","DERECHO DE PETICION DE INTERES GENERAL","Solucionado por asignar - Trasladar","ENTIDAD NACIONAL","PENDIENTE"]
[null,475692026,"AREA DE ATENCION A LA CIUDADANIA","WEB","DERECHO DE PETICION DE INTERES GENERAL","Solucionado - Por traslado","SECRETARIA DISTRITAL DE AMBIENTE","GESTIONADO"]
[null,476572026,"AREA DE ATENCION A LA CIUDADANIA","WEB","DERECHO DE PETICION DE INTERES GENERAL","Solucionado - Por traslado","SECRETARIA DISTRITAL DE GOBIERNO","GESTIONADO"]
[null,477342026,"AREA DE ATENCION A LA CIUDADANIA","WEB","DERECHO DE PETICION DE INTERES GENERAL","Solucionado - Por traslado","SECRETARIA DISTRITAL DE GOBIERNO","GESTIONADO"]
[null,477832026,"AREA DE ATENCION A LA CIUDADANIA","E-MAIL","DERECHO DE PETICION DE INTERES GENERAL","Solucionado - Por traslado","SECRETARIA DISTRITAL DE AMBIENTE","GESTIONADO"]
[null,477962026,"AREA DE ATENCION A LA CIUDADANIA","WEB","DERECHO DE PETICION DE INTERES GENERAL","Solucionado - Por traslado","SECRETARIA DISTRITAL DE MOVILIDAD","GESTIONADO"]
[null,478772026,"AREA DE ATENCION A LA CIUDADANIA","E-MAIL","DERECHO DE PETICION DE INTERES GENERAL","Solucionado - Por traslado","SECRETARIA DISTRITAL DE GOBIERNO","GESTIONADO"]
[null,480032026,"AREA DE ATENCION A LA CIUDADANIA","WEB","DERECHO DE PETICION DE INTERES GENERAL","Solucionado - Por traslado","SECRETARIA DISTRITAL DE GOBIERNO","GESTIONADO"]
[null,484432026,"AREA DE ATENCION A LA CIUDADANIA","WEB","DERECHO DE PETICION DE INTERES GENERAL","Solucionado - Por traslado","SECRETARIA DISTRITAL DE GOBIERNO","GESTIONADO"]
[null,485292026,"AREA DE ATENCION A LA CIUDADANIA","WEB","DERECHO DE PETICION DE INTERES GENERAL","Solucionado - Por traslado","UNIDAD ADMINISTRATIVA ESPECIAL DE SERVICIOS PUBLICOS -UAESP","GESTIONADO"]
[null,487012026,"AREA DE ATENCION A LA CIUDADANIA","WEB","DERECHO DE PETICION DE INTERES PARTICULAR","Solucionado - Por traslado","SECRETARIA DISTRITAL DE AMBIENTE","GESTIONADO"]
[null,487942026,"AREA DE ATENCION A LA CIUDADANIA","WEB","DERECHO DE PETICION DE INTERES GENERAL","Solucionado - Por traslado","INSTITUTO DISTRITAL DE GESTION DE RIESGOS Y CAMBIO CLIMATICO - IDIGER","GESTIONADO"]
[null,489732026,"AREA DE ATENCION A LA CIUDADANIA","WEB","DERECHO DE PETICION DE INTERES GENERAL","Solucionado - Por traslado","ENTIDAD NACIONAL","GESTIONADO"]
[null,493032026,"AREA DE ATENCION A LA CIUDADANIA","WEB","DERECHO DE PETICION DE INTERES GENERAL","Solucionado - Por traslado","INSTITUTO DE DESARROLLO URBANO - IDU","GESTIONADO"]
[null,497902026,"AREA DE ATENCION A LA CIUDADANIA","WEB","DERECHO DE PETICION DE INTERES GENERAL","Solucionado - Por traslado","SECRETARIA DISTRITAL DE MOVILIDAD","GESTIONADO"]
[null,498802026,"AREA DE ATENCION A LA CIUDADANIA","WEB","DERECHO DE PETICION DE INTERES GENERAL","Solucionado - Por traslado","SECRETARIA DISTRITAL DE MOVILIDAD","GESTIONADO"]
[null,499102026,"AREA DE ATENCION A LA CIUDADANIA","WEB","DERECHO DE PETICION DE INTERES GENERAL","Solucionado - Por traslado","UNIDAD ADMINISTRATIVA ESPECIAL DE SERVICIOS PUBLICOS -UAESP","GESTIONADO"]
[null,500292026,"AREA DE ATENCION A LA CIUDADANIA","WEB","DERECHO DE PETICION DE INTERES PARTICULAR","Solucionado - Por traslado","SECRETARIA DISTRITAL DE AMBIENTE","GESTIONADO"]
[null,500382026,"AREA DE ATENCION A LA CIUDADANIA","WEB","DERECHO DE PETICION DE INTERES PARTICULAR","Solucionado - Por traslado","SECRETARIA DISTRITAL DE MOVILIDAD","GESTIONADO"]
[null,500602026,"AREA DE ATENCION A LA CIUDADANIA","WEB","DERECHO DE PETICION DE INTERES GENERAL","Solucionado - Por traslado","SECRETARIA DISTRITAL DE MOVILIDAD","GESTIONADO"]
[null,500722026,"AREA DE ATENCION A LA CIUDADANIA","WEB","DERECHO DE PETICION DE INTERES PARTICULAR","Solucionado - Por traslado","INSTITUTO PARA LA ECONOMIA SOCIAL - IPES","GESTIONADO"]
[null,500752026,"AREA DE ATENCION A LA CIUDADANIA","WEB","DERECHO DE PETICION DE INTERES GENERAL","Solucionado - Por traslado","SECRETARIA DISTRITAL DE MOVILIDAD","GESTIONADO"]
[null,500792026,"AREA DE ATENCION A LA CIUDADANIA","WEB","DERECHO DE PETICION DE INTERES GENERAL","Solucionado - Por traslado","INSTITUTO DE DESARROLLO URBANO - IDU","GESTIONADO"]
[null,500802026,"AREA DE ATENCION A LA CIUDADANIA","WEB","DERECHO DE PETICION DE INTERES GENERAL","Solucionado - Por traslado","SECRETARIA DISTRITAL DE MOVILIDAD","GESTIONADO"]
[null,500862026,"AREA DE ATENCION A LA CIUDADANIA","WEB","DERECHO DE PETICION DE INTERES GENERAL","Solucionado - Por traslado","JARDIN BOTANICO DE BOGOTA JOSE CELESTINO MUTIS - JBB","GESTIONADO"]
[null,501102026,"AREA DE ATENCION A LA CIUDADANIA","WEB","DERECHO DE PETICION DE INTERES GENERAL","Solucionado - Por traslado","SECRETARIA DISTRITAL DE GOBIERNO","GESTIONADO"]
[null,502222026,"AREA DE ATENCION A LA CIUDADANIA","WEB","DERECHO DE PETICION DE INTERES GENERAL","Solucionado - Por traslado","SECRETARIA DISTRITAL DE MOVILIDAD","GESTIONADO"]
[null,504122026,"AREA DE ATENCION A LA CIUDADANIA","WEB","DERECHO DE PETICION DE INTERES GENERAL","Solucionado - Por traslado","SECRETARIA DISTRITAL DE MOVILIDAD","GESTIONADO"]
[null,505632026,"AREA DE ATENCION A LA CIUDADANIA","WEB","DERECHO DE PETICION DE INTERES GENERAL","Solucionado - Por traslado","SECRETARIA DISTRITAL DE MOVILIDAD","GESTIONADO"]
[null,505682026,"AREA DE ATENCION A LA CIUDADANIA","WEB","DERECHO DE PETICION DE INTERES GENERAL","Solucionado - Por traslado","SECRETARIA DISTRITAL DE MOVILIDAD","GESTIONADO"]
[null,506292026,"AREA DE ATENCION A LA CIUDADANIA","WEB","DERECHO DE PETICION DE INTERES GENERAL","Solucionado - Por traslado","SECRETARIA DISTRITAL DE GOBIERNO","GESTIONADO"]
[null,506352026,"AREA DE ATENCION A LA CIUDADANIA","WEB","DERECHO DE PETICION DE INTERES GENERAL","Solucionado - Por traslado","SECRETARIA DISTRITAL DE GOBIERNO","GESTIONADO"]
[null,507062026,"AREA DE ATENCION A LA CIUDADANIA","WEB","DERECHO DE PETICION DE INTERES GENERAL","Solucionado - Por traslado","SECRETARIA DISTRITAL DE GOBIERNO","GESTIONADO"]
[null,507812026,"AREA DE ATENCION A LA CIUDADANIA","WEB","DERECHO DE PETICION DE INTERES GENERAL","Solucionado - Por traslado","SECRETARIA DISTRITAL DE MOVILIDAD","GESTIONADO"]
[null,510722026,"AREA DE ATENCION A LA CIUDADANIA","E-MAIL","DERECHO DE PETICION DE INTERES GENERAL","Solucionado por asignar - Trasladar","SECRETARIA DISTRITAL DE GOBIERNO","PENDIENTE"]
[null,511642026,"AREA DE ATENCION A LA CIUDADANIA","E-MAIL","DERECHO DE PETICION DE INTERES PARTICULAR","Solucionado por asignar - Trasladar","SECRETARIA DISTRITAL DE GOBIERNO","PENDIENTE"]
[null,512512026,"AREA DE ATENCION A LA CIUDADANIA","WEB","DERECHO DE PETICION DE INTERES GENERAL","Solucionado - Por traslado","SECRETARIA DE EDUCACION DEL DISTRITO","GESTIONADO"]
[null,513952026,"AREA DE ATENCION A LA CIUDADANIA","WEB","DERECHO DE PETICION DE INTERES GENERAL","Solucionado - Por traslado","INSTITUTO PARA LA ECONOMIA SOCIAL - IPES","GESTIONADO"]
[null,514302026,"AREA DE ATENCION A LA CIUDADANIA","E-MAIL","DERECHO DE PETICION DE INTERES PARTICULAR","Solucionado - Por traslado","INSTITUTO PARA LA ECONOMIA SOCIAL - IPES","GESTIONADO"]
[null,516532026,"AREA DE ATENCION A LA CIUDADANIA","WEB","QUEJA","Solucionado - Por traslado","SECRETARIA DISTRITAL DE MOVILIDAD","GESTIONADO"]
[null,517162026,"AREA DE ATENCION A LA CIUDADANIA","WEB","DERECHO DE PETICION DE INTERES GENERAL","Solucionado - Por traslado","SECRETARIA DISTRITAL DE MOVILIDAD","GESTIONADO"]
[null,517322026,"AREA DE ATENCION A LA CIUDADANIA","WEB","DERECHO DE PETICION DE INTERES GENERAL","Solucionado - Por traslado","SECRETARIA DISTRITAL DE INTEGRACION SOCIAL","GESTIONADO"]
[null,518582026,"AREA DE ATENCION A LA CIUDADANIA","WEB","DERECHO DE PETICION DE INTERES GENERAL","Solucionado - Por traslado","SECRETARIA DISTRITAL DE GOBIERNO","GESTIONADO"]
[null,519362026,"AREA DE ATENCION A LA CIUDADANIA","WEB","DERECHO DE PETICION DE INTERES PARTICULAR","Solucionado por asignar - Trasladar","INSTITUTO DISTRITAL DE GESTION DE RIESGOS Y CAMBIO CLIMATICO - IDIGER","GESTIONADO"]
[null,519592026,"AREA DE ATENCION A LA CIUDADANIA","WEB","DERECHO DE PETICION DE INTERES GENERAL","Solucionado - Por traslado","SECRETARIA DISTRITAL DE MOVILIDAD","GESTIONADO"]
[null,522222026,"AREA DE ATENCION A LA CIUDADANIA","WEB","DERECHO DE PETICION DE INTERES GENERAL","Solucionado por asignar - Trasladar","SECRETARIA DISTRITAL DE GOBIERNO","PENDIENTE"]
[null,523052026,"AREA DE ATENCION A LA CIUDADANIA","E-MAIL","DERECHO DE PETICION DE INTERES GENERAL","Solucionado - Por traslado","INSTITUTO PARA LA ECONOMIA SOCIAL - IPES","GESTIONADO"]
[null,527022026,"AREA DE ATENCION A LA CIUDADANIA","WEB","DERECHO DE PETICION DE INTERES GENERAL","Solucionado - Por traslado","SECRETARIA DISTRITAL DE GOBIERNO","GESTIONADO"]
[null,528462026,"AREA DE ATENCION A LA CIUDADANIA","WEB","DERECHO DE PETICION DE INTERES GENERAL","Solucionado - Por traslado","SECRETARIA DISTRITAL DE MOVILIDAD","GESTIONADO"]
[null,529122026,"AREA DE ATENCION A LA CIUDADANIA","WEB","DERECHO DE PETICION DE INTERES GENERAL","Solucionado - Por traslado","SECRETARIA DISTRITAL DE GOBIERNO","GESTIONADO"]
[null,531302026,"AREA DE ATENCION A LA CIUDADANIA","WEB","DERECHO DE PETICION DE INTERES GENERAL","Solucionado - Por traslado","SECRETARIA DISTRITAL DE GOBIERNO","GESTIONADO"]
[null,531822026,"AREA DE ATENCION A LA CIUDADANIA","WEB","DERECHO DE PETICION DE INTERES GENERAL","Solucionado - Por traslado","SECRETARIA DISTRITAL DE MOVILIDAD","GESTIONADO"]
[null,546432026,"AREA DE ATENCION A LA CIUDADANIA","WEB","DERECHO DE PETICION DE INTERES GENERAL","Solucionado - Por traslado","SECRETARIA DISTRITAL DE GOBIERNO","GESTIONADO"]
[null,546582026,"AREA DE ATENCION A LA CIUDADANIA","E-MAIL","DERECHO DE PETICION DE INTERES GENERAL","Solucionado - Por traslado","TERMINAL DE TRANSPORTES S.A.","GESTIONADO"]
[null,547062026,"AREA DE ATENCION A LA CIUDADANIA","E-MAIL","DERECHO DE PETICION DE INTERES GENERAL","Solucionado - Por traslado","UNIDAD ADMINISTRATIVA ESPECIAL DE SERVICIOS PUBLICOS -UAESP","GESTIONADO"]
[null,547532026,"AREA DE ATENCION A LA CIUDADANIA","E-MAIL","DERECHO DE PETICION DE INTERES GENERAL","Solucionado - Por traslado","SECRETARIA DISTRITAL DE MOVILIDAD","GESTIONADO"]
[null,548202026,"AREA DE ATENCION A LA CIUDADANIA","WEB","DERECHO DE PETICION DE INTERES PARTICULAR","Solucionado - Por traslado","SECRETARIA DISTRITAL DE GOBIERNO","GESTIONADO"]
[null,550312026,"AREA DE ATENCION A LA CIUDADANIA","WEB","DERECHO DE PETICION DE INTERES GENERAL","Solucionado - Por traslado","SECRETARIA DISTRITAL DE GOBIERNO","GESTIONADO"]
[null,551382026,"AREA DE ATENCION A LA CIUDADANIA","WEB","DERECHO DE PETICION DE INTERES GENERAL","Solucionado - Por traslado","INSTITUTO PARA LA ECONOMIA SOCIAL - IPES","GESTIONADO"]
[null,551622026,"AREA DE ATENCION A LA CIUDADANIA","E-MAIL","DERECHO DE PETICION DE INTERES GENERAL","Solucionado - Por traslado","SECRETARIA DISTRITAL DE AMBIENTE","GESTIONADO"]
[null,556472026,"AREA DE ATENCION A LA CIUDADANIA","WEB","DERECHO DE PETICION DE INTERES GENERAL","Solucionado - Por traslado","SECRETARIA DISTRITAL DE GOBIERNO","GESTIONADO"]
[null,558922026,"AREA DE ATENCION A LA CIUDADANIA","WEB","DERECHO DE PETICION DE INTERES GENERAL","Solucionado - Por traslado","SECRETARIA DISTRITAL DE INTEGRACION SOCIAL","GESTIONADO"]
[null,559362026,"AREA DE ATENCION A LA CIUDADANIA","WEB","DERECHO DE PETICION DE INTERES GENERAL","Solucionado - Por traslado","INSTITUTO DE DESARROLLO URBANO - IDU","GESTIONADO"]
[null,561162026,"AREA DE ATENCION A LA CIUDADANIA","E-MAIL","DERECHO DE PETICION DE INTERES GENERAL","Solucionado - Por traslado","SECRETARIA DISTRITAL DE MOVILIDAD","GESTIONADO"]
[null,561702026,"AREA DE ATENCION A LA CIUDADANIA","E-MAIL","DERECHO DE PETICION DE INTERES GENERAL","Solucionado - Por traslado","SECRETARIA DISTRITAL DE MOVILIDAD","GESTIONADO"]
[null,561962026,"AREA DE ATENCION A LA CIUDADANIA","WEB","DERECHO DE PETICION DE INTERES GENERAL","Solucionado por asignar - Trasladar","SECRETARIA DISTRITAL DE GOBIERNO","PENDIENTE"]
[null,562022026,"AREA DE ATENCION A LA CIUDADANIA","WEB","DERECHO DE PETICION DE INTERES GENERAL","Solucionado - Por traslado","INSTITUTO DE DESARROLLO URBANO - IDU","GESTIONADO"]
[null,566962026,"AREA DE ATENCION A LA CIUDADANIA","WEB","DERECHO DE PETICION DE INTERES PARTICULAR","Solucionado por asignar - Trasladar","SECRETARIA DISTRITAL DE GOBIERNO","GESTIONADO"]
[null,567242026,"AREA DE ATENCION A LA CIUDADANIA","WEB","DERECHO DE PETICION DE INTERES GENERAL","Solucionado - Por traslado","INSTITUTO PARA LA ECONOMIA SOCIAL - IPES","GESTIONADO"]
[null,567382026,"AREA DE ATENCION A LA CIUDADANIA","WEB","DERECHO DE PETICION DE INTERES GENERAL","Solucionado - Por traslado","SECRETARIA DISTRITAL DE GOBIERNO","GESTIONADO"]
[null,568102026,"AREA DE ATENCION A LA CIUDADANIA","WEB","DERECHO DE PETICION DE INTERES GENERAL","Solucionado - Por traslado","SECRETARIA DISTRITAL DE MOVILIDAD","GESTIONADO"]
[null,568622026,"AREA DE ATENCION A LA CIUDADANIA","WEB","RECLAMO","Solucionado - Por traslado","SECRETARIA DISTRITAL DE GOBIERNO","GESTIONADO"]
[null,569032026,"AREA DE ATENCION A LA CIUDADANIA","WEB","DERECHO DE PETICION DE INTERES GENERAL","Solucionado - Por traslado","SECRETARIA DISTRITAL DE AMBIENTE","GESTIONADO"]
[null,573722026,"SUBDIRECCION DE REGISTRO INMOBILIARIO","WEB","CONSULTA","Solucionado por asignar - Trasladar","CAJA DE LA VIVIENDA POPULAR - CVP","PENDIENTE"]
[null,574112026,"AREA DE ATENCION A LA CIUDADANIA","WEB","DERECHO DE PETICION DE INTERES GENERAL","Solucionado - Por traslado","SECRETARIA DISTRITAL DE MOVILIDAD","GESTIONADO"]
[null,574362026,"AREA DE ATENCION A LA CIUDADANIA","WEB","DERECHO DE PETICION DE INTERES GENERAL","Solucionado - Por traslado","SECRETARIA DISTRITAL DE MOVILIDAD","GESTIONADO"]
[null,583832026,"AREA DE ATENCION A LA CIUDADANIA","E-MAIL","DERECHO DE PETICION DE INTERES GENERAL","Solucionado - Por traslado","SUBRED INTEGRADA DE SERVICIOS DE SALUD NORTE E.S.E.","GESTIONADO"]
[null,583992026,"AREA DE ATENCION A LA CIUDADANIA","WEB","DERECHO DE PETICION DE INTERES GENERAL","Solucionado - Por traslado","SECRETARIA DISTRITAL DE MOVILIDAD","GESTIONADO"]
[null,584032026,"AREA DE ATENCION A LA CIUDADANIA","WEB","DERECHO DE PETICION DE INTERES GENERAL","Solucionado - Por traslado","SECRETARIA DISTRITAL DE GOBIERNO","GESTIONADO"]
[null,584082026,"AREA DE ATENCION A LA CIUDADANIA","E-MAIL","DERECHO DE PETICION DE INTERES GENERAL","Solucionado - Por traslado","INSTITUTO PARA LA ECONOMIA SOCIAL - IPES","GESTIONADO"]
[null,584542026,"AREA DE ATENCION A LA CIUDADANIA","WEB","DERECHO DE PETICION DE INTERES GENERAL","Solucionado - Por traslado","SECRETARIA DISTRITAL DE GOBIERNO","GESTIONADO"]
[null,588462026,"AREA DE ATENCION A LA CIUDADANIA","WEB","DERECHO DE PETICION DE INTERES GENERAL","Solucionado - Por traslado","SECRETARIA DISTRITAL DE MOVILIDAD","GESTIONADO"]
[null,591342026,"AREA DE ATENCION A LA CIUDADANIA","WEB","DERECHO DE PETICION DE INTERES GENERAL","Solucionado - Por traslado","INSTITUTO PARA LA ECONOMIA SOCIAL - IPES","GESTIONADO"]
[null,591992026,"AREA DE ATENCION A LA CIUDADANIA","WEB","DERECHO DE PETICION DE INTERES GENERAL","Solucionado - Por traslado","SECRETARIA DISTRITAL DE MOVILIDAD","GESTIONADO"]
[null,592092026,"AREA DE ATENCION A LA CIUDADANIA","E-MAIL","DERECHO DE PETICION DE INTERES GENERAL","Solucionado - Por traslado","SECRETARIA DISTRITAL DE MOVILIDAD","GESTIONADO"]
[null,595752026,"AREA DE ATENCION A LA CIUDADANIA","WEB","DERECHO DE PETICION DE INTERES GENERAL","Solucionado - Por traslado","SECRETARIA DISTRITAL DE GOBIERNO","GESTIONADO"]
[null,597702026,"AREA DE ATENCION A LA CIUDADANIA","WEB","DERECHO DE PETICION DE INTERES GENERAL","Solucionado - Por traslado","SECRETARIA DISTRITAL DE MOVILIDAD","GESTIONADO"]
[null,598212026,"AREA DE ATENCION A LA CIUDADANIA","WEB","DERECHO DE PETICION DE INTERES GENERAL","Solucionado - Por traslado","SECRETARIA DISTRITAL DE MOVILIDAD","GESTIONADO"]
[null,598792026,"AREA DE ATENCION A LA CIUDADANIA","WEB","DERECHO DE PETICION DE INTERES GENERAL","Solucionado - Por traslado","SECRETARIA DISTRITAL DE MOVILIDAD","GESTIONADO"]
[null,600092026,"AREA DE ATENCION A LA CIUDADANIA","WEB","DERECHO DE PETICION DE INTERES GENERAL","Solucionado - Por traslado","SECRETARIA DISTRITAL DE MOVILIDAD","GESTIONADO"]
[null,602302026,"AREA DE ATENCION A LA CIUDADANIA","E-MAIL","DERECHO DE PETICION DE INTERES GENERAL","Solucionado - Por traslado","INSTITUTO PARA LA ECONOMIA SOCIAL - IPES","GESTIONADO"]
[null,602912026,"AREA DE ATENCION A LA CIUDADANIA","E-MAIL","DERECHO DE PETICION DE INTERES GENERAL","Solucionado por asignar - Trasladar","ENTIDAD NACIONAL","PENDIENTE"]
[null,605262026,"AREA DE ATENCION A LA CIUDADANIA","WEB","DERECHO DE PETICION DE INTERES GENERAL","Solucionado - Por traslado","INSTITUTO PARA LA ECONOMIA SOCIAL - IPES","GESTIONADO"]
[null,606772026,"AREA DE ATENCION A LA CIUDADANIA","WEB","DERECHO DE PETICION DE INTERES GENERAL","Solucionado - Por traslado","INSTITUTO DE DESARROLLO URBANO - IDU","GESTIONADO"]
[null,606842026,"AREA DE ATENCION A LA CIUDADANIA","WEB","DERECHO DE PETICION DE INTERES PARTICULAR","Solucionado - Por traslado","INSTITUTO DE DESARROLLO URBANO - IDU","GESTIONADO"]
[null,619942026,"AREA DE ATENCION A LA CIUDADANIA","WEB","DERECHO DE PETICION DE INTERES GENERAL","Solucionado - Por traslado","SECRETARIA DISTRITAL DE MOVILIDAD","GESTIONADO"]
[null,622732026,"AREA DE ATENCION A LA CIUDADANIA","WEB","DERECHO DE PETICION DE INTERES GENERAL","Solucionado - Por traslado","SECRETARIA DISTRITAL DE MOVILIDAD","GESTIONADO"]
[null,623152026,"AREA DE ATENCION A LA CIUDADANIA","WEB","DERECHO DE PETICION DE INTERES GENERAL","Solucionado - Por traslado","SECRETARIA DISTRITAL DE MOVILIDAD","GESTIONADO"]
[null,624632026,"AREA DE ATENCION A LA CIUDADANIA","WEB","DERECHO DE PETICION DE INTERES GENERAL","Solucionado - Por traslado","SECRETARIA DISTRITAL DE MOVILIDAD","GESTIONADO"]
[null,625312026,"AREA DE ATENCION A LA CIUDADANIA","WEB","SUGERENCIA","Solucionado - Por traslado","INSTITUTO DISTRITAL DE PROTECCION Y BIENESTAR ANIMAL - IDPYBA","GESTIONADO"]
[null,630332026,"AREA DE ATENCION A LA CIUDADANIA","E-MAIL","DERECHO DE PETICION DE INTERES GENERAL","Solucionado por asignar - Trasladar","SECRETARIA DISTRITAL DE GOBIERNO","PENDIENTE"]
[null,632372026,"AREA DE ATENCION A LA CIUDADANIA","WEB","DERECHO DE PETICION DE INTERES GENERAL","Solucionado - Por traslado","SECRETARIA DISTRITAL DE GOBIERNO","GESTIONADO"]
[null,632652026,"AREA DE ATENCION A LA CIUDADANIA","E-MAIL","DERECHO DE PETICION DE INTERES GENERAL","Solucionado por asignar - Trasladar","SECRETARIA DISTRITAL DE GOBIERNO","PENDIENTE"]
[null,633362026,"AREA DE ATENCION A LA CIUDADANIA","ESCRITO","DERECHO DE PETICION DE INTERES GENERAL","Solucionado - Por traslado","INSTITUTO PARA LA ECONOMIA SOCIAL - IPES","GESTIONADO"]
[null,633752026,"AREA DE ATENCION A LA CIUDADANIA","E-MAIL","DERECHO DE PETICION DE INTERES GENERAL","Solucionado - Por traslado","UNIDAD ADMINISTRATIVA ESPECIAL DE SERVICIOS PUBLICOS -UAESP","GESTIONADO"]
[null,634342026,"AREA DE ATENCION A LA CIUDADANIA","E-MAIL","DERECHO DE PETICION DE INTERES GENERAL","Solucionado - Por traslado","ENTIDAD NACIONAL","GESTIONADO"]
[null,638022026,"AREA DE ATENCION A LA CIUDADANIA","WEB","DERECHO DE PETICION DE INTERES GENERAL","Solucionado - Por traslado","SECRETARIA DISTRITAL DE GOBIERNO","GESTIONADO"]
[null,639262026,"AREA DE ATENCION A LA CIUDADANIA","WEB","DERECHO DE PETICION DE INTERES GENERAL","Solucionado - Por traslado","SECRETARIA DISTRITAL DE GOBIERNO","GESTIONADO"]
[null,639762026,"AREA DE ATENCION A LA CIUDADANIA","WEB","DERECHO DE PETICION DE INTERES GENERAL","Solucionado - Por traslado","SECRETARIA DISTRITAL DE MOVILIDAD","GESTIONADO"]
[null,644362026,"AREA DE ATENCION A LA CIUDADANIA","WEB","DERECHO DE PETICION DE INTERES GENERAL","Solucionado - Por traslado","INSTITUTO DE DESARROLLO URBANO - IDU","GESTIONADO"]
[null,654732026,"AREA DE ATENCION A LA CIUDADANIA","E-MAIL","DERECHO DE PETICION DE INTERES GENERAL","Solucionado - Por traslado","SECRETARIA DISTRITAL DE MOVILIDAD","GESTIONADO"]
[null,7235362025,"AREA DE ATENCION A LA CIUDADANIA","WEB","DERECHO DE PETICION DE INTERES GENERAL","Solucionado - Por traslado","SECRETARIA DISTRITAL DE GOBIERNO","GESTIONADO"]
[null,7241682025,"AREA DE ATENCION A LA CIUDADANIA","WEB","DERECHO DE PETICION DE INTERES GENERAL","Solucionado - Por traslado","SECRETARIA DISTRITAL DE GOBIERNO","GESTIONADO"]
[null,7261672025,"AREA DE ATENCION A LA CIUDADANIA","E-MAIL","DERECHO DE PETICION DE INTERES GENERAL","Solucionado - Por traslado","SECRETARIA DISTRITAL DE GOBIERNO","GESTIONADO"]
[null,7262322025,"AREA DE ATENCION A LA CIUDADANIA","WEB","DERECHO DE PETICION DE INTERES GENERAL","Solucionado - Por traslado","SECRETARIA DISTRITAL DE GOBIERNO","GESTIONADO"]
[null,7278922025,"AREA DE ATENCION A LA CIUDADANIA","WEB","DERECHO DE PETICION DE INTERES GENERAL","Solucionado - Por traslado","SECRETARIA DISTRITAL DE GOBIERNO","GESTIONADO"]
[null,7279942025,"AREA DE ATENCION A LA CIUDADANIA","WEB","SUGERENCIA","Solucionado por asignar - Trasladar","INSTITUTO DISTRITAL DE RECREACION Y DEPORTE - IDRD","GESTIONADO"]

{"sheet":"Peticiones asignadas a la entid","index":4,"n_rows":82,"n_cols":7,"rows_kept":82,"cut":false,"hidden":false,"merged":[[9,1,15,2],[13,3,15,4]]}
[]
[]
[]
[]
[]
[]
[]
[]
[]
[null,"REPORTE  GESTIÓN DE PETICIONES\n\nFecha:  2026- 01- 01    a   2026 - 01 - 31\nEstado de Petición:  Al Periodo"]
[]
[]
[]
[]
[]
[]
[]
[]
[]
[null,"Número petición\nNumero de registro en el Sistema","Dependencia:\nNombre asociado al usuario que tiene a cargo la petición ","Canal:\nNombre del canal parametrizado en el sistema por el cual fue registrada la petición","Tipología actualizada: \nTipo de documento utilizado por la entidad","Días gestión\nDías calendario transcurridos desde la fecha de inicio de términos hasta el último día del mes","Estado del Requerimiento\n \"Gestionado\" o \"Pendiente\" de respuesta definitiva por  parte de la Defensoría del Espacio Público o de las entidades competentes"]
[null,2762026,"SUBDIRECCION DE GESTION INMOBILIARIA Y DEL ESPACIO PUBLICO","WEB","DERECHO DE PETICION DE INTERES GENERAL",9,"GESTIONADO"]
[null,6302026,"SUBDIRECCION DE GESTION INMOBILIARIA Y DEL ESPACIO PUBLICO","E-MAIL","DERECHO DE PETICION DE INTERES GENERAL",9,"GESTIONADO"]
[null,10602026,"OFICINA DE CONTROL DISCIPLINARIO INTERNO","WEB","DERECHO DE PETICION DE INTERES GENERAL",2,"GESTIONADO"]
[null,10632026,"OFICINA ASESORA DE COMUNICACIONES","WEB","DERECHO DE PETICION DE INTERES GENERAL",15,"GESTIONADO"]
[null,21892026,"SUBDIRECCION DE GESTION INMOBILIARIA Y DEL ESPACIO PUBLICO","WEB","DERECHO DE PETICION DE INTERES GENERAL",10,"GESTIONADO"]
[null,26232026,"SUBDIRECCION DE GESTION INMOBILIARIA Y DEL ESPACIO PUBLICO","E-MAIL","DERECHO DE PETICION DE INTERES GENERAL",10,"GESTIONADO"]
[null,26742026,"SUBDIRECCION DE GESTION INMOBILIARIA Y DEL ESPACIO PUBLICO","E-MAIL","DERECHO DE PETICION DE INTERES PARTICULAR",9,"GESTIONADO"]
[null,32612026,"SUBDIRECCION DE GESTION CORPORATIVA","WEB","DERECHO DE PETICION DE INTERES PARTICULAR",14,"GESTIONADO"]
[null,32632026,"SUBDIRECCION DE GESTION CORPORATIVA","WEB","DERECHO DE PETICION DE INTERES PARTICULAR",12,"GESTIONADO"]
[null,57472026,"SUBDIRECCION DE GESTION INMOBILIARIA Y DEL ESPACIO PUBLICO","ESCRITO","DERECHO DE PETICION DE INTERES PARTICULAR",15,"GESTIONADO"]
[null,57492026,"SUBDIRECCION DE GESTION INMOBILIARIA Y DEL ESPACIO PUBLICO","E-MAIL","DERECHO DE PETICION DE INTERES PARTICULAR",12,"GESTIONADO"]
[null,66042026,"SUBDIRECCION DE GESTION INMOBILIARIA Y DEL ESPACIO PUBLICO","E-MAIL","DERECHO DE PETICION DE INTERES GENERAL",15,"GESTIONADO"]
[null,66432026,"SUBDIRECCION DE GESTION INMOBILIARIA Y DEL ESPACIO PUBLICO","E-MAIL","DERECHO DE PETICION DE INTERES GENERAL",14,"GESTIONADO"]
[null,119832026,"OFICINA DE CONTROL DISCIPLINARIO INTERNO","WEB","DERECHO DE PETICION DE INTERES GENERAL",1,"GESTIONADO"]
[null,123602026,"SUBDIRECCION DE GESTION INMOBILIARIA Y DEL ESPACIO PUBLICO","E-MAIL","DERECHO DE PETICION DE INTERES PARTICULAR",14,"GESTIONADO"]
[null,127062026,"SUBDIRECCION DE GESTION INMOBILIARIA Y DEL ESPACIO PUBLICO","E-MAIL","DERECHO DE PETICION DE INTERES PARTICULAR",14,"GESTIONADO"]
[null,145462026,"SUBDIRECCION DE GESTION INMOBILIARIA Y DEL ESPACIO PUBLICO","E-MAIL","DERECHO DE PETICION DE INTERES GENERAL",11,"GESTIONADO"]
[null,152322026,"SUBDIRECCION DE GESTION INMOBILIARIA Y DEL ESPACIO PUBLICO","E-MAIL","CONSULTA",2,"GESTIONADO"]
[null,180492026,"OFICINA DE CONTROL DISCIPLINARIO INTERNO","WEB","DERECHO DE PETICION DE INTERES GENERAL",1,"GESTIONADO"]
[null,181142026,"SUBDIRECCION DE GESTION INMOBILIARIA Y DEL ESPACIO PUBLICO","WEB","DERECHO DE PETICION DE INTERES GENERAL",13,"GESTIONADO"]
[null,181202026,"SUBDIRECCION DE GESTION INMOBILIARIA Y DEL ESPACIO PUBLICO","WEB","DERECHO DE PETICION DE INTERES GENERAL",13,"GESTIONADO"]
[null,182772026,"SUBDIRECCION DE GESTION INMOBILIARIA Y DEL ESPACIO PUBLICO","WEB","DERECHO DE PETICION DE INTERES GENERAL",11,"GESTIONADO"]
[null,192692026,"OFICINA DE CONTROL DISCIPLINARIO INTERNO","WEB","DERECHO DE PETICION DE INTERES GENERAL",3,"GESTIONADO"]
[null,194852026,"SUBDIRECCION DE GESTION INMOBILIARIA Y DEL ESPACIO PUBLICO","E-MAIL","DERECHO DE PETICION DE INTERES GENERAL",10,"GESTIONADO"]
[null,226772026,"OFICINA DE CONTROL DISCIPLINARIO INTERNO","WEB","DERECHO DE PETICION DE INTERES GENERAL",2,"GESTIONADO"]
[null,229282026,"SUBDIRECCION DE GESTION INMOBILIARIA Y DEL ESPACIO PUBLICO","E-MAIL","DERECHO DE PETICION DE INTERES GENERAL",13,"GESTIONADO"]
[null,234752026,"OFICINA DE CONTROL DISCIPLINARIO INTERNO","WEB","DERECHO DE PETICION DE INTERES GENERAL",2,"GESTIONADO"]
[null,277402026,"OFICINA DE CONTROL DISCIPLINARIO INTERNO","WEB","DERECHO DE PETICION DE INTERES GENERAL",1,"GESTIONADO"]
[null,295702026,"SUBDIRECCION DE GESTION INMOBILIARIA Y DEL ESPACIO PUBLICO","WEB","DERECHO DE PETICION DE INTERES GENERAL",10,"PENDIENTE"]
[null,297022026,"SUBDIRECCION DE GESTION INMOBILIARIA Y DEL ESPACIO PUBLICO","ESCRITO","DERECHO DE PETICION DE INTERES GENERAL",10,"PENDIENTE"]
[null,317042026,"SUBDIRECCION DE GESTION INMOBILIARIA Y DEL ESPACIO PUBLICO","WEB","DERECHO DE PETICION DE INTERES GENERAL",10,"PENDIENTE"]
[null,334442026,"SUBDIRECCION DE GESTION INMOBILIARIA Y DEL ESPACIO PUBLICO","E-MAIL","DERECHO DE PETICION DE INTERES GENERAL",9,"GESTIONADO"]
[null,345292026,"OFICINA DE CONTROL DISCIPLINARIO INTERNO","WEB","DERECHO DE PETICION DE INTERES GENERAL",2,"GESTIONADO"]
[null,369682026,"SUBDIRECCION DE GESTION INMOBILIARIA Y DEL ESPACIO PUBLICO","E-MAIL","DERECHO DE PETICION DE INTERES GENERAL",8,"PENDIENTE"]
[null,378172026,"SUBDIRECCION DE GESTION INMOBILIARIA Y DEL ESPACIO PUBLICO","WEB","DERECHO DE PETICION DE INTERES GENERAL",6,"PENDIENTE"]
[null,381382026,"SUBDIRECCION DE REGISTRO INMOBILIARIO","WEB","CONSULTA",2,"PENDIENTE"]
[null,402362026,"SUBDIRECCION DE GESTION INMOBILIARIA Y DEL ESPACIO PUBLICO","E-MAIL","DERECHO DE PETICION DE INTERES GENERAL",7,"PENDIENTE"]
[null,412152026,"SUBDIRECCION DE GESTION INMOBILIARIA Y DEL ESPACIO PUBLICO","TELEFONO","DERECHO DE PETICION DE INTERES GENERAL",6,"PENDIENTE"]
[null,425612026,"SUBDIRECCION DE GESTION INMOBILIARIA Y DEL ESPACIO PUBLICO","WEB","DERECHO DE PETICION DE INTERES GENERAL",7,"PENDIENTE"]
[null,436982026,"SUBDIRECCION DE GESTION CORPORATIVA","E-MAIL","DERECHO DE PETICION DE INTERES PARTICULAR",1,"GESTIONADO"]
[null,442282026,"SUBDIRECCION DE GESTION INMOBILIARIA Y DEL ESPACIO PUBLICO","E-MAIL","DERECHO DE PETICION DE INTERES PARTICULAR",6,"PENDIENTE"]
[null,455332026,"OFICINA DE CONTROL DISCIPLINARIO INTERNO","WEB","DERECHO DE PETICION DE INTERES GENERAL",3,"GESTIONADO"]
[null,457462026,"SUBDIRECCION DE GESTION INMOBILIARIA Y DEL ESPACIO PUBLICO","WEB","DERECHO DE PETICION DE INTERES GENERAL",6,"PENDIENTE"]
[null,471292026,"SUBDIRECCION DE GESTION INMOBILIARIA Y DEL ESPACIO PUBLICO","ESCRITO","DERECHO DE PETICION DE INTERES GENERAL",5,"PENDIENTE"]
[null,474412026,"SUBDIRECCION DE GESTION INMOBILIARIA Y DEL ESPACIO PUBLICO","E-MAIL","DERECHO DE PETICION DE INTERES GENERAL",5,"PENDIENTE"]
[null,484432026,"OFICINA DE CONTROL DISCIPLINARIO INTERNO","WEB","DERECHO DE PETICION DE INTERES GENERAL",2,"GESTIONADO"]
[null,501792026,"SUBDIRECCION DE GESTION INMOBILIARIA Y DEL ESPACIO PUBLICO","WEB","DERECHO DE PETICION DE INTERES GENERAL",5,"PENDIENTE"]
[null,510722026,"SUBDIRECCION DE GESTION INMOBILIARIA Y DEL ESPACIO PUBLICO","E-MAIL","DERECHO DE PETICION DE INTERES GENERAL",4,"PENDIENTE"]
[null,511642026,"SUBDIRECCION DE GESTION INMOBILIARIA Y DEL ESPACIO PUBLICO","E-MAIL","DERECHO DE PETICION DE INTERES PARTICULAR",4,"PENDIENTE"]
[null,522222026,"SUBDIRECCION DE GESTION INMOBILIARIA Y DEL ESPACIO PUBLICO","WEB","DERECHO DE PETICION DE INTERES GENERAL",4,"PENDIENTE"]
[null,527602026,"SUBDIRECCION DE GESTION INMOBILIARIA Y DEL ESPACIO PUBLICO","E-MAIL","DERECHO DE PETICION DE INTERES GENERAL",2,"PENDIENTE"]
[null,531392026,"SUBDIRECCION DE GESTION INMOBILIARIA Y DEL ESPACIO PUBLICO","WEB","DERECHO DE PETICION DE INTERES GENERAL",3,"PENDIENTE"]
[null,550302026,"SUBDIRECCION DE GESTION INMOBILIARIA Y DEL ESPACIO PUBLICO","WEB","CONSULTA",3,"PENDIENTE"]
[null,561962026,"SUBDIRECCION DE GESTION INMOBILIARIA Y DEL ESPACIO PUBLICO","WEB","DERECHO DE PETICION DE INTERES GENERAL",3,"PENDIENTE"]
[null,566522026,"SUBDIRECCION DE REGISTRO INMOBILIARIO","WEB","CONSULTA",3,"PENDIENTE"]
[null,573722026,"SUBDIRECCION DE REGISTRO INMOBILIARIO","WEB","CONSULTA",1,"PENDIENTE"]
[null,602912026,"SUBDIRECCION DE GESTION INMOBILIARIA Y DEL ESPACIO PUBLICO","E-MAIL","DERECHO DE PETICION DE INTERES GENERAL",2,"PENDIENTE"]
[null,605782026,"SUBDIRECCION DE GESTION INMOBILIARIA Y DEL ESPACIO PUBLICO","WEB","DERECHO DE PETICION DE INTERES GENERAL",2,"PENDIENTE"]
[null,625362026,"SUBDIRECCION DE GESTION INMOBILIARIA Y DEL ESPACIO PUBLICO","WEB","DERECHO DE PETICION DE INTERES PARTICULAR",1,"PENDIENTE"]
[null,629692026,"SUBDIRECCION DE GESTION INMOBILIARIA Y DEL ESPACIO PUBLICO","WEB","CONSULTA",1,"PENDIENTE"]
[null,630332026,"SUBDIRECCION DE GESTION INMOBILIARIA Y DEL ESPACIO PUBLICO","E-MAIL","DERECHO DE PETICION DE INTERES GENERAL",1,"PENDIENTE"]
[null,632652026,"SUBDIRECCION DE GESTION INMOBILIARIA Y DEL ESPACIO PUBLICO","E-MAIL","DERECHO DE PETICION DE INTERES GENERAL",1,"PENDIENTE"]

{"sheet":"Peticiones ciudadanas por tema","index":5,"n_rows":33,"n_cols":6,"rows_kept":33,"cut":false,"hidden":false,"merged":[[32,1,33,7],[8,2,9,5],[10,2,10,5],[11,1,12,5],[14,1,18,1],[13,5,20,7],[19,1,22,1],[24,1,26,1],[28,1,29,1]]}
[]
[]
[]
[]
[]
[]
[]
[]
[]
[]
[]
[]
[]
[null,"Dependencia","Tema de la petición","cantidad",null,"En el cuadro se presenta el TOP 5 por dependencia, de los temas mas frecuentes asociados a los trámites y servicios en las PQRS presentadas por la ciudadanía, durante el periodo en estudio y asignadas a la entidad, registrados en el formato 127- FORAC-19 establecido en el Sistema de Gestión Institucional."]
[null,"AREA DE ATENCION A LA CIUDADANIA","Competencia otras entidades",569]
[null,null,"Sin información de fondo",124]
[null,null,"Asesoría en temas de espacio público",25]
[null,null,"Certificación de la propiedad inmobiliaria",23]
[null,null,"Desempeño de la entidad",13]
[null,"OFICINA DE CONTROL DISCIPLINARIO INTERNO","Competencia otras entidades",7]
[null,null,"Sin información de fondo",1]
[null,null,"Cancelado - Por no peticion",1]
[null,null,"Desempeño de la entidad",1]
[null,"SUBDIRECCION DE REGISTRO INMOBILIARIO","Desempeño de la entidad",3]
[null,"SUBDIRECCION DE GESTION INMOBILIARIA Y DEL ESPACIO PUBLICO","Asesoría en temas de espacio público",23]
[null,null,"Desempeño de la entidad",19]
[null,null,"Competencia otras entidades",3]
[null,"OFICINA ASESORA DE COMUNICACIONES","Desempeño de la entidad",1]
[null,"SUBDIRECCION DE GESTION CORPORATIVA","Desempeño de la entidad",2]
[null,null,"Talento humano",1]
[]
[]
[null,"Nota: De conformidad con el Decreto Distrital 478 del 25 de octubre de 2022 “Por medio del cual modifica la planta de empleos del Departamento Administrativo de la Defensoría del Espacio Público”, se hace necesario modificó  y creó algunos nombres de las dependencias, el trámite se encuentra en proceso de ajuste dentro del Sistema Bogotá Te Escucha:\n• Despacho se denominó Dirección\n• Subdirección Administrativa y Financiera y de Control Disciplinario se denonimó Oficina de Control Disciplinario Interno \n• Oficina de Sistemas se denominó Oficina de Tecnologías de la Información y las Comunicaciones \n• Subdirección de Administración Inmobiliaria y de Espacio Publico se denominó Subdirección de Gestión Inmobiliaria y del Espacio Publico\n• Subdirección Administrativa y Financiera se denominó Subdirección de Gestión Corporativa \n• Se creó Oficina Asesora de Comunicaciones "]

{"sheet":"Recomendaciones a la ciudadanía","index":6,"n_rows":13,"n_cols":11,"rows_kept":13,"cut":false,"hidden":false,"merged":[[10,1,23,9],[12,10,12,13],[25,3,25,14],[27,3,27,13]]}
[]
[]
[]
[]
[]
[]
[]
[]
[]
[]
[null,"Se recomienda a la ciudadanía y a otras entidades del distrito, para el registro y/o asignación de peticiones, Quejas, Reclamos o Sugerencias-PQRS tener en cuenta la competencia en materia de recuperación de espacio público y el alcance de  las competencias del DADEP.\n\nLo anterior para evitar los traslados entre entidades y así mejorar la oportunidad de las respuestas de conformidad con los  términos de Ley."]
[]
[null,null,null,null,null,null,null,null,null,null,"Preguntas frecuentes"]

{"sheet":"para pqr","index":7,"n_rows":2252,"n_cols":7,"rows_kept":2252,"cut":false,"hidden":true,"merged":[[2208,0,2212,0],[2182,0,2186,0],[2187,0,2190,0],[2191,0,2195,0],[2196,0,2200,0],[2201,0,2205,0],[2206,0,2207,0]]}
["REGISTRADAS Y RECIBIDAS"]
["Número petición\nNumero de registro en el Sistema","Dependencia:\nNombre asociado al usuario que tiene a cargo la petición ","Canal:\nNombre del canal parametrizado en el sistema por el cual fue registrada la petición","Tipología actualizada: \nTipo de documento utilizado por la entidad","Días gestión\nDías calendario transcurridos desde la fecha de inicio de términos hasta el último día del mes","Estado del Requerimiento\n \"Gestionado\" o \"Pendiente\" de respuesta definitiva por  parte de la Defensoría del Espacio Público o de las entidades competentes"]
["Número petición","Dependencia","Canal","Tipo petición","Días gestión","Tipo reporte"]
[2024192021,"AREA DE ATENCION A LA CIUDADANIA","WEB","DERECHO DE PETICION DE INTERES GENERAL",86,"GESTIONADOS"]
[2842242021,"SUBDIRECCION DE REGISTRO INMOBILIARIO","ESCRITO","DERECHO DE PETICION DE INTERES PARTICULAR",23,"GESTIONADOS"]
[2861072021,"SUBDIRECCION DE ADMINISTRACION INMOBILIARIA Y DE ESPACIO PUBLICO","WEB","DERECHO DE PETICION DE INTERES GENERAL",26,"GESTIONADOS"]
[2950712021,"SUBDIRECCION DE REGISTRO INMOBILIARIO","WEB","DERECHO DE PETICION DE INTERES GENERAL",24,"GESTIONADOS"]
[2991912021,"SUBDIRECCION DE REGISTRO INMOBILIARIO","WEB","CONSULTA",34,"GESTIONADOS"]
[2993652021,"AREA DE ATENCION A LA CIUDADANIA","WEB","DERECHO DE PETICION DE INTERES PARTICULAR",1,"GESTIONADOS"]
[2998152021,"AREA DE ATENCION A LA CIUDADANIA","ESCRITO","DERECHO DE PETICION DE INTERES PARTICULAR",29,"GESTIONADOS"]
[2998262021,"SUBDIRECCION DE ADMINISTRACION INMOBILIARIA Y DE ESPACIO PUBLICO","ESCRITO","DERECHO DE PETICION DE INTERES PARTICULAR",29,"GESTIONADOS"]
[2999072021,"SUBDIRECCION DE REGISTRO INMOBILIARIO","ESCRITO","DERECHO DE PETICION DE INTERES PARTICULAR",29,"GESTIONADOS"]
[3015422021,"AREA DE ATENCION A LA CIUDADANIA","ESCRITO","SOLICITUD DE COPIA",29,"GESTIONADOS"]
[3015422021,"SUBDIRECCION DE ADMINISTRACION INMOBILIARIA Y DE ESPACIO PUBLICO","ESCRITO","SOLICITUD DE COPIA",29,"GESTIONADOS"]
[3015422021,"SUBDIRECCION DE REGISTRO INMOBILIARIO","ESCRITO","SOLICITUD DE COPIA",30,"GESTIONADOS"]
[3033252021,"AREA DE ATENCION A LA CIUDADANIA","E-MAIL","DERECHO DE PETICION DE INTERES GENERAL",1,"GESTIONADOS"]
[3057872021,"SUBDIRECCION DE ADMINISTRACION INMOBILIARIA Y DE ESPACIO PUBLICO","WEB","DERECHO DE PETICION DE INTERES GENERAL",27,"GESTIONADOS"]
[3058842021,"SUBDIRECCION DE ADMINISTRACION INMOBILIARIA Y DE ESPACIO PUBLICO","ESCRITO","DERECHO DE PETICION DE INTERES PARTICULAR",27,"GESTIONADOS"]
[3066402021,"SUBDIRECCION DE ADMINISTRACION INMOBILIARIA Y DE ESPACIO PUBLICO","ESCRITO","DERECHO DE PETICION DE INTERES PARTICULAR",27,"GESTIONADOS"]
[3066402021,"SUBDIRECCION DE REGISTRO INMOBILIARIO","ESCRITO","DERECHO DE PETICION DE INTERES PARTICULAR",29,"GESTIONADOS"]
[3067332021,"SUBDIRECCION DE ADMINISTRACION INMOBILIARIA Y DE ESPACIO PUBLICO","ESCRITO","DERECHO DE PETICION DE INTERES PARTICULAR",27,"GESTIONADOS"]
[3067362021,"SUBDIRECCION DE ADMINISTRACION INMOBILIARIA Y DE ESPACIO PUBLICO","ESCRITO","DERECHO DE PETICION DE INTERES PARTICULAR",27,"GESTIONADOS"]
[3067402021,"SUBDIRECCION DE ADMINISTRACION INMOBILIARIA Y DE ESPACIO PUBLICO","ESCRITO","DERECHO DE PETICION DE INTERES PARTICULAR",27,"GESTIONADOS"]
[3067802021,"SUBDIRECCION DE ADMINISTRACION INMOBILIARIA Y DE ESPACIO PUBLICO","ESCRITO","DERECHO DE PETICION DE INTERES PARTICULAR",27,"GESTIONADOS"]
[3071582021,"SUBDIRECCION DE REGISTRO INMOBILIARIO","ESCRITO","DERECHO DE PETICION DE INTERES PARTICULAR",30,"GESTIONADOS"]
[3071972021,"SUBDIRECCION DE ADMINISTRACION INMOBILIARIA Y DE ESPACIO PUBLICO","ESCRITO","DERECHO DE PETICION DE INTERES PARTICULAR",26,"GESTIONADOS"]
[3072662021,"SUBDIRECCION DE ADMINISTRACION INMOBILIARIA Y DE ESPACIO PUBLICO","ESCRITO","DERECHO DE PETICION DE INTERES PARTICULAR",26,"GESTIONADOS"]
[3074242021,"SUBDIRECCION DE ADMINISTRACION INMOBILIARIA Y DE ESPACIO PUBLICO","ESCRITO","DERECHO DE PETICION DE INTERES PARTICULAR",28,"GESTIONADOS"]
[3074292021,"SUBDIRECCION DE ADMINISTRACION INMOBILIARIA Y DE ESPACIO PUBLICO","WEB","DERECHO DE PETICION DE INTERES PARTICULAR",26,"GESTIONADOS"]
[3074602021,"SUBDIRECCION DE ADMINISTRACION INMOBILIARIA Y DE ESPACIO PUBLICO","WEB","DERECHO DE PETICION DE INTERES PARTICULAR",25,"GESTIONADOS"]
[3075822021,"SUBDIRECCION DE ADMINISTRACION INMOBILIARIA Y DE ESPACIO PUBLICO","WEB","CONSULTA",29,"GESTIONADOS"]
[3085172021,"SUBDIRECCION DE ADMINISTRACION INMOBILIARIA Y DE ESPACIO PUBLICO","WEB","CONSULTA",29,"GESTIONADOS"]
[3086572021,"AREA DE ATENCION A LA CIUDADANIA","WEB","DERECHO DE PETICION DE INTERES PARTICULAR",28,"GESTIONADOS"]
[3086572021,"SUBDIRECCION ADMINISTRATIVA  FINANCIERA Y DE CONTROL DISCIPLINARIO","WEB","DERECHO DE PETICION DE INTERES PARTICULAR",28,"GESTIONADOS"]
[3086572021,"SUBDIRECCION DE ADMINISTRACION INMOBILIARIA Y DE ESPACIO PUBLICO","WEB","DERECHO DE PETICION DE INTERES PARTICULAR",26,"GESTIONADOS"]
[3086962021,"SUBDIRECCION DE ADMINISTRACION INMOBILIARIA Y DE ESPACIO PUBLICO","WEB","DERECHO DE PETICION DE INTERES GENERAL",26,"GESTIONADOS"]
[3089232021,"SUBDIRECCION DE ADMINISTRACION INMOBILIARIA Y DE ESPACIO PUBLICO","WEB","DERECHO DE PETICION DE INTERES GENERAL",27,"PENDIENTE"]
[3089252021,"SUBDIRECCION DE ADMINISTRACION INMOBILIARIA Y DE ESPACIO PUBLICO","WEB","DERECHO DE PETICION DE INTERES GENERAL",27,"GESTIONADOS"]
[3090522021,"SUBDIRECCION DE ADMINISTRACION INMOBILIARIA Y DE ESPACIO PUBLICO","WEB","QUEJA",26,"GESTIONADOS"]
[3090862021,"SUBDIRECCION DE ADMINISTRACION INMOBILIARIA Y DE ESPACIO PUBLICO","WEB","DERECHO DE PETICION DE INTERES GENERAL",26,"GESTIONADOS"]
[3091092021,"SUBDIRECCION DE ADMINISTRACION INMOBILIARIA Y DE ESPACIO PUBLICO","WEB","DERECHO DE PETICION DE INTERES GENERAL",26,"GESTIONADOS"]
[3096512021,"SUBDIRECCION DE ADMINISTRACION INMOBILIARIA Y DE ESPACIO PUBLICO","ESCRITO","DERECHO DE PETICION DE INTERES PARTICULAR",25,"GESTIONADOS"]
[3096512021,"SUBDIRECCION DE REGISTRO INMOBILIARIO","ESCRITO","DERECHO DE PETICION DE INTERES PARTICULAR",28,"GESTIONADOS"]
[3097292021,"SUBDIRECCION DE ADMINISTRACION INMOBILIARIA Y DE ESPACIO PUBLICO","ESCRITO","DERECHO DE PETICION DE INTERES PARTICULAR",25,"GESTIONADOS"]
[3097332021,"SUBDIRECCION DE ADMINISTRACION INMOBILIARIA Y DE ESPACIO PUBLICO","ESCRITO","DERECHO DE PETICION DE INTERES PARTICULAR",26,"GESTIONADOS"]
[3097432021,"AREA DE ATENCION A LA CIUDADANIA","ESCRITO","DERECHO DE PETICION DE INTERES PARTICULAR",35,"GESTIONADOS"]
[3097432021,"SUBDIRECCION DE ADMINISTRACION INMOBILIARIA Y DE ESPACIO PUBLICO","ESCRITO","DERECHO DE PETICION DE INTERES PARTICULAR",29,"GESTIONADOS"]
[3097522021,"SUBDIRECCION DE ADMINISTRACION INMOBILIARIA Y DE ESPACIO PUBLICO","WEB","DERECHO DE PETICION DE INTERES PARTICULAR",26,"GESTIONADOS"]
[3097762021,"SUBDIRECCION DE REGISTRO INMOBILIARIO","ESCRITO","DERECHO DE PETICION DE INTERES PARTICULAR",27,"GESTIONADOS"]
[3098382021,"SUBDIRECCION DE ADMINISTRACION INMOBILIARIA Y DE ESPACIO PUBLICO","WEB","DERECHO DE PETICION DE INTERES GENERAL",24,"GESTIONADOS"]
[3099322021,"SUBDIRECCION DE REGISTRO INMOBILIARIO","ESCRITO","DERECHO DE PETICION DE INTERES PARTICULAR",26,"GESTIONADOS"]
[3100742021,"SUBDIRECCION DE ADMINISTRACION INMOBILIARIA Y DE ESPACIO PUBLICO","WEB","DERECHO DE PETICION DE INTERES GENERAL",24,"GESTIONADOS"]
[3102452021,"SUBDIRECCION DE REGISTRO INMOBILIARIO","ESCRITO","DERECHO DE PETICION DE INTERES PARTICULAR",28,"GESTIONADOS"]
[3109932021,"SUBDIRECCION DE ADMINISTRACION INMOBILIARIA Y DE ESPACIO PUBLICO","TELEFONO","DERECHO DE PETICION DE INTERES GENERAL",25,"GESTIONADOS"]
[3110772021,"SUBDIRECCION DE REGISTRO INMOBILIARIO","WEB","DERECHO DE PETICION DE INTERES GENERAL",27,"GESTIONADOS"]
[3115712021,"SUBDIRECCION DE ADMINISTRACION INMOBILIARIA Y DE ESPACIO PUBLICO","WEB","DERECHO DE PETICION DE INTERES GENERAL",25,"GESTIONADOS"]
[3117872021,"SUBDIRECCION DE ADMINISTRACION INMOBILIARIA Y DE ESPACIO PUBLICO","ESCRITO","DERECHO DE PETICION DE INTERES PARTICULAR",28,"GESTIONADOS"]
[3118262021,"SUBDIRECCION DE ADMINISTRACION INMOBILIARIA Y DE ESPACIO PUBLICO","WEB","DERECHO DE PETICION DE INTERES GENERAL",25,"GESTIONADOS"]
[3118442021,"SUBDIRECCION DE ADMINISTRACION INMOBILIARIA Y DE ESPACIO PUBLICO","ESCRITO","DERECHO DE PETICION DE INTERES PARTICULAR",25,"GESTIONADOS"]
[3119852021,"SUBDIRECCION DE ADMINISTRACION INMOBILIARIA Y DE ESPACIO PUBLICO","WEB","RECLAMO",25,"GESTIONADOS"]
[3122132021,"SUBDIRECCION DE ADMINISTRACION INMOBILIARIA Y DE ESPACIO PUBLICO","WEB","DERECHO DE PETICION DE INTERES GENERAL",25,"GESTIONADOS"]
[3125862021,"SUBDIRECCION DE REGISTRO INMOBILIARIO","ESCRITO","DERECHO DE PETICION DE INTERES PARTICULAR",22,"GESTIONADOS"]
[3125872021,"SUBDIRECCION DE ADMINISTRACION INMOBILIARIA Y DE ESPACIO PUBLICO","ESCRITO","DERECHO DE PETICION DE INTERES PARTICULAR",25,"GESTIONADOS"]
[3125892021,"SUBDIRECCION DE ADMINISTRACION INMOBILIARIA Y DE ESPACIO PUBLICO","ESCRITO","DERECHO DE PETICION DE INTERES GENERAL",25,"GESTIONADOS"]
[3125932021,"SUBDIRECCION DE REGISTRO INMOBILIARIO","ESCRITO","DERECHO DE PETICION DE INTERES PARTICULAR",25,"GESTIONADOS"]
[3126022021,"SUBDIRECCION DE REGISTRO INMOBILIARIO","ESCRITO","DERECHO DE PETICION DE INTERES PARTICULAR",26,"GESTIONADOS"]
[3126202021,"SUBDIRECCION DE ADMINISTRACION INMOBILIARIA Y DE ESPACIO PUBLICO","ESCRITO","DERECHO DE PETICION DE INTERES PARTICULAR",25,"GESTIONADOS"]
[3126302021,"AREA DE ATENCION A LA CIUDADANIA","ESCRITO","DERECHO DE PETICION DE INTERES PARTICULAR",41,"GESTIONADOS"]
[3126302021,"SUBDIRECCION DE ADMINISTRACION INMOBILIARIA Y DE ESPACIO PUBLICO","ESCRITO","DERECHO DE PETICION DE INTERES PARTICULAR",25,"GESTIONADOS"]
[3126852021,"AREA DE ATENCION A LA CIUDADANIA","ESCRITO","DERECHO DE PETICION DE INTERES GENERAL",25,"GESTIONADOS"]
[3126852021,"SUBDIRECCION DE ADMINISTRACION INMOBILIARIA Y DE ESPACIO PUBLICO","ESCRITO","DERECHO DE PETICION DE INTERES GENERAL",25,"GESTIONADOS"]
[3128382021,"SUBDIRECCION DE ADMINISTRACION INMOBILIARIA Y DE ESPACIO PUBLICO","WEB","DERECHO DE PETICION DE INTERES GENERAL",25,"GESTIONADOS"]
[3129282021,"SUBDIRECCION DE ADMINISTRACION INMOBILIARIA Y DE ESPACIO PUBLICO","ESCRITO","DERECHO DE PETICION DE INTERES PARTICULAR",25,"GESTIONADOS"]
[3129862021,"SUBDIRECCION DE ADMINISTRACION INMOBILIARIA Y DE ESPACIO PUBLICO","ESCRITO","DERECHO DE PETICION DE INTERES PARTICULAR",25,"GESTIONADOS"]
[3129992021,"SUBDIRECCION DE ADMINISTRACION INMOBILIARIA Y DE ESPACIO PUBLICO","WEB","QUEJA",25,"GESTIONADOS"]
[3130412021,"SUBDIRECCION DE ADMINISTRACION INMOBILIARIA Y DE ESPACIO PUBLICO","ESCRITO","DERECHO DE PETICION DE INTERES PARTICULAR",25,"GESTIONADOS"]
[3130602021,"SUBDIRECCION DE ADMINISTRACION INMOBILIARIA Y DE ESPACIO PUBLICO","E-MAIL","DERECHO DE PETICION DE INTERES PARTICULAR",25,"GESTIONADOS"]
[3131602021,"SUBDIRECCION DE ADMINISTRACION INMOBILIARIA Y DE ESPACIO PUBLICO","ESCRITO","DERECHO DE PETICION DE INTERES PARTICULAR",25,"GESTIONADOS"]
[3132302021,"SUBDIRECCION DE ADMINISTRACION INMOBILIARIA Y DE ESPACIO PUBLICO","ESCRITO","DERECHO DE PETICION DE INTERES PARTICULAR",25,"GESTIONADOS"]
[3132602021,"SUBDIRECCION DE ADMINISTRACION INMOBILIARIA Y DE ESPACIO PUBLICO","E-MAIL","DERECHO DE PETICION DE INTERES GENERAL",25,"GESTIONADOS"]
[3133822021,"SUBDIRECCION DE ADMINISTRACION INMOBILIARIA Y DE ESPACIO PUBLICO","WEB","DERECHO DE PETICION DE INTERES PARTICULAR",25,"GESTIONADOS"]
[3149112021,"SUBDIRECCION DE ADMINISTRACION INMOBILIARIA Y DE ESPACIO PUBLICO","TELEFONO","DERECHO DE PETICION DE INTERES PARTICULAR",25,"GESTIONADOS"]
[3149492021,"SUBDIRECCION DE ADMINISTRACION INMOBILIARIA Y DE ESPACIO PUBLICO","WEB","QUEJA",26,"GESTIONADOS"]
[3150272021,"SUBDIRECCION DE ADMINISTRACION INMOBILIARIA Y DE ESPACIO PUBLICO","WEB","DERECHO DE PETICION DE INTERES GENERAL",26,"GESTIONADOS"]
[3150282021,"AREA DE ATENCION A LA CIUDADANIA","WEB","DERECHO DE PETICION DE INTERES GENERAL",28,"GESTIONADOS"]
[3150282021,"SUBDIRECCION DE ADMINISTRACION INMOBILIARIA Y DE ESPACIO PUBLICO","WEB","DERECHO DE PETICION DE INTERES GENERAL",28,"GESTIONADOS"]
[3152802021,"SUBDIRECCION DE ADMINISTRACION INMOBILIARIA Y DE ESPACIO PUBLICO","WEB","DERECHO DE PETICION DE INTERES GENERAL",26,"GESTIONADOS"]
[3156922021,"AREA DE ATENCION A LA CIUDADANIA","WEB","QUEJA",23,"GESTIONADOS"]
[3157052021,"AREA DE ATENCION A LA CIUDADANIA","WEB","DERECHO DE PETICION DE INTERES PARTICULAR",1,"GESTIONADOS"]
[3157052021,"SUBDIRECCION DE ADMINISTRACION INMOBILIARIA Y DE ESPACIO PUBLICO","WEB","DERECHO DE PETICION DE INTERES PARTICULAR",11,"PENDIENTE"]
[3157092021,"SUBDIRECCION DE ADMINISTRACION INMOBILIARIA Y DE ESPACIO PUBLICO","ESCRITO","DERECHO DE PETICION DE INTERES PARTICULAR",25,"GESTIONADOS"]
[3157102021,"SUBDIRECCION DE ADMINISTRACION INMOBILIARIA Y DE ESPACIO PUBLICO","ESCRITO","DERECHO DE PETICION DE INTERES PARTICULAR",25,"GESTIONADOS"]
[3157112021,"SUBDIRECCION DE ADMINISTRACION INMOBILIARIA Y DE ESPACIO PUBLICO","ESCRITO","DERECHO DE PETICION DE INTERES PARTICULAR",25,"GESTIONADOS"]
[3157122021,"SUBDIRECCION DE REGISTRO INMOBILIARIO","ESCRITO","DERECHO DE PETICION DE INTERES PARTICULAR",25,"GESTIONADOS"]
[3157132021,"SUBDIRECCION DE ADMINISTRACION INMOBILIARIA Y DE ESPACIO PUBLICO","ESCRITO","DERECHO DE PETICION DE INTERES PARTICULAR",23,"GESTIONADOS"]
[3157152021,"SUBDIRECCION DE ADMINISTRACION INMOBILIARIA Y DE ESPACIO PUBLICO","ESCRITO","DERECHO DE PETICION DE INTERES PARTICULAR",25,"GESTIONADOS"]
[3157182021,"SUBDIRECCION DE ADMINISTRACION INMOBILIARIA Y DE ESPACIO PUBLICO","ESCRITO","DERECHO DE PETICION DE INTERES PARTICULAR",25,"GESTIONADOS"]
[3160972021,"SUBDIRECCION DE ADMINISTRACION INMOBILIARIA Y DE ESPACIO PUBLICO","WEB","QUEJA",25,"GESTIONADOS"]
[3162702021,"SUBDIRECCION DE ADMINISTRACION INMOBILIARIA Y DE ESPACIO PUBLICO","WEB","DERECHO DE PETICION DE INTERES GENERAL",25,"GESTIONADOS"]
[3163562021,"SUBDIRECCION DE ADMINISTRACION INMOBILIARIA Y DE ESPACIO PUBLICO","WEB","QUEJA",25,"GESTIONADOS"]
[3167002021,"SUBDIRECCION DE ADMINISTRACION INMOBILIARIA Y DE ESPACIO PUBLICO","E-MAIL","DERECHO DE PETICION DE INTERES PARTICULAR",28,"GESTIONADOS"]
[3167252021,"SUBDIRECCION DE ADMINISTRACION INMOBILIARIA Y DE ESPACIO PUBLICO","ESCRITO","DERECHO DE PETICION DE INTERES PARTICULAR",24,"GESTIONADOS"]
[3171232021,"SUBDIRECCION DE ADMINISTRACION INMOBILIARIA Y DE ESPACIO PUBLICO","WEB","QUEJA",25,"GESTIONADOS"]
[3171392021,"SUBDIRECCION DE ADMINISTRACION INMOBILIARIA Y DE ESPACIO PUBLICO","WEB","DERECHO DE PETICION DE INTERES GENERAL",25,"GESTIONADOS"]
[3175732021,"SUBDIRECCION DE ADMINISTRACION INMOBILIARIA Y DE ESPACIO PUBLICO","TELEFONO","DERECHO DE PETICION DE INTERES GENERAL",25,"GESTIONADOS"]
[3176722021,"AREA DE ATENCION A LA CIUDADANIA","WEB","SOLICITUD DE ACCESO A LA INFORMACION",13,"GESTIONADOS"]
[3178682021,"SUBDIRECCION DE ADMINISTRACION INMOBILIARIA Y DE ESPACIO PUBLICO","WEB","DERECHO DE PETICION DE INTERES GENERAL",27,"GESTIONADOS"]
[3179292021,"SUBDIRECCION DE ADMINISTRACION INMOBILIARIA Y DE ESPACIO PUBLICO","WEB","QUEJA",27,"GESTIONADOS"]
[3179942021,"SUBDIRECCION DE ADMINISTRACION INMOBILIARIA Y DE ESPACIO PUBLICO","WEB","DERECHO DE PETICION DE INTERES PARTICULAR",27,"GESTIONADOS"]
[3182672021,"SUBDIRECCION DE ADMINISTRACION INMOBILIARIA Y DE ESPACIO PUBLICO","WEB","DERECHO DE PETICION DE INTERES GENERAL",27,"GESTIONADOS"]
[3184432021,"SUBDIRECCION DE ADMINISTRACION INMOBILIARIA Y DE ESPACIO PUBLICO","WEB","DERECHO DE PETICION DE INTERES GENERAL",27,"GESTIONADOS"]
[3185162021,"SUBDIRECCION DE ADMINISTRACION INMOBILIARIA Y DE ESPACIO PUBLICO","ESCRITO","DERECHO DE PETICION DE INTERES GENERAL",23,"GESTIONADOS"]
[3186402021,"SUBDIRECCION DE ADMINISTRACION INMOBILIARIA Y DE ESPACIO PUBLICO","WEB","QUEJA",24,"GESTIONADOS"]
[3186522021,"SUBDIRECCION DE ADMINISTRACION INMOBILIARIA Y DE ESPACIO PUBLICO","ESCRITO","DERECHO DE PETICION DE INTERES PARTICULAR",27,"GESTIONADOS"]
[3186842021,"AREA DE ATENCION A LA CIUDADANIA","WEB","RECLAMO",22,"GESTIONADOS"]
[3187682021,"SUBDIRECCION DE ADMINISTRACION INMOBILIARIA Y DE ESPACIO PUBLICO","ESCRITO","DERECHO DE PETICION DE INTERES PARTICULAR",28,"GESTIONADOS"]
[3187822021,"AREA DE ATENCION A LA CIUDADANIA","ESCRITO","DERECHO DE PETICION DE INTERES PARTICULAR",25,"GESTIONADOS"]
[3187822021,"SUBDIRECCION DE ADMINISTRACION INMOBILIARIA Y DE ESPACIO PUBLICO","ESCRITO","DERECHO DE PETICION DE INTERES PARTICULAR",25,"GESTIONADOS"]
[3187852021,"SUBDIRECCION DE ADMINISTRACION INMOBILIARIA Y DE ESPACIO PUBLICO","ESCRITO","DERECHO DE PETICION DE INTERES PARTICULAR",24,"GESTIONADOS"]
[3187912021,"SUBDIRECCION DE ADMINISTRACION INMOBILIARIA Y DE ESPACIO PUBLICO","ESCRITO","DERECHO DE PETICION DE INTERES PARTICULAR",23,"GESTIONADOS"]
[3188312021,"SUBDIRECCION DE ADMINISTRACION INMOBILIARIA Y DE ESPACIO PUBLICO","ESCRITO","DERECHO DE PETICION DE INTERES GENERAL",23,"GESTIONADOS"]
[3190482021,"SUBDIRECCION DE REGISTRO INMOBILIARIO","WEB","DERECHO DE PETICION DE INTERES PARTICULAR",26,"GESTIONADOS"]
[3191152021,"SUBDIRECCION DE ADMINISTRACION INMOBILIARIA Y DE ESPACIO PUBLICO","ESCRITO","DERECHO DE PETICION DE INTERES GENERAL",27,"GESTIONADOS"]
[3191382021,"SUBDIRECCION DE ADMINISTRACION INMOBILIARIA Y DE ESPACIO PUBLICO","ESCRITO","DERECHO DE PETICION DE INTERES GENERAL",23,"GESTIONADOS"]
[3191582021,"SUBDIRECCION DE ADMINISTRACION INMOBILIARIA Y DE ESPACIO PUBLICO","ESCRITO","DERECHO DE PETICION DE INTERES PARTICULAR",24,"GESTIONADOS"]
[3192772021,"AREA DE ATENCION A LA CIUDADANIA","E-MAIL","DERECHO DE PETICION DE INTERES PARTICULAR",1,"GESTIONADOS"]
[3194262021,"SUBDIRECCION DE ADMINISTRACION INMOBILIARIA Y DE ESPACIO PUBLICO","E-MAIL","DERECHO DE PETICION DE INTERES PARTICULAR",24,"GESTIONADOS"]
[3194302021,"SUBDIRECCION DE ADMINISTRACION INMOBILIARIA Y DE ESPACIO PUBLICO","E-MAIL","DERECHO DE PETICION DE INTERES PARTICULAR",24,"GESTIONADOS"]
[3200452021,"SUBDIRECCION DE ADMINISTRACION INMOBILIARIA Y DE ESPACIO PUBLICO","ESCRITO","DERECHO DE PETICION DE INTERES PARTICULAR",26,"GESTIONADOS"]
[3200582021,"SUBDIRECCION DE ADMINISTRACION INMOBILIARIA Y DE ESPACIO PUBLICO","ESCRITO","DERECHO DE PETICION DE INTERES PARTICULAR",26,"GESTIONADOS"]
[3200702021,"SUBDIRECCION DE ADMINISTRACION INMOBILIARIA Y DE ESPACIO PUBLICO","ESCRITO","DERECHO DE PETICION DE INTERES PARTICULAR",26,"GESTIONADOS"]
[3200852021,"SUBDIRECCION DE ADMINISTRACION INMOBILIARIA Y DE ESPACIO PUBLICO","ESCRITO","CONSULTA",32,"GESTIONADOS"]
[3202812021,"SUBDIRECCION DE ADMINISTRACION INMOBILIARIA Y DE ESPACIO PUBLICO","TELEFONO","DERECHO DE PETICION DE INTERES GENERAL",23,"GESTIONADOS"]
[3204982021,"SUBDIRECCION DE ADMINISTRACION INMOBILIARIA Y DE ESPACIO PUBLICO","ESCRITO","DERECHO DE PETICION DE INTERES PARTICULAR",30,"GESTIONADOS"]
[3205082021,"SUBDIRECCION DE ADMINISTRACION INMOBILIARIA Y DE ESPACIO PUBLICO","ESCRITO","DERECHO DE PETICION DE INTERES PARTICULAR",26,"GESTIONADOS"]
[3205952021,"SUBDIRECCION DE ADMINISTRACION INMOBILIARIA Y DE ESPACIO PUBLICO","WEB","DERECHO DE PETICION DE INTERES PARTICULAR",26,"GESTIONADOS"]
[3207102021,"SUBDIRECCION DE REGISTRO INMOBILIARIO","WEB","DERECHO DE PETICION DE INTERES GENERAL",25,"GESTIONADOS"]
[3208472021,"SUBDIRECCION DE ADMINISTRACION INMOBILIARIA Y DE ESPACIO PUBLICO","E-MAIL","DERECHO DE PETICION DE INTERES GENERAL",26,"GESTIONADOS"]
[3210172021,"SUBDIRECCION DE ADMINISTRACION INMOBILIARIA Y DE ESPACIO PUBLICO","WEB","DERECHO DE PETICION DE INTERES GENERAL",26,"GESTIONADOS"]
[3217932021,"AREA DE ATENCION A LA CIUDADANIA","WEB","DERECHO DE PETICION DE INTERES PARTICULAR",20,"GESTIONADOS"]
[3218112021,"SUBDIRECCION DE REGISTRO INMOBILIARIO","ESCRITO","DERECHO DE PETICION DE INTERES GENERAL",8,"GESTIONADOS"]
[3218592021,"SUBDIRECCION DE ADMINISTRACION INMOBILIARIA Y DE ESPACIO PUBLICO","ESCRITO","DERECHO DE PETICION DE INTERES PARTICULAR",26,"GESTIONADOS"]
[3218772021,"SUBDIRECCION DE ADMINISTRACION INMOBILIARIA Y DE ESPACIO PUBLICO","ESCRITO","DERECHO DE PETICION DE INTERES PARTICULAR",26,"GESTIONADOS"]
[3218912021,"SUBDIRECCION DE ADMINISTRACION INMOBILIARIA Y DE ESPACIO PUBLICO","ESCRITO","DERECHO DE PETICION DE INTERES PARTICULAR",29,"GESTIONADOS"]
[3220072021,"SUBDIRECCION DE ADMINISTRACION INMOBILIARIA Y DE ESPACIO PUBLICO","WEB","DERECHO DE PETICION DE INTERES PARTICULAR",26,"GESTIONADOS"]
[3222362021,"SUBDIRECCION DE ADMINISTRACION INMOBILIARIA Y DE ESPACIO PUBLICO","WEB","DERECHO DE PETICION DE INTERES PARTICULAR",26,"GESTIONADOS"]
[3222362021,"SUBDIRECCION DE REGISTRO INMOBILIARIO","WEB","DERECHO DE PETICION DE INTERES PARTICULAR",27,"GESTIONADOS"]
[3222432021,"SUBDIRECCION DE REGISTRO INMOBILIARIO","WEB","DERECHO DE PETICION DE INTERES PARTICULAR",21,"GESTIONADOS"]
[3222622021,"SUBDIRECCION DE ADMINISTRACION INMOBILIARIA Y DE ESPACIO PUBLICO","ESCRITO","DERECHO DE PETICION DE INTERES PARTICULAR",26,"GESTIONADOS"]
[3222812021,"SUBDIRECCION DE ADMINISTRACION INMOBILIARIA Y DE ESPACIO PUBLICO","E-MAIL","DERECHO DE PETICION DE INTERES PARTICULAR",26,"GESTIONADOS"]
[3223612021,"SUBDIRECCION DE ADMINISTRACION INMOBILIARIA Y DE ESPACIO PUBLICO","ESCRITO","DERECHO DE PETICION DE INTERES PARTICULAR",26,"GESTIONADOS"]
[3224062021,"SUBDIRECCION DE ADMINISTRACION INMOBILIARIA Y DE ESPACIO PUBLICO","ESCRITO","DERECHO DE PETICION DE INTERES PARTICULAR",26,"GESTIONADOS"]
[3224132021,"AREA DE ATENCION A LA CIUDADANIA","WEB","CONSULTA",20,"GESTIONADOS"]
[3224952021,"SUBDIRECCION DE ADMINISTRACION INMOBILIARIA Y DE ESPACIO PUBLICO","WEB","DERECHO DE PETICION DE INTERES PARTICULAR",26,"GESTIONADOS"]
[3225682021,"SUBDIRECCION DE REGISTRO INMOBILIARIO","ESCRITO","DERECHO DE PETICION DE INTERES PARTICULAR",29,"GESTIONADOS"]
[3228272021,"DESPACHO","WEB","FELICITACION",18,"GESTIONADOS"]
[3229712021,"SUBDIRECCION DE ADMINISTRACION INMOBILIARIA Y DE ESPACIO PUBLICO","WEB","DERECHO DE PETICION DE INTERES PARTICULAR",27,"GESTIONADOS"]
[3230872021,"SUBDIRECCION DE REGISTRO INMOBILIARIO","ESCRITO","DERECHO DE PETICION DE INTERES PARTICULAR",16,"GESTIONADOS"]
[3230892021,"SUBDIRECCION DE ADMINISTRACION INMOBILIARIA Y DE ESPACIO PUBLICO","ESCRITO","DERECHO DE PETICION DE INTERES PARTICULAR",27,"GESTIONADOS"]
[3231132021,"SUBDIRECCION DE ADMINISTRACION INMOBILIARIA Y DE ESPACIO PUBLICO","ESCRITO","DERECHO DE PETICION DE INTERES GENERAL",27,"GESTIONADOS"]
[3231642021,"SUBDIRECCION DE ADMINISTRACION INMOBILIARIA Y DE ESPACIO PUBLICO","ESCRITO","DERECHO DE PETICION DE INTERES PARTICULAR",27,"GESTIONADOS"]
[3234622021,"SUBDIRECCION DE ADMINISTRACION INMOBILIARIA Y DE ESPACIO PUBLICO","TELEFONO","DERECHO DE PETICION DE INTERES GENERAL",27,"GESTIONADOS"]
[3243162021,"SUBDIRECCION DE ADMINISTRACION INMOBILIARIA Y DE ESPACIO PUBLICO","WEB","DERECHO DE PETICION DE INTERES PARTICULAR",27,"GESTIONADOS"]
[3245782021,"SUBDIRECCION DE REGISTRO INMOBILIARIO","WEB","DERECHO DE PETICION DE INTERES PARTICULAR",22,"GESTIONADOS"]
[3247182021,"AREA DE ATENCION A LA CIUDADANIA","E-MAIL","DERECHO DE PETICION DE INTERES PARTICULAR",17,"PENDIENTE"]
[3249962021,"SUBDIRECCION DE REGISTRO INMOBILIARIO","ESCRITO","DERECHO DE PETICION DE INTERES PARTICULAR",24,"GESTIONADOS"]
[3250002021,"SUBDIRECCION DE REGISTRO INMOBILIARIO","ESCRITO","DERECHO DE PETICION DE INTERES PARTICULAR",22,"GESTIONADOS"]
[3250092021,"SUBDIRECCION DE ADMINISTRACION INMOBILIARIA Y DE ESPACIO PUBLICO","ESCRITO","DERECHO DE PETICION DE INTERES PARTICULAR",27,"GESTIONADOS"]
[3250162021,"SUBDIRECCION DE ADMINISTRACION INMOBILIARIA Y DE ESPACIO PUBLICO","WEB","DERECHO DE PETICION DE INTERES GENERAL",27,"GESTIONADOS"]
[3250182021,"SUBDIRECCION DE ADMINISTRACION INMOBILIARIA Y DE ESPACIO PUBLICO","ESCRITO","DERECHO DE PETICION DE INTERES PARTICULAR",27,"GESTIONADOS"]
[3251122021,"SUBDIRECCION DE ADMINISTRACION INMOBILIARIA Y DE ESPACIO PUBLICO","ESCRITO","DERECHO DE PETICION DE INTERES PARTICULAR",27,"GESTIONADOS"]
[3251132021,"AREA DE ATENCION A LA CIUDADANIA","WEB","DERECHO DE PETICION DE INTERES GENERAL",22,"GESTIONADOS"]
[3251722021,"SUBDIRECCION DE ADMINISTRACION INMOBILIARIA Y DE ESPACIO PUBLICO","E-MAIL","DERECHO DE PETICION DE INTERES PARTICULAR",27,"GESTIONADOS"]
[3252042021,"SUBDIRECCION DE REGISTRO INMOBILIARIO","ESCRITO","DERECHO DE PETICION DE INTERES PARTICULAR",16,"GESTIONADOS"]
[3252632021,"SUBDIRECCION DE REGISTRO INMOBILIARIO","ESCRITO","DERECHO DE PETICION DE INTERES PARTICULAR",25,"GESTIONADOS"]
[3252852021,"SUBDIRECCION DE ADMINISTRACION INMOBILIARIA Y DE ESPACIO PUBLICO","ESCRITO","DERECHO DE PETICION DE INTERES PARTICULAR",27,"GESTIONADOS"]
[3253582021,"SUBDIRECCION DE ADMINISTRACION INMOBILIARIA Y DE ESPACIO PUBLICO","ESCRITO","DERECHO DE PETICION DE INTERES PARTICULAR",27,"GESTIONADOS"]
[3253822021,"SUBDIRECCION DE REGISTRO INMOBILIARIO","ESCRITO","DERECHO DE PETICION DE INTERES PARTICULAR",16,"GESTIONADOS"]
[3258612021,"SUBDIRECCION DE ADMINISTRACION INMOBILIARIA Y DE ESPACIO PUBLICO","WEB","DERECHO DE PETICION DE INTERES PARTICULAR",27,"GESTIONADOS"]
[3260632021,"SUBDIRECCION DE ADMINISTRACION INMOBILIARIA Y DE ESPACIO PUBLICO","WEB","DERECHO DE PETICION DE INTERES GENERAL",27,"GESTIONADOS"]
[3261342021,"SUBDIRECCION DE ADMINISTRACION INMOBILIARIA Y DE ESPACIO PUBLICO","WEB","DERECHO DE PETICION DE INTERES PARTICULAR",27,"GESTIONADOS"]
[3263632021,"SUBDIRECCION DE ADMINISTRACION INMOBILIARIA Y DE ESPACIO PUBLICO","WEB","QUEJA",27,"GESTIONADOS"]
[3264652021,"SUBDIRECCION DE ADMINISTRACION INMOBILIARIA Y DE ESPACIO PUBLICO","WEB","DERECHO DE PETICION DE INTERES PARTICULAR",27,"GESTIONADOS"]
[3264892021,"AREA DE ATENCION A LA CIUDADANIA","WEB","DERECHO DE PETICION DE INTERES PARTICULAR",29,"GESTIONADOS"]
[3264892021,"SUBDIRECCION DE ADMINISTRACION INMOBILIARIA Y DE ESPACIO PUBLICO","WEB","DERECHO DE PETICION DE INTERES PARTICULAR",27,"GESTIONADOS"]
[3272782021,"SUBDIRECCION DE ADMINISTRACION INMOBILIARIA Y DE ESPACIO PUBLICO","ESCRITO","DERECHO DE PETICION DE INTERES PARTICULAR",27,"GESTIONADOS"]
[3272982021,"SUBDIRECCION DE REGISTRO INMOBILIARIO","ESCRITO","DERECHO DE PETICION DE INTERES PARTICULAR",16,"GESTIONADOS"]
[3273412021,"SUBDIRECCION DE ADMINISTRACION INMOBILIARIA Y DE ESPACIO PUBLICO","ESCRITO","DERECHO DE PETICION DE INTERES PARTICULAR",27,"GESTIONADOS"]
[3274212021,"SUBDIRECCION DE REGISTRO INMOBILIARIO","ESCRITO","DERECHO DE PETICION DE INTERES PARTICULAR",16,"GESTIONADOS"]
[3274432021,"AREA DE ATENCION A LA CIUDADANIA","E-MAIL","DERECHO DE PETICION DE INTERES GENERAL",1,"GESTIONADOS"]
[3274432021,"OFICINA ASESORA JURIDICA","E-MAIL","DERECHO DE PETICION DE INTERES GENERAL",1,"GESTIONADOS"]
[3274432021,"SUBDIRECCION DE ADMINISTRACION INMOBILIARIA Y DE ESPACIO PUBLICO","E-MAIL","DERECHO DE PETICION DE INTERES GENERAL",18,"PENDIENTE"]
[3276682021,"SUBDIRECCION DE REGISTRO INMOBILIARIO","E-MAIL","RECLAMO",22,"GESTIONADOS"]
[3276802021,"AREA DE ATENCION A LA CIUDADANIA","E-MAIL","DERECHO DE PETICION DE INTERES PARTICULAR",1,"GESTIONADOS"]
[3276802021,"SUBDIRECCION DE REGISTRO INMOBILIARIO","E-MAIL","DERECHO DE PETICION DE INTERES PARTICULAR",18,"PENDIENTE"]
[3277272021,"SUBDIRECCION DE ADMINISTRACION INMOBILIARIA Y DE ESPACIO PUBLICO","WEB","DERECHO DE PETICION DE INTERES GENERAL",27,"GESTIONADOS"]
[3281132021,"AREA DE ATENCION A LA CIUDADANIA","ESCRITO","DERECHO DE PETICION DE INTERES PARTICULAR",28,"GESTIONADOS"]
[3281132021,"SUBDIRECCION DE REGISTRO INMOBILIARIO","ESCRITO","DERECHO DE PETICION DE INTERES PARTICULAR",28,"GESTIONADOS"]
[3281712021,"SUBDIRECCION DE ADMINISTRACION INMOBILIARIA Y DE ESPACIO PUBLICO","ESCRITO","DERECHO DE PETICION DE INTERES PARTICULAR",27,"GESTIONADOS"]
[3281762021,"SUBDIRECCION DE REGISTRO INMOBILIARIO","ESCRITO","DERECHO DE PETICION DE INTERES PARTICULAR",23,"GESTIONADOS"]
[3282232021,"SUBDIRECCION DE ADMINISTRACION INMOBILIARIA Y DE ESPACIO PUBLICO","ESCRITO","DERECHO DE PETICION DE INTERES GENERAL",27,"GESTIONADOS"]
[3283322021,"SUBDIRECCION DE ADMINISTRACION INMOBILIARIA Y DE ESPACIO PUBLICO","WEB","DERECHO DE PETICION DE INTERES PARTICULAR",27,"GESTIONADOS"]
[3287602021,"SUBDIRECCION DE ADMINISTRACION INMOBILIARIA Y DE ESPACIO PUBLICO","ESCRITO","DERECHO DE PETICION DE INTERES GENERAL",29,"GESTIONADOS"]
[3287692021,"SUBDIRECCION DE REGISTRO INMOBILIARIO","ESCRITO","DERECHO DE PETICION DE INTERES PARTICULAR",21,"GESTIONADOS"]
[3287812021,"AREA DE ATENCION A LA CIUDADANIA","ESCRITO","DERECHO DE PETICION DE INTERES PARTICULAR",28,"GESTIONADOS"]
[3287812021,"SUBDIRECCION DE ADMINISTRACION INMOBILIARIA Y DE ESPACIO PUBLICO","ESCRITO","DERECHO DE PETICION DE INTERES PARTICULAR",27,"GESTIONADOS"]
[3287982021,"AREA DE ATENCION A LA CIUDADANIA","ESCRITO","DERECHO DE PETICION DE INTERES PARTICULAR",29,"GESTIONADOS"]
[3287982021,"SUBDIRECCION DE ADMINISTRACION INMOBILIARIA Y DE ESPACIO PUBLICO","ESCRITO","DERECHO DE PETICION DE INTERES PARTICULAR",27,"GESTIONADOS"]
[3287982021,"SUBDIRECCION DE REGISTRO INMOBILIARIO","ESCRITO","DERECHO DE PETICION DE INTERES PARTICULAR",29,"GESTIONADOS"]
[3288412021,"SUBDIRECCION DE ADMINISTRACION INMOBILIARIA Y DE ESPACIO PUBLICO","ESCRITO","DERECHO DE PETICION DE INTERES PARTICULAR",27,"GESTIONADOS"]
[3288592021,"SUBDIRECCION DE ADMINISTRACION INMOBILIARIA Y DE ESPACIO PUBLICO","ESCRITO","DERECHO DE PETICION DE INTERES PARTICULAR",27,"GESTIONADOS"]
[3288732021,"SUBDIRECCION DE ADMINISTRACION INMOBILIARIA Y DE ESPACIO PUBLICO","TELEFONO","DERECHO DE PETICION DE INTERES GENERAL",27,"GESTIONADOS"]
[3288962021,"SUBDIRECCION DE ADMINISTRACION INMOBILIARIA Y DE ESPACIO PUBLICO","ESCRITO","DERECHO DE PETICION DE INTERES PARTICULAR",29,"GESTIONADOS"]
[3289352021,"SUBDIRECCION DE ADMINISTRACION INMOBILIARIA Y DE ESPACIO PUBLICO","ESCRITO","DERECHO DE PETICION DE INTERES PARTICULAR",27,"GESTIONADOS"]
[3289562021,"SUBDIRECCION DE ADMINISTRACION INMOBILIARIA Y DE ESPACIO PUBLICO","ESCRITO","DERECHO DE PETICION DE INTERES PARTICULAR",27,"GESTIONADOS"]
[3290232021,"SUBDIRECCION DE ADMINISTRACION INMOBILIARIA Y DE ESPACIO PUBLICO","ESCRITO","DERECHO DE PETICION DE INTERES PARTICULAR",27,"GESTIONADOS"]
[3290672021,"SUBDIRECCION DE ADMINISTRACION INMOBILIARIA Y DE ESPACIO PUBLICO","ESCRITO","DERECHO DE PETICION DE INTERES PARTICULAR",27,"GESTIONADOS"]
[3290942021,"SUBDIRECCION DE ADMINISTRACION INMOBILIARIA Y DE ESPACIO PUBLICO","ESCRITO","DERECHO DE PETICION DE INTERES PARTICULAR",28,"GESTIONADOS"]
[3290942021,"SUBDIRECCION DE REGISTRO INMOBILIARIO","ESCRITO","DERECHO DE PETICION DE INTERES PARTICULAR",18,"GESTIONADOS"]
[3292992021,"AREA DE ATENCION A LA CIUDADANIA","ESCRITO","DERECHO DE PETICION DE INTERES PARTICULAR",32,"GESTIONADOS"]
[3292992021,"SUBDIRECCION DE ADMINISTRACION INMOBILIARIA Y DE ESPACIO PUBLICO","ESCRITO","DERECHO DE PETICION DE INTERES PARTICULAR",27,"GESTIONADOS"]
[3293052021,"SUBDIRECCION DE REGISTRO INMOBILIARIO","ESCRITO","DERECHO DE PETICION DE INTERES PARTICULAR",21,"GESTIONADOS"]
[3305332021,"SUBDIRECCION DE REGISTRO INMOBILIARIO","ESCRITO","DERECHO DE PETICION DE INTERES PARTICULAR",20,"GESTIONADOS"]
[3305352021,"SUBDIRECCION DE REGISTRO INMOBILIARIO","ESCRITO","DERECHO DE PETICION DE INTERES PARTICULAR",26,"GESTIONADOS"]
[3305402021,"SUBDIRECCION DE REGISTRO INMOBILIARIO","ESCRITO","DERECHO DE PETICION DE INTERES PARTICULAR",28,"GESTIONADOS"]
[3305642021,"SUBDIRECCION DE REGISTRO INMOBILIARIO","ESCRITO","DERECHO DE PETICION DE INTERES PARTICULAR",20,"GESTIONADOS"]
[3305732021,"AREA DE ATENCION A LA CIUDADANIA","ESCRITO","DERECHO DE PETICION DE INTERES PARTICULAR",30,"GESTIONADOS"]
[3305732021,"SUBDIRECCION DE ADMINISTRACION INMOBILIARIA Y DE ESPACIO PUBLICO","ESCRITO","DERECHO DE PETICION DE INTERES PARTICULAR",29,"GESTIONADOS"]
[3305762021,"SUBDIRECCION DE REGISTRO INMOBILIARIO","ESCRITO","DERECHO DE PETICION DE INTERES PARTICULAR",20,"GESTIONADOS"]
[3307752021,"AREA DE ATENCION A LA CIUDADANIA","ESCRITO","DERECHO DE PETICION DE INTERES PARTICULAR",30,"GESTIONADOS"]
[3307752021,"SUBDIRECCION DE ADMINISTRACION INMOBILIARIA Y DE ESPACIO PUBLICO","ESCRITO","DERECHO DE PETICION DE INTERES PARTICULAR",29,"GESTIONADOS"]
[3307892021,"SUBDIRECCION DE ADMINISTRACION INMOBILIARIA Y DE ESPACIO PUBLICO","ESCRITO","DERECHO DE PETICION DE INTERES PARTICULAR",29,"GESTIONADOS"]
[3308012021,"SUBDIRECCION DE REGISTRO INMOBILIARIO","ESCRITO","DERECHO DE PETICION DE INTERES PARTICULAR",29,"GESTIONADOS"]
[3308322021,"OFICINA ASESORA JURIDICA","WEB","DERECHO DE PETICION DE INTERES PARTICULAR",9,"GESTIONADOS"]
[3308502021,"SUBDIRECCION DE REGISTRO INMOBILIARIO","ESCRITO","DERECHO DE PETICION DE INTERES PARTICULAR",26,"GESTIONADOS"]
[3308772021,"SUBDIRECCION DE ADMINISTRACION INMOBILIARIA Y DE ESPACIO PUBLICO","ESCRITO","DERECHO DE PETICION DE INTERES PARTICULAR",29,"GESTIONADOS"]
[3308982021,"SUBDIRECCION DE ADMINISTRACION INMOBILIARIA Y DE ESPACIO PUBLICO","WEB","DERECHO DE PETICION DE INTERES PARTICULAR",29,"GESTIONADOS"]
[3309282021,"SUBDIRECCION DE ADMINISTRACION INMOBILIARIA Y DE ESPACIO PUBLICO","E-MAIL","DERECHO DE PETICION DE INTERES PARTICULAR",29,"GESTIONADOS"]
[3309312021,"SUBDIRECCION DE ADMINISTRACION INMOBILIARIA Y DE ESPACIO PUBLICO","WEB","DERECHO DE PETICION DE INTERES PARTICULAR",28,"GESTIONADOS"]
[3309432021,"SUBDIRECCION DE ADMINISTRACION INMOBILIARIA Y DE ESPACIO PUBLICO","ESCRITO","DERECHO DE PETICION DE INTERES PARTICULAR",29,"GESTIONADOS"]
[3309862021,"SUBDIRECCION DE ADMINISTRACION INMOBILIARIA Y DE ESPACIO PUBLICO","WEB","DERECHO DE PETICION DE INTERES PARTICULAR",28,"GESTIONADOS"]
[3310012021,"SUBDIRECCION DE ADMINISTRACION INMOBILIARIA Y DE ESPACIO PUBLICO","WEB","DERECHO DE PETICION DE INTERES PARTICULAR",29,"GESTIONADOS"]
[3310062021,"SUBDIRECCION DE ADMINISTRACION INMOBILIARIA Y DE ESPACIO PUBLICO","WEB","DERECHO DE PETICION DE INTERES PARTICULAR",28,"GESTIONADOS"]
[3311152021,"SUBDIRECCION DE ADMINISTRACION INMOBILIARIA Y DE ESPACIO PUBLICO","E-MAIL","DERECHO DE PETICION DE INTERES PARTICULAR",29,"GESTIONADOS"]
[3311292021,"SUBDIRECCION DE ADMINISTRACION INMOBILIARIA Y DE ESPACIO PUBLICO","E-MAIL","DERECHO DE PETICION DE INTERES PARTICULAR",29,"GESTIONADOS"]
[3311522021,"SUBDIRECCION DE REGISTRO INMOBILIARIO","E-MAIL","DERECHO DE PETICION DE INTERES PARTICULAR",26,"GESTIONADOS"]
[3311742021,"SUBDIRECCION DE ADMINISTRACION INMOBILIARIA Y DE ESPACIO PUBLICO","E-MAIL","DERECHO DE PETICION DE INTERES PARTICULAR",29,"GESTIONADOS"]
[3311892021,"SUBDIRECCION DE ADMINISTRACION INMOBILIARIA Y DE ESPACIO PUBLICO","E-MAIL","DERECHO DE PETICION DE INTERES PARTICULAR",29,"GESTIONADOS"]
[3312132021,"SUBDIRECCION DE ADMINISTRACION INMOBILIARIA Y DE ESPACIO PUBLICO","E-MAIL","DERECHO DE PETICION DE INTERES PARTICULAR",29,"GESTIONADOS"]
[3312292021,"AREA DE ATENCION A LA CIUDADANIA","E-MAIL","DERECHO DE PETICION DE INTERES PARTICULAR",30,"GESTIONADOS"]
[3312292021,"SUBDIRECCION DE ADMINISTRACION INMOBILIARIA Y DE ESPACIO PUBLICO","E-MAIL","DERECHO DE PETICION DE INTERES PARTICULAR",29,"GESTIONADOS"]
[3312382021,"SUBDIRECCION DE ADMINISTRACION INMOBILIARIA Y DE ESPACIO PUBLICO","WEB","QUEJA",28,"GESTIONADOS"]
[3312462021,"SUBDIRECCION DE ADMINISTRACION INMOBILIARIA Y DE ESPACIO PUBLICO","E-MAIL","DERECHO DE PETICION DE INTERES PARTICULAR",29,"GESTIONADOS"]
[3312542021,"SUBDIRECCION DE REGISTRO INMOBILIARIO","WEB","DERECHO DE PETICION DE INTERES GENERAL",20,"GESTIONADOS"]
[3312602021,"SUBDIRECCION DE REGISTRO INMOBILIARIO","ESCRITO","DERECHO DE PETICION DE INTERES PARTICULAR",27,"GESTIONADOS"]
[3313422021,"SUBDIRECCION DE ADMINISTRACION INMOBILIARIA Y DE ESPACIO PUBLICO","WEB","CONSULTA",29,"GESTIONADOS"]
[3313452021,"SUBDIRECCION DE ADMINISTRACION INMOBILIARIA Y DE ESPACIO PUBLICO","ESCRITO","DERECHO DE PETICION DE INTERES PARTICULAR",29,"GESTIONADOS"]
[3313642021,"SUBDIRECCION DE ADMINISTRACION INMOBILIARIA Y DE ESPACIO PUBLICO","ESCRITO","DERECHO DE PETICION DE INTERES PARTICULAR",29,"GESTIONADOS"]
[3313702021,"SUBDIRECCION DE REGISTRO INMOBILIARIO","WEB","DERECHO DE PETICION DE INTERES GENERAL",26,"GESTIONADOS"]
[3313802021,"SUBDIRECCION DE ADMINISTRACION INMOBILIARIA Y DE ESPACIO PUBLICO","ESCRITO","DERECHO DE PETICION DE INTERES PARTICULAR",29,"GESTIONADOS"]
[3317272021,"SUBDIRECCION DE REGISTRO INMOBILIARIO","WEB","DERECHO DE PETICION DE INTERES GENERAL",26,"GESTIONADOS"]
[3318982021,"AREA DE ATENCION A LA CIUDADANIA","ESCRITO","DERECHO DE PETICION DE INTERES PARTICULAR",30,"GESTIONADOS"]
[3318982021,"SUBDIRECCION DE ADMINISTRACION INMOBILIARIA Y DE ESPACIO PUBLICO","ESCRITO","DERECHO DE PETICION DE INTERES PARTICULAR",29,"GESTIONADOS"]
[3319022021,"SUBDIRECCION DE ADMINISTRACION INMOBILIARIA Y DE ESPACIO PUBLICO","ESCRITO","DERECHO DE PETICION DE INTERES PARTICULAR",29,"GESTIONADOS"]
[3319022021,"SUBDIRECCION DE REGISTRO INMOBILIARIO","ESCRITO","DERECHO DE PETICION DE INTERES PARTICULAR",29,"GESTIONADOS"]
[3322502021,"SUBDIRECCION DE ADMINISTRACION INMOBILIARIA Y DE ESPACIO PUBLICO","TELEFONO","DERECHO DE PETICION DE INTERES GENERAL",28,"GESTIONADOS"]
[3325852021,"SUBDIRECCION DE REGISTRO INMOBILIARIO","ESCRITO","DERECHO DE PETICION DE INTERES PARTICULAR",27,"GESTIONADOS"]
[3326052021,"SUBDIRECCION DE REGISTRO INMOBILIARIO","E-MAIL","DERECHO DE PETICION DE INTERES PARTICULAR",19,"GESTIONADOS"]
[3326292021,"OFICINA ASESORA JURIDICA","ESCRITO","DERECHO DE PETICION DE INTERES PARTICULAR",12,"GESTIONADOS"]
[3326802021,"SUBDIRECCION DE REGISTRO INMOBILIARIO","E-MAIL","DERECHO DE PETICION DE INTERES PARTICULAR",24,"GESTIONADOS"]
[3326832021,"SUBDIRECCION DE ADMINISTRACION INMOBILIARIA Y DE ESPACIO PUBLICO","ESCRITO","DERECHO DE PETICION DE INTERES PARTICULAR",28,"GESTIONADOS"]
[3328022021,"AREA DE ATENCION A LA CIUDADANIA","WEB","DERECHO DE PETICION DE INTERES GENERAL",14,"GESTIONADOS"]
[3328122021,"SUBDIRECCION DE ADMINISTRACION INMOBILIARIA Y DE ESPACIO PUBLICO","WEB","DERECHO DE PETICION DE INTERES GENERAL",28,"GESTIONADOS"]
[3328302021,"AREA DE ATENCION A LA CIUDADANIA","WEB","DERECHO DE PETICION DE INTERES PARTICULAR",1,"GESTIONADOS"]
[3329172021,"DESPACHO","ESCRITO","DERECHO DE PETICION DE INTERES PARTICULAR",12,"GESTIONADOS"]
[3329502021,"SUBDIRECCION DE ADMINISTRACION INMOBILIARIA Y DE ESPACIO PUBLICO","ESCRITO","DERECHO DE PETICION DE INTERES PARTICULAR",28,"GESTIONADOS"]
[3338142021,"SUBDIRECCION DE ADMINISTRACION INMOBILIARIA Y DE ESPACIO PUBLICO","WEB","DERECHO DE PETICION DE INTERES PARTICULAR",28,"GESTIONADOS"]
[3338972021,"SUBDIRECCION DE ADMINISTRACION INMOBILIARIA Y DE ESPACIO PUBLICO","ESCRITO","DERECHO DE PETICION DE INTERES PARTICULAR",28,"GESTIONADOS"]
[3339052021,"SUBDIRECCION DE REGISTRO INMOBILIARIO","ESCRITO","DERECHO DE PETICION DE INTERES PARTICULAR",25,"GESTIONADOS"]
[3339152021,"SUBDIRECCION DE ADMINISTRACION INMOBILIARIA Y DE ESPACIO PUBLICO","ESCRITO","DERECHO DE PETICION DE INTERES PARTICULAR",29,"GESTIONADOS"]
[3339572021,"SUBDIRECCION DE ADMINISTRACION INMOBILIARIA Y DE ESPACIO PUBLICO","WEB","DERECHO DE PETICION DE INTERES GENERAL",22,"GESTIONADOS"]
[3342412021,"SUBDIRECCION DE ADMINISTRACION INMOBILIARIA Y DE ESPACIO PUBLICO","ESCRITO","DERECHO DE PETICION DE INTERES PARTICULAR",28,"GESTIONADOS"]
[3344672021,"SUBDIRECCION DE ADMINISTRACION INMOBILIARIA Y DE ESPACIO PUBLICO","ESCRITO","DERECHO DE PETICION DE INTERES PARTICULAR",28,"GESTIONADOS"]
[3345452021,"SUBDIRECCION DE ADMINISTRACION INMOBILIARIA Y DE ESPACIO PUBLICO","ESCRITO","DERECHO DE PETICION DE INTERES PARTICULAR",28,"GESTIONADOS"]
[3345592021,"SUBDIRECCION DE ADMINISTRACION INMOBILIARIA Y DE ESPACIO PUBLICO","ESCRITO","DERECHO DE PETICION DE INTERES PARTICULAR",28,"GESTIONADOS"]
[3345652021,"SUBDIRECCION DE ADMINISTRACION INMOBILIARIA Y DE ESPACIO PUBLICO","ESCRITO","DERECHO DE PETICION DE INTERES PARTICULAR",28,"GESTIONADOS"]
[3345892021,"SUBDIRECCION DE ADMINISTRACION INMOBILIARIA Y DE ESPACIO PUBLICO","WEB","DERECHO DE PETICION DE INTERES PARTICULAR",28,"GESTIONADOS"]
[3348592021,"AREA DE ATENCION A LA CIUDADANIA","ESCRITO","DERECHO DE PETICION DE INTERES PARTICULAR",28,"GESTIONADOS"]
[3348592021,"SUBDIRECCION DE ADMINISTRACION INMOBILIARIA Y DE ESPACIO PUBLICO","ESCRITO","DERECHO DE PETICION DE INTERES PARTICULAR",28,"GESTIONADOS"]
[3348832021,"AREA DE ATENCION A LA CIUDADANIA","ESCRITO","DERECHO DE PETICION DE INTERES PARTICULAR",29,"GESTIONADOS"]
[3348832021,"SUBDIRECCION DE ADMINISTRACION INMOBILIARIA Y DE ESPACIO PUBLICO","ESCRITO","DERECHO DE PETICION DE INTERES PARTICULAR",28,"GESTIONADOS"]
[3349012021,"SUBDIRECCION DE ADMINISTRACION INMOBILIARIA Y DE ESPACIO PUBLICO","ESCRITO","DERECHO DE PETICION DE INTERES PARTICULAR",28,"GESTIONADOS"]
[3349172021,"AREA DE ATENCION A LA CIUDADANIA","ESCRITO","DERECHO DE PETICION DE INTERES GENERAL",29,"GESTIONADOS"]
[3349172021,"SUBDIRECCION DE ADMINISTRACION INMOBILIARIA Y DE ESPACIO PUBLICO","ESCRITO","DERECHO DE PETICION DE INTERES GENERAL",28,"GESTIONADOS"]
[3349312021,"SUBDIRECCION DE ADMINISTRACION INMOBILIARIA Y DE ESPACIO PUBLICO","ESCRITO","DERECHO DE PETICION DE INTERES PARTICULAR",28,"GESTIONADOS"]
[3351312021,"SUBDIRECCION DE ADMINISTRACION INMOBILIARIA Y DE ESPACIO PUBLICO","WEB","DERECHO DE PETICION DE INTERES GENERAL",28,"GESTIONADOS"]
[3354892021,"SUBDIRECCION DE ADMINISTRACION INMOBILIARIA Y DE ESPACIO PUBLICO","TELEFONO","DERECHO DE PETICION DE INTERES GENERAL",28,"GESTIONADOS"]
[3356972021,"SUBDIRECCION DE ADMINISTRACION INMOBILIARIA Y DE ESPACIO PUBLICO","WEB","DERECHO DE PETICION DE INTERES GENERAL",28,"GESTIONADOS"]
[3358332021,"AREA DE ATENCION A LA CIUDADANIA","WEB","DERECHO DE PETICION DE INTERES GENERAL",15,"GESTIONADOS"]
[3358352021,"AREA DE ATENCION A LA CIUDADANIA","WEB","DERECHO DE PETICION DE INTERES GENERAL",23,"GESTIONADOS"]
[3358412021,"SUBDIRECCION DE ADMINISTRACION INMOBILIARIA Y DE ESPACIO PUBLICO","WEB","DERECHO DE PETICION DE INTERES GENERAL",28,"GESTIONADOS"]
[3359432021,"SUBDIRECCION DE ADMINISTRACION INMOBILIARIA Y DE ESPACIO PUBLICO","TELEFONO","DERECHO DE PETICION DE INTERES PARTICULAR",28,"GESTIONADOS"]
[3361772021,"SUBDIRECCION DE ADMINISTRACION INMOBILIARIA Y DE ESPACIO PUBLICO","ESCRITO","DERECHO DE PETICION DE INTERES PARTICULAR",28,"GESTIONADOS"]
[3361962021,"SUBDIRECCION DE ADMINISTRACION INMOBILIARIA Y DE ESPACIO PUBLICO","ESCRITO","DERECHO DE PETICION DE INTERES PARTICULAR",28,"GESTIONADOS"]
[3362022021,"SUBDIRECCION DE ADMINISTRACION INMOBILIARIA Y DE ESPACIO PUBLICO","ESCRITO","DERECHO DE PETICION DE INTERES PARTICULAR",28,"GESTIONADOS"]
[3362122021,"SUBDIRECCION DE ADMINISTRACION INMOBILIARIA Y DE ESPACIO PUBLICO","ESCRITO","DERECHO DE PETICION DE INTERES GENERAL",28,"PENDIENTE"]
[3362142021,"SUBDIRECCION DE REGISTRO INMOBILIARIO","ESCRITO","DERECHO DE PETICION DE INTERES PARTICULAR",17,"GESTIONADOS"]
[3362342021,"AREA DE ATENCION A LA CIUDADANIA","ESCRITO","DERECHO DE PETICION DE INTERES PARTICULAR",15,"GESTIONADOS"]
[3367672021,"SUBDIRECCION DE REGISTRO INMOBILIARIO","ESCRITO","DERECHO DE PETICION DE INTERES PARTICULAR",23,"GESTIONADOS"]
[3367832021,"OFICINA ASESORA JURIDICA","ESCRITO","DERECHO DE PETICION DE INTERES PARTICULAR",16,"GESTIONADOS"]
[3367832021,"SUBDIRECCION DE ADMINISTRACION INMOBILIARIA Y DE ESPACIO PUBLICO","ESCRITO","DERECHO DE PETICION DE INTERES PARTICULAR",14,"GESTIONADOS"]
[3368012021,"SUBDIRECCION DE ADMINISTRACION INMOBILIARIA Y DE ESPACIO PUBLICO","ESCRITO","DERECHO DE PETICION DE INTERES PARTICULAR",28,"GESTIONADOS"]
[3368282021,"SUBDIRECCION DE ADMINISTRACION INMOBILIARIA Y DE ESPACIO PUBLICO","ESCRITO","DERECHO DE PETICION DE INTERES PARTICULAR",28,"GESTIONADOS"]
[3368562021,"SUBDIRECCION DE ADMINISTRACION INMOBILIARIA Y DE ESPACIO PUBLICO","ESCRITO","DERECHO DE PETICION DE INTERES PARTICULAR",28,"GESTIONADOS"]
[3368922021,"SUBDIRECCION DE ADMINISTRACION INMOBILIARIA Y DE ESPACIO PUBLICO","ESCRITO","DERECHO DE PETICION DE INTERES PARTICULAR",28,"GESTIONADOS"]
[3369242021,"SUBDIRECCION DE ADMINISTRACION INMOBILIARIA Y DE ESPACIO PUBLICO","E-MAIL","DERECHO DE PETICION DE INTERES PARTICULAR",28,"GESTIONADOS"]
[3370492021,"SUBDIRECCION DE REGISTRO INMOBILIARIO","ESCRITO","DERECHO DE PETICION DE INTERES PARTICULAR",26,"GESTIONADOS"]
[3371042021,"SUBDIRECCION DE ADMINISTRACION INMOBILIARIA Y DE ESPACIO PUBLICO","ESCRITO","DERECHO DE PETICION DE INTERES PARTICULAR",28,"GESTIONADOS"]
[3371172021,"SUBDIRECCION DE REGISTRO INMOBILIARIO","ESCRITO","DERECHO DE PETICION DE INTERES PARTICULAR",25,"GESTIONADOS"]
[3371552021,"SUBDIRECCION DE ADMINISTRACION INMOBILIARIA Y DE ESPACIO PUBLICO","ESCRITO","DERECHO DE PETICION DE INTERES PARTICULAR",28,"GESTIONADOS"]
[3372262021,"SUBDIRECCION DE ADMINISTRACION INMOBILIARIA Y DE ESPACIO PUBLICO","ESCRITO","DERECHO DE PETICION DE INTERES PARTICULAR",28,"GESTIONADOS"]
[3374862021,"SUBDIRECCION DE ADMINISTRACION INMOBILIARIA Y DE ESPACIO PUBLICO","ESCRITO","DERECHO DE PETICION DE INTERES PARTICULAR",28,"GESTIONADOS"]
[3374872021,"SUBDIRECCION DE REGISTRO INMOBILIARIO","ESCRITO","DERECHO DE PETICION DE INTERES PARTICULAR",23,"GESTIONADOS"]
[3374912021,"SUBDIRECCION DE ADMINISTRACION INMOBILIARIA Y DE ESPACIO PUBLICO","ESCRITO","DERECHO DE PETICION DE INTERES PARTICULAR",28,"GESTIONADOS"]
[3375112021,"SUBDIRECCION DE ADMINISTRACION INMOBILIARIA Y DE ESPACIO PUBLICO","ESCRITO","DERECHO DE PETICION DE INTERES PARTICULAR",28,"GESTIONADOS"]
[3375222021,"SUBDIRECCION DE REGISTRO INMOBILIARIO","ESCRITO","DERECHO DE PETICION DE INTERES PARTICULAR",28,"GESTIONADOS"]
[3376532021,"AREA DE ATENCION A LA CIUDADANIA","WEB","QUEJA",21,"GESTIONADOS"]
[3376592021,"AREA DE ATENCION A LA CIUDADANIA","WEB","DERECHO DE PETICION DE INTERES PARTICULAR",21,"GESTIONADOS"]
[3376792021,"SUBDIRECCION DE ADMINISTRACION INMOBILIARIA Y DE ESPACIO PUBLICO","WEB","DERECHO DE PETICION DE INTERES PARTICULAR",28,"GESTIONADOS"]
[3376862021,"SUBDIRECCION DE ADMINISTRACION INMOBILIARIA Y DE ESPACIO PUBLICO","WEB","DERECHO DE PETICION DE INTERES GENERAL",28,"GESTIONADOS"]
[3378062021,"SUBDIRECCION DE ADMINISTRACION INMOBILIARIA Y DE ESPACIO PUBLICO","WEB","DERECHO DE PETICION DE INTERES GENERAL",28,"GESTIONADOS"]
[3379722021,"SUBDIRECCION DE REGISTRO INMOBILIARIO","WEB","DERECHO DE PETICION DE INTERES GENERAL",15,"GESTIONADOS"]
[3382022021,"SUBDIRECCION DE ADMINISTRACION INMOBILIARIA Y DE ESPACIO PUBLICO","ESCRITO","DERECHO DE PETICION DE INTERES PARTICULAR",27,"PENDIENTE"]
[3382082021,"SUBDIRECCION DE ADMINISTRACION INMOBILIARIA Y DE ESPACIO PUBLICO","ESCRITO","DERECHO DE PETICION DE INTERES PARTICULAR",27,"PENDIENTE"]
[3382082021,"SUBDIRECCION DE REGISTRO INMOBILIARIO","ESCRITO","DERECHO DE PETICION DE INTERES PARTICULAR",22,"GESTIONADOS"]
[3384192021,"SUBDIRECCION DE ADMINISTRACION INMOBILIARIA Y DE ESPACIO PUBLICO","ESCRITO","DERECHO DE PETICION DE INTERES PARTICULAR",27,"PENDIENTE"]
[3385392021,"SUBDIRECCION DE ADMINISTRACION INMOBILIARIA Y DE ESPACIO PUBLICO","ESCRITO","DERECHO DE PETICION DE INTERES PARTICULAR",27,"PENDIENTE"]
[3385612021,"SUBDIRECCION DE ADMINISTRACION INMOBILIARIA Y DE ESPACIO PUBLICO","ESCRITO","DERECHO DE PETICION DE INTERES PARTICULAR",27,"PENDIENTE"]
[3385832021,"SUBDIRECCION DE REGISTRO INMOBILIARIO","ESCRITO","DERECHO DE PETICION DE INTERES PARTICULAR",22,"GESTIONADOS"]
[3386572021,"SUBDIRECCION DE ADMINISTRACION INMOBILIARIA Y DE ESPACIO PUBLICO","WEB","DERECHO DE PETICION DE INTERES PARTICULAR",27,"PENDIENTE"]
[3387142021,"SUBDIRECCION DE ADMINISTRACION INMOBILIARIA Y DE ESPACIO PUBLICO","WEB","DERECHO DE PETICION DE INTERES GENERAL",27,"PENDIENTE"]
[3387572021,"AREA DE ATENCION A LA CIUDADANIA","WEB","DERECHO DE PETICION DE INTERES PARTICULAR",20,"GESTIONADOS"]
[3396832021,"SUBDIRECCION DE ADMINISTRACION INMOBILIARIA Y DE ESPACIO PUBLICO","WEB","DERECHO DE PETICION DE INTERES PARTICULAR",27,"PENDIENTE"]
[3397672021,"SUBDIRECCION DE ADMINISTRACION INMOBILIARIA Y DE ESPACIO PUBLICO","WEB","DERECHO DE PETICION DE INTERES GENERAL",27,"PENDIENTE"]
[3399382021,"SUBDIRECCION DE ADMINISTRACION INMOBILIARIA Y DE ESPACIO PUBLICO","WEB","DERECHO DE PETICION DE INTERES PARTICULAR",26,"PENDIENTE"]
[3399732021,"SUBDIRECCION DE ADMINISTRACION INMOBILIARIA Y DE ESPACIO PUBLICO","ESCRITO","DERECHO DE PETICION DE INTERES GENERAL",26,"PENDIENTE"]
[3399872021,"SUBDIRECCION DE REGISTRO INMOBILIARIO","ESCRITO","DERECHO DE PETICION DE INTERES PARTICULAR",18,"GESTIONADOS"]
[3399932021,"SUBDIRECCION DE ADMINISTRACION INMOBILIARIA Y DE ESPACIO PUBLICO","ESCRITO","DERECHO DE PETICION DE INTERES PARTICULAR",26,"PENDIENTE"]
[3400022021,"SUBDIRECCION DE ADMINISTRACION INMOBILIARIA Y DE ESPACIO PUBLICO","ESCRITO","DERECHO DE PETICION DE INTERES GENERAL",26,"PENDIENTE"]
[3400082021,"SUBDIRECCION DE ADMINISTRACION INMOBILIARIA Y DE ESPACIO PUBLICO","ESCRITO","DERECHO DE PETICION DE INTERES PARTICULAR",26,"PENDIENTE"]
[3405442021,"SUBDIRECCION DE ADMINISTRACION INMOBILIARIA Y DE ESPACIO PUBLICO","WEB","DERECHO DE PETICION DE INTERES PARTICULAR",26,"PENDIENTE"]
[3407242021,"DESPACHO","ESCRITO","DERECHO DE PETICION DE INTERES PARTICULAR",13,"GESTIONADOS"]
[3407512021,"SUBDIRECCION DE REGISTRO INMOBILIARIO","ESCRITO","DERECHO DE PETICION DE INTERES PARTICULAR",18,"GESTIONADOS"]
[3408362021,"SUBDIRECCION DE REGISTRO INMOBILIARIO","ESCRITO","DERECHO DE PETICION DE INTERES PARTICULAR",26,"PENDIENTE"]
[3409632021,"SUBDIRECCION DE ADMINISTRACION INMOBILIARIA Y DE ESPACIO PUBLICO","WEB","DERECHO DE PETICION DE INTERES PARTICULAR",26,"PENDIENTE"]
[3410042021,"SUBDIRECCION DE ADMINISTRACION INMOBILIARIA Y DE ESPACIO PUBLICO","ESCRITO","DERECHO DE PETICION DE INTERES PARTICULAR",26,"PENDIENTE"]
[3410252021,"SUBDIRECCION DE ADMINISTRACION INMOBILIARIA Y DE ESPACIO PUBLICO","ESCRITO","DERECHO DE PETICION DE INTERES PARTICULAR",26,"PENDIENTE"]
[3414602021,"SUBDIRECCION DE REGISTRO INMOBILIARIO","WEB","DERECHO DE PETICION DE INTERES PARTICULAR",26,"PENDIENTE"]
[3414872021,"SUBDIRECCION DE REGISTRO INMOBILIARIO","WEB","DERECHO DE PETICION DE INTERES PARTICULAR",24,"PENDIENTE"]
[3414962021,"SUBDIRECCION DE ADMINISTRACION INMOBILIARIA Y DE ESPACIO PUBLICO","WEB","DERECHO DE PETICION DE INTERES GENERAL",26,"PENDIENTE"]
[3415032021,"SUBDIRECCION DE REGISTRO INMOBILIARIO","E-MAIL","DERECHO DE PETICION DE INTERES GENERAL",26,"GESTIONADOS"]
[3415062021,"SUBDIRECCION DE ADMINISTRACION INMOBILIARIA Y DE ESPACIO PUBLICO","ESCRITO","DERECHO DE PETICION DE INTERES PARTICULAR",26,"PENDIENTE"]
[3415802021,"SUBDIRECCION DE ADMINISTRACION INMOBILIARIA Y DE ESPACIO PUBLICO","WEB","DERECHO DE PETICION DE INTERES GENERAL",26,"PENDIENTE"]
[3415802021,"SUBDIRECCION DE REGISTRO INMOBILIARIO","WEB","DERECHO DE PETICION DE INTERES GENERAL",18,"GESTIONADOS"]
[3416912021,"SUBDIRECCION DE ADMINISTRACION INMOBILIARIA Y DE ESPACIO PUBLICO","WEB","DERECHO DE PETICION DE INTERES PARTICULAR",25,"PENDIENTE"]
[3417382021,"SUBDIRECCION DE ADMINISTRACION INMOBILIARIA Y DE ESPACIO PUBLICO","WEB","DERECHO DE PETICION DE INTERES PARTICULAR",26,"PENDIENTE"]
[3418602021,"SUBDIRECCION DE REGISTRO INMOBILIARIO","ESCRITO","DERECHO DE PETICION DE INTERES PARTICULAR",25,"PENDIENTE"]
[3418712021,"SUBDIRECCION DE ADMINISTRACION INMOBILIARIA Y DE ESPACIO PUBLICO","ESCRITO","DERECHO DE PETICION DE INTERES PARTICULAR",25,"PENDIENTE"]
[3418862021,"SUBDIRECCION DE ADMINISTRACION INMOBILIARIA Y DE ESPACIO PUBLICO","ESCRITO","DERECHO DE PETICION DE INTERES GENERAL",25,"PENDIENTE"]
[3425362021,"DESPACHO","ESCRITO","DERECHO DE PETICION DE INTERES PARTICULAR",25,"PENDIENTE"]
[3425612021,"SUBDIRECCION DE ADMINISTRACION INMOBILIARIA Y DE ESPACIO PUBLICO","ESCRITO","DERECHO DE PETICION DE INTERES PARTICULAR",25,"PENDIENTE"]
[3425802021,"SUBDIRECCION DE ADMINISTRACION INMOBILIARIA Y DE ESPACIO PUBLICO","ESCRITO","DERECHO DE PETICION DE INTERES PARTICULAR",25,"PENDIENTE"]
[3425882021,"SUBDIRECCION DE ADMINISTRACION INMOBILIARIA Y DE ESPACIO PUBLICO","ESCRITO","DERECHO DE PETICION DE INTERES PARTICULAR",25,"PENDIENTE"]
[3425922021,"SUBDIRECCION DE ADMINISTRACION INMOBILIARIA Y DE ESPACIO PUBLICO","TELEFONO","DERECHO DE PETICION DE INTERES PARTICULAR",25,"PENDIENTE"]
[3426302021,"SUBDIRECCION DE ADMINISTRACION INMOBILIARIA Y DE ESPACIO PUBLICO","ESCRITO","DERECHO DE PETICION DE INTERES PARTICULAR",25,"PENDIENTE"]
[3431452021,"SUBDIRECCION DE ADMINISTRACION INMOBILIARIA Y DE ESPACIO PUBLICO","E-MAIL","DERECHO DE PETICION DE INTERES GENERAL",25,"PENDIENTE"]
[3435642021,"SUBDIRECCION DE ADMINISTRACION INMOBILIARIA Y DE ESPACIO PUBLICO","WEB","DERECHO DE PETICION DE INTERES GENERAL",25,"PENDIENTE"]
[3439692021,"SUBDIRECCION DE ADMINISTRACION INMOBILIARIA Y DE ESPACIO PUBLICO","WEB","DERECHO DE PETICION DE INTERES GENERAL",23,"PENDIENTE"]
[3444202021,"SUBDIRECCION DE ADMINISTRACION INMOBILIARIA Y DE ESPACIO PUBLICO","WEB","QUEJA",25,"PENDIENTE"]
[3446552021,"SUBDIRECCION DE REGISTRO INMOBILIARIO","WEB","QUEJA",22,"GESTIONADOS"]
[3447442021,"SUBDIRECCION DE ADMINISTRACION INMOBILIARIA Y DE ESPACIO PUBLICO","ESCRITO","DERECHO DE PETICION DE INTERES PARTICULAR",24,"PENDIENTE"]
[3447852021,"SUBDIRECCION DE REGISTRO INMOBILIARIO","WEB","DERECHO DE PETICION DE INTERES PARTICULAR",19,"GESTIONADOS"]
[3449912021,"SUBDIRECCION DE ADMINISTRACION INMOBILIARIA Y DE ESPACIO PUBLICO","ESCRITO","DERECHO DE PETICION DE INTERES PARTICULAR",24,"PENDIENTE"]
[3450142021,"SUBDIRECCION DE ADMINISTRACION INMOBILIARIA Y DE ESPACIO PUBLICO","ESCRITO","DERECHO DE PETICION DE INTERES PARTICULAR",24,"PENDIENTE"]
[3450482021,"SUBDIRECCION DE ADMINISTRACION INMOBILIARIA Y DE ESPACIO PUBLICO","ESCRITO","DERECHO DE PETICION DE INTERES PARTICULAR",24,"PENDIENTE"]
[3450682021,"SUBDIRECCION DE ADMINISTRACION INMOBILIARIA Y DE ESPACIO PUBLICO","ESCRITO","DERECHO DE PETICION DE INTERES PARTICULAR",24,"PENDIENTE"]
[3450812021,"AREA DE ATENCION A LA CIUDADANIA","WEB","QUEJA",15,"GESTIONADOS"]
[3451282021,"SUBDIRECCION DE REGISTRO INMOBILIARIO","ESCRITO","DERECHO DE PETICION DE INTERES PARTICULAR",16,"GESTIONADOS"]
[3451602021,"SUBDIRECCION DE ADMINISTRACION INMOBILIARIA Y DE ESPACIO PUBLICO","ESCRITO","DERECHO DE PETICION DE INTERES PARTICULAR",24,"PENDIENTE"]
[3453922021,"SUBDIRECCION DE REGISTRO INMOBILIARIO","WEB","DERECHO DE PETICION DE INTERES PARTICULAR",21,"GESTIONADOS"]
[3458032021,"SUBDIRECCION DE ADMINISTRACION INMOBILIARIA Y DE ESPACIO PUBLICO","WEB","DERECHO DE PETICION DE INTERES PARTICULAR",24,"PENDIENTE"]
[3458122021,"SUBDIRECCION DE REGISTRO INMOBILIARIO","WEB","DERECHO DE PETICION DE INTERES PARTICULAR",24,"PENDIENTE"]
[3458522021,"SUBDIRECCION DE ADMINISTRACION INMOBILIARIA Y DE ESPACIO PUBLICO","WEB","CONSULTA",21,"PENDIENTE"]
[3458812021,"AREA DE ATENCION A LA CIUDADANIA","WEB","DERECHO DE PETICION DE INTERES PARTICULAR",22,"GESTIONADOS"]
[3460972021,"SUBDIRECCION DE ADMINISTRACION INMOBILIARIA Y DE ESPACIO PUBLICO","WEB","DERECHO DE PETICION DE INTERES PARTICULAR",24,"PENDIENTE"]
[3461902021,"SUBDIRECCION DE ADMINISTRACION INMOBILIARIA Y DE ESPACIO PUBLICO","ESCRITO","DERECHO DE PETICION DE INTERES PARTICULAR",23,"PENDIENTE"]
[3462032021,"SUBDIRECCION DE ADMINISTRACION INMOBILIARIA Y DE ESPACIO PUBLICO","ESCRITO","DERECHO DE PETICION DE INTERES PARTICULAR",23,"PENDIENTE"]
[3462312021,"SUBDIRECCION DE ADMINISTRACION INMOBILIARIA Y DE ESPACIO PUBLICO","ESCRITO","DERECHO DE PETICION DE INTERES PARTICULAR",23,"PENDIENTE"]
[3463242021,"SUBDIRECCION DE ADMINISTRACION INMOBILIARIA Y DE ESPACIO PUBLICO","ESCRITO","DERECHO DE PETICION DE INTERES PARTICULAR",23,"PENDIENTE"]
[3463842021,"SUBDIRECCION DE ADMINISTRACION INMOBILIARIA Y DE ESPACIO PUBLICO","ESCRITO","DERECHO DE PETICION DE INTERES PARTICULAR",23,"PENDIENTE"]
[3463962021,"SUBDIRECCION DE REGISTRO INMOBILIARIO","ESCRITO","DERECHO DE PETICION DE INTERES GENERAL",18,"GESTIONADOS"]
[3464092021,"SUBDIRECCION DE ADMINISTRACION INMOBILIARIA Y DE ESPACIO PUBLICO","ESCRITO","DERECHO DE PETICION DE INTERES PARTICULAR",23,"PENDIENTE"]
[3464472021,"SUBDIRECCION DE ADMINISTRACION INMOBILIARIA Y DE ESPACIO PUBLICO","ESCRITO","DERECHO DE PETICION DE INTERES PARTICULAR",23,"PENDIENTE"]
[3464662021,"SUBDIRECCION DE ADMINISTRACION INMOBILIARIA Y DE ESPACIO PUBLICO","ESCRITO","DERECHO DE PETICION DE INTERES PARTICULAR",23,"PENDIENTE"]
[3464852021,"SUBDIRECCION DE ADMINISTRACION INMOBILIARIA Y DE ESPACIO PUBLICO","ESCRITO","DERECHO DE PETICION DE INTERES GENERAL",23,"PENDIENTE"]
[3464982021,"SUBDIRECCION DE REGISTRO INMOBILIARIO","ESCRITO","DERECHO DE PETICION DE INTERES PARTICULAR",20,"GESTIONADOS"]
[3465002021,"SUBDIRECCION DE ADMINISTRACION INMOBILIARIA Y DE ESPACIO PUBLICO","ESCRITO","DERECHO DE PETICION DE INTERES PARTICULAR",23,"PENDIENTE"]
[3465032021,"SUBDIRECCION DE REGISTRO INMOBILIARIO","ESCRITO","DERECHO DE PETICION DE INTERES PARTICULAR",18,"GESTIONADOS"]
[3465082021,"SUBDIRECCION DE ADMINISTRACION INMOBILIARIA Y DE ESPACIO PUBLICO","ESCRITO","DERECHO DE PETICION DE INTERES PARTICULAR",23,"PENDIENTE"]
[3467512021,"SUBDIRECCION DE ADMINISTRACION INMOBILIARIA Y DE ESPACIO PUBLICO","ESCRITO","DERECHO DE PETICION DE INTERES PARTICULAR",23,"PENDIENTE"]
[3467652021,"SUBDIRECCION DE ADMINISTRACION INMOBILIARIA Y DE ESPACIO PUBLICO","ESCRITO","DERECHO DE PETICION DE INTERES PARTICULAR",23,"PENDIENTE"]
[3467872021,"SUBDIRECCION DE ADMINISTRACION INMOBILIARIA Y DE ESPACIO PUBLICO","WEB","DERECHO DE PETICION DE INTERES PARTICULAR",23,"PENDIENTE"]
[3468112021,"SUBDIRECCION DE ADMINISTRACION INMOBILIARIA Y DE ESPACIO PUBLICO","ESCRITO","DERECHO DE PETICION DE INTERES PARTICULAR",23,"PENDIENTE"]
[3468522021,"SUBDIRECCION DE ADMINISTRACION INMOBILIARIA Y DE ESPACIO PUBLICO","ESCRITO","DERECHO DE PETICION DE INTERES PARTICULAR",23,"PENDIENTE"]
[3468582021,"SUBDIRECCION DE ADMINISTRACION INMOBILIARIA Y DE ESPACIO PUBLICO","WEB","CONSULTA",23,"PENDIENTE"]
[3468882021,"SUBDIRECCION DE ADMINISTRACION INMOBILIARIA Y DE ESPACIO PUBLICO","ESCRITO","DERECHO DE PETICION DE INTERES PARTICULAR",23,"PENDIENTE"]
[3469242021,"SUBDIRECCION DE ADMINISTRACION INMOBILIARIA Y DE ESPACIO PUBLICO","ESCRITO","DERECHO DE PETICION DE INTERES PARTICULAR",23,"PENDIENTE"]
[3469542021,"SUBDIRECCION DE ADMINISTRACION INMOBILIARIA Y DE ESPACIO PUBLICO","ESCRITO","DERECHO DE PETICION DE INTERES PARTICULAR",23,"PENDIENTE"]
[3470502021,"SUBDIRECCION DE ADMINISTRACION INMOBILIARIA Y DE ESPACIO PUBLICO","WEB","DERECHO DE PETICION DE INTERES PARTICULAR",23,"PENDIENTE"]
[3472892021,"SUBDIRECCION DE REGISTRO INMOBILIARIO","ESCRITO","DERECHO DE PETICION DE INTERES PARTICULAR",23,"PENDIENTE"]
[3472932021,"SUBDIRECCION DE ADMINISTRACION INMOBILIARIA Y DE ESPACIO PUBLICO","ESCRITO","DERECHO DE PETICION DE INTERES PARTICULAR",23,"PENDIENTE"]
[3473832021,"SUBDIRECCION DE ADMINISTRACION INMOBILIARIA Y DE ESPACIO PUBLICO","WEB","DERECHO DE PETICION DE INTERES PARTICULAR",23,"PENDIENTE"]
[3479192021,"SUBDIRECCION DE ADMINISTRACION INMOBILIARIA Y DE ESPACIO PUBLICO","ESCRITO","DERECHO DE PETICION DE INTERES PARTICULAR",23,"PENDIENTE"]
[3480872021,"AREA DE ATENCION A LA CIUDADANIA","ESCRITO","DERECHO DE PETICION DE INTERES PARTICULAR",6,"PENDIENTE"]
[3480932021,"SUBDIRECCION DE ADMINISTRACION INMOBILIARIA Y DE ESPACIO PUBLICO","WEB","DERECHO DE PETICION DE INTERES GENERAL",22,"PENDIENTE"]
[3483672021,"AREA DE ATENCION A LA CIUDADANIA","E-MAIL","DERECHO DE PETICION DE INTERES GENERAL",1,"GESTIONADOS"]
[3483672021,"SUBDIRECCION DE ADMINISTRACION INMOBILIARIA Y DE ESPACIO PUBLICO","E-MAIL","DERECHO DE PETICION DE INTERES GENERAL",10,"PENDIENTE"]
[3484872021,"SUBDIRECCION DE ADMINISTRACION INMOBILIARIA Y DE ESPACIO PUBLICO","WEB","DERECHO DE PETICION DE INTERES GENERAL",22,"PENDIENTE"]
[3484982021,"SUBDIRECCION DE ADMINISTRACION INMOBILIARIA Y DE ESPACIO PUBLICO","WEB","DERECHO DE PETICION DE INTERES GENERAL",22,"PENDIENTE"]
[3485242021,"SUBDIRECCION DE ADMINISTRACION INMOBILIARIA Y DE ESPACIO PUBLICO","WEB","DERECHO DE PETICION DE INTERES GENERAL",22,"PENDIENTE"]
[3485302021,"SUBDIRECCION DE ADMINISTRACION INMOBILIARIA Y DE ESPACIO PUBLICO","WEB","DERECHO DE PETICION DE INTERES GENERAL",22,"PENDIENTE"]
[3487682021,"SUBDIRECCION DE ADMINISTRACION INMOBILIARIA Y DE ESPACIO PUBLICO","ESCRITO","DERECHO DE PETICION DE INTERES PARTICULAR",22,"PENDIENTE"]
[3496192021,"SUBDIRECCION DE ADMINISTRACION INMOBILIARIA Y DE ESPACIO PUBLICO","WEB","DERECHO DE PETICION DE INTERES PARTICULAR",22,"PENDIENTE"]
[3497322021,"SUBDIRECCION DE ADMINISTRACION INMOBILIARIA Y DE ESPACIO PUBLICO","ESCRITO","DERECHO DE PETICION DE INTERES PARTICULAR",22,"PENDIENTE"]
[3497372021,"SUBDIRECCION DE REGISTRO INMOBILIARIO","ESCRITO","DERECHO DE PETICION DE INTERES PARTICULAR",18,"GESTIONADOS"]
[3497392021,"SUBDIRECCION DE REGISTRO INMOBILIARIO","ESCRITO","DERECHO DE PETICION DE INTERES PARTICULAR",22,"GESTIONADOS"]
[3499682021,"SUBDIRECCION DE REGISTRO INMOBILIARIO","ESCRITO","DERECHO DE PETICION DE INTERES PARTICULAR",19,"GESTIONADOS"]
[3500822021,"SUBDIRECCION DE ADMINISTRACION INMOBILIARIA Y DE ESPACIO PUBLICO","ESCRITO","DERECHO DE PETICION DE INTERES PARTICULAR",21,"PENDIENTE"]
[3501332021,"DESPACHO","ESCRITO","DERECHO DE PETICION DE INTERES PARTICULAR",3,"GESTIONADOS"]
[3501332021,"SUBDIRECCION DE REGISTRO INMOBILIARIO","ESCRITO","DERECHO DE PETICION DE INTERES PARTICULAR",17,"GESTIONADOS"]
[3501752021,"SUBDIRECCION DE ADMINISTRACION INMOBILIARIA Y DE ESPACIO PUBLICO","ESCRITO","DERECHO DE PETICION DE INTERES GENERAL",21,"PENDIENTE"]
[3501982021,"SUBDIRECCION DE ADMINISTRACION INMOBILIARIA Y DE ESPACIO PUBLICO","ESCRITO","DERECHO DE PETICION DE INTERES PARTICULAR",21,"PENDIENTE"]
[3502112021,"SUBDIRECCION DE REGISTRO INMOBILIARIO","ESCRITO","DERECHO DE PETICION DE INTERES GENERAL",16,"GESTIONADOS"]
[3502162021,"SUBDIRECCION DE ADMINISTRACION INMOBILIARIA Y DE ESPACIO PUBLICO","ESCRITO","DERECHO DE PETICION DE INTERES PARTICULAR",21,"PENDIENTE"]
[3502172021,"SUBDIRECCION DE ADMINISTRACION INMOBILIARIA Y DE ESPACIO PUBLICO","ESCRITO","DERECHO DE PETICION DE INTERES PARTICULAR",21,"PENDIENTE"]
[3502202021,"SUBDIRECCION DE ADMINISTRACION INMOBILIARIA Y DE ESPACIO PUBLICO","ESCRITO","DERECHO DE PETICION DE INTERES PARTICULAR",21,"PENDIENTE"]
[3504172021,"AREA DE ATENCION A LA CIUDADANIA","WEB","DERECHO DE PETICION DE INTERES PARTICULAR",1,"GESTIONADOS"]
[3504512021,"AREA DE ATENCION A LA CIUDADANIA","WEB","DERECHO DE PETICION DE INTERES PARTICULAR",1,"GESTIONADOS"]
[3505672021,"AREA DE ATENCION A LA CIUDADANIA","WEB","QUEJA",20,"GESTIONADOS"]
[3506422021,"AREA DE ATENCION A LA CIUDADANIA","WEB","QUEJA",20,"GESTIONADOS"]
[3508412021,"SUBDIRECCION DE ADMINISTRACION INMOBILIARIA Y DE ESPACIO PUBLICO","TELEFONO","DERECHO DE PETICION DE INTERES GENERAL",21,"PENDIENTE"]
[3509442021,"SUBDIRECCION DE ADMINISTRACION INMOBILIARIA Y DE ESPACIO PUBLICO","WEB","DERECHO DE PETICION DE INTERES PARTICULAR",21,"PENDIENTE"]
[3509962021,"AREA DE ATENCION A LA CIUDADANIA","WEB","DERECHO DE PETICION DE INTERES GENERAL",1,"GESTIONADOS"]
[3514942021,"SUBDIRECCION DE ADMINISTRACION INMOBILIARIA Y DE ESPACIO PUBLICO","ESCRITO","DERECHO DE PETICION DE INTERES PARTICULAR",20,"PENDIENTE"]
[3514982021,"SUBDIRECCION DE REGISTRO INMOBILIARIO","ESCRITO","DERECHO DE PETICION DE INTERES PARTICULAR",15,"GESTIONADOS"]
[3515472021,"OFICINA ASESORA JURIDICA","ESCRITO","DERECHO DE PETICION DE INTERES PARTICULAR",2,"GESTIONADOS"]
[3516502021,"SUBDIRECCION DE REGISTRO INMOBILIARIO","WEB","DERECHO DE PETICION DE INTERES GENERAL",20,"PENDIENTE"]
[3517422021,"SUBDIRECCION DE ADMINISTRACION INMOBILIARIA Y DE ESPACIO PUBLICO","WEB","DERECHO DE PETICION DE INTERES GENERAL",20,"PENDIENTE"]
[3518772021,"SUBDIRECCION DE REGISTRO INMOBILIARIO","WEB","DERECHO DE PETICION DE INTERES GENERAL",20,"PENDIENTE"]
[3519432021,"AREA DE ATENCION A LA CIUDADANIA","WEB","SOLICITUD DE ACCESO A LA INFORMACION",1,"GESTIONADOS"]
[3519432021,"SUBDIRECCION DE REGISTRO INMOBILIARIO","WEB","SOLICITUD DE ACCESO A LA INFORMACION",14,"PENDIENTE"]
[3521242021,"SUBDIRECCION DE ADMINISTRACION INMOBILIARIA Y DE ESPACIO PUBLICO","WEB","DERECHO DE PETICION DE INTERES GENERAL",20,"PENDIENTE"]
[3521512021,"SUBDIRECCION DE ADMINISTRACION INMOBILIARIA Y DE ESPACIO PUBLICO","ESCRITO","DERECHO DE PETICION DE INTERES PARTICULAR",20,"PENDIENTE"]
[3521782021,"SUBDIRECCION DE REGISTRO INMOBILIARIO","ESCRITO","DERECHO DE PETICION DE INTERES PARTICULAR",15,"GESTIONADOS"]
[3521922021,"SUBDIRECCION DE ADMINISTRACION INMOBILIARIA Y DE ESPACIO PUBLICO","ESCRITO","DERECHO DE PETICION DE INTERES PARTICULAR",20,"PENDIENTE"]
[3522022021,"SUBDIRECCION DE ADMINISTRACION INMOBILIARIA Y DE ESPACIO PUBLICO","ESCRITO","DERECHO DE PETICION DE INTERES PARTICULAR",20,"PENDIENTE"]
[3522152021,"SUBDIRECCION DE ADMINISTRACION INMOBILIARIA Y DE ESPACIO PUBLICO","ESCRITO","DERECHO DE PETICION DE INTERES PARTICULAR",20,"PENDIENTE"]
[3522322021,"SUBDIRECCION DE ADMINISTRACION INMOBILIARIA Y DE ESPACIO PUBLICO","ESCRITO","DERECHO DE PETICION DE INTERES PARTICULAR",20,"PENDIENTE"]
[3522442021,"SUBDIRECCION DE ADMINISTRACION INMOBILIARIA Y DE ESPACIO PUBLICO","ESCRITO","DERECHO DE PETICION DE INTERES PARTICULAR",20,"PENDIENTE"]
[3523142021,"AREA DE ATENCION A LA CIUDADANIA","WEB","DERECHO DE PETICION DE INTERES GENERAL",1,"GESTIONADOS"]
[3523142021,"SUBDIRECCION DE ADMINISTRACION INMOBILIARIA Y DE ESPACIO PUBLICO","WEB","DERECHO DE PETICION DE INTERES GENERAL",19,"PENDIENTE"]
[3524492021,"SUBDIRECCION DE REGISTRO INMOBILIARIO","ESCRITO","DERECHO DE PETICION DE INTERES PARTICULAR",15,"GESTIONADOS"]
[3524712021,"SUBDIRECCION DE ADMINISTRACION INMOBILIARIA Y DE ESPACIO PUBLICO","ESCRITO","DERECHO DE PETICION DE INTERES PARTICULAR",20,"PENDIENTE"]
[3525082021,"SUBDIRECCION DE ADMINISTRACION INMOBILIARIA Y DE ESPACIO PUBLICO","ESCRITO","DERECHO DE PETICION DE INTERES PARTICULAR",20,"PENDIENTE"]
[3525292021,"AREA DE ATENCION A LA CIUDADANIA","ESCRITO","DERECHO DE PETICION DE INTERES PARTICULAR",19,"GESTIONADOS"]
[3525292021,"SUBDIRECCION DE REGISTRO INMOBILIARIO","ESCRITO","DERECHO DE PETICION DE INTERES PARTICULAR",19,"GESTIONADOS"]
[3532872021,"AREA DE ATENCION A LA CIUDADANIA","WEB","QUEJA",1,"GESTIONADOS"]
[3532972021,"AREA DE ATENCION A LA CIUDADANIA","WEB","QUEJA",1,"GESTIONADOS"]
[3534762021,"AREA DE ATENCION A LA CIUDADANIA","WEB","DERECHO DE PETICION DE INTERES GENERAL",1,"GESTIONADOS"]
[3534762021,"SUBDIRECCION DE ADMINISTRACION INMOBILIARIA Y DE ESPACIO PUBLICO","WEB","DERECHO DE PETICION DE INTERES GENERAL",17,"PENDIENTE"]
[3535722021,"AREA DE ATENCION A LA CIUDADANIA","WEB","DERECHO DE PETICION DE INTERES GENERAL",1,"GESTIONADOS"]
[3536552021,"AREA DE ATENCION A LA CIUDADANIA","TELEFONO","DERECHO DE PETICION DE INTERES PARTICULAR",1,"GESTIONADOS"]
[3536722021,"AREA DE ATENCION A LA CIUDADANIA","WEB","DERECHO DE PETICION DE INTERES GENERAL",1,"GESTIONADOS"]
[3536742021,"AREA DE ATENCION A LA CIUDADANIA","TELEFONO","DERECHO DE PETICION DE INTERES GENERAL",1,"GESTIONADOS"]
[3537272021,"AREA DE ATENCION A LA CIUDADANIA","E-MAIL","DERECHO DE PETICION DE INTERES GENERAL",1,"GESTIONADOS"]
[3537792021,"AREA DE ATENCION A LA CIUDADANIA","WEB","DERECHO DE PETICION DE INTERES GENERAL",1,"GESTIONADOS"]
[3537812021,"AREA DE ATENCION A LA CIUDADANIA","WEB","DERECHO DE PETICION DE INTERES PARTICULAR",1,"GESTIONADOS"]
[3537822021,"AREA DE ATENCION A LA CIUDADANIA","WEB","DERECHO DE PETICION DE INTERES GENERAL",1,"GESTIONADOS"]
[3537822021,"SUBDIRECCION DE ADMINISTRACION INMOBILIARIA Y DE ESPACIO PUBLICO","WEB","DERECHO DE PETICION DE INTERES GENERAL",20,"PENDIENTE"]
[3539262021,"AREA DE ATENCION A LA CIUDADANIA","WEB","DERECHO DE PETICION DE INTERES PARTICULAR",1,"GESTIONADOS"]
[3540052021,"AREA DE ATENCION A LA CIUDADANIA","TELEFONO","DERECHO DE PETICION DE INTERES PARTICULAR",1,"GESTIONADOS"]
[3540052021,"SUBDIRECCION DE ADMINISTRACION INMOBILIARIA Y DE ESPACIO PUBLICO","TELEFONO","DERECHO DE PETICION DE INTERES PARTICULAR",19,"PENDIENTE"]
[3541982021,"AREA DE ATENCION A LA CIUDADANIA","ESCRITO","DERECHO DE PETICION DE INTERES PARTICULAR",1,"GESTIONADOS"]
[3541982021,"SUBDIRECCION DE REGISTRO INMOBILIARIO","ESCRITO","DERECHO DE PETICION DE INTERES PARTICULAR",19,"PENDIENTE"]
[3542372021,"AREA DE ATENCION A LA CIUDADANIA","ESCRITO","DERECHO DE PETICION DE INTERES PARTICULAR",1,"GESTIONADOS"]
[3542372021,"SUBDIRECCION DE REGISTRO INMOBILIARIO","ESCRITO","DERECHO DE PETICION DE INTERES PARTICULAR",19,"GESTIONADOS"]
[3542582021,"AREA DE ATENCION A LA CIUDADANIA","ESCRITO","DERECHO DE PETICION DE INTERES PARTICULAR",1,"GESTIONADOS"]
[3542582021,"SUBDIRECCION DE REGISTRO INMOBILIARIO","ESCRITO","DERECHO DE PETICION DE INTERES PARTICULAR",15,"GESTIONADOS"]
[3542642021,"AREA DE ATENCION A LA CIUDADANIA","WEB","DERECHO DE PETICION DE INTERES GENERAL",1,"GESTIONADOS"]
[3542832021,"AREA DE ATENCION A LA CIUDADANIA","ESCRITO","DERECHO DE PETICION DE INTERES GENERAL",1,"GESTIONADOS"]
[3542832021,"SUBDIRECCION DE ADMINISTRACION INMOBILIARIA Y DE ESPACIO PUBLICO","ESCRITO","DERECHO DE PETICION DE INTERES GENERAL",19,"PENDIENTE"]
[3542902021,"AREA DE ATENCION A LA CIUDADANIA","ESCRITO","DERECHO DE PETICION DE INTERES PARTICULAR",1,"GESTIONADOS"]
[3542902021,"SUBDIRECCION DE REGISTRO INMOBILIARIO","ESCRITO","DERECHO DE PETICION DE INTERES PARTICULAR",19,"PENDIENTE"]
[3542952021,"AREA DE ATENCION A LA CIUDADANIA","ESCRITO","DERECHO DE PETICION DE INTERES GENERAL",1,"GESTIONADOS"]
[3542952021,"SUBDIRECCION DE REGISTRO INMOBILIARIO","ESCRITO","DERECHO DE PETICION DE INTERES GENERAL",15,"GESTIONADOS"]
[3542992021,"AREA DE ATENCION A LA CIUDADANIA","ESCRITO","DERECHO DE PETICION DE INTERES PARTICULAR",1,"GESTIONADOS"]
[3542992021,"SUBDIRECCION DE ADMINISTRACION INMOBILIARIA Y DE ESPACIO PUBLICO","ESCRITO","DERECHO DE PETICION DE INTERES PARTICULAR",19,"PENDIENTE"]
[3543202021,"AREA DE ATENCION A LA CIUDADANIA","TELEFONO","DERECHO DE PETICION DE INTERES GENERAL",1,"GESTIONADOS"]
[3543202021,"SUBDIRECCION DE REGISTRO INMOBILIARIO","TELEFONO","DERECHO DE PETICION DE INTERES GENERAL",19,"PENDIENTE"]
[3543352021,"AREA DE ATENCION A LA CIUDADANIA","ESCRITO","DERECHO DE PETICION DE INTERES PARTICULAR",1,"GESTIONADOS"]
[3543352021,"SUBDIRECCION DE ADMINISTRACION INMOBILIARIA Y DE ESPACIO PUBLICO","ESCRITO","DERECHO DE PETICION DE INTERES PARTICULAR",19,"PENDIENTE"]
[3543602021,"AREA DE ATENCION A LA CIUDADANIA","ESCRITO","DERECHO DE PETICION DE INTERES PARTICULAR",1,"GESTIONADOS"]
[3543602021,"SUBDIRECCION DE ADMINISTRACION INMOBILIARIA Y DE ESPACIO PUBLICO","ESCRITO","DERECHO DE PETICION DE INTERES PARTICULAR",19,"PENDIENTE"]
[3543742021,"AREA DE ATENCION A LA CIUDADANIA","WEB","DERECHO DE PETICION DE INTERES PARTICULAR",1,"GESTIONADOS"]
[3543742021,"SUBDIRECCION DE ADMINISTRACION INMOBILIARIA Y DE ESPACIO PUBLICO","WEB","DERECHO DE PETICION DE INTERES PARTICULAR",19,"PENDIENTE"]
[3544612021,"AREA DE ATENCION A LA CIUDADANIA","TELEFONO","DERECHO DE PETICION DE INTERES GENERAL",1,"GESTIONADOS"]
[3545152021,"AREA DE ATENCION A LA CIUDADANIA","WEB","QUEJA",1,"GESTIONADOS"]
[3545382021,"AREA DE ATENCION A LA CIUDADANIA","WEB","DERECHO DE PETICION DE INTERES PARTICULAR",1,"GESTIONADOS"]
[3545382021,"SUBDIRECCION DE REGISTRO INMOBILIARIO","WEB","DERECHO DE PETICION DE INTERES PARTICULAR",19,"PENDIENTE"]
[3545772021,"AREA DE ATENCION A LA CIUDADANIA","TELEFONO","DERECHO DE PETICION DE INTERES PARTICULAR",1,"GESTIONADOS"]
[3546502021,"AREA DE ATENCION A LA CIUDADANIA","ESCRITO","DERECHO DE PETICION DE INTERES PARTICULAR",1,"GESTIONADOS"]
[3546502021,"SUBDIRECCION DE ADMINISTRACION INMOBILIARIA Y DE ESPACIO PUBLICO","ESCRITO","DERECHO DE PETICION DE INTERES PARTICULAR",19,"PENDIENTE"]
[3546792021,"AREA DE ATENCION A LA CIUDADANIA","ESCRITO","DERECHO DE PETICION DE INTERES PARTICULAR",1,"GESTIONADOS"]
[3546792021,"SUBDIRECCION DE REGISTRO INMOBILIARIO","ESCRITO","DERECHO DE PETICION DE INTERES PARTICULAR",16,"GESTIONADOS"]
[3546892021,"AREA DE ATENCION A LA CIUDADANIA","ESCRITO","DERECHO DE PETICION DE INTERES PARTICULAR",1,"GESTIONADOS"]
[3546892021,"SUBDIRECCION DE ADMINISTRACION INMOBILIARIA Y DE ESPACIO PUBLICO","ESCRITO","DERECHO DE PETICION DE INTERES PARTICULAR",19,"PENDIENTE"]
[3552452021,"AREA DE ATENCION A LA CIUDADANIA","TELEFONO","DERECHO DE PETICION DE INTERES GENERAL",1,"GESTIONADOS"]
[3552452021,"SUBDIRECCION DE REGISTRO INMOBILIARIO","TELEFONO","DERECHO DE PETICION DE INTERES GENERAL",19,"PENDIENTE"]
[3552732021,"AREA DE ATENCION A LA CIUDADANIA","WEB","DERECHO DE PETICION DE INTERES PARTICULAR",1,"GESTIONADOS"]
[3552882021,"AREA DE ATENCION A LA CIUDADANIA","ESCRITO","DERECHO DE PETICION DE INTERES PARTICULAR",1,"GESTIONADOS"]
[3552882021,"SUBDIRECCION DE ADMINISTRACION INMOBILIARIA Y DE ESPACIO PUBLICO","ESCRITO","DERECHO DE PETICION DE INTERES PARTICULAR",19,"PENDIENTE"]
[3552902021,"AREA DE ATENCION A LA CIUDADANIA","ESCRITO","DERECHO DE PETICION DE INTERES PARTICULAR",1,"GESTIONADOS"]
[3552902021,"SUBDIRECCION DE ADMINISTRACION INMOBILIARIA Y DE ESPACIO PUBLICO","ESCRITO","DERECHO DE PETICION DE INTERES PARTICULAR",19,"PENDIENTE"]
[3555482021,"AREA DE ATENCION A LA CIUDADANIA","ESCRITO","DERECHO DE PETICION DE INTERES PARTICULAR",1,"GESTIONADOS"]
[3555482021,"SUBDIRECCION DE ADMINISTRACION INMOBILIARIA Y DE ESPACIO PUBLICO","ESCRITO","DERECHO DE PETICION DE INTERES PARTICULAR",19,"PENDIENTE"]
[3555522021,"AREA DE ATENCION A LA CIUDADANIA","ESCRITO","DERECHO DE PETICION DE INTERES PARTICULAR",1,"GESTIONADOS"]
[3555522021,"SUBDIRECCION DE ADMINISTRACION INMOBILIARIA Y DE ESPACIO PUBLICO","ESCRITO","DERECHO DE PETICION DE INTERES PARTICULAR",19,"PENDIENTE"]
[3555582021,"AREA DE ATENCION A LA CIUDADANIA","ESCRITO","DERECHO DE PETICION DE INTERES PARTICULAR",1,"GESTIONADOS"]
[3555582021,"SUBDIRECCION DE ADMINISTRACION INMOBILIARIA Y DE ESPACIO PUBLICO","ESCRITO","DERECHO DE PETICION DE INTERES PARTICULAR",19,"PENDIENTE"]
[3555652021,"AREA DE ATENCION A LA CIUDADANIA","ESCRITO","DERECHO DE PETICION DE INTERES PARTICULAR",1,"GESTIONADOS"]
[3555652021,"SUBDIRECCION DE ADMINISTRACION INMOBILIARIA Y DE ESPACIO PUBLICO","ESCRITO","DERECHO DE PETICION DE INTERES PARTICULAR",19,"PENDIENTE"]
[3555702021,"AREA DE ATENCION A LA CIUDADANIA","ESCRITO","DERECHO DE PETICION DE INTERES PARTICULAR",1,"GESTIONADOS"]
[3555702021,"SUBDIRECCION DE ADMINISTRACION INMOBILIARIA Y DE ESPACIO PUBLICO","ESCRITO","DERECHO DE PETICION DE INTERES PARTICULAR",19,"PENDIENTE"]
[3555922021,"AREA DE ATENCION A LA CIUDADANIA","WEB","DERECHO DE PETICION DE INTERES PARTICULAR",1,"GESTIONADOS"]
[3556912021,"AREA DE ATENCION A LA CIUDADANIA","WEB","DERECHO DE PETICION DE INTERES PARTICULAR",1,"GESTIONADOS"]
[3557062021,"AREA DE ATENCION A LA CIUDADANIA","ESCRITO","DERECHO DE PETICION DE INTERES PARTICULAR",1,"GESTIONADOS"]
[3558322021,"AREA DE ATENCION A LA CIUDADANIA","WEB","DERECHO DE PETICION DE INTERES PARTICULAR",1,"GESTIONADOS"]
[3559112021,"AREA DE ATENCION A LA CIUDADANIA","TELEFONO","DERECHO DE PETICION DE INTERES PARTICULAR",1,"GESTIONADOS"]
[3559952021,"AREA DE ATENCION A LA CIUDADANIA","WEB","DERECHO DE PETICION DE INTERES PARTICULAR",1,"GESTIONADOS"]
[3559952021,"SUBDIRECCION DE ADMINISTRACION INMOBILIARIA Y DE ESPACIO PUBLICO","WEB","DERECHO DE PETICION DE INTERES PARTICULAR",17,"PENDIENTE"]
[3562352021,"AREA DE ATENCION A LA CIUDADANIA","WEB","DERECHO DE PETICION DE INTERES PARTICULAR",1,"GESTIONADOS"]
[3562352021,"SUBDIRECCION DE REGISTRO INMOBILIARIO","WEB","DERECHO DE PETICION DE INTERES PARTICULAR",16,"GESTIONADOS"]
[3565632021,"AREA DE ATENCION A LA CIUDADANIA","ESCRITO","DERECHO DE PETICION DE INTERES PARTICULAR",1,"GESTIONADOS"]
[3565632021,"SUBDIRECCION DE ADMINISTRACION INMOBILIARIA Y DE ESPACIO PUBLICO","ESCRITO","DERECHO DE PETICION DE INTERES PARTICULAR",18,"PENDIENTE"]
[3565982021,"AREA DE ATENCION A LA CIUDADANIA","ESCRITO","DERECHO DE PETICION DE INTERES PARTICULAR",1,"GESTIONADOS"]
[3565982021,"SUBDIRECCION DE ADMINISTRACION INMOBILIARIA Y DE ESPACIO PUBLICO","ESCRITO","DERECHO DE PETICION DE INTERES PARTICULAR",18,"PENDIENTE"]
[3566122021,"AREA DE ATENCION A LA CIUDADANIA","ESCRITO","DERECHO DE PETICION DE INTERES PARTICULAR",1,"GESTIONADOS"]
[3566122021,"SUBDIRECCION DE ADMINISTRACION INMOBILIARIA Y DE ESPACIO PUBLICO","ESCRITO","DERECHO DE PETICION DE INTERES PARTICULAR",18,"PENDIENTE"]
[3566482021,"AREA DE ATENCION A LA CIUDADANIA","ESCRITO","DERECHO DE PETICION DE INTERES PARTICULAR",1,"GESTIONADOS"]
[3566482021,"SUBDIRECCION DE ADMINISTRACION INMOBILIARIA Y DE ESPACIO PUBLICO","ESCRITO","DERECHO DE PETICION DE INTERES PARTICULAR",18,"PENDIENTE"]
[3566902021,"AREA DE ATENCION A LA CIUDADANIA","WEB","DERECHO DE PETICION DE INTERES GENERAL",1,"GESTIONADOS"]
[3568312021,"AREA DE ATENCION A LA CIUDADANIA","WEB","DERECHO DE PETICION DE INTERES PARTICULAR",1,"GESTIONADOS"]
[3570852021,"AREA DE ATENCION A LA CIUDADANIA","WEB","DERECHO DE PETICION DE INTERES PARTICULAR",1,"GESTIONADOS"]
[3570852021,"SUBDIRECCION DE ADMINISTRACION INMOBILIARIA Y DE ESPACIO PUBLICO","WEB","DERECHO DE PETICION DE INTERES PARTICULAR",14,"PENDIENTE"]
[3571502021,"AREA DE ATENCION A LA CIUDADANIA","WEB","DERECHO DE PETICION DE INTERES PARTICULAR",1,"GESTIONADOS"]
[3571502021,"SUBDIRECCION DE ADMINISTRACION INMOBILIARIA Y DE ESPACIO PUBLICO","WEB","DERECHO DE PETICION DE INTERES PARTICULAR",18,"PENDIENTE"]
[3572312021,"AREA DE ATENCION A LA CIUDADANIA","WEB","DERECHO DE PETICION DE INTERES GENERAL",1,"GESTIONADOS"]
[3572312021,"SUBDIRECCION DE ADMINISTRACION INMOBILIARIA Y DE ESPACIO PUBLICO","WEB","DERECHO DE PETICION DE INTERES GENERAL",18,"PENDIENTE"]
[3574562021,"AREA DE ATENCION A LA CIUDADANIA","WEB","DERECHO DE PETICION DE INTERES GENERAL",1,"GESTIONADOS"]
[3574892021,"AREA DE ATENCION A LA CIUDADANIA","WEB","DERECHO DE PETICION DE INTERES PARTICULAR",1,"GESTIONADOS"]
[3574892021,"SUBDIRECCION DE REGISTRO INMOBILIARIO","WEB","DERECHO DE PETICION DE INTERES PARTICULAR",18,"PENDIENTE"]
[3577722021,"AREA DE ATENCION A LA CIUDADANIA","ESCRITO","DERECHO DE PETICION DE INTERES PARTICULAR",1,"GESTIONADOS"]
[3577722021,"SUBDIRECCION DE ADMINISTRACION INMOBILIARIA Y DE ESPACIO PUBLICO","ESCRITO","DERECHO DE PETICION DE INTERES PARTICULAR",17,"PENDIENTE"]
[3577782021,"AREA DE ATENCION A LA CIUDADANIA","ESCRITO","DERECHO DE PETICION DE INTERES PARTICULAR",1,"GESTIONADOS"]
[3577782021,"SUBDIRECCION DE ADMINISTRACION INMOBILIARIA Y DE ESPACIO PUBLICO","ESCRITO","DERECHO DE PETICION DE INTERES PARTICULAR",17,"PENDIENTE"]
[3577882021,"AREA DE ATENCION A LA CIUDADANIA","ESCRITO","DERECHO DE PETICION DE INTERES PARTICULAR",1,"GESTIONADOS"]
[3577882021,"SUBDIRECCION DE ADMINISTRACION INMOBILIARIA Y DE ESPACIO PUBLICO","ESCRITO","DERECHO DE PETICION DE INTERES PARTICULAR",17,"PENDIENTE"]
[3577952021,"AREA DE ATENCION A LA CIUDADANIA","ESCRITO","DERECHO DE PETICION DE INTERES PARTICULAR",1,"GESTIONADOS"]
[3577952021,"SUBDIRECCION DE ADMINISTRACION INMOBILIARIA Y DE ESPACIO PUBLICO","ESCRITO","DERECHO DE PETICION DE INTERES PARTICULAR",17,"PENDIENTE"]
[3578222021,"AREA DE ATENCION A LA CIUDADANIA","ESCRITO","DERECHO DE PETICION DE INTERES PARTICULAR",1,"GESTIONADOS"]
[3578222021,"SUBDIRECCION DE ADMINISTRACION INMOBILIARIA Y DE ESPACIO PUBLICO","ESCRITO","DERECHO DE PETICION DE INTERES PARTICULAR",17,"PENDIENTE"]
[3578292021,"AREA DE ATENCION A LA CIUDADANIA","ESCRITO","DERECHO DE PETICION DE INTERES PARTICULAR",1,"GESTIONADOS"]
[3578292021,"SUBDIRECCION DE ADMINISTRACION INMOBILIARIA Y DE ESPACIO PUBLICO","ESCRITO","DERECHO DE PETICION DE INTERES PARTICULAR",17,"PENDIENTE"]
[3578312021,"AREA DE ATENCION A LA CIUDADANIA","ESCRITO","DERECHO DE PETICION DE INTERES PARTICULAR",1,"GESTIONADOS"]
[3578312021,"SUBDIRECCION DE REGISTRO INMOBILIARIO","ESCRITO","DERECHO DE PETICION DE INTERES PARTICULAR",17,"GESTIONADOS"]
[3578462021,"AREA DE ATENCION A LA CIUDADANIA","ESCRITO","DERECHO DE PETICION DE INTERES GENERAL",1,"GESTIONADOS"]
[3578462021,"SUBDIRECCION DE ADMINISTRACION INMOBILIARIA Y DE ESPACIO PUBLICO","ESCRITO","DERECHO DE PETICION DE INTERES GENERAL",17,"PENDIENTE"]
[3581102021,"AREA DE ATENCION A LA CIUDADANIA","WEB","DERECHO DE PETICION DE INTERES GENERAL",1,"GESTIONADOS"]
[3582832021,"AREA DE ATENCION A LA CIUDADANIA","BUZON","DERECHO DE PETICION DE INTERES GENERAL",1,"GESTIONADOS"]
[3583222021,"AREA DE ATENCION A LA CIUDADANIA","WEB","DERECHO DE PETICION DE INTERES GENERAL",1,"GESTIONADOS"]
[3584422021,"AREA DE ATENCION A LA CIUDADANIA","E-MAIL","DERECHO DE PETICION DE INTERES PARTICULAR",1,"GESTIONADOS"]
[3584422021,"SUBDIRECCION DE ADMINISTRACION INMOBILIARIA Y DE ESPACIO PUBLICO","E-MAIL","DERECHO DE PETICION DE INTERES PARTICULAR",17,"PENDIENTE"]
[3584952021,"AREA DE ATENCION A LA CIUDADANIA","WEB","DERECHO DE PETICION DE INTERES GENERAL",2,"GESTIONADOS"]
[3585332021,"AREA DE ATENCION A LA CIUDADANIA","WEB","DERECHO DE PETICION DE INTERES GENERAL",1,"GESTIONADOS"]
[3585332021,"SUBDIRECCION ADMINISTRATIVA  FINANCIERA Y DE CONTROL DISCIPLINARIO","WEB","DERECHO DE PETICION DE INTERES GENERAL",1,"GESTIONADOS"]
[3585332021,"SUBDIRECCION DE ADMINISTRACION INMOBILIARIA Y DE ESPACIO PUBLICO","WEB","DERECHO DE PETICION DE INTERES GENERAL",17,"PENDIENTE"]
[3588902021,"AREA DE ATENCION A LA CIUDADANIA","ESCRITO","DERECHO DE PETICION DE INTERES PARTICULAR",1,"GESTIONADOS"]
[3588902021,"SUBDIRECCION DE ADMINISTRACION INMOBILIARIA Y DE ESPACIO PUBLICO","ESCRITO","DERECHO DE PETICION DE INTERES PARTICULAR",17,"PENDIENTE"]
[3589302021,"AREA DE ATENCION A LA CIUDADANIA","ESCRITO","DERECHO DE PETICION DE INTERES PARTICULAR",1,"GESTIONADOS"]
[3589302021,"SUBDIRECCION DE ADMINISTRACION INMOBILIARIA Y DE ESPACIO PUBLICO","ESCRITO","DERECHO DE PETICION DE INTERES PARTICULAR",17,"PENDIENTE"]
[3589462021,"AREA DE ATENCION A LA CIUDADANIA","ESCRITO","DERECHO DE PETICION DE INTERES PARTICULAR",1,"GESTIONADOS"]
[3589462021,"SUBDIRECCION DE ADMINISTRACION INMOBILIARIA Y DE ESPACIO PUBLICO","ESCRITO","DERECHO DE PETICION DE INTERES PARTICULAR",17,"PENDIENTE"]
[3589602021,"AREA DE ATENCION A LA CIUDADANIA","WEB","DERECHO DE PETICION DE INTERES GENERAL",1,"GESTIONADOS"]
[3589602021,"SUBDIRECCION ADMINISTRATIVA  FINANCIERA Y DE CONTROL DISCIPLINARIO","WEB","DERECHO DE PETICION DE INTERES GENERAL",1,"GESTIONADOS"]
[3590122021,"AREA DE ATENCION A LA CIUDADANIA","ESCRITO","DERECHO DE PETICION DE INTERES PARTICULAR",1,"GESTIONADOS"]
[3590122021,"SUBDIRECCION DE ADMINISTRACION INMOBILIARIA Y DE ESPACIO PUBLICO","ESCRITO","DERECHO DE PETICION DE INTERES PARTICULAR",17,"PENDIENTE"]
[3590342021,"AREA DE ATENCION A LA CIUDADANIA","WEB","QUEJA",1,"GESTIONADOS"]
[3590342021,"SUBDIRECCION DE ADMINISTRACION INMOBILIARIA Y DE ESPACIO PUBLICO","WEB","QUEJA",17,"PENDIENTE"]
[3590452021,"AREA DE ATENCION A LA CIUDADANIA","WEB","QUEJA",1,"GESTIONADOS"]
[3590472021,"AREA DE ATENCION A LA CIUDADANIA","WEB","CONSULTA",1,"GESTIONADOS"]
[3591552021,"AREA DE ATENCION A LA CIUDADANIA","TELEFONO","DERECHO DE PETICION DE INTERES PARTICULAR",1,"GESTIONADOS"]
[3591552021,"SUBDIRECCION DE ADMINISTRACION INMOBILIARIA Y DE ESPACIO PUBLICO","TELEFONO","DERECHO DE PETICION DE INTERES PARTICULAR",17,"PENDIENTE"]
[3593202021,"AREA DE ATENCION A LA CIUDADANIA","TELEFONO","DERECHO DE PETICION DE INTERES GENERAL",1,"GESTIONADOS"]
[3593202021,"SUBDIRECCION DE ADMINISTRACION INMOBILIARIA Y DE ESPACIO PUBLICO","TELEFONO","DERECHO DE PETICION DE INTERES GENERAL",17,"PENDIENTE"]
[3593332021,"AREA DE ATENCION A LA CIUDADANIA","WEB","CONSULTA",1,"GESTIONADOS"]
[3593332021,"SUBDIRECCION DE REGISTRO INMOBILIARIO","WEB","CONSULTA",17,"PENDIENTE"]
[3600372021,"AREA DE ATENCION A LA CIUDADANIA","E-MAIL","DERECHO DE PETICION DE INTERES PARTICULAR",1,"GESTIONADOS"]
[3600632021,"AREA DE ATENCION A LA CIUDADANIA","TELEFONO","DERECHO DE PETICION DE INTERES GENERAL",1,"GESTIONADOS"]
[3602222021,"AREA DE ATENCION A LA CIUDADANIA","WEB","DERECHO DE PETICION DE INTERES PARTICULAR",1,"GESTIONADOS"]
[3603322021,"AREA DE ATENCION A LA CIUDADANIA","ESCRITO","DERECHO DE PETICION DE INTERES PARTICULAR",1,"GESTIONADOS"]
[3603322021,"SUBDIRECCION DE ADMINISTRACION INMOBILIARIA Y DE ESPACIO PUBLICO","ESCRITO","DERECHO DE PETICION DE INTERES PARTICULAR",16,"PENDIENTE"]
[3603612021,"AREA DE ATENCION A LA CIUDADANIA","ESCRITO","DERECHO DE PETICION DE INTERES PARTICULAR",1,"GESTIONADOS"]
[3603612021,"SUBDIRECCION ADMINISTRATIVA  FINANCIERA Y DE CONTROL DISCIPLINARIO","ESCRITO","DERECHO DE PETICION DE INTERES PARTICULAR",1,"GESTIONADOS"]
[3603612021,"SUBDIRECCION ADMINISTRATIVA Y FINANCIERA","ESCRITO","DERECHO DE PETICION DE INTERES PARTICULAR",7,"GESTIONADOS"]
[3603712021,"AREA DE ATENCION A LA CIUDADANIA","ESCRITO","DERECHO DE PETICION DE INTERES PARTICULAR",1,"GESTIONADOS"]
[3603712021,"SUBDIRECCION ADMINISTRATIVA  FINANCIERA Y DE CONTROL DISCIPLINARIO","ESCRITO","DERECHO DE PETICION DE INTERES PARTICULAR",1,"GESTIONADOS"]
[3603712021,"SUBDIRECCION ADMINISTRATIVA Y FINANCIERA","ESCRITO","DERECHO DE PETICION DE INTERES PARTICULAR",7,"GESTIONADOS"]
[3603962021,"AREA DE ATENCION A LA CIUDADANIA","ESCRITO","DERECHO DE PETICION DE INTERES PARTICULAR",1,"GESTIONADOS"]
[3603962021,"SUBDIRECCION ADMINISTRATIVA  FINANCIERA Y DE CONTROL DISCIPLINARIO","ESCRITO","DERECHO DE PETICION DE INTERES PARTICULAR",1,"GESTIONADOS"]
[3603962021,"SUBDIRECCION ADMINISTRATIVA Y FINANCIERA","ESCRITO","DERECHO DE PETICION DE INTERES PARTICULAR",7,"GESTIONADOS"]
[3604142021,"AREA DE ATENCION A LA CIUDADANIA","ESCRITO","DERECHO DE PETICION DE INTERES PARTICULAR",1,"GESTIONADOS"]
[3604142021,"SUBDIRECCION DE ADMINISTRACION INMOBILIARIA Y DE ESPACIO PUBLICO","ESCRITO","DERECHO DE PETICION DE INTERES PARTICULAR",16,"PENDIENTE"]
[3604332021,"AREA DE ATENCION A LA CIUDADANIA","ESCRITO","DERECHO DE PETICION DE INTERES PARTICULAR",1,"GESTIONADOS"]
[3604332021,"SUBDIRECCION DE ADMINISTRACION INMOBILIARIA Y DE ESPACIO PUBLICO","ESCRITO","DERECHO DE PETICION DE INTERES PARTICULAR",16,"PENDIENTE"]
[3604802021,"AREA DE ATENCION A LA CIUDADANIA","ESCRITO","DERECHO DE PETICION DE INTERES PARTICULAR",1,"GESTIONADOS"]
[3604802021,"SUBDIRECCION DE ADMINISTRACION INMOBILIARIA Y DE ESPACIO PUBLICO","ESCRITO","DERECHO DE PETICION DE INTERES PARTICULAR",16,"PENDIENTE"]
[3604942021,"AREA DE ATENCION A LA CIUDADANIA","ESCRITO","DERECHO DE PETICION DE INTERES PARTICULAR",1,"GESTIONADOS"]
[3604942021,"SUBDIRECCION DE ADMINISTRACION INMOBILIARIA Y DE ESPACIO PUBLICO","ESCRITO","DERECHO DE PETICION DE INTERES PARTICULAR",16,"PENDIENTE"]
[3605092021,"AREA DE ATENCION A LA CIUDADANIA","ESCRITO","DERECHO DE PETICION DE INTERES PARTICULAR",1,"GESTIONADOS"]
[3605092021,"SUBDIRECCION ADMINISTRATIVA Y FINANCIERA","ESCRITO","DERECHO DE PETICION DE INTERES PARTICULAR",7,"GESTIONADOS"]
[3605092021,"SUBDIRECCION DE ADMINISTRACION INMOBILIARIA Y DE ESPACIO PUBLICO","ESCRITO","DERECHO DE PETICION DE INTERES PARTICULAR",3,"GESTIONADOS"]
[3605222021,"AREA DE ATENCION A LA CIUDADANIA","ESCRITO","DERECHO DE PETICION DE INTERES PARTICULAR",1,"GESTIONADOS"]
[3605222021,"SUBDIRECCION DE ADMINISTRACION INMOBILIARIA Y DE ESPACIO PUBLICO","ESCRITO","DERECHO DE PETICION DE INTERES PARTICULAR",16,"PENDIENTE"]
[3605222021,"SUBDIRECCION DE REGISTRO INMOBILIARIO","ESCRITO","DERECHO DE PETICION DE INTERES PARTICULAR",12,"GESTIONADOS"]
[3605472021,"AREA DE ATENCION A LA CIUDADANIA","ESCRITO","DERECHO DE PETICION DE INTERES PARTICULAR",1,"GESTIONADOS"]
[3605472021,"SUBDIRECCION DE ADMINISTRACION INMOBILIARIA Y DE ESPACIO PUBLICO","ESCRITO","DERECHO DE PETICION DE INTERES PARTICULAR",16,"PENDIENTE"]
[3608142021,"AREA DE ATENCION A LA CIUDADANIA","WEB","DERECHO DE PETICION DE INTERES GENERAL",1,"GESTIONADOS"]
[3609012021,"AREA DE ATENCION A LA CIUDADANIA","ESCRITO","DERECHO DE PETICION DE INTERES PARTICULAR",1,"GESTIONADOS"]
[3609012021,"SUBDIRECCION DE ADMINISTRACION INMOBILIARIA Y DE ESPACIO PUBLICO","ESCRITO","DERECHO DE PETICION DE INTERES PARTICULAR",16,"PENDIENTE"]
[3609152021,"AREA DE ATENCION A LA CIUDADANIA","ESCRITO","DERECHO DE PETICION DE INTERES GENERAL",1,"GESTIONADOS"]
[3609152021,"SUBDIRECCION DE REGISTRO INMOBILIARIO","ESCRITO","DERECHO DE PETICION DE INTERES GENERAL",16,"PENDIENTE"]
[3609192021,"AREA DE ATENCION A LA CIUDADANIA","WEB","DERECHO DE PETICION DE INTERES GENERAL",1,"GESTIONADOS"]
[3609222021,"AREA DE ATENCION A LA CIUDADANIA","PRESENCIAL","DERECHO DE PETICION DE INTERES PARTICULAR",1,"GESTIONADOS"]
[3609282021,"AREA DE ATENCION A LA CIUDADANIA","ESCRITO","DERECHO DE PETICION DE INTERES PARTICULAR",1,"GESTIONADOS"]
[3609282021,"SUBDIRECCION DE ADMINISTRACION INMOBILIARIA Y DE ESPACIO PUBLICO","ESCRITO","DERECHO DE PETICION DE INTERES PARTICULAR",16,"PENDIENTE"]
[3609352021,"AREA DE ATENCION A LA CIUDADANIA","ESCRITO","DERECHO DE PETICION DE INTERES PARTICULAR",1,"GESTIONADOS"]
[3609352021,"SUBDIRECCION DE ADMINISTRACION INMOBILIARIA Y DE ESPACIO PUBLICO","ESCRITO","DERECHO DE PETICION DE INTERES PARTICULAR",16,"PENDIENTE"]
[3609422021,"AREA DE ATENCION A LA CIUDADANIA","ESCRITO","DERECHO DE PETICION DE INTERES PARTICULAR",1,"GESTIONADOS"]
[3609422021,"SUBDIRECCION DE ADMINISTRACION INMOBILIARIA Y DE ESPACIO PUBLICO","ESCRITO","DERECHO DE PETICION DE INTERES PARTICULAR",16,"PENDIENTE"]
[3609502021,"AREA DE ATENCION A LA CIUDADANIA","ESCRITO","DERECHO DE PETICION DE INTERES PARTICULAR",1,"GESTIONADOS"]
[3609502021,"SUBDIRECCION DE ADMINISTRACION INMOBILIARIA Y DE ESPACIO PUBLICO","ESCRITO","DERECHO DE PETICION DE INTERES PARTICULAR",16,"PENDIENTE"]
[3609702021,"AREA DE ATENCION A LA CIUDADANIA","ESCRITO","DERECHO DE PETICION DE INTERES PARTICULAR",1,"GESTIONADOS"]
[3609702021,"SUBDIRECCION DE ADMINISTRACION INMOBILIARIA Y DE ESPACIO PUBLICO","ESCRITO","DERECHO DE PETICION DE INTERES PARTICULAR",16,"PENDIENTE"]
[3609792021,"AREA DE ATENCION A LA CIUDADANIA","ESCRITO","DERECHO DE PETICION DE INTERES PARTICULAR",1,"GESTIONADOS"]
[3609792021,"SUBDIRECCION ADMINISTRATIVA Y FINANCIERA","ESCRITO","DERECHO DE PETICION DE INTERES PARTICULAR",7,"GESTIONADOS"]
[3609912021,"AREA DE ATENCION A LA CIUDADANIA","ESCRITO","DERECHO DE PETICION DE INTERES PARTICULAR",1,"GESTIONADOS"]
[3609912021,"SUBDIRECCION DE REGISTRO INMOBILIARIO","ESCRITO","DERECHO DE PETICION DE INTERES PARTICULAR",16,"GESTIONADOS"]
[3610022021,"AREA DE ATENCION A LA CIUDADANIA","ESCRITO","DERECHO DE PETICION DE INTERES PARTICULAR",1,"GESTIONADOS"]
[3610022021,"SUBDIRECCION DE ADMINISTRACION INMOBILIARIA Y DE ESPACIO PUBLICO","ESCRITO","DERECHO DE PETICION DE INTERES PARTICULAR",16,"PENDIENTE"]
[3610092021,"AREA DE ATENCION A LA CIUDADANIA","WEB","DERECHO DE PETICION DE INTERES PARTICULAR",1,"GESTIONADOS"]
[3610252021,"AREA DE ATENCION A LA CIUDADANIA","ESCRITO","DERECHO DE PETICION DE INTERES PARTICULAR",1,"GESTIONADOS"]
[3610252021,"SUBDIRECCION DE REGISTRO INMOBILIARIO","ESCRITO","DERECHO DE PETICION DE INTERES PARTICULAR",16,"PENDIENTE"]
[3610462021,"AREA DE ATENCION A LA CIUDADANIA","ESCRITO","DERECHO DE PETICION DE INTERES PARTICULAR",1,"GESTIONADOS"]
[3610462021,"SUBDIRECCION DE ADMINISTRACION INMOBILIARIA Y DE ESPACIO PUBLICO","ESCRITO","DERECHO DE PETICION DE INTERES PARTICULAR",16,"PENDIENTE"]
[3610582021,"AREA DE ATENCION A LA CIUDADANIA","ESCRITO","DERECHO DE PETICION DE INTERES PARTICULAR",1,"GESTIONADOS"]
[3610582021,"SUBDIRECCION DE ADMINISTRACION INMOBILIARIA Y DE ESPACIO PUBLICO","ESCRITO","DERECHO DE PETICION DE INTERES PARTICULAR",16,"PENDIENTE"]
[3610712021,"AREA DE ATENCION A LA CIUDADANIA","ESCRITO","DERECHO DE PETICION DE INTERES PARTICULAR",1,"GESTIONADOS"]
[3610712021,"SUBDIRECCION DE ADMINISTRACION INMOBILIARIA Y DE ESPACIO PUBLICO","ESCRITO","DERECHO DE PETICION DE INTERES PARTICULAR",16,"PENDIENTE"]
[3610772021,"AREA DE ATENCION A LA CIUDADANIA","ESCRITO","DERECHO DE PETICION DE INTERES PARTICULAR",1,"GESTIONADOS"]
[3610772021,"SUBDIRECCION DE REGISTRO INMOBILIARIO","ESCRITO","DERECHO DE PETICION DE INTERES PARTICULAR",16,"PENDIENTE"]
[3610842021,"AREA DE ATENCION A LA CIUDADANIA","ESCRITO","DERECHO DE PETICION DE INTERES PARTICULAR",1,"GESTIONADOS"]
[3610842021,"SUBDIRECCION DE ADMINISTRACION INMOBILIARIA Y DE ESPACIO PUBLICO","ESCRITO","DERECHO DE PETICION DE INTERES PARTICULAR",16,"PENDIENTE"]
[3610882021,"AREA DE ATENCION A LA CIUDADANIA","ESCRITO","DERECHO DE PETICION DE INTERES PARTICULAR",1,"GESTIONADOS"]
[3610882021,"SUBDIRECCION DE ADMINISTRACION INMOBILIARIA Y DE ESPACIO PUBLICO","ESCRITO","DERECHO DE PETICION DE INTERES PARTICULAR",16,"PENDIENTE"]
[3610912021,"AREA DE ATENCION A LA CIUDADANIA","ESCRITO","DERECHO DE PETICION DE INTERES PARTICULAR",1,"GESTIONADOS"]
[3610912021,"SUBDIRECCION DE ADMINISTRACION INMOBILIARIA Y DE ESPACIO PUBLICO","ESCRITO","DERECHO DE PETICION DE INTERES PARTICULAR",16,"PENDIENTE"]
[3612752021,"AREA DE ATENCION A LA CIUDADANIA","WEB","DERECHO DE PETICION DE INTERES GENERAL",1,"GESTIONADOS"]
[3612862021,"AREA DE ATENCION A LA CIUDADANIA","WEB","DERECHO DE PETICION DE INTERES GENERAL",2,"GESTIONADOS"]
[3614782021,"AREA DE ATENCION A LA CIUDADANIA","TELEFONO","DERECHO DE PETICION DE INTERES GENERAL",1,"GESTIONADOS"]
[3615472021,"AREA DE ATENCION A LA CIUDADANIA","WEB","DERECHO DE PETICION DE INTERES PARTICULAR",1,"GESTIONADOS"]
[3616442021,"AREA DE ATENCION A LA CIUDADANIA","WEB","DERECHO DE PETICION DE INTERES PARTICULAR",1,"GESTIONADOS"]
[3616442021,"SUBDIRECCION DE ADMINISTRACION INMOBILIARIA Y DE ESPACIO PUBLICO","WEB","DERECHO DE PETICION DE INTERES PARTICULAR",16,"PENDIENTE"]
[3616612021,"AREA DE ATENCION A LA CIUDADANIA","WEB","DERECHO DE PETICION DE INTERES GENERAL",1,"GESTIONADOS"]
[3616612021,"SUBDIRECCION DE ADMINISTRACION INMOBILIARIA Y DE ESPACIO PUBLICO","WEB","DERECHO DE PETICION DE INTERES GENERAL",16,"PENDIENTE"]
[3616662021,"AREA DE ATENCION A LA CIUDADANIA","WEB","CONSULTA",1,"GESTIONADOS"]
[3616852021,"AREA DE ATENCION A LA CIUDADANIA","WEB","DERECHO DE PETICION DE INTERES GENERAL",1,"GESTIONADOS"]
[3616852021,"SUBDIRECCION ADMINISTRATIVA  FINANCIERA Y DE CONTROL DISCIPLINARIO","WEB","DERECHO DE PETICION DE INTERES GENERAL",1,"GESTIONADOS"]
[3616892021,"AREA DE ATENCION A LA CIUDADANIA","WEB","DERECHO DE PETICION DE INTERES GENERAL",1,"GESTIONADOS"]
[3616892021,"SUBDIRECCION ADMINISTRATIVA  FINANCIERA Y DE CONTROL DISCIPLINARIO","WEB","DERECHO DE PETICION DE INTERES GENERAL",1,"GESTIONADOS"]
[3617092021,"AREA DE ATENCION A LA CIUDADANIA","WEB","DERECHO DE PETICION DE INTERES GENERAL",1,"GESTIONADOS"]
[3617362021,"AREA DE ATENCION A LA CIUDADANIA","WEB","DERECHO DE PETICION DE INTERES GENERAL",1,"GESTIONADOS"]
[3617642021,"AREA DE ATENCION A LA CIUDADANIA","WEB","DERECHO DE PETICION DE INTERES GENERAL",1,"GESTIONADOS"]
[3617642021,"SUBDIRECCION DE ADMINISTRACION INMOBILIARIA Y DE ESPACIO PUBLICO","WEB","DERECHO DE PETICION DE INTERES GENERAL",16,"PENDIENTE"]
[3617662021,"AREA DE ATENCION A LA CIUDADANIA","WEB","DERECHO DE PETICION DE INTERES GENERAL",1,"GESTIONADOS"]
[3618572021,"AREA DE ATENCION A LA CIUDADANIA","WEB","CONSULTA",1,"GESTIONADOS"]
[3618572021,"SUBDIRECCION DE ADMINISTRACION INMOBILIARIA Y DE ESPACIO PUBLICO","WEB","CONSULTA",16,"PENDIENTE"]
[3618912021,"AREA DE ATENCION A LA CIUDADANIA","WEB","QUEJA",1,"GESTIONADOS"]
[3619072021,"AREA DE ATENCION A LA CIUDADANIA","WEB","DERECHO DE PETICION DE INTERES GENERAL",1,"GESTIONADOS"]
[3619072021,"SUBDIRECCION DE ADMINISTRACION INMOBILIARIA Y DE ESPACIO PUBLICO","WEB","DERECHO DE PETICION DE INTERES GENERAL",16,"PENDIENTE"]
[3619392021,"AREA DE ATENCION A LA CIUDADANIA","WEB","DERECHO DE PETICION DE INTERES PARTICULAR",2,"GESTIONADOS"]
[3620502021,"AREA DE ATENCION A LA CIUDADANIA","WEB","DERECHO DE PETICION DE INTERES PARTICULAR",1,"GESTIONADOS"]
[3620782021,"AREA DE ATENCION A LA CIUDADANIA","WEB","QUEJA",1,"GESTIONADOS"]
[3622022021,"AREA DE ATENCION A LA CIUDADANIA","WEB","DERECHO DE PETICION DE INTERES GENERAL",1,"GESTIONADOS"]
[3622042021,"AREA DE ATENCION A LA CIUDADANIA","WEB","QUEJA",1,"GESTIONADOS"]
[3622082021,"AREA DE ATENCION A LA CIUDADANIA","WEB","QUEJA",1,"GESTIONADOS"]
[3622092021,"AREA DE ATENCION A LA CIUDADANIA","WEB","DERECHO DE PETICION DE INTERES PARTICULAR",1,"GESTIONADOS"]
[3622092021,"SUBDIRECCION DE ADMINISTRACION INMOBILIARIA Y DE ESPACIO PUBLICO","WEB","DERECHO DE PETICION DE INTERES PARTICULAR",15,"PENDIENTE"]
[3625272021,"AREA DE ATENCION A LA CIUDADANIA","WEB","DERECHO DE PETICION DE INTERES GENERAL",1,"GESTIONADOS"]
[3627132021,"AREA DE ATENCION A LA CIUDADANIA","TELEFONO","DERECHO DE PETICION DE INTERES GENERAL",1,"GESTIONADOS"]
[3627132021,"SUBDIRECCION DE ADMINISTRACION INMOBILIARIA Y DE ESPACIO PUBLICO","TELEFONO","DERECHO DE PETICION DE INTERES GENERAL",15,"PENDIENTE"]
[3627542021,"AREA DE ATENCION A LA CIUDADANIA","WEB","DERECHO DE PETICION DE INTERES GENERAL",2,"GESTIONADOS"]
[3628122021,"AREA DE ATENCION A LA CIUDADANIA","WEB","DERECHO DE PETICION DE INTERES PARTICULAR",1,"GESTIONADOS"]
[3628122021,"SUBDIRECCION DE ADMINISTRACION INMOBILIARIA Y DE ESPACIO PUBLICO","WEB","DERECHO DE PETICION DE INTERES PARTICULAR",15,"PENDIENTE"]
[3628562021,"AREA DE ATENCION A LA CIUDADANIA","WEB","QUEJA",1,"GESTIONADOS"]
[3629122021,"AREA DE ATENCION A LA CIUDADANIA","WEB","DERECHO DE PETICION DE INTERES PARTICULAR",1,"GESTIONADOS"]
[3629122021,"SUBDIRECCION DE ADMINISTRACION INMOBILIARIA Y DE ESPACIO PUBLICO","WEB","DERECHO DE PETICION DE INTERES PARTICULAR",14,"PENDIENTE"]
[3629212021,"AREA DE ATENCION A LA CIUDADANIA","ESCRITO","DERECHO DE PETICION DE INTERES PARTICULAR",2,"GESTIONADOS"]
[3629212021,"SUBDIRECCION ADMINISTRATIVA  FINANCIERA Y DE CONTROL DISCIPLINARIO","ESCRITO","DERECHO DE PETICION DE INTERES PARTICULAR",2,"GESTIONADOS"]
[3629212021,"SUBDIRECCION ADMINISTRATIVA Y FINANCIERA","ESCRITO","DERECHO DE PETICION DE INTERES PARTICULAR",15,"PENDIENTE"]
[3629382021,"AREA DE ATENCION A LA CIUDADANIA","ESCRITO","DERECHO DE PETICION DE INTERES PARTICULAR",3,"GESTIONADOS"]
[3629382021,"SUBDIRECCION ADMINISTRATIVA  FINANCIERA Y DE CONTROL DISCIPLINARIO","ESCRITO","DERECHO DE PETICION DE INTERES PARTICULAR",5,"GESTIONADOS"]
[3629382021,"SUBDIRECCION ADMINISTRATIVA Y FINANCIERA","ESCRITO","DERECHO DE PETICION DE INTERES PARTICULAR",15,"PENDIENTE"]
[3629482021,"AREA DE ATENCION A LA CIUDADANIA","ESCRITO","DERECHO DE PETICION DE INTERES PARTICULAR",2,"GESTIONADOS"]
[3629482021,"SUBDIRECCION ADMINISTRATIVA  FINANCIERA Y DE CONTROL DISCIPLINARIO","ESCRITO","DERECHO DE PETICION DE INTERES PARTICULAR",2,"GESTIONADOS"]
[3629482021,"SUBDIRECCION ADMINISTRATIVA Y FINANCIERA","ESCRITO","DERECHO DE PETICION DE INTERES PARTICULAR",15,"PENDIENTE"]
[3629812021,"AREA DE ATENCION A LA CIUDADANIA","ESCRITO","DERECHO DE PETICION DE INTERES PARTICULAR",1,"GESTIONADOS"]
[3629812021,"SUBDIRECCION DE ADMINISTRACION INMOBILIARIA Y DE ESPACIO PUBLICO","ESCRITO","DERECHO DE PETICION DE INTERES PARTICULAR",15,"PENDIENTE"]
[3629962021,"AREA DE ATENCION A LA CIUDADANIA","ESCRITO","DERECHO DE PETICION DE INTERES PARTICULAR",1,"GESTIONADOS"]
[3629962021,"SUBDIRECCION DE ADMINISTRACION INMOBILIARIA Y DE ESPACIO PUBLICO","ESCRITO","DERECHO DE PETICION DE INTERES PARTICULAR",15,"PENDIENTE"]
[3630092021,"AREA DE ATENCION A LA CIUDADANIA","TELEFONO","DERECHO DE PETICION DE INTERES GENERAL",1,"GESTIONADOS"]
[3630152021,"AREA DE ATENCION A LA CIUDADANIA","ESCRITO","DERECHO DE PETICION DE INTERES PARTICULAR",1,"GESTIONADOS"]
[3630152021,"SUBDIRECCION DE ADMINISTRACION INMOBILIARIA Y DE ESPACIO PUBLICO","ESCRITO","DERECHO DE PETICION DE INTERES PARTICULAR",15,"PENDIENTE"]
[3631502021,"AREA DE ATENCION A LA CIUDADANIA","ESCRITO","DERECHO DE PETICION DE INTERES PARTICULAR",1,"GESTIONADOS"]
[3631502021,"SUBDIRECCION DE ADMINISTRACION INMOBILIARIA Y DE ESPACIO PUBLICO","ESCRITO","DERECHO DE PETICION DE INTERES PARTICULAR",15,"PENDIENTE"]
[3631622021,"AREA DE ATENCION A LA CIUDADANIA","ESCRITO","DERECHO DE PETICION DE INTERES PARTICULAR",1,"GESTIONADOS"]
[3631622021,"SUBDIRECCION DE ADMINISTRACION INMOBILIARIA Y DE ESPACIO PUBLICO","ESCRITO","DERECHO DE PETICION DE INTERES PARTICULAR",15,"PENDIENTE"]
[3631772021,"AREA DE ATENCION A LA CIUDADANIA","ESCRITO","DERECHO DE PETICION DE INTERES PARTICULAR",1,"GESTIONADOS"]
[3631772021,"SUBDIRECCION DE ADMINISTRACION INMOBILIARIA Y DE ESPACIO PUBLICO","ESCRITO","DERECHO DE PETICION DE INTERES PARTICULAR",15,"PENDIENTE"]
[3631812021,"AREA DE ATENCION A LA CIUDADANIA","WEB","DERECHO DE PETICION DE INTERES GENERAL",1,"GESTIONADOS"]
[3631902021,"AREA DE ATENCION A LA CIUDADANIA","ESCRITO","DERECHO DE PETICION DE INTERES PARTICULAR",1,"GESTIONADOS"]
[3631902021,"SUBDIRECCION DE REGISTRO INMOBILIARIO","ESCRITO","DERECHO DE PETICION DE INTERES PARTICULAR",15,"PENDIENTE"]
[3632102021,"AREA DE ATENCION A LA CIUDADANIA","ESCRITO","DERECHO DE PETICION DE INTERES PARTICULAR",1,"GESTIONADOS"]
[3632102021,"SUBDIRECCION DE REGISTRO INMOBILIARIO","ESCRITO","DERECHO DE PETICION DE INTERES PARTICULAR",14,"GESTIONADOS"]
[3633032021,"AREA DE ATENCION A LA CIUDADANIA","ESCRITO","DERECHO DE PETICION DE INTERES GENERAL",1,"GESTIONADOS"]
[3633032021,"SUBDIRECCION DE ADMINISTRACION INMOBILIARIA Y DE ESPACIO PUBLICO","ESCRITO","DERECHO DE PETICION DE INTERES GENERAL",15,"PENDIENTE"]
[3633072021,"AREA DE ATENCION A LA CIUDADANIA","ESCRITO","DERECHO DE PETICION DE INTERES PARTICULAR",1,"GESTIONADOS"]
[3633072021,"SUBDIRECCION DE REGISTRO INMOBILIARIO","ESCRITO","DERECHO DE PETICION DE INTERES PARTICULAR",15,"PENDIENTE"]
[3633162021,"AREA DE ATENCION A LA CIUDADANIA","ESCRITO","DERECHO DE PETICION DE INTERES PARTICULAR",1,"GESTIONADOS"]
[3633162021,"SUBDIRECCION DE ADMINISTRACION INMOBILIARIA Y DE ESPACIO PUBLICO","ESCRITO","DERECHO DE PETICION DE INTERES PARTICULAR",15,"PENDIENTE"]
[3633412021,"AREA DE ATENCION A LA CIUDADANIA","ESCRITO","DERECHO DE PETICION DE INTERES PARTICULAR",1,"GESTIONADOS"]
[3633412021,"SUBDIRECCION DE ADMINISTRACION INMOBILIARIA Y DE ESPACIO PUBLICO","ESCRITO","DERECHO DE PETICION DE INTERES PARTICULAR",15,"PENDIENTE"]
[3633522021,"AREA DE ATENCION A LA CIUDADANIA","ESCRITO","DERECHO DE PETICION DE INTERES PARTICULAR",1,"GESTIONADOS"]
[3633522021,"SUBDIRECCION DE ADMINISTRACION INMOBILIARIA Y DE ESPACIO PUBLICO","ESCRITO","DERECHO DE PETICION DE INTERES PARTICULAR",15,"PENDIENTE"]
[3633762021,"AREA DE ATENCION A LA CIUDADANIA","ESCRITO","DERECHO DE PETICION DE INTERES PARTICULAR",1,"GESTIONADOS"]
[3633762021,"SUBDIRECCION DE ADMINISTRACION INMOBILIARIA Y DE ESPACIO PUBLICO","ESCRITO","DERECHO DE PETICION DE INTERES PARTICULAR",15,"PENDIENTE"]
[3633962021,"AREA DE ATENCION A LA CIUDADANIA","ESCRITO","DERECHO DE PETICION DE INTERES PARTICULAR",1,"GESTIONADOS"]
[3633962021,"SUBDIRECCION DE ADMINISTRACION INMOBILIARIA Y DE ESPACIO PUBLICO","ESCRITO","DERECHO DE PETICION DE INTERES PARTICULAR",15,"PENDIENTE"]
[3638072021,"AREA DE ATENCION A LA CIUDADANIA","ESCRITO","DERECHO DE PETICION DE INTERES PARTICULAR",1,"GESTIONADOS"]
[3638072021,"SUBDIRECCION DE ADMINISTRACION INMOBILIARIA Y DE ESPACIO PUBLICO","ESCRITO","DERECHO DE PETICION DE INTERES PARTICULAR",15,"PENDIENTE"]
[3638362021,"AREA DE ATENCION A LA CIUDADANIA","WEB","DERECHO DE PETICION DE INTERES GENERAL",1,"GESTIONADOS"]
[3638462021,"AREA DE ATENCION A LA CIUDADANIA","WEB","DERECHO DE PETICION DE INTERES GENERAL",1,"GESTIONADOS"]
[3639112021,"AREA DE ATENCION A LA CIUDADANIA","WEB","DERECHO DE PETICION DE INTERES GENERAL",1,"GESTIONADOS"]
[3639122021,"AREA DE ATENCION A LA CIUDADANIA","WEB","DERECHO DE PETICION DE INTERES PARTICULAR",1,"GESTIONADOS"]
[3639182021,"AREA DE ATENCION A LA CIUDADANIA","ESCRITO","DERECHO DE PETICION DE INTERES PARTICULAR",1,"GESTIONADOS"]
[3639182021,"SUBDIRECCION DE ADMINISTRACION INMOBILIARIA Y DE ESPACIO PUBLICO","ESCRITO","DERECHO DE PETICION DE INTERES PARTICULAR",15,"PENDIENTE"]
[3639192021,"AREA DE ATENCION A LA CIUDADANIA","ESCRITO","DERECHO DE PETICION DE INTERES PARTICULAR",1,"GESTIONADOS"]
[3639192021,"SUBDIRECCION DE ADMINISTRACION INMOBILIARIA Y DE ESPACIO PUBLICO","ESCRITO","DERECHO DE PETICION DE INTERES PARTICULAR",15,"PENDIENTE"]
[3639252021,"AREA DE ATENCION A LA CIUDADANIA","ESCRITO","DERECHO DE PETICION DE INTERES PARTICULAR",1,"GESTIONADOS"]
[3639252021,"SUBDIRECCION DE ADMINISTRACION INMOBILIARIA Y DE ESPACIO PUBLICO","ESCRITO","DERECHO DE PETICION DE INTERES PARTICULAR",15,"PENDIENTE"]
[3639272021,"AREA DE ATENCION A LA CIUDADANIA","ESCRITO","DERECHO DE PETICION DE INTERES PARTICULAR",1,"GESTIONADOS"]
[3639272021,"SUBDIRECCION DE REGISTRO INMOBILIARIO","ESCRITO","DERECHO DE PETICION DE INTERES PARTICULAR",15,"PENDIENTE"]
[3639302021,"AREA DE ATENCION A LA CIUDADANIA","ESCRITO","DERECHO DE PETICION DE INTERES PARTICULAR",1,"GESTIONADOS"]
[3639302021,"SUBDIRECCION DE REGISTRO INMOBILIARIO","ESCRITO","DERECHO DE PETICION DE INTERES PARTICULAR",15,"PENDIENTE"]
[3639332021,"AREA DE ATENCION A LA CIUDADANIA","ESCRITO","DERECHO DE PETICION DE INTERES PARTICULAR",1,"GESTIONADOS"]
[3639332021,"SUBDIRECCION DE ADMINISTRACION INMOBILIARIA Y DE ESPACIO PUBLICO","ESCRITO","DERECHO DE PETICION DE INTERES PARTICULAR",15,"PENDIENTE"]
[3641462021,"AREA DE ATENCION A LA CIUDADANIA","WEB","DERECHO DE PETICION DE INTERES GENERAL",14,"PENDIENTE"]
[3641462021,"SUBDIRECCION ADMINISTRATIVA  FINANCIERA Y DE CONTROL DISCIPLINARIO","WEB","DERECHO DE PETICION DE INTERES GENERAL",1,"GESTIONADOS"]
[3641962021,"AREA DE ATENCION A LA CIUDADANIA","WEB","DERECHO DE PETICION DE INTERES GENERAL",1,"GESTIONADOS"]
[3641962021,"SUBDIRECCION ADMINISTRATIVA  FINANCIERA Y DE CONTROL DISCIPLINARIO","WEB","DERECHO DE PETICION DE INTERES GENERAL",1,"GESTIONADOS"]
[3641962021,"SUBDIRECCION DE ADMINISTRACION INMOBILIARIA Y DE ESPACIO PUBLICO","WEB","DERECHO DE PETICION DE INTERES GENERAL",14,"PENDIENTE"]
[3642462021,"AREA DE ATENCION A LA CIUDADANIA","WEB","QUEJA",1,"GESTIONADOS"]
[3643272021,"AREA DE ATENCION A LA CIUDADANIA","WEB","DERECHO DE PETICION DE INTERES GENERAL",1,"GESTIONADOS"]
[3643752021,"AREA DE ATENCION A LA CIUDADANIA","TELEFONO","DERECHO DE PETICION DE INTERES GENERAL",1,"GESTIONADOS"]
[3644262021,"AREA DE ATENCION A LA CIUDADANIA","WEB","DERECHO DE PETICION DE INTERES GENERAL",1,"GESTIONADOS"]
[3646582021,"AREA DE ATENCION A LA CIUDADANIA","WEB","CONSULTA",1,"GESTIONADOS"]
[3646582021,"SUBDIRECCION DE ADMINISTRACION INMOBILIARIA Y DE ESPACIO PUBLICO","WEB","CONSULTA",14,"PENDIENTE"]
[3646962021,"AREA DE ATENCION A LA CIUDADANIA","WEB","DERECHO DE PETICION DE INTERES PARTICULAR",3,"GESTIONADOS"]
[3646962021,"SUBDIRECCION DE ADMINISTRACION INMOBILIARIA Y DE ESPACIO PUBLICO","WEB","DERECHO DE PETICION DE INTERES PARTICULAR",14,"PENDIENTE"]
[3648522021,"AREA DE ATENCION A LA CIUDADANIA","WEB","DERECHO DE PETICION DE INTERES PARTICULAR",1,"GESTIONADOS"]
[3648522021,"SUBDIRECCION DE ADMINISTRACION INMOBILIARIA Y DE ESPACIO PUBLICO","WEB","DERECHO DE PETICION DE INTERES PARTICULAR",14,"PENDIENTE"]
[3648572021,"AREA DE ATENCION A LA CIUDADANIA","ESCRITO","DERECHO DE PETICION DE INTERES PARTICULAR",1,"GESTIONADOS"]
[3648572021,"SUBDIRECCION DE ADMINISTRACION INMOBILIARIA Y DE ESPACIO PUBLICO","ESCRITO","DERECHO DE PETICION DE INTERES PARTICULAR",14,"PENDIENTE"]
[3648682021,"AREA DE ATENCION A LA CIUDADANIA","WEB","QUEJA",1,"GESTIONADOS"]
[3648682021,"SUBDIRECCION DE ADMINISTRACION INMOBILIARIA Y DE ESPACIO PUBLICO","WEB","QUEJA",14,"PENDIENTE"]
[3648742021,"AREA DE ATENCION A LA CIUDADANIA","ESCRITO","DERECHO DE PETICION DE INTERES PARTICULAR",1,"GESTIONADOS"]
[3648742021,"SUBDIRECCION DE ADMINISTRACION INMOBILIARIA Y DE ESPACIO PUBLICO","ESCRITO","DERECHO DE PETICION DE INTERES PARTICULAR",14,"PENDIENTE"]
[3650252021,"AREA DE ATENCION A LA CIUDADANIA","ESCRITO","DERECHO DE PETICION DE INTERES PARTICULAR",1,"GESTIONADOS"]
[3650252021,"DESPACHO","ESCRITO","DERECHO DE PETICION DE INTERES PARTICULAR",1,"GESTIONADOS"]
[3650252021,"SUBDIRECCION DE ADMINISTRACION INMOBILIARIA Y DE ESPACIO PUBLICO","ESCRITO","DERECHO DE PETICION DE INTERES PARTICULAR",14,"PENDIENTE"]
[3650362021,"AREA DE ATENCION A LA CIUDADANIA","ESCRITO","DERECHO DE PETICION DE INTERES PARTICULAR",1,"GESTIONADOS"]
[3650362021,"SUBDIRECCION DE ADMINISTRACION INMOBILIARIA Y DE ESPACIO PUBLICO","ESCRITO","DERECHO DE PETICION DE INTERES PARTICULAR",14,"PENDIENTE"]
[3650582021,"AREA DE ATENCION A LA CIUDADANIA","ESCRITO","DERECHO DE PETICION DE INTERES PARTICULAR",1,"GESTIONADOS"]
[3650582021,"SUBDIRECCION DE ADMINISTRACION INMOBILIARIA Y DE ESPACIO PUBLICO","ESCRITO","DERECHO DE PETICION DE INTERES PARTICULAR",14,"PENDIENTE"]
[3650732021,"AREA DE ATENCION A LA CIUDADANIA","ESCRITO","DERECHO DE PETICION DE INTERES PARTICULAR",1,"GESTIONADOS"]
[3650732021,"SUBDIRECCION DE ADMINISTRACION INMOBILIARIA Y DE ESPACIO PUBLICO","ESCRITO","DERECHO DE PETICION DE INTERES PARTICULAR",14,"PENDIENTE"]
[3650872021,"AREA DE ATENCION A LA CIUDADANIA","ESCRITO","DERECHO DE PETICION DE INTERES PARTICULAR",1,"GESTIONADOS"]
[3650872021,"SUBDIRECCION DE ADMINISTRACION INMOBILIARIA Y DE ESPACIO PUBLICO","ESCRITO","DERECHO DE PETICION DE INTERES PARTICULAR",14,"PENDIENTE"]
[3650912021,"AREA DE ATENCION A LA CIUDADANIA","ESCRITO","DERECHO DE PETICION DE INTERES PARTICULAR",1,"GESTIONADOS"]
[3650912021,"SUBDIRECCION DE ADMINISTRACION INMOBILIARIA Y DE ESPACIO PUBLICO","ESCRITO","DERECHO DE PETICION DE INTERES PARTICULAR",14,"PENDIENTE"]
[3650942021,"AREA DE ATENCION A LA CIUDADANIA","ESCRITO","DERECHO DE PETICION DE INTERES PARTICULAR",1,"GESTIONADOS"]
[3650942021,"SUBDIRECCION DE ADMINISTRACION INMOBILIARIA Y DE ESPACIO PUBLICO","ESCRITO","DERECHO DE PETICION DE INTERES PARTICULAR",14,"PENDIENTE"]
[3651022021,"AREA DE ATENCION A LA CIUDADANIA","ESCRITO","DERECHO DE PETICION DE INTERES PARTICULAR",1,"GESTIONADOS"]
[3651022021,"SUBDIRECCION DE ADMINISTRACION INMOBILIARIA Y DE ESPACIO PUBLICO","ESCRITO","DERECHO DE PETICION DE INTERES PARTICULAR",14,"PENDIENTE"]
[3654732021,"AREA DE ATENCION A LA CIUDADANIA","WEB","DERECHO DE PETICION DE INTERES PARTICULAR",1,"GESTIONADOS"]
[3654732021,"SUBDIRECCION DE ADMINISTRACION INMOBILIARIA Y DE ESPACIO PUBLICO","WEB","DERECHO DE PETICION DE INTERES PARTICULAR",10,"PENDIENTE"]
[3655602021,"AREA DE ATENCION A LA CIUDADANIA","WEB","DERECHO DE PETICION DE INTERES GENERAL",1,"GESTIONADOS"]
[3655852021,"AREA DE ATENCION A LA CIUDADANIA","WEB","DERECHO DE PETICION DE INTERES GENERAL",1,"GESTIONADOS"]
[3656392021,"AREA DE ATENCION A LA CIUDADANIA","WEB","DERECHO DE PETICION DE INTERES GENERAL",1,"GESTIONADOS"]
[3657032021,"AREA DE ATENCION A LA CIUDADANIA","WEB","DERECHO DE PETICION DE INTERES GENERAL",1,"GESTIONADOS"]
[3657032021,"SUBDIRECCION DE ADMINISTRACION INMOBILIARIA Y DE ESPACIO PUBLICO","WEB","DERECHO DE PETICION DE INTERES GENERAL",14,"PENDIENTE"]
[3657052021,"AREA DE ATENCION A LA CIUDADANIA","WEB","DERECHO DE PETICION DE INTERES PARTICULAR",1,"GESTIONADOS"]
[3657182021,"AREA DE ATENCION A LA CIUDADANIA","WEB","DERECHO DE PETICION DE INTERES GENERAL",1,"GESTIONADOS"]
[3657282021,"AREA DE ATENCION A LA CIUDADANIA","WEB","DERECHO DE PETICION DE INTERES GENERAL",1,"GESTIONADOS"]
[3657582021,"AREA DE ATENCION A LA CIUDADANIA","WEB","DERECHO DE PETICION DE INTERES PARTICULAR",1,"GESTIONADOS"]
[3658862021,"AREA DE ATENCION A LA CIUDADANIA","ESCRITO","DERECHO DE PETICION DE INTERES GENERAL",1,"GESTIONADOS"]
[3658862021,"SUBDIRECCION DE ADMINISTRACION INMOBILIARIA Y DE ESPACIO PUBLICO","ESCRITO","DERECHO DE PETICION DE INTERES GENERAL",12,"PENDIENTE"]
[3658952021,"AREA DE ATENCION A LA CIUDADANIA","ESCRITO","DERECHO DE PETICION DE INTERES GENERAL",1,"GESTIONADOS"]
[3658952021,"SUBDIRECCION DE ADMINISTRACION INMOBILIARIA Y DE ESPACIO PUBLICO","ESCRITO","DERECHO DE PETICION DE INTERES GENERAL",12,"PENDIENTE"]
[3661682021,"AREA DE ATENCION A LA CIUDADANIA","WEB","DERECHO DE PETICION DE INTERES GENERAL",1,"GESTIONADOS"]
[3662482021,"AREA DE ATENCION A LA CIUDADANIA","WEB","DERECHO DE PETICION DE INTERES GENERAL",1,"GESTIONADOS"]
[3662482021,"SUBDIRECCION DE ADMINISTRACION INMOBILIARIA Y DE ESPACIO PUBLICO","WEB","DERECHO DE PETICION DE INTERES GENERAL",13,"PENDIENTE"]
[3663212021,"AREA DE ATENCION A LA CIUDADANIA","WEB","QUEJA",1,"GESTIONADOS"]
[3664582021,"AREA DE ATENCION A LA CIUDADANIA","WEB","DERECHO DE PETICION DE INTERES PARTICULAR",1,"GESTIONADOS"]
[3665952021,"AREA DE ATENCION A LA CIUDADANIA","WEB","DERECHO DE PETICION DE INTERES GENERAL",1,"GESTIONADOS"]
[3665952021,"SUBDIRECCION ADMINISTRATIVA  FINANCIERA Y DE CONTROL DISCIPLINARIO","WEB","DERECHO DE PETICION DE INTERES GENERAL",1,"GESTIONADOS"]
[3667062021,"AREA DE ATENCION A LA CIUDADANIA","WEB","DERECHO DE PETICION DE INTERES PARTICULAR",1,"GESTIONADOS"]
[3667062021,"SUBDIRECCION DE ADMINISTRACION INMOBILIARIA Y DE ESPACIO PUBLICO","WEB","DERECHO DE PETICION DE INTERES PARTICULAR",13,"PENDIENTE"]
[3668112021,"AREA DE ATENCION A LA CIUDADANIA","WEB","DERECHO DE PETICION DE INTERES PARTICULAR",1,"GESTIONADOS"]
[3668112021,"SUBDIRECCION DE REGISTRO INMOBILIARIO","WEB","DERECHO DE PETICION DE INTERES PARTICULAR",13,"PENDIENTE"]
[3668982021,"AREA DE ATENCION A LA CIUDADANIA","ESCRITO","DERECHO DE PETICION DE INTERES PARTICULAR",1,"GESTIONADOS"]
[3668982021,"SUBDIRECCION DE ADMINISTRACION INMOBILIARIA Y DE ESPACIO PUBLICO","ESCRITO","DERECHO DE PETICION DE INTERES PARTICULAR",13,"PENDIENTE"]
[3669092021,"AREA DE ATENCION A LA CIUDADANIA","ESCRITO","DERECHO DE PETICION DE INTERES PARTICULAR",1,"GESTIONADOS"]
[3669092021,"SUBDIRECCION DE ADMINISTRACION INMOBILIARIA Y DE ESPACIO PUBLICO","ESCRITO","DERECHO DE PETICION DE INTERES PARTICULAR",13,"PENDIENTE"]
[3669642021,"AREA DE ATENCION A LA CIUDADANIA","WEB","DERECHO DE PETICION DE INTERES GENERAL",1,"GESTIONADOS"]
[3669672021,"AREA DE ATENCION A LA CIUDADANIA","ESCRITO","DERECHO DE PETICION DE INTERES PARTICULAR",1,"GESTIONADOS"]
[3669672021,"SUBDIRECCION DE REGISTRO INMOBILIARIO","ESCRITO","DERECHO DE PETICION DE INTERES PARTICULAR",13,"PENDIENTE"]
[3670222021,"AREA DE ATENCION A LA CIUDADANIA","REDES SOCIALES","DERECHO DE PETICION DE INTERES PARTICULAR",1,"GESTIONADOS"]
[3670412021,"AREA DE ATENCION A LA CIUDADANIA","ESCRITO","DERECHO DE PETICION DE INTERES PARTICULAR",1,"GESTIONADOS"]
[3670412021,"SUBDIRECCION DE ADMINISTRACION INMOBILIARIA Y DE ESPACIO PUBLICO","ESCRITO","DERECHO DE PETICION DE INTERES PARTICULAR",13,"PENDIENTE"]
[3670822021,"AREA DE ATENCION A LA CIUDADANIA","WEB","DERECHO DE PETICION DE INTERES PARTICULAR",1,"GESTIONADOS"]
[3670822021,"SUBDIRECCION DE ADMINISTRACION INMOBILIARIA Y DE ESPACIO PUBLICO","WEB","DERECHO DE PETICION DE INTERES PARTICULAR",13,"PENDIENTE"]
[3672012021,"AREA DE ATENCION A LA CIUDADANIA","WEB","DERECHO DE PETICION DE INTERES PARTICULAR",1,"GESTIONADOS"]
[3672012021,"SUBDIRECCION DE REGISTRO INMOBILIARIO","WEB","DERECHO DE PETICION DE INTERES PARTICULAR",13,"PENDIENTE"]
[3672342021,"AREA DE ATENCION A LA CIUDADANIA","ESCRITO","DERECHO DE PETICION DE INTERES PARTICULAR",1,"GESTIONADOS"]
[3672342021,"SUBDIRECCION DE ADMINISTRACION INMOBILIARIA Y DE ESPACIO PUBLICO","ESCRITO","DERECHO DE PETICION DE INTERES PARTICULAR",13,"PENDIENTE"]
[3672352021,"AREA DE ATENCION A LA CIUDADANIA","ESCRITO","DERECHO DE PETICION DE INTERES PARTICULAR",1,"GESTIONADOS"]
[3672352021,"SUBDIRECCION DE ADMINISTRACION INMOBILIARIA Y DE ESPACIO PUBLICO","ESCRITO","DERECHO DE PETICION DE INTERES PARTICULAR",13,"PENDIENTE"]
[3672392021,"AREA DE ATENCION A LA CIUDADANIA","ESCRITO","DERECHO DE PETICION DE INTERES PARTICULAR",1,"GESTIONADOS"]
[3672392021,"SUBDIRECCION DE REGISTRO INMOBILIARIO","ESCRITO","DERECHO DE PETICION DE INTERES PARTICULAR",13,"PENDIENTE"]
[3672542021,"AREA DE ATENCION A LA CIUDADANIA","ESCRITO","DERECHO DE PETICION DE INTERES PARTICULAR",1,"GESTIONADOS"]
[3672542021,"SUBDIRECCION DE ADMINISTRACION INMOBILIARIA Y DE ESPACIO PUBLICO","ESCRITO","DERECHO DE PETICION DE INTERES PARTICULAR",13,"PENDIENTE"]
[3672562021,"AREA DE ATENCION A LA CIUDADANIA","WEB","DERECHO DE PETICION DE INTERES GENERAL",1,"GESTIONADOS"]
[3672572021,"AREA DE ATENCION A LA CIUDADANIA","ESCRITO","DERECHO DE PETICION DE INTERES PARTICULAR",1,"GESTIONADOS"]
[3672572021,"SUBDIRECCION DE REGISTRO INMOBILIARIO","ESCRITO","DERECHO DE PETICION DE INTERES PARTICULAR",13,"PENDIENTE"]
[3672642021,"AREA DE ATENCION A LA CIUDADANIA","ESCRITO","DERECHO DE PETICION DE INTERES PARTICULAR",1,"GESTIONADOS"]
[3672642021,"DESPACHO","ESCRITO","DERECHO DE PETICION DE INTERES PARTICULAR",13,"GESTIONADOS"]
[3672642021,"SUBDIRECCION DE ADMINISTRACION INMOBILIARIA Y DE ESPACIO PUBLICO","ESCRITO","DERECHO DE PETICION DE INTERES PARTICULAR",13,"PENDIENTE"]
[3672942021,"AREA DE ATENCION A LA CIUDADANIA","ESCRITO","DERECHO DE PETICION DE INTERES PARTICULAR",1,"GESTIONADOS"]
[3672942021,"SUBDIRECCION DE ADMINISTRACION INMOBILIARIA Y DE ESPACIO PUBLICO","ESCRITO","DERECHO DE PETICION DE INTERES PARTICULAR",13,"PENDIENTE"]
[3673002021,"AREA DE ATENCION A LA CIUDADANIA","ESCRITO","DERECHO DE PETICION DE INTERES PARTICULAR",1,"GESTIONADOS"]
[3673002021,"SUBDIRECCION DE ADMINISTRACION INMOBILIARIA Y DE ESPACIO PUBLICO","ESCRITO","DERECHO DE PETICION DE INTERES PARTICULAR",13,"PENDIENTE"]
[3674422021,"AREA DE ATENCION A LA CIUDADANIA","WEB","DERECHO DE PETICION DE INTERES PARTICULAR",1,"GESTIONADOS"]
[3674422021,"SUBDIRECCION DE ADMINISTRACION INMOBILIARIA Y DE ESPACIO PUBLICO","WEB","DERECHO DE PETICION DE INTERES PARTICULAR",12,"PENDIENTE"]
[3675912021,"AREA DE ATENCION A LA CIUDADANIA","TELEFONO","DERECHO DE PETICION DE INTERES GENERAL",1,"GESTIONADOS"]
[3675912021,"SUBDIRECCION DE ADMINISTRACION INMOBILIARIA Y DE ESPACIO PUBLICO","TELEFONO","DERECHO DE PETICION DE INTERES GENERAL",11,"PENDIENTE"]
[3675962021,"AREA DE ATENCION A LA CIUDADANIA","WEB","DERECHO DE PETICION DE INTERES GENERAL",1,"GESTIONADOS"]
[3675962021,"SUBDIRECCION DE ADMINISTRACION INMOBILIARIA Y DE ESPACIO PUBLICO","WEB","DERECHO DE PETICION DE INTERES GENERAL",12,"PENDIENTE"]
[3676092021,"AREA DE ATENCION A LA CIUDADANIA","TELEFONO","DERECHO DE PETICION DE INTERES GENERAL",1,"GESTIONADOS"]
[3676182021,"AREA DE ATENCION A LA CIUDADANIA","WEB","DERECHO DE PETICION DE INTERES GENERAL",1,"GESTIONADOS"]
[3676182021,"SUBDIRECCION DE ADMINISTRACION INMOBILIARIA Y DE ESPACIO PUBLICO","WEB","DERECHO DE PETICION DE INTERES GENERAL",12,"PENDIENTE"]
[3678262021,"AREA DE ATENCION A LA CIUDADANIA","WEB","DERECHO DE PETICION DE INTERES GENERAL",1,"GESTIONADOS"]
[3678262021,"SUBDIRECCION DE ADMINISTRACION INMOBILIARIA Y DE ESPACIO PUBLICO","WEB","DERECHO DE PETICION DE INTERES GENERAL",12,"PENDIENTE"]
[3678522021,"AREA DE ATENCION A LA CIUDADANIA","WEB","DERECHO DE PETICION DE INTERES GENERAL",1,"GESTIONADOS"]
[3679082021,"AREA DE ATENCION A LA CIUDADANIA","WEB","DERECHO DE PETICION DE INTERES GENERAL",1,"GESTIONADOS"]
[3680142021,"AREA DE ATENCION A LA CIUDADANIA","ESCRITO","DERECHO DE PETICION DE INTERES PARTICULAR",1,"GESTIONADOS"]
[3680142021,"SUBDIRECCION DE ADMINISTRACION INMOBILIARIA Y DE ESPACIO PUBLICO","ESCRITO","DERECHO DE PETICION DE INTERES PARTICULAR",12,"PENDIENTE"]
[3680192021,"AREA DE ATENCION A LA CIUDADANIA","WEB","DERECHO DE PETICION DE INTERES GENERAL",1,"GESTIONADOS"]
[3680192021,"SUBDIRECCION DE ADMINISTRACION INMOBILIARIA Y DE ESPACIO PUBLICO","WEB","DERECHO DE PETICION DE INTERES GENERAL",12,"PENDIENTE"]
[3680262021,"AREA DE ATENCION A LA CIUDADANIA","ESCRITO","DERECHO DE PETICION DE INTERES PARTICULAR",1,"GESTIONADOS"]
[3680262021,"SUBDIRECCION DE ADMINISTRACION INMOBILIARIA Y DE ESPACIO PUBLICO","ESCRITO","DERECHO DE PETICION DE INTERES PARTICULAR",12,"PENDIENTE"]
[3680322021,"AREA DE ATENCION A LA CIUDADANIA","ESCRITO","DERECHO DE PETICION DE INTERES PARTICULAR",1,"GESTIONADOS"]
[3680322021,"SUBDIRECCION DE ADMINISTRACION INMOBILIARIA Y DE ESPACIO PUBLICO","ESCRITO","DERECHO DE PETICION DE INTERES PARTICULAR",12,"PENDIENTE"]
[3680482021,"AREA DE ATENCION A LA CIUDADANIA","ESCRITO","DERECHO DE PETICION DE INTERES PARTICULAR",1,"GESTIONADOS"]
[3680482021,"SUBDIRECCION DE ADMINISTRACION INMOBILIARIA Y DE ESPACIO PUBLICO","ESCRITO","DERECHO DE PETICION DE INTERES PARTICULAR",12,"PENDIENTE"]
[3680682021,"AREA DE ATENCION A LA CIUDADANIA","WEB","DERECHO DE PETICION DE INTERES PARTICULAR",1,"GESTIONADOS"]
[3680902021,"AREA DE ATENCION A LA CIUDADANIA","ESCRITO","DERECHO DE PETICION DE INTERES PARTICULAR",1,"GESTIONADOS"]
[3681562021,"AREA DE ATENCION A LA CIUDADANIA","WEB","DERECHO DE PETICION DE INTERES PARTICULAR",1,"GESTIONADOS"]
[3681632021,"AREA DE ATENCION A LA CIUDADANIA","ESCRITO","DERECHO DE PETICION DE INTERES PARTICULAR",1,"GESTIONADOS"]
[3681632021,"OFICINA ASESORA JURIDICA","ESCRITO","DERECHO DE PETICION DE INTERES PARTICULAR",10,"GESTIONADOS"]
[3681832021,"AREA DE ATENCION A LA CIUDADANIA","REDES SOCIALES","DERECHO DE PETICION DE INTERES PARTICULAR",1,"GESTIONADOS"]
[3681912021,"AREA DE ATENCION A LA CIUDADANIA","REDES SOCIALES","DERECHO DE PETICION DE INTERES PARTICULAR",1,"GESTIONADOS"]
[3682412021,"AREA DE ATENCION A LA CIUDADANIA","WEB","DERECHO DE PETICION DE INTERES PARTICULAR",12,"PENDIENTE"]
[3682842021,"AREA DE ATENCION A LA CIUDADANIA","TELEFONO","DERECHO DE PETICION DE INTERES GENERAL",1,"GESTIONADOS"]
[3682922021,"AREA DE ATENCION A LA CIUDADANIA","WEB","DERECHO DE PETICION DE INTERES PARTICULAR",1,"GESTIONADOS"]
[3682922021,"SUBDIRECCION DE ADMINISTRACION INMOBILIARIA Y DE ESPACIO PUBLICO","WEB","DERECHO DE PETICION DE INTERES PARTICULAR",12,"PENDIENTE"]
[3683572021,"AREA DE ATENCION A LA CIUDADANIA","ESCRITO","DERECHO DE PETICION DE INTERES PARTICULAR",1,"GESTIONADOS"]
[3683572021,"SUBDIRECCION DE ADMINISTRACION INMOBILIARIA Y DE ESPACIO PUBLICO","ESCRITO","DERECHO DE PETICION DE INTERES PARTICULAR",12,"PENDIENTE"]
[3683682021,"AREA DE ATENCION A LA CIUDADANIA","ESCRITO","DERECHO DE PETICION DE INTERES PARTICULAR",1,"GESTIONADOS"]
[3683682021,"SUBDIRECCION DE REGISTRO INMOBILIARIO","ESCRITO","DERECHO DE PETICION DE INTERES PARTICULAR",12,"PENDIENTE"]
[3683822021,"AREA DE ATENCION A LA CIUDADANIA","WEB","DERECHO DE PETICION DE INTERES GENERAL",1,"GESTIONADOS"]
[3683912021,"AREA DE ATENCION A LA CIUDADANIA","ESCRITO","DERECHO DE PETICION DE INTERES PARTICULAR",1,"GESTIONADOS"]
[3683912021,"SUBDIRECCION DE ADMINISTRACION INMOBILIARIA Y DE ESPACIO PUBLICO","ESCRITO","DERECHO DE PETICION DE INTERES PARTICULAR",12,"PENDIENTE"]
[3683932021,"AREA DE ATENCION A LA CIUDADANIA","ESCRITO","DERECHO DE PETICION DE INTERES PARTICULAR",1,"GESTIONADOS"]
[3683932021,"SUBDIRECCION DE REGISTRO INMOBILIARIO","ESCRITO","DERECHO DE PETICION DE INTERES PARTICULAR",12,"PENDIENTE"]
[3683952021,"AREA DE ATENCION A LA CIUDADANIA","ESCRITO","DERECHO DE PETICION DE INTERES PARTICULAR",1,"GESTIONADOS"]
[3683952021,"SUBDIRECCION DE ADMINISTRACION INMOBILIARIA Y DE ESPACIO PUBLICO","ESCRITO","DERECHO DE PETICION DE INTERES PARTICULAR",12,"PENDIENTE"]
[3684092021,"AREA DE ATENCION A LA CIUDADANIA","ESCRITO","DERECHO DE PETICION DE INTERES PARTICULAR",1,"GESTIONADOS"]
[3684092021,"DESPACHO","ESCRITO","DERECHO DE PETICION DE INTERES PARTICULAR",4,"GESTIONADOS"]
[3684092021,"SUBDIRECCION DE ADMINISTRACION INMOBILIARIA Y DE ESPACIO PUBLICO","ESCRITO","DERECHO DE PETICION DE INTERES PARTICULAR",12,"PENDIENTE"]
[3684252021,"AREA DE ATENCION A LA CIUDADANIA","ESCRITO","DERECHO DE PETICION DE INTERES PARTICULAR",1,"GESTIONADOS"]
[3684532021,"AREA DE ATENCION A LA CIUDADANIA","E-MAIL","DERECHO DE PETICION DE INTERES PARTICULAR",1,"GESTIONADOS"]
[3686272021,"AREA DE ATENCION A LA CIUDADANIA","WEB","DERECHO DE PETICION DE INTERES PARTICULAR",1,"GESTIONADOS"]
[3686272021,"SUBDIRECCION DE ADMINISTRACION INMOBILIARIA Y DE ESPACIO PUBLICO","WEB","DERECHO DE PETICION DE INTERES PARTICULAR",12,"PENDIENTE"]
[3686412021,"AREA DE ATENCION A LA CIUDADANIA","ESCRITO","DERECHO DE PETICION DE INTERES GENERAL",1,"GESTIONADOS"]
[3686412021,"SUBDIRECCION DE ADMINISTRACION INMOBILIARIA Y DE ESPACIO PUBLICO","ESCRITO","DERECHO DE PETICION DE INTERES GENERAL",8,"PENDIENTE"]
[3687142021,"AREA DE ATENCION A LA CIUDADANIA","WEB","DERECHO DE PETICION DE INTERES GENERAL",3,"GESTIONADOS"]
[3687142021,"SUBDIRECCION ADMINISTRATIVA  FINANCIERA Y DE CONTROL DISCIPLINARIO","WEB","DERECHO DE PETICION DE INTERES GENERAL",2,"GESTIONADOS"]
[3687582021,"AREA DE ATENCION A LA CIUDADANIA","TELEFONO","DERECHO DE PETICION DE INTERES GENERAL",1,"GESTIONADOS"]
[3687582021,"SUBDIRECCION DE ADMINISTRACION INMOBILIARIA Y DE ESPACIO PUBLICO","TELEFONO","DERECHO DE PETICION DE INTERES GENERAL",12,"PENDIENTE"]
[3689622021,"AREA DE ATENCION A LA CIUDADANIA","WEB","CONSULTA",1,"GESTIONADOS"]
[3689622021,"SUBDIRECCION DE REGISTRO INMOBILIARIO","WEB","CONSULTA",11,"PENDIENTE"]
[3690422021,"AREA DE ATENCION A LA CIUDADANIA","WEB","DERECHO DE PETICION DE INTERES GENERAL",1,"GESTIONADOS"]
[3690422021,"SUBDIRECCION DE ADMINISTRACION INMOBILIARIA Y DE ESPACIO PUBLICO","WEB","DERECHO DE PETICION DE INTERES GENERAL",7,"PENDIENTE"]
[3690522021,"AREA DE ATENCION A LA CIUDADANIA","TELEFONO","DERECHO DE PETICION DE INTERES GENERAL",1,"GESTIONADOS"]
[3693802021,"AREA DE ATENCION A LA CIUDADANIA","WEB","DERECHO DE PETICION DE INTERES PARTICULAR",1,"GESTIONADOS"]
[3693802021,"SUBDIRECCION DE ADMINISTRACION INMOBILIARIA Y DE ESPACIO PUBLICO","WEB","DERECHO DE PETICION DE INTERES PARTICULAR",11,"PENDIENTE"]
[3694922021,"AREA DE ATENCION A LA CIUDADANIA","ESCRITO","DERECHO DE PETICION DE INTERES PARTICULAR",1,"GESTIONADOS"]
[3694922021,"SUBDIRECCION DE REGISTRO INMOBILIARIO","ESCRITO","DERECHO DE PETICION DE INTERES PARTICULAR",11,"PENDIENTE"]
[3695222021,"AREA DE ATENCION A LA CIUDADANIA","ESCRITO","DERECHO DE PETICION DE INTERES PARTICULAR",1,"GESTIONADOS"]
[3695222021,"OFICINA ASESORA JURIDICA","ESCRITO","DERECHO DE PETICION DE INTERES PARTICULAR",11,"GESTIONADOS"]
[3695582021,"AREA DE ATENCION A LA CIUDADANIA","WEB","DERECHO DE PETICION DE INTERES PARTICULAR",1,"GESTIONADOS"]
[3696472021,"AREA DE ATENCION A LA CIUDADANIA","ESCRITO","DERECHO DE PETICION DE INTERES PARTICULAR",1,"GESTIONADOS"]
[3696472021,"SUBDIRECCION DE ADMINISTRACION INMOBILIARIA Y DE ESPACIO PUBLICO","ESCRITO","DERECHO DE PETICION DE INTERES PARTICULAR",11,"PENDIENTE"]
[3697162021,"AREA DE ATENCION A LA CIUDADANIA","ESCRITO","DERECHO DE PETICION DE INTERES PARTICULAR",1,"GESTIONADOS"]
[3697162021,"SUBDIRECCION DE REGISTRO INMOBILIARIO","ESCRITO","DERECHO DE PETICION DE INTERES PARTICULAR",11,"PENDIENTE"]
[3697322021,"AREA DE ATENCION A LA CIUDADANIA","ESCRITO","DERECHO DE PETICION DE INTERES PARTICULAR",1,"GESTIONADOS"]
[3697322021,"SUBDIRECCION DE ADMINISTRACION INMOBILIARIA Y DE ESPACIO PUBLICO","ESCRITO","DERECHO DE PETICION DE INTERES PARTICULAR",11,"PENDIENTE"]
[3697332021,"AREA DE ATENCION A LA CIUDADANIA","ESCRITO","DERECHO DE PETICION DE INTERES PARTICULAR",1,"GESTIONADOS"]
[3697332021,"SUBDIRECCION DE ADMINISTRACION INMOBILIARIA Y DE ESPACIO PUBLICO","ESCRITO","DERECHO DE PETICION DE INTERES PARTICULAR",11,"PENDIENTE"]
[3697352021,"AREA DE ATENCION A LA CIUDADANIA","ESCRITO","DERECHO DE PETICION DE INTERES PARTICULAR",1,"GESTIONADOS"]
[3697352021,"SUBDIRECCION DE ADMINISTRACION INMOBILIARIA Y DE ESPACIO PUBLICO","ESCRITO","DERECHO DE PETICION DE INTERES PARTICULAR",11,"PENDIENTE"]
[3697392021,"AREA DE ATENCION A LA CIUDADANIA","ESCRITO","DERECHO DE PETICION DE INTERES PARTICULAR",1,"GESTIONADOS"]
[3697392021,"SUBDIRECCION DE ADMINISTRACION INMOBILIARIA Y DE ESPACIO PUBLICO","ESCRITO","DERECHO DE PETICION DE INTERES PARTICULAR",11,"PENDIENTE"]
[3697582021,"AREA DE ATENCION A LA CIUDADANIA","ESCRITO","DERECHO DE PETICION DE INTERES PARTICULAR",1,"GESTIONADOS"]
[3697582021,"SUBDIRECCION DE REGISTRO INMOBILIARIO","ESCRITO","DERECHO DE PETICION DE INTERES PARTICULAR",11,"PENDIENTE"]
[3701762021,"AREA DE ATENCION A LA CIUDADANIA","WEB","DERECHO DE PETICION DE INTERES GENERAL",1,"GESTIONADOS"]
[3701782021,"AREA DE ATENCION A LA CIUDADANIA","WEB","DERECHO DE PETICION DE INTERES GENERAL",1,"GESTIONADOS"]
[3701792021,"AREA DE ATENCION A LA CIUDADANIA","WEB","DERECHO DE PETICION DE INTERES GENERAL",1,"GESTIONADOS"]
[3702762021,"AREA DE ATENCION A LA CIUDADANIA","WEB","DERECHO DE PETICION DE INTERES GENERAL",1,"GESTIONADOS"]
[3702762021,"SUBDIRECCION DE ADMINISTRACION INMOBILIARIA Y DE ESPACIO PUBLICO","WEB","DERECHO DE PETICION DE INTERES GENERAL",11,"PENDIENTE"]
[3703372021,"AREA DE ATENCION A LA CIUDADANIA","WEB","DERECHO DE PETICION DE INTERES PARTICULAR",1,"GESTIONADOS"]
[3703372021,"SUBDIRECCION DE ADMINISTRACION INMOBILIARIA Y DE ESPACIO PUBLICO","WEB","DERECHO DE PETICION DE INTERES PARTICULAR",11,"PENDIENTE"]
[3703802021,"AREA DE ATENCION A LA CIUDADANIA","WEB","DERECHO DE PETICION DE INTERES GENERAL",1,"GESTIONADOS"]
[3703802021,"SUBDIRECCION DE ADMINISTRACION INMOBILIARIA Y DE ESPACIO PUBLICO","WEB","DERECHO DE PETICION DE INTERES GENERAL",11,"PENDIENTE"]
[3704592021,"AREA DE ATENCION A LA CIUDADANIA","TELEFONO","DERECHO DE PETICION DE INTERES GENERAL",1,"GESTIONADOS"]
[3704662021,"AREA DE ATENCION A LA CIUDADANIA","WEB","CONSULTA",1,"GESTIONADOS"]
[3704662021,"SUBDIRECCION DE ADMINISTRACION INMOBILIARIA Y DE ESPACIO PUBLICO","WEB","CONSULTA",11,"PENDIENTE"]
[3704672021,"AREA DE ATENCION A LA CIUDADANIA","WEB","CONSULTA",1,"GESTIONADOS"]
[3704682021,"AREA DE ATENCION A LA CIUDADANIA","WEB","CONSULTA",1,"GESTIONADOS"]
[3704702021,"AREA DE ATENCION A LA CIUDADANIA","WEB","CONSULTA",1,"GESTIONADOS"]
[3704772021,"AREA DE ATENCION A LA CIUDADANIA","WEB","CONSULTA",2,"GESTIONADOS"]
[3704772021,"DESPACHO","WEB","CONSULTA",11,"GESTIONADOS"]
[3705372021,"AREA DE ATENCION A LA CIUDADANIA","WEB","DERECHO DE PETICION DE INTERES GENERAL",1,"GESTIONADOS"]
[3705582021,"AREA DE ATENCION A LA CIUDADANIA","WEB","DERECHO DE PETICION DE INTERES PARTICULAR",1,"GESTIONADOS"]
[3705722021,"AREA DE ATENCION A LA CIUDADANIA","WEB","DERECHO DE PETICION DE INTERES GENERAL",1,"GESTIONADOS"]
[3705722021,"SUBDIRECCION DE ADMINISTRACION INMOBILIARIA Y DE ESPACIO PUBLICO","WEB","DERECHO DE PETICION DE INTERES GENERAL",10,"PENDIENTE"]
[3706402021,"AREA DE ATENCION A LA CIUDADANIA","WEB","DERECHO DE PETICION DE INTERES PARTICULAR",1,"GESTIONADOS"]
[3706402021,"SUBDIRECCION DE ADMINISTRACION INMOBILIARIA Y DE ESPACIO PUBLICO","WEB","DERECHO DE PETICION DE INTERES PARTICULAR",11,"PENDIENTE"]
[3706422021,"AREA DE ATENCION A LA CIUDADANIA","WEB","QUEJA",1,"GESTIONADOS"]
[3706552021,"AREA DE ATENCION A LA CIUDADANIA","WEB","DERECHO DE PETICION DE INTERES PARTICULAR",1,"GESTIONADOS"]
[3706552021,"SUBDIRECCION DE ADMINISTRACION INMOBILIARIA Y DE ESPACIO PUBLICO","WEB","DERECHO DE PETICION DE INTERES PARTICULAR",11,"PENDIENTE"]
[3707252021,"AREA DE ATENCION A LA CIUDADANIA","WEB","CONSULTA",1,"GESTIONADOS"]
[3707742021,"AREA DE ATENCION A LA CIUDADANIA","WEB","DERECHO DE PETICION DE INTERES PARTICULAR",1,"GESTIONADOS"]
[3707852021,"AREA DE ATENCION A LA CIUDADANIA","WEB","DERECHO DE PETICION DE INTERES GENERAL",1,"GESTIONADOS"]
[3707852021,"SUBDIRECCION DE ADMINISTRACION INMOBILIARIA Y DE ESPACIO PUBLICO","WEB","DERECHO DE PETICION DE INTERES GENERAL",11,"PENDIENTE"]
[3707872021,"AREA DE ATENCION A LA CIUDADANIA","WEB","DERECHO DE PETICION DE INTERES GENERAL",1,"GESTIONADOS"]
[3707872021,"SUBDIRECCION DE ADMINISTRACION INMOBILIARIA Y DE ESPACIO PUBLICO","WEB","DERECHO DE PETICION DE INTERES GENERAL",11,"PENDIENTE"]
[3707952021,"AREA DE ATENCION A LA CIUDADANIA","WEB","DERECHO DE PETICION DE INTERES PARTICULAR",1,"GESTIONADOS"]
[3707952021,"SUBDIRECCION DE ADMINISTRACION INMOBILIARIA Y DE ESPACIO PUBLICO","WEB","DERECHO DE PETICION DE INTERES PARTICULAR",11,"PENDIENTE"]
[3709172021,"AREA DE ATENCION A LA CIUDADANIA","TELEFONO","DERECHO DE PETICION DE INTERES GENERAL",1,"GESTIONADOS"]
[3710282021,"AREA DE ATENCION A LA CIUDADANIA","WEB","DERECHO DE PETICION DE INTERES GENERAL",1,"GESTIONADOS"]
[3711612021,"AREA DE ATENCION A LA CIUDADANIA","ESCRITO","DERECHO DE PETICION DE INTERES PARTICULAR",1,"GESTIONADOS"]
[3711612021,"SUBDIRECCION DE REGISTRO INMOBILIARIO","ESCRITO","DERECHO DE PETICION DE INTERES PARTICULAR",10,"PENDIENTE"]
[3714252021,"AREA DE ATENCION A LA CIUDADANIA","WEB","DERECHO DE PETICION DE INTERES GENERAL",1,"GESTIONADOS"]
[3714252021,"SUBDIRECCION DE ADMINISTRACION INMOBILIARIA Y DE ESPACIO PUBLICO","WEB","DERECHO DE PETICION DE INTERES GENERAL",10,"PENDIENTE"]
[3714542021,"AREA DE ATENCION A LA CIUDADANIA","ESCRITO","DERECHO DE PETICION DE INTERES GENERAL",1,"GESTIONADOS"]
[3714542021,"SUBDIRECCION DE ADMINISTRACION INMOBILIARIA Y DE ESPACIO PUBLICO","ESCRITO","DERECHO DE PETICION DE INTERES GENERAL",10,"PENDIENTE"]
[3714592021,"AREA DE ATENCION A LA CIUDADANIA","WEB","DERECHO DE PETICION DE INTERES PARTICULAR",1,"GESTIONADOS"]
[3714592021,"SUBDIRECCION DE ADMINISTRACION INMOBILIARIA Y DE ESPACIO PUBLICO","WEB","DERECHO DE PETICION DE INTERES PARTICULAR",10,"PENDIENTE"]
[3715202021,"AREA DE ATENCION A LA CIUDADANIA","WEB","DERECHO DE PETICION DE INTERES PARTICULAR",1,"GESTIONADOS"]
[3715202021,"OFICINA ASESORA JURIDICA","WEB","DERECHO DE PETICION DE INTERES PARTICULAR",8,"GESTIONADOS"]
[3716142021,"AREA DE ATENCION A LA CIUDADANIA","ESCRITO","DERECHO DE PETICION DE INTERES PARTICULAR",1,"GESTIONADOS"]
[3716142021,"SUBDIRECCION DE ADMINISTRACION INMOBILIARIA Y DE ESPACIO PUBLICO","ESCRITO","DERECHO DE PETICION DE INTERES PARTICULAR",10,"PENDIENTE"]
[3716282021,"AREA DE ATENCION A LA CIUDADANIA","ESCRITO","DERECHO DE PETICION DE INTERES PARTICULAR",1,"GESTIONADOS"]
[3716282021,"SUBDIRECCION DE ADMINISTRACION INMOBILIARIA Y DE ESPACIO PUBLICO","ESCRITO","DERECHO DE PETICION DE INTERES PARTICULAR",10,"PENDIENTE"]
[3716392021,"AREA DE ATENCION A LA CIUDADANIA","ESCRITO","DERECHO DE PETICION DE INTERES PARTICULAR",1,"GESTIONADOS"]
[3716392021,"SUBDIRECCION DE REGISTRO INMOBILIARIO","ESCRITO","DERECHO DE PETICION DE INTERES PARTICULAR",10,"PENDIENTE"]
[3716742021,"AREA DE ATENCION A LA CIUDADANIA","ESCRITO","DERECHO DE PETICION DE INTERES PARTICULAR",1,"GESTIONADOS"]
[3716742021,"SUBDIRECCION ADMINISTRATIVA Y FINANCIERA","ESCRITO","DERECHO DE PETICION DE INTERES PARTICULAR",10,"PENDIENTE"]
[3717062021,"AREA DE ATENCION A LA CIUDADANIA","WEB","DERECHO DE PETICION DE INTERES PARTICULAR",2,"GESTIONADOS"]
[3717062021,"SUBDIRECCION DE ADMINISTRACION INMOBILIARIA Y DE ESPACIO PUBLICO","WEB","DERECHO DE PETICION DE INTERES PARTICULAR",10,"PENDIENTE"]
[3717352021,"AREA DE ATENCION A LA CIUDADANIA","ESCRITO","DERECHO DE PETICION DE INTERES PARTICULAR",1,"GESTIONADOS"]
[3717352021,"SUBDIRECCION DE ADMINISTRACION INMOBILIARIA Y DE ESPACIO PUBLICO","ESCRITO","DERECHO DE PETICION DE INTERES PARTICULAR",10,"PENDIENTE"]
[3718652021,"AREA DE ATENCION A LA CIUDADANIA","ESCRITO","DERECHO DE PETICION DE INTERES PARTICULAR",1,"GESTIONADOS"]
[3718652021,"SUBDIRECCION DE REGISTRO INMOBILIARIO","ESCRITO","DERECHO DE PETICION DE INTERES PARTICULAR",10,"PENDIENTE"]
[3718772021,"AREA DE ATENCION A LA CIUDADANIA","ESCRITO","DERECHO DE PETICION DE INTERES PARTICULAR",1,"GESTIONADOS"]
[3718772021,"SUBDIRECCION DE ADMINISTRACION INMOBILIARIA Y DE ESPACIO PUBLICO","ESCRITO","DERECHO DE PETICION DE INTERES PARTICULAR",10,"PENDIENTE"]
[3718922021,"AREA DE ATENCION A LA CIUDADANIA","ESCRITO","DERECHO DE PETICION DE INTERES PARTICULAR",1,"GESTIONADOS"]
[3718922021,"SUBDIRECCION ADMINISTRATIVA Y FINANCIERA","ESCRITO","DERECHO DE PETICION DE INTERES PARTICULAR",10,"PENDIENTE"]
[3719332021,"AREA DE ATENCION A LA CIUDADANIA","WEB","DERECHO DE PETICION DE INTERES GENERAL",1,"GESTIONADOS"]
[3719642021,"AREA DE ATENCION A LA CIUDADANIA","ESCRITO","DERECHO DE PETICION DE INTERES PARTICULAR",1,"GESTIONADOS"]
[3719642021,"SUBDIRECCION DE REGISTRO INMOBILIARIO","ESCRITO","DERECHO DE PETICION DE INTERES PARTICULAR",10,"PENDIENTE"]
[3720182021,"AREA DE ATENCION A LA CIUDADANIA","ESCRITO","DERECHO DE PETICION DE INTERES PARTICULAR",1,"GESTIONADOS"]
[3720342021,"AREA DE ATENCION A LA CIUDADANIA","ESCRITO","DERECHO DE PETICION DE INTERES PARTICULAR",1,"GESTIONADOS"]
[3720342021,"OFICINA ASESORA JURIDICA","ESCRITO","DERECHO DE PETICION DE INTERES PARTICULAR",10,"GESTIONADOS"]
[3720452021,"AREA DE ATENCION A LA CIUDADANIA","ESCRITO","DERECHO DE PETICION DE INTERES PARTICULAR",1,"GESTIONADOS"]
[3720452021,"OFICINA ASESORA JURIDICA","ESCRITO","DERECHO DE PETICION DE INTERES PARTICULAR",10,"GESTIONADOS"]
[3720592021,"AREA DE ATENCION A LA CIUDADANIA","ESCRITO","DERECHO DE PETICION DE INTERES PARTICULAR",1,"GESTIONADOS"]
[3720592021,"SUBDIRECCION DE ADMINISTRACION INMOBILIARIA Y DE ESPACIO PUBLICO","ESCRITO","DERECHO DE PETICION DE INTERES PARTICULAR",10,"PENDIENTE"]
[3725912021,"AREA DE ATENCION A LA CIUDADANIA","E-MAIL","DERECHO DE PETICION DE INTERES PARTICULAR",1,"GESTIONADOS"]
[3726252021,"AREA DE ATENCION A LA CIUDADANIA","WEB","DERECHO DE PETICION DE INTERES PARTICULAR",1,"GESTIONADOS"]
[3726262021,"AREA DE ATENCION A LA CIUDADANIA","WEB","DERECHO DE PETICION DE INTERES PARTICULAR",1,"GESTIONADOS"]
[3726272021,"AREA DE ATENCION A LA CIUDADANIA","WEB","DERECHO DE PETICION DE INTERES PARTICULAR",1,"GESTIONADOS"]
[3726272021,"SUBDIRECCION DE REGISTRO INMOBILIARIO","WEB","DERECHO DE PETICION DE INTERES PARTICULAR",9,"PENDIENTE"]
[3728322021,"AREA DE ATENCION A LA CIUDADANIA","WEB","DERECHO DE PETICION DE INTERES GENERAL",1,"GESTIONADOS"]
[3728322021,"SUBDIRECCION DE ADMINISTRACION INMOBILIARIA Y DE ESPACIO PUBLICO","WEB","DERECHO DE PETICION DE INTERES GENERAL",5,"PENDIENTE"]
[3731012021,"AREA DE ATENCION A LA CIUDADANIA","TELEFONO","DERECHO DE PETICION DE INTERES PARTICULAR",1,"GESTIONADOS"]
[3731012021,"SUBDIRECCION DE REGISTRO INMOBILIARIO","TELEFONO","DERECHO DE PETICION DE INTERES PARTICULAR",9,"PENDIENTE"]
[3732632021,"AREA DE ATENCION A LA CIUDADANIA","WEB","QUEJA",1,"GESTIONADOS"]
[3732632021,"DESPACHO","WEB","QUEJA",9,"GESTIONADOS"]
[3732632021,"SUBDIRECCION ADMINISTRATIVA  FINANCIERA Y DE CONTROL DISCIPLINARIO","WEB","QUEJA",9,"PENDIENTE"]
[3732712021,"AREA DE ATENCION A LA CIUDADANIA","ESCRITO","DERECHO DE PETICION DE INTERES PARTICULAR",1,"GESTIONADOS"]
[3732712021,"SUBDIRECCION DE ADMINISTRACION INMOBILIARIA Y DE ESPACIO PUBLICO","ESCRITO","DERECHO DE PETICION DE INTERES PARTICULAR",9,"PENDIENTE"]
[3732732021,"AREA DE ATENCION A LA CIUDADANIA","WEB","QUEJA",1,"GESTIONADOS"]
[3732732021,"DESPACHO","WEB","QUEJA",1,"GESTIONADOS"]
[3732732021,"SUBDIRECCION ADMINISTRATIVA  FINANCIERA Y DE CONTROL DISCIPLINARIO","WEB","QUEJA",7,"GESTIONADOS"]
[3732762021,"AREA DE ATENCION A LA CIUDADANIA","WEB","DENUNCIA POR ACTOS DE CORRUPCION",1,"GESTIONADOS"]
[3732762021,"SUBDIRECCION ADMINISTRATIVA  FINANCIERA Y DE CONTROL DISCIPLINARIO","WEB","DENUNCIA POR ACTOS DE CORRUPCION",7,"GESTIONADOS"]
[3732882021,"AREA DE ATENCION A LA CIUDADANIA","ESCRITO","DERECHO DE PETICION DE INTERES PARTICULAR",1,"GESTIONADOS"]
[3732882021,"SUBDIRECCION DE ADMINISTRACION INMOBILIARIA Y DE ESPACIO PUBLICO","ESCRITO","DERECHO DE PETICION DE INTERES PARTICULAR",9,"PENDIENTE"]
[3733272021,"AREA DE ATENCION A LA CIUDADANIA","ESCRITO","DERECHO DE PETICION DE INTERES PARTICULAR",1,"GESTIONADOS"]
[3733272021,"SUBDIRECCION DE ADMINISTRACION INMOBILIARIA Y DE ESPACIO PUBLICO","ESCRITO","DERECHO DE PETICION DE INTERES PARTICULAR",9,"PENDIENTE"]
[3733452021,"AREA DE ATENCION A LA CIUDADANIA","WEB","DERECHO DE PETICION DE INTERES PARTICULAR",1,"GESTIONADOS"]
[3736672021,"AREA DE ATENCION A LA CIUDADANIA","WEB","DERECHO DE PETICION DE INTERES PARTICULAR",1,"GESTIONADOS"]
[3736672021,"OFICINA ASESORA JURIDICA","WEB","DERECHO DE PETICION DE INTERES PARTICULAR",1,"PENDIENTE"]
[3736822021,"AREA DE ATENCION A LA CIUDADANIA","WEB","DERECHO DE PETICION DE INTERES PARTICULAR",1,"GESTIONADOS"]
[3736872021,"AREA DE ATENCION A LA CIUDADANIA","WEB","DERECHO DE PETICION DE INTERES GENERAL",1,"GESTIONADOS"]
[3737112021,"AREA DE ATENCION A LA CIUDADANIA","WEB","DERECHO DE PETICION DE INTERES PARTICULAR",1,"GESTIONADOS"]
[3737582021,"AREA DE ATENCION A LA CIUDADANIA","WEB","DERECHO DE PETICION DE INTERES PARTICULAR",1,"GESTIONADOS"]
[3738132021,"AREA DE ATENCION A LA CIUDADANIA","WEB","DERECHO DE PETICION DE INTERES PARTICULAR",1,"GESTIONADOS"]
[3738132021,"SUBDIRECCION DE ADMINISTRACION INMOBILIARIA Y DE ESPACIO PUBLICO","WEB","DERECHO DE PETICION DE INTERES PARTICULAR",9,"PENDIENTE"]
[3738152021,"AREA DE ATENCION A LA CIUDADANIA","WEB","DERECHO DE PETICION DE INTERES PARTICULAR",1,"GESTIONADOS"]
[3738152021,"SUBDIRECCION DE REGISTRO INMOBILIARIO","WEB","DERECHO DE PETICION DE INTERES PARTICULAR",9,"PENDIENTE"]
[3740222021,"AREA DE ATENCION A LA CIUDADANIA","WEB","DERECHO DE PETICION DE INTERES GENERAL",1,"GESTIONADOS"]
[3740432021,"AREA DE ATENCION A LA CIUDADANIA","ESCRITO","DERECHO DE PETICION DE INTERES PARTICULAR",1,"GESTIONADOS"]
[3740432021,"SUBDIRECCION DE ADMINISTRACION INMOBILIARIA Y DE ESPACIO PUBLICO","ESCRITO","DERECHO DE PETICION DE INTERES PARTICULAR",9,"PENDIENTE"]
[3740462021,"AREA DE ATENCION A LA CIUDADANIA","ESCRITO","DERECHO DE PETICION DE INTERES PARTICULAR",1,"GESTIONADOS"]
[3740462021,"SUBDIRECCION DE ADMINISTRACION INMOBILIARIA Y DE ESPACIO PUBLICO","ESCRITO","DERECHO DE PETICION DE INTERES PARTICULAR",9,"PENDIENTE"]
[3740522021,"AREA DE ATENCION A LA CIUDADANIA","ESCRITO","DERECHO DE PETICION DE INTERES PARTICULAR",1,"GESTIONADOS"]
[3740522021,"SUBDIRECCION DE ADMINISTRACION INMOBILIARIA Y DE ESPACIO PUBLICO","ESCRITO","DERECHO DE PETICION DE INTERES PARTICULAR",9,"PENDIENTE"]
[3740582021,"AREA DE ATENCION A LA CIUDADANIA","ESCRITO","DERECHO DE PETICION DE INTERES PARTICULAR",1,"GESTIONADOS"]
[3740582021,"SUBDIRECCION DE ADMINISTRACION INMOBILIARIA Y DE ESPACIO PUBLICO","ESCRITO","DERECHO DE PETICION DE INTERES PARTICULAR",9,"PENDIENTE"]
[3740612021,"AREA DE ATENCION A LA CIUDADANIA","ESCRITO","DERECHO DE PETICION DE INTERES PARTICULAR",1,"GESTIONADOS"]
[3740612021,"SUBDIRECCION DE ADMINISTRACION INMOBILIARIA Y DE ESPACIO PUBLICO","ESCRITO","DERECHO DE PETICION DE INTERES PARTICULAR",9,"PENDIENTE"]
[3740702021,"AREA DE ATENCION A LA CIUDADANIA","WEB","DERECHO DE PETICION DE INTERES PARTICULAR",1,"GESTIONADOS"]
[3740702021,"SUBDIRECCION DE ADMINISTRACION INMOBILIARIA Y DE ESPACIO PUBLICO","WEB","DERECHO DE PETICION DE INTERES PARTICULAR",9,"PENDIENTE"]
[3740732021,"AREA DE ATENCION A LA CIUDADANIA","WEB","DERECHO DE PETICION DE INTERES PARTICULAR",1,"GESTIONADOS"]
[3740772021,"AREA DE ATENCION A LA CIUDADANIA","WEB","DERECHO DE PETICION DE INTERES GENERAL",1,"GESTIONADOS"]
[3740772021,"SUBDIRECCION DE ADMINISTRACION INMOBILIARIA Y DE ESPACIO PUBLICO","WEB","DERECHO DE PETICION DE INTERES GENERAL",7,"PENDIENTE"]
[3740882021,"AREA DE ATENCION A LA CIUDADANIA","WEB","DERECHO DE PETICION DE INTERES PARTICULAR",1,"GESTIONADOS"]
[3742812021,"AREA DE ATENCION A LA CIUDADANIA","ESCRITO","DERECHO DE PETICION DE INTERES PARTICULAR",1,"GESTIONADOS"]
[3742812021,"SUBDIRECCION DE ADMINISTRACION INMOBILIARIA Y DE ESPACIO PUBLICO","ESCRITO","DERECHO DE PETICION DE INTERES PARTICULAR",8,"PENDIENTE"]
[3742922021,"AREA DE ATENCION A LA CIUDADANIA","ESCRITO","DERECHO DE PETICION DE INTERES PARTICULAR",1,"GESTIONADOS"]
[3742922021,"SUBDIRECCION DE ADMINISTRACION INMOBILIARIA Y DE ESPACIO PUBLICO","ESCRITO","DERECHO DE PETICION DE INTERES PARTICULAR",8,"PENDIENTE"]
[3743022021,"AREA DE ATENCION A LA CIUDADANIA","ESCRITO","DERECHO DE PETICION DE INTERES PARTICULAR",1,"GESTIONADOS"]
[3743022021,"SUBDIRECCION DE ADMINISTRACION INMOBILIARIA Y DE ESPACIO PUBLICO","ESCRITO","DERECHO DE PETICION DE INTERES PARTICULAR",8,"PENDIENTE"]
[3743272021,"AREA DE ATENCION A LA CIUDADANIA","ESCRITO","DERECHO DE PETICION DE INTERES PARTICULAR",1,"GESTIONADOS"]
[3743272021,"SUBDIRECCION DE ADMINISTRACION INMOBILIARIA Y DE ESPACIO PUBLICO","ESCRITO","DERECHO DE PETICION DE INTERES PARTICULAR",8,"PENDIENTE"]
[3744362021,"AREA DE ATENCION A LA CIUDADANIA","WEB","DERECHO DE PETICION DE INTERES PARTICULAR",1,"GESTIONADOS"]
[3744362021,"SUBDIRECCION DE ADMINISTRACION INMOBILIARIA Y DE ESPACIO PUBLICO","WEB","DERECHO DE PETICION DE INTERES PARTICULAR",6,"PENDIENTE"]
[3744622021,"AREA DE ATENCION A LA CIUDADANIA","WEB","DERECHO DE PETICION DE INTERES PARTICULAR",1,"GESTIONADOS"]
[3744962021,"AREA DE ATENCION A LA CIUDADANIA","WEB","DERECHO DE PETICION DE INTERES PARTICULAR",1,"GESTIONADOS"]
[3744962021,"SUBDIRECCION DE ADMINISTRACION INMOBILIARIA Y DE ESPACIO PUBLICO","WEB","DERECHO DE PETICION DE INTERES PARTICULAR",6,"PENDIENTE"]
[3746072021,"AREA DE ATENCION A LA CIUDADANIA","WEB","DERECHO DE PETICION DE INTERES GENERAL",1,"GESTIONADOS"]
[3746522021,"AREA DE ATENCION A LA CIUDADANIA","WEB","DERECHO DE PETICION DE INTERES GENERAL",1,"GESTIONADOS"]
[3746522021,"SUBDIRECCION DE ADMINISTRACION INMOBILIARIA Y DE ESPACIO PUBLICO","WEB","DERECHO DE PETICION DE INTERES GENERAL",8,"PENDIENTE"]
[3748042021,"AREA DE ATENCION A LA CIUDADANIA","WEB","DERECHO DE PETICION DE INTERES GENERAL",1,"GESTIONADOS"]
[3748312021,"AREA DE ATENCION A LA CIUDADANIA","WEB","DERECHO DE PETICION DE INTERES GENERAL",1,"GESTIONADOS"]
[3748402021,"AREA DE ATENCION A LA CIUDADANIA","WEB","DERECHO DE PETICION DE INTERES PARTICULAR",1,"GESTIONADOS"]
[3748402021,"SUBDIRECCION DE REGISTRO INMOBILIARIO","WEB","DERECHO DE PETICION DE INTERES PARTICULAR",8,"PENDIENTE"]
[3749112021,"AREA DE ATENCION A LA CIUDADANIA","WEB","DERECHO DE PETICION DE INTERES GENERAL",1,"GESTIONADOS"]
[3749112021,"SUBDIRECCION ADMINISTRATIVA  FINANCIERA Y DE CONTROL DISCIPLINARIO","WEB","DERECHO DE PETICION DE INTERES GENERAL",1,"GESTIONADOS"]
[3749452021,"AREA DE ATENCION A LA CIUDADANIA","TELEFONO","DERECHO DE PETICION DE INTERES PARTICULAR",1,"GESTIONADOS"]
[3750792021,"AREA DE ATENCION A LA CIUDADANIA","ESCRITO","DERECHO DE PETICION DE INTERES PARTICULAR",1,"GESTIONADOS"]
[3750792021,"SUBDIRECCION DE ADMINISTRACION INMOBILIARIA Y DE ESPACIO PUBLICO","ESCRITO","DERECHO DE PETICION DE INTERES PARTICULAR",8,"PENDIENTE"]
[3750902021,"AREA DE ATENCION A LA CIUDADANIA","WEB","DERECHO DE PETICION DE INTERES PARTICULAR",1,"GESTIONADOS"]
[3750902021,"SUBDIRECCION DE ADMINISTRACION INMOBILIARIA Y DE ESPACIO PUBLICO","WEB","DERECHO DE PETICION DE INTERES PARTICULAR",8,"PENDIENTE"]
[3751172021,"AREA DE ATENCION A LA CIUDADANIA","WEB","DERECHO DE PETICION DE INTERES PARTICULAR",1,"GESTIONADOS"]
[3751592021,"AREA DE ATENCION A LA CIUDADANIA","WEB","DERECHO DE PETICION DE INTERES GENERAL",1,"GESTIONADOS"]
[3751962021,"AREA DE ATENCION A LA CIUDADANIA","ESCRITO","DERECHO DE PETICION DE INTERES PARTICULAR",1,"GESTIONADOS"]
[3751962021,"OFICINA ASESORA JURIDICA","ESCRITO","DERECHO DE PETICION DE INTERES PARTICULAR",8,"PENDIENTE"]
[3752112021,"AREA DE ATENCION A LA CIUDADANIA","ESCRITO","DERECHO DE PETICION DE INTERES PARTICULAR",1,"GESTIONADOS"]
[3752112021,"SUBDIRECCION ADMINISTRATIVA Y FINANCIERA","ESCRITO","DERECHO DE PETICION DE INTERES PARTICULAR",8,"PENDIENTE"]
[3752382021,"AREA DE ATENCION A LA CIUDADANIA","ESCRITO","DERECHO DE PETICION DE INTERES PARTICULAR",1,"GESTIONADOS"]
[3752382021,"SUBDIRECCION DE ADMINISTRACION INMOBILIARIA Y DE ESPACIO PUBLICO","ESCRITO","DERECHO DE PETICION DE INTERES PARTICULAR",8,"PENDIENTE"]
[3752532021,"AREA DE ATENCION A LA CIUDADANIA","ESCRITO","DERECHO DE PETICION DE INTERES PARTICULAR",1,"GESTIONADOS"]
[3752532021,"SUBDIRECCION ADMINISTRATIVA Y FINANCIERA","ESCRITO","DERECHO DE PETICION DE INTERES PARTICULAR",8,"PENDIENTE"]
[3752632021,"AREA DE ATENCION A LA CIUDADANIA","WEB","QUEJA",8,"PENDIENTE"]
[3752682021,"AREA DE ATENCION A LA CIUDADANIA","ESCRITO","DERECHO DE PETICION DE INTERES PARTICULAR",1,"GESTIONADOS"]
[3752682021,"SUBDIRECCION DE ADMINISTRACION INMOBILIARIA Y DE ESPACIO PUBLICO","ESCRITO","DERECHO DE PETICION DE INTERES PARTICULAR",8,"PENDIENTE"]
[3753342021,"AREA DE ATENCION A LA CIUDADANIA","ESCRITO","DERECHO DE PETICION DE INTERES PARTICULAR",1,"GESTIONADOS"]
[3753342021,"SUBDIRECCION DE ADMINISTRACION INMOBILIARIA Y DE ESPACIO PUBLICO","ESCRITO","DERECHO DE PETICION DE INTERES PARTICULAR",8,"PENDIENTE"]
[3753402021,"AREA DE ATENCION A LA CIUDADANIA","ESCRITO","DERECHO DE PETICION DE INTERES PARTICULAR",1,"GESTIONADOS"]
[3753402021,"SUBDIRECCION DE ADMINISTRACION INMOBILIARIA Y DE ESPACIO PUBLICO","ESCRITO","DERECHO DE PETICION DE INTERES PARTICULAR",8,"PENDIENTE"]
[3753442021,"AREA DE ATENCION A LA CIUDADANIA","ESCRITO","DERECHO DE PETICION DE INTERES PARTICULAR",1,"GESTIONADOS"]
[3753442021,"SUBDIRECCION DE REGISTRO INMOBILIARIO","ESCRITO","DERECHO DE PETICION DE INTERES PARTICULAR",8,"PENDIENTE"]
[3754862021,"AREA DE ATENCION A LA CIUDADANIA","WEB","QUEJA",1,"GESTIONADOS"]
[3755002021,"AREA DE ATENCION A LA CIUDADANIA","TELEFONO","DERECHO DE PETICION DE INTERES GENERAL",1,"GESTIONADOS"]
[3756382021,"AREA DE ATENCION A LA CIUDADANIA","WEB","DERECHO DE PETICION DE INTERES PARTICULAR",1,"GESTIONADOS"]
[3756402021,"AREA DE ATENCION A LA CIUDADANIA","WEB","DERECHO DE PETICION DE INTERES GENERAL",1,"GESTIONADOS"]
[3756402021,"SUBDIRECCION DE ADMINISTRACION INMOBILIARIA Y DE ESPACIO PUBLICO","WEB","DERECHO DE PETICION DE INTERES GENERAL",8,"PENDIENTE"]
[3756422021,"AREA DE ATENCION A LA CIUDADANIA","WEB","QUEJA",1,"GESTIONADOS"]
[3756452021,"AREA DE ATENCION A LA CIUDADANIA","WEB","QUEJA",1,"GESTIONADOS"]
[3756892021,"AREA DE ATENCION A LA CIUDADANIA","WEB","DERECHO DE PETICION DE INTERES GENERAL",1,"GESTIONADOS"]
[3760582021,"AREA DE ATENCION A LA CIUDADANIA","WEB","DERECHO DE PETICION DE INTERES PARTICULAR",1,"GESTIONADOS"]
[3760582021,"SUBDIRECCION DE ADMINISTRACION INMOBILIARIA Y DE ESPACIO PUBLICO","WEB","DERECHO DE PETICION DE INTERES PARTICULAR",7,"PENDIENTE"]
[3760912021,"AREA DE ATENCION A LA CIUDADANIA","WEB","CONSULTA",1,"GESTIONADOS"]
[3760912021,"SUBDIRECCION DE REGISTRO INMOBILIARIO","WEB","CONSULTA",7,"PENDIENTE"]
[3761752021,"AREA DE ATENCION A LA CIUDADANIA","TELEFONO","DERECHO DE PETICION DE INTERES GENERAL",1,"GESTIONADOS"]
[3761852021,"AREA DE ATENCION A LA CIUDADANIA","ESCRITO","DERECHO DE PETICION DE INTERES PARTICULAR",1,"GESTIONADOS"]
[3761852021,"SUBDIRECCION ADMINISTRATIVA Y FINANCIERA","ESCRITO","DERECHO DE PETICION DE INTERES PARTICULAR",7,"PENDIENTE"]
[3761982021,"AREA DE ATENCION A LA CIUDADANIA","WEB","DERECHO DE PETICION DE INTERES PARTICULAR",1,"GESTIONADOS"]
[3762162021,"AREA DE ATENCION A LA CIUDADANIA","ESCRITO","DERECHO DE PETICION DE INTERES PARTICULAR",1,"GESTIONADOS"]
[3762162021,"SUBDIRECCION DE REGISTRO INMOBILIARIO","ESCRITO","DERECHO DE PETICION DE INTERES PARTICULAR",7,"PENDIENTE"]
[3762422021,"AREA DE ATENCION A LA CIUDADANIA","ESCRITO","SOLICITUD DE COPIA",1,"GESTIONADOS"]
[3762422021,"SUBDIRECCION DE REGISTRO INMOBILIARIO","ESCRITO","SOLICITUD DE COPIA",7,"PENDIENTE"]
[3762852021,"AREA DE ATENCION A LA CIUDADANIA","ESCRITO","DERECHO DE PETICION DE INTERES PARTICULAR",1,"GESTIONADOS"]
[3762852021,"SUBDIRECCION DE REGISTRO INMOBILIARIO","ESCRITO","DERECHO DE PETICION DE INTERES PARTICULAR",7,"PENDIENTE"]
[3763222021,"AREA DE ATENCION A LA CIUDADANIA","ESCRITO","DERECHO DE PETICION DE INTERES PARTICULAR",1,"GESTIONADOS"]
[3763222021,"SUBDIRECCION DE ADMINISTRACION INMOBILIARIA Y DE ESPACIO PUBLICO","ESCRITO","DERECHO DE PETICION DE INTERES PARTICULAR",7,"PENDIENTE"]
[3763352021,"AREA DE ATENCION A LA CIUDADANIA","TELEFONO","DERECHO DE PETICION DE INTERES GENERAL",1,"GESTIONADOS"]
[3763352021,"SUBDIRECCION DE ADMINISTRACION INMOBILIARIA Y DE ESPACIO PUBLICO","TELEFONO","DERECHO DE PETICION DE INTERES GENERAL",7,"PENDIENTE"]
[3763562021,"AREA DE ATENCION A LA CIUDADANIA","ESCRITO","DERECHO DE PETICION DE INTERES GENERAL",1,"GESTIONADOS"]
[3763562021,"SUBDIRECCION DE ADMINISTRACION INMOBILIARIA Y DE ESPACIO PUBLICO","ESCRITO","DERECHO DE PETICION DE INTERES GENERAL",4,"PENDIENTE"]
[3764802021,"AREA DE ATENCION A LA CIUDADANIA","WEB","DERECHO DE PETICION DE INTERES PARTICULAR",1,"GESTIONADOS"]
[3764802021,"SUBDIRECCION DE ADMINISTRACION INMOBILIARIA Y DE ESPACIO PUBLICO","WEB","DERECHO DE PETICION DE INTERES PARTICULAR",7,"PENDIENTE"]
[3765152021,"AREA DE ATENCION A LA CIUDADANIA","ESCRITO","DERECHO DE PETICION DE INTERES PARTICULAR",1,"GESTIONADOS"]
[3765152021,"SUBDIRECCION DE ADMINISTRACION INMOBILIARIA Y DE ESPACIO PUBLICO","ESCRITO","DERECHO DE PETICION DE INTERES PARTICULAR",7,"PENDIENTE"]
[3766172021,"AREA DE ATENCION A LA CIUDADANIA","ESCRITO","DERECHO DE PETICION DE INTERES PARTICULAR",1,"GESTIONADOS"]
[3766172021,"SUBDIRECCION DE REGISTRO INMOBILIARIO","ESCRITO","DERECHO DE PETICION DE INTERES PARTICULAR",7,"PENDIENTE"]
[3767512021,"AREA DE ATENCION A LA CIUDADANIA","ESCRITO","DERECHO DE PETICION DE INTERES PARTICULAR",1,"GESTIONADOS"]
[3767512021,"SUBDIRECCION DE REGISTRO INMOBILIARIO","ESCRITO","DERECHO DE PETICION DE INTERES PARTICULAR",7,"PENDIENTE"]
[3769072021,"AREA DE ATENCION A LA CIUDADANIA","TELEFONO","DERECHO DE PETICION DE INTERES GENERAL",1,"GESTIONADOS"]
[3769072021,"SUBDIRECCION DE ADMINISTRACION INMOBILIARIA Y DE ESPACIO PUBLICO","TELEFONO","DERECHO DE PETICION DE INTERES GENERAL",7,"PENDIENTE"]
[3770952021,"AREA DE ATENCION A LA CIUDADANIA","ESCRITO","DERECHO DE PETICION DE INTERES PARTICULAR",1,"GESTIONADOS"]
[3770952021,"SUBDIRECCION DE ADMINISTRACION INMOBILIARIA Y DE ESPACIO PUBLICO","ESCRITO","DERECHO DE PETICION DE INTERES PARTICULAR",7,"PENDIENTE"]
[3770972021,"AREA DE ATENCION A LA CIUDADANIA","ESCRITO","DERECHO DE PETICION DE INTERES PARTICULAR",1,"GESTIONADOS"]
[3770972021,"SUBDIRECCION DE ADMINISTRACION INMOBILIARIA Y DE ESPACIO PUBLICO","ESCRITO","DERECHO DE PETICION DE INTERES PARTICULAR",7,"PENDIENTE"]
[3770992021,"AREA DE ATENCION A LA CIUDADANIA","ESCRITO","DERECHO DE PETICION DE INTERES PARTICULAR",1,"GESTIONADOS"]
[3770992021,"SUBDIRECCION DE ADMINISTRACION INMOBILIARIA Y DE ESPACIO PUBLICO","ESCRITO","DERECHO DE PETICION DE INTERES PARTICULAR",7,"PENDIENTE"]
[3771002021,"AREA DE ATENCION A LA CIUDADANIA","ESCRITO","DERECHO DE PETICION DE INTERES PARTICULAR",1,"GESTIONADOS"]
[3771002021,"SUBDIRECCION DE ADMINISTRACION INMOBILIARIA Y DE ESPACIO PUBLICO","ESCRITO","DERECHO DE PETICION DE INTERES PARTICULAR",7,"PENDIENTE"]
[3771012021,"AREA DE ATENCION A LA CIUDADANIA","ESCRITO","DERECHO DE PETICION DE INTERES PARTICULAR",1,"GESTIONADOS"]
[3771012021,"SUBDIRECCION DE ADMINISTRACION INMOBILIARIA Y DE ESPACIO PUBLICO","ESCRITO","DERECHO DE PETICION DE INTERES PARTICULAR",7,"PENDIENTE"]
[3771022021,"AREA DE ATENCION A LA CIUDADANIA","ESCRITO","DERECHO DE PETICION DE INTERES PARTICULAR",1,"GESTIONADOS"]
[3771022021,"SUBDIRECCION DE REGISTRO INMOBILIARIO","ESCRITO","DERECHO DE PETICION DE INTERES PARTICULAR",7,"PENDIENTE"]
[3771032021,"AREA DE ATENCION A LA CIUDADANIA","ESCRITO","DERECHO DE PETICION DE INTERES PARTICULAR",1,"GESTIONADOS"]
[3771032021,"SUBDIRECCION DE ADMINISTRACION INMOBILIARIA Y DE ESPACIO PUBLICO","ESCRITO","DERECHO DE PETICION DE INTERES PARTICULAR",7,"PENDIENTE"]
[3771042021,"AREA DE ATENCION A LA CIUDADANIA","ESCRITO","DERECHO DE PETICION DE INTERES PARTICULAR",1,"GESTIONADOS"]
[3771042021,"SUBDIRECCION DE REGISTRO INMOBILIARIO","ESCRITO","DERECHO DE PETICION DE INTERES PARTICULAR",7,"PENDIENTE"]
[3771062021,"AREA DE ATENCION A LA CIUDADANIA","ESCRITO","DERECHO DE PETICION DE INTERES PARTICULAR",1,"GESTIONADOS"]
[3771062021,"SUBDIRECCION DE ADMINISTRACION INMOBILIARIA Y DE ESPACIO PUBLICO","ESCRITO","DERECHO DE PETICION DE INTERES PARTICULAR",7,"PENDIENTE"]
[3771072021,"AREA DE ATENCION A LA CIUDADANIA","ESCRITO","DERECHO DE PETICION DE INTERES PARTICULAR",1,"GESTIONADOS"]
[3771072021,"SUBDIRECCION DE ADMINISTRACION INMOBILIARIA Y DE ESPACIO PUBLICO","ESCRITO","DERECHO DE PETICION DE INTERES PARTICULAR",7,"PENDIENTE"]
[3772052021,"AREA DE ATENCION A LA CIUDADANIA","TELEFONO","DERECHO DE PETICION DE INTERES GENERAL",1,"GESTIONADOS"]
[3772052021,"SUBDIRECCION DE ADMINISTRACION INMOBILIARIA Y DE ESPACIO PUBLICO","TELEFONO","DERECHO DE PETICION DE INTERES GENERAL",7,"PENDIENTE"]
[3772072021,"AREA DE ATENCION A LA CIUDADANIA","WEB","QUEJA",1,"GESTIONADOS"]
[3772092021,"AREA DE ATENCION A LA CIUDADANIA","WEB","QUEJA",2,"GESTIONADOS"]
[3772112021,"AREA DE ATENCION A LA CIUDADANIA","WEB","QUEJA",1,"GESTIONADOS"]
[3772362021,"AREA DE ATENCION A LA CIUDADANIA","TELEFONO","DERECHO DE PETICION DE INTERES GENERAL",1,"GESTIONADOS"]
[3772462021,"AREA DE ATENCION A LA CIUDADANIA","WEB","QUEJA",2,"GESTIONADOS"]
[3772902021,"AREA DE ATENCION A LA CIUDADANIA","TELEFONO","DERECHO DE PETICION DE INTERES GENERAL",1,"GESTIONADOS"]
[3773062021,"AREA DE ATENCION A LA CIUDADANIA","WEB","RECLAMO",2,"GESTIONADOS"]
[3773242021,"AREA DE ATENCION A LA CIUDADANIA","WEB","DERECHO DE PETICION DE INTERES GENERAL",1,"GESTIONADOS"]
[3773562021,"AREA DE ATENCION A LA CIUDADANIA","WEB","QUEJA",1,"GESTIONADOS"]
[3774422021,"AREA DE ATENCION A LA CIUDADANIA","WEB","RECLAMO",1,"GESTIONADOS"]
[3775562021,"AREA DE ATENCION A LA CIUDADANIA","TELEFONO","QUEJA",1,"GESTIONADOS"]
[3775712021,"AREA DE ATENCION A LA CIUDADANIA","WEB","DERECHO DE PETICION DE INTERES GENERAL",1,"GESTIONADOS"]
[3775712021,"SUBDIRECCION DE ADMINISTRACION INMOBILIARIA Y DE ESPACIO PUBLICO","WEB","DERECHO DE PETICION DE INTERES GENERAL",7,"PENDIENTE"]
[3776972021,"AREA DE ATENCION A LA CIUDADANIA","WEB","QUEJA",1,"GESTIONADOS"]
[3777622021,"AREA DE ATENCION A LA CIUDADANIA","WEB","DERECHO DE PETICION DE INTERES GENERAL",1,"GESTIONADOS"]
[3777622021,"SUBDIRECCION DE ADMINISTRACION INMOBILIARIA Y DE ESPACIO PUBLICO","WEB","DERECHO DE PETICION DE INTERES GENERAL",6,"PENDIENTE"]
[3778922021,"AREA DE ATENCION A LA CIUDADANIA","WEB","DERECHO DE PETICION DE INTERES PARTICULAR",6,"PENDIENTE"]
[3779382021,"AREA DE ATENCION A LA CIUDADANIA","E-MAIL","DERECHO DE PETICION DE INTERES PARTICULAR",1,"GESTIONADOS"]
[3781872021,"AREA DE ATENCION A LA CIUDADANIA","WEB","DERECHO DE PETICION DE INTERES GENERAL",1,"GESTIONADOS"]
[3781872021,"SUBDIRECCION DE ADMINISTRACION INMOBILIARIA Y DE ESPACIO PUBLICO","WEB","DERECHO DE PETICION DE INTERES GENERAL",4,"PENDIENTE"]
[3782902021,"AREA DE ATENCION A LA CIUDADANIA","WEB","DERECHO DE PETICION DE INTERES PARTICULAR",1,"GESTIONADOS"]
[3782902021,"SUBDIRECCION DE ADMINISTRACION INMOBILIARIA Y DE ESPACIO PUBLICO","WEB","DERECHO DE PETICION DE INTERES PARTICULAR",6,"PENDIENTE"]
[3783892021,"AREA DE ATENCION A LA CIUDADANIA","WEB","DERECHO DE PETICION DE INTERES GENERAL",1,"GESTIONADOS"]
[3783922021,"AREA DE ATENCION A LA CIUDADANIA","ESCRITO","DERECHO DE PETICION DE INTERES GENERAL",1,"GESTIONADOS"]
[3783922021,"SUBDIRECCION DE REGISTRO INMOBILIARIO","ESCRITO","DERECHO DE PETICION DE INTERES GENERAL",4,"PENDIENTE"]
[3784742021,"AREA DE ATENCION A LA CIUDADANIA","ESCRITO","DERECHO DE PETICION DE INTERES PARTICULAR",1,"GESTIONADOS"]
[3784742021,"DESPACHO","ESCRITO","DERECHO DE PETICION DE INTERES PARTICULAR",6,"GESTIONADOS"]
[3784822021,"AREA DE ATENCION A LA CIUDADANIA","ESCRITO","DERECHO DE PETICION DE INTERES PARTICULAR",1,"GESTIONADOS"]
[3784822021,"SUBDIRECCION DE ADMINISTRACION INMOBILIARIA Y DE ESPACIO PUBLICO","ESCRITO","DERECHO DE PETICION DE INTERES PARTICULAR",6,"PENDIENTE"]
[3784902021,"AREA DE ATENCION A LA CIUDADANIA","ESCRITO","DERECHO DE PETICION DE INTERES PARTICULAR",1,"GESTIONADOS"]
[3784902021,"SUBDIRECCION DE ADMINISTRACION INMOBILIARIA Y DE ESPACIO PUBLICO","ESCRITO","DERECHO DE PETICION DE INTERES PARTICULAR",6,"PENDIENTE"]
[3785132021,"AREA DE ATENCION A LA CIUDADANIA","ESCRITO","DERECHO DE PETICION DE INTERES PARTICULAR",1,"GESTIONADOS"]
[3785132021,"SUBDIRECCION DE ADMINISTRACION INMOBILIARIA Y DE ESPACIO PUBLICO","ESCRITO","DERECHO DE PETICION DE INTERES PARTICULAR",6,"PENDIENTE"]
[3785342021,"AREA DE ATENCION A LA CIUDADANIA","ESCRITO","DERECHO DE PETICION DE INTERES PARTICULAR",1,"GESTIONADOS"]
[3785342021,"SUBDIRECCION DE ADMINISTRACION INMOBILIARIA Y DE ESPACIO PUBLICO","ESCRITO","DERECHO DE PETICION DE INTERES PARTICULAR",6,"PENDIENTE"]
[3785562021,"AREA DE ATENCION A LA CIUDADANIA","ESCRITO","DERECHO DE PETICION DE INTERES PARTICULAR",1,"GESTIONADOS"]
[3785562021,"SUBDIRECCION DE REGISTRO INMOBILIARIO","ESCRITO","DERECHO DE PETICION DE INTERES PARTICULAR",6,"PENDIENTE"]
[3785962021,"AREA DE ATENCION A LA CIUDADANIA","WEB","CONSULTA",1,"GESTIONADOS"]
[3785962021,"SUBDIRECCION DE REGISTRO INMOBILIARIO","WEB","CONSULTA",6,"PENDIENTE"]
[3786512021,"AREA DE ATENCION A LA CIUDADANIA","WEB","QUEJA",1,"GESTIONADOS"]
[3786672021,"AREA DE ATENCION A LA CIUDADANIA","WEB","DERECHO DE PETICION DE INTERES GENERAL",1,"GESTIONADOS"]
[3786912021,"AREA DE ATENCION A LA CIUDADANIA","ESCRITO","DERECHO DE PETICION DE INTERES PARTICULAR",1,"GESTIONADOS"]
[3786912021,"SUBDIRECCION DE ADMINISTRACION INMOBILIARIA Y DE ESPACIO PUBLICO","ESCRITO","DERECHO DE PETICION DE INTERES PARTICULAR",6,"PENDIENTE"]
[3786962021,"AREA DE ATENCION A LA CIUDADANIA","ESCRITO","DERECHO DE PETICION DE INTERES PARTICULAR",1,"GESTIONADOS"]
[3786962021,"SUBDIRECCION DE ADMINISTRACION INMOBILIARIA Y DE ESPACIO PUBLICO","ESCRITO","DERECHO DE PETICION DE INTERES PARTICULAR",6,"PENDIENTE"]
[3786982021,"AREA DE ATENCION A LA CIUDADANIA","ESCRITO","DERECHO DE PETICION DE INTERES PARTICULAR",1,"GESTIONADOS"]
[3786982021,"SUBDIRECCION DE ADMINISTRACION INMOBILIARIA Y DE ESPACIO PUBLICO","ESCRITO","DERECHO DE PETICION DE INTERES PARTICULAR",6,"PENDIENTE"]
[3787082021,"AREA DE ATENCION A LA CIUDADANIA","ESCRITO","DERECHO DE PETICION DE INTERES PARTICULAR",1,"GESTIONADOS"]
[3787082021,"SUBDIRECCION DE ADMINISTRACION INMOBILIARIA Y DE ESPACIO PUBLICO","ESCRITO","DERECHO DE PETICION DE INTERES PARTICULAR",6,"PENDIENTE"]
[3787102021,"AREA DE ATENCION A LA CIUDADANIA","ESCRITO","DERECHO DE PETICION DE INTERES PARTICULAR",1,"GESTIONADOS"]
[3787102021,"SUBDIRECCION DE ADMINISTRACION INMOBILIARIA Y DE ESPACIO PUBLICO","ESCRITO","DERECHO DE PETICION DE INTERES PARTICULAR",6,"PENDIENTE"]
[3787962021,"AREA DE ATENCION A LA CIUDADANIA","ESCRITO","DERECHO DE PETICION DE INTERES PARTICULAR",1,"GESTIONADOS"]
[3787962021,"SUBDIRECCION DE ADMINISTRACION INMOBILIARIA Y DE ESPACIO PUBLICO","ESCRITO","DERECHO DE PETICION DE INTERES PARTICULAR",6,"PENDIENTE"]
[3788052021,"AREA DE ATENCION A LA CIUDADANIA","ESCRITO","DERECHO DE PETICION DE INTERES PARTICULAR",1,"GESTIONADOS"]
[3788052021,"SUBDIRECCION DE ADMINISTRACION INMOBILIARIA Y DE ESPACIO PUBLICO","ESCRITO","DERECHO DE PETICION DE INTERES PARTICULAR",6,"PENDIENTE"]
[3788712021,"AREA DE ATENCION A LA CIUDADANIA","WEB","DERECHO DE PETICION DE INTERES PARTICULAR",1,"GESTIONADOS"]
[3788712021,"SUBDIRECCION DE REGISTRO INMOBILIARIO","WEB","DERECHO DE PETICION DE INTERES PARTICULAR",6,"PENDIENTE"]
[3789152021,"AREA DE ATENCION A LA CIUDADANIA","WEB","DERECHO DE PETICION DE INTERES PARTICULAR",1,"GESTIONADOS"]
[3789152021,"SUBDIRECCION DE ADMINISTRACION INMOBILIARIA Y DE ESPACIO PUBLICO","WEB","DERECHO DE PETICION DE INTERES PARTICULAR",6,"PENDIENTE"]
[3789172021,"AREA DE ATENCION A LA CIUDADANIA","WEB","DERECHO DE PETICION DE INTERES PARTICULAR",1,"GESTIONADOS"]
[3789172021,"SUBDIRECCION DE ADMINISTRACION INMOBILIARIA Y DE ESPACIO PUBLICO","WEB","DERECHO DE PETICION DE INTERES PARTICULAR",5,"PENDIENTE"]
[3789212021,"AREA DE ATENCION A LA CIUDADANIA","WEB","DERECHO DE PETICION DE INTERES PARTICULAR",1,"GESTIONADOS"]
[3789212021,"SUBDIRECCION DE ADMINISTRACION INMOBILIARIA Y DE ESPACIO PUBLICO","WEB","DERECHO DE PETICION DE INTERES PARTICULAR",5,"PENDIENTE"]
[3791212021,"AREA DE ATENCION A LA CIUDADANIA","WEB","QUEJA",1,"GESTIONADOS"]
[3791862021,"AREA DE ATENCION A LA CIUDADANIA","WEB","DERECHO DE PETICION DE INTERES PARTICULAR",1,"GESTIONADOS"]
[3791922021,"AREA DE ATENCION A LA CIUDADANIA","WEB","DERECHO DE PETICION DE INTERES PARTICULAR",1,"GESTIONADOS"]
[3792432021,"AREA DE ATENCION A LA CIUDADANIA","WEB","CONSULTA",1,"GESTIONADOS"]
[3793702021,"AREA DE ATENCION A LA CIUDADANIA","WEB","DERECHO DE PETICION DE INTERES GENERAL",1,"GESTIONADOS"]
[3795802021,"AREA DE ATENCION A LA CIUDADANIA","WEB","DERECHO DE PETICION DE INTERES PARTICULAR",1,"GESTIONADOS"]
[3795802021,"SUBDIRECCION DE ADMINISTRACION INMOBILIARIA Y DE ESPACIO PUBLICO","WEB","DERECHO DE PETICION DE INTERES PARTICULAR",5,"PENDIENTE"]
[3802172021,"AREA DE ATENCION A LA CIUDADANIA","ESCRITO","DERECHO DE PETICION DE INTERES PARTICULAR",1,"GESTIONADOS"]
[3802172021,"SUBDIRECCION DE ADMINISTRACION INMOBILIARIA Y DE ESPACIO PUBLICO","ESCRITO","DERECHO DE PETICION DE INTERES PARTICULAR",5,"PENDIENTE"]
[3802522021,"AREA DE ATENCION A LA CIUDADANIA","ESCRITO","DERECHO DE PETICION DE INTERES PARTICULAR",1,"GESTIONADOS"]
[3802522021,"SUBDIRECCION DE ADMINISTRACION INMOBILIARIA Y DE ESPACIO PUBLICO","ESCRITO","DERECHO DE PETICION DE INTERES PARTICULAR",5,"PENDIENTE"]
[3802562021,"AREA DE ATENCION A LA CIUDADANIA","ESCRITO","DERECHO DE PETICION DE INTERES PARTICULAR",1,"GESTIONADOS"]
[3802562021,"SUBDIRECCION DE REGISTRO INMOBILIARIO","ESCRITO","DERECHO DE PETICION DE INTERES PARTICULAR",5,"PENDIENTE"]
[3802622021,"AREA DE ATENCION A LA CIUDADANIA","ESCRITO","DERECHO DE PETICION DE INTERES PARTICULAR",1,"GESTIONADOS"]
[3802622021,"DESPACHO","ESCRITO","DERECHO DE PETICION DE INTERES PARTICULAR",5,"GESTIONADOS"]
[3802622021,"SUBDIRECCION DE ADMINISTRACION INMOBILIARIA Y DE ESPACIO PUBLICO","ESCRITO","DERECHO DE PETICION DE INTERES PARTICULAR",5,"PENDIENTE"]
[3802722021,"AREA DE ATENCION A LA CIUDADANIA","ESCRITO","DERECHO DE PETICION DE INTERES GENERAL",1,"GESTIONADOS"]
[3803742021,"AREA DE ATENCION A LA CIUDADANIA","TELEFONO","DERECHO DE PETICION DE INTERES GENERAL",1,"GESTIONADOS"]
[3804322021,"AREA DE ATENCION A LA CIUDADANIA","WEB","DERECHO DE PETICION DE INTERES GENERAL",1,"GESTIONADOS"]
[3805132021,"AREA DE ATENCION A LA CIUDADANIA","WEB","CONSULTA",1,"GESTIONADOS"]
[3805132021,"SUBDIRECCION DE REGISTRO INMOBILIARIO","WEB","CONSULTA",5,"PENDIENTE"]
[3806342021,"AREA DE ATENCION A LA CIUDADANIA","WEB","DERECHO DE PETICION DE INTERES PARTICULAR",1,"GESTIONADOS"]
[3806412021,"AREA DE ATENCION A LA CIUDADANIA","WEB","DERECHO DE PETICION DE INTERES PARTICULAR",1,"GESTIONADOS"]
[3806682021,"AREA DE ATENCION A LA CIUDADANIA","WEB","CONSULTA",1,"GESTIONADOS"]
[3806682021,"SUBDIRECCION DE REGISTRO INMOBILIARIO","WEB","CONSULTA",3,"PENDIENTE"]
[3807322021,"AREA DE ATENCION A LA CIUDADANIA","WEB","DERECHO DE PETICION DE INTERES GENERAL",1,"GESTIONADOS"]
[3807382021,"AREA DE ATENCION A LA CIUDADANIA","WEB","DERECHO DE PETICION DE INTERES GENERAL",1,"GESTIONADOS"]
[3809102021,"AREA DE ATENCION A LA CIUDADANIA","ESCRITO","DERECHO DE PETICION DE INTERES PARTICULAR",1,"GESTIONADOS"]
[3809102021,"SUBDIRECCION DE ADMINISTRACION INMOBILIARIA Y DE ESPACIO PUBLICO","ESCRITO","DERECHO DE PETICION DE INTERES PARTICULAR",5,"PENDIENTE"]
[3809182021,"AREA DE ATENCION A LA CIUDADANIA","ESCRITO","DERECHO DE PETICION DE INTERES PARTICULAR",1,"GESTIONADOS"]
[3809182021,"SUBDIRECCION DE ADMINISTRACION INMOBILIARIA Y DE ESPACIO PUBLICO","ESCRITO","DERECHO DE PETICION DE INTERES PARTICULAR",5,"PENDIENTE"]
[3809212021,"AREA DE ATENCION A LA CIUDADANIA","ESCRITO","DERECHO DE PETICION DE INTERES PARTICULAR",1,"GESTIONADOS"]
[3809212021,"SUBDIRECCION DE ADMINISTRACION INMOBILIARIA Y DE ESPACIO PUBLICO","ESCRITO","DERECHO DE PETICION DE INTERES PARTICULAR",5,"PENDIENTE"]
[3809872021,"AREA DE ATENCION A LA CIUDADANIA","WEB","QUEJA",1,"GESTIONADOS"]
[3812052021,"AREA DE ATENCION A LA CIUDADANIA","WEB","DERECHO DE PETICION DE INTERES PARTICULAR",1,"GESTIONADOS"]
[3812232021,"AREA DE ATENCION A LA CIUDADANIA","TELEFONO","DERECHO DE PETICION DE INTERES GENERAL",1,"GESTIONADOS"]
[3812352021,"AREA DE ATENCION A LA CIUDADANIA","WEB","DERECHO DE PETICION DE INTERES PARTICULAR",1,"GESTIONADOS"]
[3812352021,"SUBDIRECCION DE ADMINISTRACION INMOBILIARIA Y DE ESPACIO PUBLICO","WEB","DERECHO DE PETICION DE INTERES PARTICULAR",4,"PENDIENTE"]
[3812402021,"AREA DE ATENCION A LA CIUDADANIA","WEB","DERECHO DE PETICION DE INTERES GENERAL",4,"PENDIENTE"]
[3814382021,"AREA DE ATENCION A LA CIUDADANIA","ESCRITO","DERECHO DE PETICION DE INTERES PARTICULAR",1,"GESTIONADOS"]
[3814382021,"SUBDIRECCION DE ADMINISTRACION INMOBILIARIA Y DE ESPACIO PUBLICO","ESCRITO","DERECHO DE PETICION DE INTERES PARTICULAR",4,"PENDIENTE"]
[3814562021,"AREA DE ATENCION A LA CIUDADANIA","ESCRITO","DERECHO DE PETICION DE INTERES PARTICULAR",1,"GESTIONADOS"]
[3814562021,"SUBDIRECCION DE ADMINISTRACION INMOBILIARIA Y DE ESPACIO PUBLICO","ESCRITO","DERECHO DE PETICION DE INTERES PARTICULAR",4,"PENDIENTE"]
[3815042021,"AREA DE ATENCION A LA CIUDADANIA","WEB","DERECHO DE PETICION DE INTERES PARTICULAR",1,"GESTIONADOS"]
[3815122021,"AREA DE ATENCION A LA CIUDADANIA","WEB","DERECHO DE PETICION DE INTERES GENERAL",1,"GESTIONADOS"]
[3815122021,"SUBDIRECCION DE ADMINISTRACION INMOBILIARIA Y DE ESPACIO PUBLICO","WEB","DERECHO DE PETICION DE INTERES GENERAL",4,"PENDIENTE"]
[3816212021,"AREA DE ATENCION A LA CIUDADANIA","WEB","DERECHO DE PETICION DE INTERES PARTICULAR",1,"GESTIONADOS"]
[3816212021,"SUBDIRECCION DE REGISTRO INMOBILIARIO","WEB","DERECHO DE PETICION DE INTERES PARTICULAR",4,"PENDIENTE"]
[3817502021,"AREA DE ATENCION A LA CIUDADANIA","E-MAIL","DERECHO DE PETICION DE INTERES PARTICULAR",1,"GESTIONADOS"]
[3818182021,"AREA DE ATENCION A LA CIUDADANIA","ESCRITO","DERECHO DE PETICION DE INTERES PARTICULAR",1,"GESTIONADOS"]
[3818182021,"SUBDIRECCION DE REGISTRO INMOBILIARIO","ESCRITO","DERECHO DE PETICION DE INTERES PARTICULAR",4,"PENDIENTE"]
[3818512021,"AREA DE ATENCION A LA CIUDADANIA","ESCRITO","SOLICITUD DE COPIA",1,"GESTIONADOS"]
[3818512021,"SUBDIRECCION DE ADMINISTRACION INMOBILIARIA Y DE ESPACIO PUBLICO","ESCRITO","SOLICITUD DE COPIA",4,"PENDIENTE"]
[3821992021,"AREA DE ATENCION A LA CIUDADANIA","ESCRITO","DERECHO DE PETICION DE INTERES PARTICULAR",1,"GESTIONADOS"]
[3821992021,"SUBDIRECCION DE ADMINISTRACION INMOBILIARIA Y DE ESPACIO PUBLICO","ESCRITO","DERECHO DE PETICION DE INTERES PARTICULAR",4,"PENDIENTE"]
[3825062021,"AREA DE ATENCION A LA CIUDADANIA","ESCRITO","DERECHO DE PETICION DE INTERES PARTICULAR",1,"GESTIONADOS"]
[3825062021,"SUBDIRECCION DE REGISTRO INMOBILIARIO","ESCRITO","DERECHO DE PETICION DE INTERES PARTICULAR",4,"PENDIENTE"]
[3826732021,"AREA DE ATENCION A LA CIUDADANIA","WEB","DERECHO DE PETICION DE INTERES PARTICULAR",1,"GESTIONADOS"]
[3826732021,"SUBDIRECCION DE REGISTRO INMOBILIARIO","WEB","DERECHO DE PETICION DE INTERES PARTICULAR",3,"PENDIENTE"]
[3827352021,"AREA DE ATENCION A LA CIUDADANIA","WEB","DERECHO DE PETICION DE INTERES PARTICULAR",1,"GESTIONADOS"]
[3833972021,"AREA DE ATENCION A LA CIUDADANIA","ESCRITO","DERECHO DE PETICION DE INTERES PARTICULAR",1,"GESTIONADOS"]
[3833972021,"SUBDIRECCION DE ADMINISTRACION INMOBILIARIA Y DE ESPACIO PUBLICO","ESCRITO","DERECHO DE PETICION DE INTERES PARTICULAR",3,"PENDIENTE"]
[3834092021,"AREA DE ATENCION A LA CIUDADANIA","ESCRITO","DERECHO DE PETICION DE INTERES PARTICULAR",1,"GESTIONADOS"]
[3834092021,"SUBDIRECCION DE ADMINISTRACION INMOBILIARIA Y DE ESPACIO PUBLICO","ESCRITO","DERECHO DE PETICION DE INTERES PARTICULAR",3,"PENDIENTE"]
[3834242021,"AREA DE ATENCION A LA CIUDADANIA","ESCRITO","DERECHO DE PETICION DE INTERES PARTICULAR",1,"GESTIONADOS"]
[3834242021,"OFICINA ASESORA JURIDICA","ESCRITO","DERECHO DE PETICION DE INTERES PARTICULAR",3,"GESTIONADOS"]
[3834242021,"SUBDIRECCION DE ADMINISTRACION INMOBILIARIA Y DE ESPACIO PUBLICO","ESCRITO","DERECHO DE PETICION DE INTERES PARTICULAR",3,"PENDIENTE"]
[3834772021,"AREA DE ATENCION A LA CIUDADANIA","ESCRITO","DERECHO DE PETICION DE INTERES PARTICULAR",1,"GESTIONADOS"]
[3834772021,"SUBDIRECCION DE ADMINISTRACION INMOBILIARIA Y DE ESPACIO PUBLICO","ESCRITO","DERECHO DE PETICION DE INTERES PARTICULAR",3,"PENDIENTE"]
[3837202021,"AREA DE ATENCION A LA CIUDADANIA","ESCRITO","DERECHO DE PETICION DE INTERES PARTICULAR",1,"GESTIONADOS"]
[3837202021,"SUBDIRECCION DE ADMINISTRACION INMOBILIARIA Y DE ESPACIO PUBLICO","ESCRITO","DERECHO DE PETICION DE INTERES PARTICULAR",3,"PENDIENTE"]
[3837262021,"AREA DE ATENCION A LA CIUDADANIA","ESCRITO","DERECHO DE PETICION DE INTERES PARTICULAR",1,"GESTIONADOS"]
[3837262021,"SUBDIRECCION DE ADMINISTRACION INMOBILIARIA Y DE ESPACIO PUBLICO","ESCRITO","DERECHO DE PETICION DE INTERES PARTICULAR",3,"PENDIENTE"]
[3837642021,"AREA DE ATENCION A LA CIUDADANIA","E-MAIL","DERECHO DE PETICION DE INTERES PARTICULAR",1,"GESTIONADOS"]
[3837642021,"OFICINA ASESORA JURIDICA","E-MAIL","DERECHO DE PETICION DE INTERES PARTICULAR",1,"PENDIENTE"]
[3838592021,"AREA DE ATENCION A LA CIUDADANIA","ESCRITO","DERECHO DE PETICION DE INTERES PARTICULAR",1,"GESTIONADOS"]
[3838592021,"SUBDIRECCION DE ADMINISTRACION INMOBILIARIA Y DE ESPACIO PUBLICO","ESCRITO","DERECHO DE PETICION DE INTERES PARTICULAR",3,"PENDIENTE"]
[3838672021,"AREA DE ATENCION A LA CIUDADANIA","ESCRITO","DERECHO DE PETICION DE INTERES PARTICULAR",1,"GESTIONADOS"]
[3838672021,"SUBDIRECCION DE REGISTRO INMOBILIARIO","ESCRITO","DERECHO DE PETICION DE INTERES PARTICULAR",3,"PENDIENTE"]
[3838932021,"AREA DE ATENCION A LA CIUDADANIA","WEB","DERECHO DE PETICION DE INTERES PARTICULAR",1,"GESTIONADOS"]
[3839302021,"AREA DE ATENCION A LA CIUDADANIA","ESCRITO","DERECHO DE PETICION DE INTERES PARTICULAR",1,"GESTIONADOS"]
[3839302021,"SUBDIRECCION DE REGISTRO INMOBILIARIO","ESCRITO","DERECHO DE PETICION DE INTERES PARTICULAR",3,"PENDIENTE"]
[3839382021,"AREA DE ATENCION A LA CIUDADANIA","ESCRITO","DERECHO DE PETICION DE INTERES PARTICULAR",1,"GESTIONADOS"]
[3839382021,"SUBDIRECCION DE ADMINISTRACION INMOBILIARIA Y DE ESPACIO PUBLICO","ESCRITO","DERECHO DE PETICION DE INTERES PARTICULAR",3,"PENDIENTE"]
[3839402021,"AREA DE ATENCION A LA CIUDADANIA","ESCRITO","DERECHO DE PETICION DE INTERES PARTICULAR",1,"GESTIONADOS"]
[3839402021,"SUBDIRECCION DE ADMINISTRACION INMOBILIARIA Y DE ESPACIO PUBLICO","ESCRITO","DERECHO DE PETICION DE INTERES PARTICULAR",3,"PENDIENTE"]
[3839422021,"AREA DE ATENCION A LA CIUDADANIA","ESCRITO","DERECHO DE PETICION DE INTERES PARTICULAR",1,"GESTIONADOS"]
[3839422021,"OFICINA ASESORA JURIDICA","ESCRITO","DERECHO DE PETICION DE INTERES PARTICULAR",3,"GESTIONADOS"]
[3839422021,"SUBDIRECCION DE ADMINISTRACION INMOBILIARIA Y DE ESPACIO PUBLICO","ESCRITO","DERECHO DE PETICION DE INTERES PARTICULAR",3,"PENDIENTE"]
[3839462021,"AREA DE ATENCION A LA CIUDADANIA","WEB","DERECHO DE PETICION DE INTERES PARTICULAR",1,"GESTIONADOS"]
[3840062021,"AREA DE ATENCION A LA CIUDADANIA","WEB","DERECHO DE PETICION DE INTERES GENERAL",1,"GESTIONADOS"]
[3843372021,"AREA DE ATENCION A LA CIUDADANIA","ESCRITO","DERECHO DE PETICION DE INTERES PARTICULAR",1,"GESTIONADOS"]
[3843372021,"SUBDIRECCION DE ADMINISTRACION INMOBILIARIA Y DE ESPACIO PUBLICO","ESCRITO","DERECHO DE PETICION DE INTERES PARTICULAR",2,"PENDIENTE"]
[3843532021,"AREA DE ATENCION A LA CIUDADANIA","ESCRITO","DERECHO DE PETICION DE INTERES PARTICULAR",1,"GESTIONADOS"]
[3843532021,"SUBDIRECCION DE ADMINISTRACION INMOBILIARIA Y DE ESPACIO PUBLICO","ESCRITO","DERECHO DE PETICION DE INTERES PARTICULAR",2,"PENDIENTE"]
[3843622021,"AREA DE ATENCION A LA CIUDADANIA","ESCRITO","DERECHO DE PETICION DE INTERES PARTICULAR",1,"GESTIONADOS"]
[3843622021,"SUBDIRECCION DE REGISTRO INMOBILIARIO","ESCRITO","DERECHO DE PETICION DE INTERES PARTICULAR",2,"PENDIENTE"]
[3843872021,"AREA DE ATENCION A LA CIUDADANIA","ESCRITO","DERECHO DE PETICION DE INTERES PARTICULAR",1,"GESTIONADOS"]
[3843872021,"SUBDIRECCION DE REGISTRO INMOBILIARIO","ESCRITO","DERECHO DE PETICION DE INTERES PARTICULAR",1,"PENDIENTE"]
[3843882021,"AREA DE ATENCION A LA CIUDADANIA","ESCRITO","DERECHO DE PETICION DE INTERES PARTICULAR",1,"GESTIONADOS"]
[3843882021,"SUBDIRECCION DE ADMINISTRACION INMOBILIARIA Y DE ESPACIO PUBLICO","ESCRITO","DERECHO DE PETICION DE INTERES PARTICULAR",2,"PENDIENTE"]
[3848182021,"AREA DE ATENCION A LA CIUDADANIA","WEB","SOLICITUD DE ACCESO A LA INFORMACION",1,"PENDIENTE"]
[3848402021,"AREA DE ATENCION A LA CIUDADANIA","ESCRITO","DERECHO DE PETICION DE INTERES PARTICULAR",1,"GESTIONADOS"]
[3848402021,"SUBDIRECCION DE REGISTRO INMOBILIARIO","ESCRITO","DERECHO DE PETICION DE INTERES PARTICULAR",2,"PENDIENTE"]
[3848822021,"AREA DE ATENCION A LA CIUDADANIA","ESCRITO","SOLICITUD DE ACCESO A LA INFORMACION",1,"PENDIENTE"]
[3850592021,"AREA DE ATENCION A LA CIUDADANIA","TELEFONO","DERECHO DE PETICION DE INTERES GENERAL",1,"GESTIONADOS"]
[3851562021,"AREA DE ATENCION A LA CIUDADANIA","WEB","DERECHO DE PETICION DE INTERES PARTICULAR",1,"GESTIONADOS"]
[3851882021,"AREA DE ATENCION A LA CIUDADANIA","WEB","DERECHO DE PETICION DE INTERES PARTICULAR",1,"GESTIONADOS"]
[3854622021,"AREA DE ATENCION A LA CIUDADANIA","WEB","DERECHO DE PETICION DE INTERES GENERAL",1,"GESTIONADOS"]
[3855162021,"AREA DE ATENCION A LA CIUDADANIA","WEB","DERECHO DE PETICION DE INTERES GENERAL",1,"GESTIONADOS"]
[3855272021,"AREA DE ATENCION A LA CIUDADANIA","WEB","DERECHO DE PETICION DE INTERES GENERAL",1,"GESTIONADOS"]
[3855272021,"OFICINA ASESORA JURIDICA","WEB","DERECHO DE PETICION DE INTERES GENERAL",2,"PENDIENTE"]
[3855632021,"AREA DE ATENCION A LA CIUDADANIA","WEB","DERECHO DE PETICION DE INTERES GENERAL",1,"GESTIONADOS"]
[3856272021,"AREA DE ATENCION A LA CIUDADANIA","WEB","DERECHO DE PETICION DE INTERES PARTICULAR",1,"GESTIONADOS"]
[3856272021,"SUBDIRECCION DE ADMINISTRACION INMOBILIARIA Y DE ESPACIO PUBLICO","WEB","DERECHO DE PETICION DE INTERES PARTICULAR",2,"PENDIENTE"]
[3856322021,"AREA DE ATENCION A LA CIUDADANIA","WEB","SOLICITUD DE COPIA",2,"GESTIONADOS"]
[3856382021,"AREA DE ATENCION A LA CIUDADANIA","WEB","SOLICITUD DE COPIA",1,"GESTIONADOS"]
[3856382021,"SUBDIRECCION DE REGISTRO INMOBILIARIO","WEB","SOLICITUD DE COPIA",2,"PENDIENTE"]
[3856422021,"AREA DE ATENCION A LA CIUDADANIA","WEB","DERECHO DE PETICION DE INTERES GENERAL",1,"GESTIONADOS"]
[3857352021,"AREA DE ATENCION A LA CIUDADANIA","WEB","DERECHO DE PETICION DE INTERES PARTICULAR",1,"GESTIONADOS"]
[3858142021,"AREA DE ATENCION A LA CIUDADANIA","WEB","DERECHO DE PETICION DE INTERES GENERAL",1,"GESTIONADOS"]
[3858142021,"SUBDIRECCION DE ADMINISTRACION INMOBILIARIA Y DE ESPACIO PUBLICO","WEB","DERECHO DE PETICION DE INTERES GENERAL",1,"PENDIENTE"]
[3858452021,"SUBDIRECCION ADMINISTRATIVA  FINANCIERA Y DE CONTROL DISCIPLINARIO","WEB","DENUNCIA POR ACTOS DE CORRUPCION",2,"PENDIENTE"]
[3858592021,"AREA DE ATENCION A LA CIUDADANIA","WEB","DERECHO DE PETICION DE INTERES GENERAL",1,"GESTIONADOS"]
[3859892021,"AREA DE ATENCION A LA CIUDADANIA","WEB","QUEJA",1,"GESTIONADOS"]
[3859992021,"AREA DE ATENCION A LA CIUDADANIA","WEB","QUEJA",1,"GESTIONADOS"]
[3866452021,"AREA DE ATENCION A LA CIUDADANIA","WEB","DERECHO DE PETICION DE INTERES PARTICULAR",1,"GESTIONADOS"]
[3866452021,"SUBDIRECCION DE ADMINISTRACION INMOBILIARIA Y DE ESPACIO PUBLICO","WEB","DERECHO DE PETICION DE INTERES PARTICULAR",1,"PENDIENTE"]
[3866482021,"AREA DE ATENCION A LA CIUDADANIA","WEB","CONSULTA",1,"GESTIONADOS"]
[3866482021,"SUBDIRECCION DE REGISTRO INMOBILIARIO","WEB","CONSULTA",1,"PENDIENTE"]
[3866872021,"AREA DE ATENCION A LA CIUDADANIA","WEB","QUEJA",1,"GESTIONADOS"]
[3868482021,"AREA DE ATENCION A LA CIUDADANIA","WEB","QUEJA",1,"GESTIONADOS"]
[3868592021,"AREA DE ATENCION A LA CIUDADANIA","ESCRITO","DERECHO DE PETICION DE INTERES PARTICULAR",1,"GESTIONADOS"]
[3868592021,"SUBDIRECCION DE ADMINISTRACION INMOBILIARIA Y DE ESPACIO PUBLICO","ESCRITO","DERECHO DE PETICION DE INTERES PARTICULAR",1,"PENDIENTE"]
[3868692021,"AREA DE ATENCION A LA CIUDADANIA","ESCRITO","DERECHO DE PETICION DE INTERES PARTICULAR",1,"GESTIONADOS"]
[3868692021,"SUBDIRECCION DE ADMINISTRACION INMOBILIARIA Y DE ESPACIO PUBLICO","ESCRITO","DERECHO DE PETICION DE INTERES PARTICULAR",1,"PENDIENTE"]
[3868842021,"AREA DE ATENCION A LA CIUDADANIA","ESCRITO","DERECHO DE PETICION DE INTERES PARTICULAR",1,"GESTIONADOS"]
[3868842021,"SUBDIRECCION DE REGISTRO INMOBILIARIO","ESCRITO","DERECHO DE PETICION DE INTERES PARTICULAR",1,"PENDIENTE"]
[3869072021,"AREA DE ATENCION A LA CIUDADANIA","ESCRITO","DERECHO DE PETICION DE INTERES PARTICULAR",1,"GESTIONADOS"]
[3869072021,"SUBDIRECCION DE ADMINISTRACION INMOBILIARIA Y DE ESPACIO PUBLICO","ESCRITO","DERECHO DE PETICION DE INTERES PARTICULAR",1,"PENDIENTE"]
[3869182021,"AREA DE ATENCION A LA CIUDADANIA","ESCRITO","DERECHO DE PETICION DE INTERES PARTICULAR",1,"GESTIONADOS"]
[3869182021,"SUBDIRECCION DE ADMINISTRACION INMOBILIARIA Y DE ESPACIO PUBLICO","ESCRITO","DERECHO DE PETICION DE INTERES PARTICULAR",1,"PENDIENTE"]
[3869252021,"AREA DE ATENCION A LA CIUDADANIA","ESCRITO","DERECHO DE PETICION DE INTERES PARTICULAR",1,"GESTIONADOS"]
[3869252021,"SUBDIRECCION DE REGISTRO INMOBILIARIO","ESCRITO","DERECHO DE PETICION DE INTERES PARTICULAR",1,"PENDIENTE"]
[3869452021,"AREA DE ATENCION A LA CIUDADANIA","ESCRITO","DERECHO DE PETICION DE INTERES PARTICULAR",1,"GESTIONADOS"]
[3869452021,"SUBDIRECCION DE ADMINISTRACION INMOBILIARIA Y DE ESPACIO PUBLICO","ESCRITO","DERECHO DE PETICION DE INTERES PARTICULAR",1,"PENDIENTE"]
[3869772021,"AREA DE ATENCION A LA CIUDADANIA","ESCRITO","DERECHO DE PETICION DE INTERES PARTICULAR",1,"GESTIONADOS"]
[3869772021,"SUBDIRECCION DE REGISTRO INMOBILIARIO","ESCRITO","DERECHO DE PETICION DE INTERES PARTICULAR",1,"PENDIENTE"]
[3869922021,"AREA DE ATENCION A LA CIUDADANIA","ESCRITO","DERECHO DE PETICION DE INTERES PARTICULAR",1,"GESTIONADOS"]
[3869922021,"SUBDIRECCION DE ADMINISTRACION INMOBILIARIA Y DE ESPACIO PUBLICO","ESCRITO","DERECHO DE PETICION DE INTERES PARTICULAR",1,"PENDIENTE"]
[3870122021,"AREA DE ATENCION A LA CIUDADANIA","ESCRITO","DERECHO DE PETICION DE INTERES PARTICULAR",1,"GESTIONADOS"]
[3870122021,"SUBDIRECCION DE ADMINISTRACION INMOBILIARIA Y DE ESPACIO PUBLICO","ESCRITO","DERECHO DE PETICION DE INTERES PARTICULAR",1,"PENDIENTE"]
[3870222021,"AREA DE ATENCION A LA CIUDADANIA","WEB","DERECHO DE PETICION DE INTERES GENERAL",1,"GESTIONADOS"]
[3871422021,"AREA DE ATENCION A LA CIUDADANIA","WEB","DERECHO DE PETICION DE INTERES GENERAL",1,"GESTIONADOS"]
[3877572021,"AREA DE ATENCION A LA CIUDADANIA","WEB","DERECHO DE PETICION DE INTERES GENERAL",1,"PENDIENTE"]
[3878552021,"AREA DE ATENCION A LA CIUDADANIA","PRESENCIAL","DERECHO DE PETICION DE INTERES GENERAL",1,"GESTIONADOS"]
[3878552021,"SUBDIRECCION DE ADMINISTRACION INMOBILIARIA Y DE ESPACIO PUBLICO","PRESENCIAL","DERECHO DE PETICION DE INTERES GENERAL",1,"PENDIENTE"]
[3881742021,"AREA DE ATENCION A LA CIUDADANIA","E-MAIL","DERECHO DE PETICION DE INTERES PARTICULAR",1,"GESTIONADOS"]
[3881742021,"SUBDIRECCION DE ADMINISTRACION INMOBILIARIA Y DE ESPACIO PUBLICO","E-MAIL","DERECHO DE PETICION DE INTERES PARTICULAR",1,"PENDIENTE"]
[3882002021,"AREA DE ATENCION A LA CIUDADANIA","ESCRITO","DERECHO DE PETICION DE INTERES PARTICULAR",1,"GESTIONADOS"]
[3882002021,"SUBDIRECCION DE ADMINISTRACION INMOBILIARIA Y DE ESPACIO PUBLICO","ESCRITO","DERECHO DE PETICION DE INTERES PARTICULAR",1,"PENDIENTE"]
[3882072021,"AREA DE ATENCION A LA CIUDADANIA","ESCRITO","DERECHO DE PETICION DE INTERES PARTICULAR",1,"GESTIONADOS"]
[3882072021,"SUBDIRECCION DE ADMINISTRACION INMOBILIARIA Y DE ESPACIO PUBLICO","ESCRITO","DERECHO DE PETICION DE INTERES PARTICULAR",1,"PENDIENTE"]
[3882182021,"AREA DE ATENCION A LA CIUDADANIA","ESCRITO","DERECHO DE PETICION DE INTERES PARTICULAR",1,"GESTIONADOS"]
[3882182021,"SUBDIRECCION DE ADMINISTRACION INMOBILIARIA Y DE ESPACIO PUBLICO","ESCRITO","DERECHO DE PETICION DE INTERES PARTICULAR",1,"PENDIENTE"]
[3882242021,"AREA DE ATENCION A LA CIUDADANIA","ESCRITO","DERECHO DE PETICION DE INTERES PARTICULAR",1,"GESTIONADOS"]
[3882242021,"SUBDIRECCION DE REGISTRO INMOBILIARIO","ESCRITO","DERECHO DE PETICION DE INTERES PARTICULAR",1,"PENDIENTE"]
[3882632021,"AREA DE ATENCION A LA CIUDADANIA","WEB","QUEJA",1,"GESTIONADOS"]
[3885232021,"AREA DE ATENCION A LA CIUDADANIA","WEB","DERECHO DE PETICION DE INTERES PARTICULAR",1,"GESTIONADOS"]
[3885392021,"AREA DE ATENCION A LA CIUDADANIA","WEB","DERECHO DE PETICION DE INTERES GENERAL",1,"GESTIONADOS"]
[3885522021,"AREA DE ATENCION A LA CIUDADANIA","WEB","RECLAMO",1,"PENDIENTE"]
[3885622021,"AREA DE ATENCION A LA CIUDADANIA","WEB","QUEJA",1,"GESTIONADOS"]
[3887162021,"AREA DE ATENCION A LA CIUDADANIA","ESCRITO","DERECHO DE PETICION DE INTERES PARTICULAR",1,"GESTIONADOS"]
[3887162021,"SUBDIRECCION DE ADMINISTRACION INMOBILIARIA Y DE ESPACIO PUBLICO","ESCRITO","DERECHO DE PETICION DE INTERES PARTICULAR",1,"PENDIENTE"]
[3887392021,"AREA DE ATENCION A LA CIUDADANIA","ESCRITO","DERECHO DE PETICION DE INTERES PARTICULAR",1,"GESTIONADOS"]
[3887392021,"SUBDIRECCION DE ADMINISTRACION INMOBILIARIA Y DE ESPACIO PUBLICO","ESCRITO","DERECHO DE PETICION DE INTERES PARTICULAR",1,"PENDIENTE"]
[3888452021,"AREA DE ATENCION A LA CIUDADANIA","WEB","QUEJA",1,"GESTIONADOS"]
[3888592021,"AREA DE ATENCION A LA CIUDADANIA","WEB","DERECHO DE PETICION DE INTERES PARTICULAR",1,"GESTIONADOS"]
[3889502021,"SUBDIRECCION ADMINISTRATIVA  FINANCIERA Y DE CONTROL DISCIPLINARIO","WEB","DENUNCIA POR ACTOS DE CORRUPCION",1,"PENDIENTE"]
[3889552021,"AREA DE ATENCION A LA CIUDADANIA","WEB","QUEJA",1,"PENDIENTE"]
[3889622021,"AREA DE ATENCION A LA CIUDADANIA","WEB","QUEJA",1,"PENDIENTE"]
[3889642021,"AREA DE ATENCION A LA CIUDADANIA","WEB","QUEJA",1,"PENDIENTE"]
[]
["TRASLADOS"]
["Número petición\nNumero de registro en el Sistema","Dependencia:\nNombre asociado al usuario que tiene a cargo la petición ","Canal:\nNombre del canal parametrizado en el sistema por el cual fue registrada la petición","Tipología actualizada: \nTipo de documento utilizado por la entidad","Traslado a otras Entidades: \nPeticiones que por competencia son trasladadas a otras entidades.","Entidad Destino","Estado del Requerimiento\n \"Gestionado\" o \"Pendiente\" de respuesta definitiva por  parte de la Defensoría del Espacio Público o de las entidades competentes"]
["Número petición","Dependencia","Canal","Estado petición final","Entidad que recibe","Tipo reporte"]
[2998262021,"SUBDIRECCION DE ADMINISTRACION INMOBILIARIA Y DE ESPACIO PUBLICO","ESCRITO","Solucionado - Por traslado","CODENSA","GESTIONADOS"]
[3057872021,"SUBDIRECCION DE ADMINISTRACION INMOBILIARIA Y DE ESPACIO PUBLICO","WEB","Solucionado - Por traslado","SECRETARIA DE GOBIERNO","GESTIONADOS"]
[3067332021,"SUBDIRECCION DE ADMINISTRACION INMOBILIARIA Y DE ESPACIO PUBLICO","ESCRITO","Solucionado - Por traslado","SECRETARIA DE GOBIERNO","GESTIONADOS"]
[3067362021,"SUBDIRECCION DE ADMINISTRACION INMOBILIARIA Y DE ESPACIO PUBLICO","ESCRITO","Solucionado - Por traslado","SECRETARIA DE GOBIERNO","GESTIONADOS"]
[3067402021,"SUBDIRECCION DE ADMINISTRACION INMOBILIARIA Y DE ESPACIO PUBLICO","ESCRITO","Solucionado - Por traslado","SECRETARIA DE GOBIERNO","GESTIONADOS"]
[3067802021,"SUBDIRECCION DE ADMINISTRACION INMOBILIARIA Y DE ESPACIO PUBLICO","ESCRITO","Solucionado - Por traslado","IDARTES - INSTITUTO DE LAS ARTES","GESTIONADOS"]
[3071972021,"SUBDIRECCION DE ADMINISTRACION INMOBILIARIA Y DE ESPACIO PUBLICO","ESCRITO","Solucionado - Por traslado","IDU","GESTIONADOS"]
[3074602021,"SUBDIRECCION DE ADMINISTRACION INMOBILIARIA Y DE ESPACIO PUBLICO","WEB","Solucionado - Por traslado","SECRETARIA DE PLANEACION","GESTIONADOS"]
[3085172021,"SUBDIRECCION DE ADMINISTRACION INMOBILIARIA Y DE ESPACIO PUBLICO","WEB","Solucionado - Por traslado","SECRETARIA DE GOBIERNO","GESTIONADOS"]
[3086572021,"AREA DE ATENCION A LA CIUDADANIA","WEB","Solucionado - Por traslado","SECRETARIA DE GOBIERNO","GESTIONADOS"]
[3086962021,"SUBDIRECCION DE ADMINISTRACION INMOBILIARIA Y DE ESPACIO PUBLICO","WEB","Solucionado - Por traslado","SECRETARIA DE GOBIERNO","GESTIONADOS"]
[3090522021,"SUBDIRECCION DE ADMINISTRACION INMOBILIARIA Y DE ESPACIO PUBLICO","WEB","Solucionado - Por traslado","SECRETARIA DE GOBIERNO","GESTIONADOS"]
[3090862021,"SUBDIRECCION DE ADMINISTRACION INMOBILIARIA Y DE ESPACIO PUBLICO","WEB","Solucionado - Por traslado","SECRETARIA DE GOBIERNO","GESTIONADOS"]
[3091092021,"SUBDIRECCION DE ADMINISTRACION INMOBILIARIA Y DE ESPACIO PUBLICO","WEB","Solucionado - Por traslado","JBB - JARDIN BOTANICO","GESTIONADOS"]
[3097292021,"SUBDIRECCION DE ADMINISTRACION INMOBILIARIA Y DE ESPACIO PUBLICO","ESCRITO","Solucionado - Por traslado","IDPAC","GESTIONADOS"]
[3097332021,"SUBDIRECCION DE ADMINISTRACION INMOBILIARIA Y DE ESPACIO PUBLICO","ESCRITO","Solucionado - Por traslado","SECRETARIA DE GOBIERNO","GESTIONADOS"]
[3097432021,"SUBDIRECCION DE ADMINISTRACION INMOBILIARIA Y DE ESPACIO PUBLICO","ESCRITO","Solucionado - Por traslado","IDPAC","GESTIONADOS"]
[3100742021,"SUBDIRECCION DE ADMINISTRACION INMOBILIARIA Y DE ESPACIO PUBLICO","WEB","Solucionado - Por traslado","SECRETARIA DE INTEGRACION SOCIAL","GESTIONADOS"]
[3115712021,"SUBDIRECCION DE ADMINISTRACION INMOBILIARIA Y DE ESPACIO PUBLICO","WEB","Solucionado - Por traslado","SECRETARIA DE GOBIERNO","GESTIONADOS"]
[3118262021,"SUBDIRECCION DE ADMINISTRACION INMOBILIARIA Y DE ESPACIO PUBLICO","WEB","Solucionado - Por traslado","SECRETARIA MOVILIDAD","GESTIONADOS"]
[3118442021,"SUBDIRECCION DE ADMINISTRACION INMOBILIARIA Y DE ESPACIO PUBLICO","ESCRITO","Solucionado - Por traslado","SECRETARIA MOVILIDAD","GESTIONADOS"]
[3119852021,"SUBDIRECCION DE ADMINISTRACION INMOBILIARIA Y DE ESPACIO PUBLICO","WEB","Solucionado - Por traslado","SECRETARIA DE GOBIERNO","GESTIONADOS"]
[3122132021,"SUBDIRECCION DE ADMINISTRACION INMOBILIARIA Y DE ESPACIO PUBLICO","WEB","Solucionado - Por traslado","SECRETARIA DE GOBIERNO","GESTIONADOS"]
[3125892021,"SUBDIRECCION DE ADMINISTRACION INMOBILIARIA Y DE ESPACIO PUBLICO","ESCRITO","Solucionado - Por traslado","IPES","GESTIONADOS"]
[3126202021,"SUBDIRECCION DE ADMINISTRACION INMOBILIARIA Y DE ESPACIO PUBLICO","ESCRITO","Solucionado - Por traslado","SECRETARIA DE GOBIERNO","GESTIONADOS"]
[3126302021,"SUBDIRECCION DE ADMINISTRACION INMOBILIARIA Y DE ESPACIO PUBLICO","ESCRITO","Solucionado - Por traslado","IDRD","GESTIONADOS"]
[3126852021,"SUBDIRECCION DE ADMINISTRACION INMOBILIARIA Y DE ESPACIO PUBLICO","ESCRITO","Solucionado - Por traslado","CODENSA","GESTIONADOS"]
[3128382021,"SUBDIRECCION DE ADMINISTRACION INMOBILIARIA Y DE ESPACIO PUBLICO","WEB","Solucionado - Por traslado","SECRETARIA DE GOBIERNO","GESTIONADOS"]
[3129282021,"SUBDIRECCION DE ADMINISTRACION INMOBILIARIA Y DE ESPACIO PUBLICO","ESCRITO","Solucionado - Por traslado","SECRETARIA DE GOBIERNO","GESTIONADOS"]
[3129992021,"SUBDIRECCION DE ADMINISTRACION INMOBILIARIA Y DE ESPACIO PUBLICO","WEB","Solucionado - Por traslado","SECRETARIA DE GOBIERNO","GESTIONADOS"]
[3130412021,"SUBDIRECCION DE ADMINISTRACION INMOBILIARIA Y DE ESPACIO PUBLICO","ESCRITO","Solucionado - Por traslado","SECRETARIA DE GOBIERNO","GESTIONADOS"]
[3131602021,"SUBDIRECCION DE ADMINISTRACION INMOBILIARIA Y DE ESPACIO PUBLICO","ESCRITO","Solucionado - Por traslado","SECRETARIA DE DESARROLLO ECONOMICO","GESTIONADOS"]
[3132302021,"SUBDIRECCION DE ADMINISTRACION INMOBILIARIA Y DE ESPACIO PUBLICO","ESCRITO","Solucionado - Por traslado","SECRETARIA DE GOBIERNO","GESTIONADOS"]
[3133822021,"SUBDIRECCION DE ADMINISTRACION INMOBILIARIA Y DE ESPACIO PUBLICO","WEB","Solucionado - Por traslado","SECRETARIA DE GOBIERNO","GESTIONADOS"]
[3149492021,"SUBDIRECCION DE ADMINISTRACION INMOBILIARIA Y DE ESPACIO PUBLICO","WEB","Solucionado - Por traslado","SECRETARIA DE GOBIERNO","GESTIONADOS"]
[3150272021,"SUBDIRECCION DE ADMINISTRACION INMOBILIARIA Y DE ESPACIO PUBLICO","WEB","Solucionado - Por traslado","SECRETARIA DE GOBIERNO","GESTIONADOS"]
[3150282021,"AREA DE ATENCION A LA CIUDADANIA","WEB","Solucionado - Por traslado","UMV - UNIDAD DE MANTENIMIENTO VIAL","GESTIONADOS"]
[3152802021,"SUBDIRECCION DE ADMINISTRACION INMOBILIARIA Y DE ESPACIO PUBLICO","WEB","Solucionado - Por traslado","SECRETARIA DE GOBIERNO","GESTIONADOS"]
[3157132021,"SUBDIRECCION DE ADMINISTRACION INMOBILIARIA Y DE ESPACIO PUBLICO","ESCRITO","Solucionado - Por traslado","IDU","GESTIONADOS"]
[3157152021,"SUBDIRECCION DE ADMINISTRACION INMOBILIARIA Y DE ESPACIO PUBLICO","ESCRITO","Solucionado - Por traslado","IDPAC","GESTIONADOS"]
[3160972021,"SUBDIRECCION DE ADMINISTRACION INMOBILIARIA Y DE ESPACIO PUBLICO","WEB","Solucionado - Por traslado","IPES","GESTIONADOS"]
[3162702021,"SUBDIRECCION DE ADMINISTRACION INMOBILIARIA Y DE ESPACIO PUBLICO","WEB","Solucionado - Por traslado","IPES","GESTIONADOS"]
[3163562021,"SUBDIRECCION DE ADMINISTRACION INMOBILIARIA Y DE ESPACIO PUBLICO","WEB","Solucionado - Por traslado","SECRETARIA DE GOBIERNO","GESTIONADOS"]
[3171232021,"SUBDIRECCION DE ADMINISTRACION INMOBILIARIA Y DE ESPACIO PUBLICO","WEB","Solucionado - Por traslado","SECRETARIA DE GOBIERNO","GESTIONADOS"]
[3178682021,"SUBDIRECCION DE ADMINISTRACION INMOBILIARIA Y DE ESPACIO PUBLICO","WEB","Solucionado - Por traslado","SECRETARIA DE GOBIERNO","GESTIONADOS"]
[3179292021,"SUBDIRECCION DE ADMINISTRACION INMOBILIARIA Y DE ESPACIO PUBLICO","WEB","Solucionado - Por traslado","SECRETARIA MOVILIDAD","GESTIONADOS"]
[3179942021,"SUBDIRECCION DE ADMINISTRACION INMOBILIARIA Y DE ESPACIO PUBLICO","WEB","Solucionado - Por traslado","SECRETARIA DE GOBIERNO","GESTIONADOS"]
[3182672021,"SUBDIRECCION DE ADMINISTRACION INMOBILIARIA Y DE ESPACIO PUBLICO","WEB","Solucionado - Por traslado","IPES","GESTIONADOS"]
[3184432021,"SUBDIRECCION DE ADMINISTRACION INMOBILIARIA Y DE ESPACIO PUBLICO","WEB","Solucionado - Por traslado","SECRETARIA DE GOBIERNO","GESTIONADOS"]
[3185162021,"SUBDIRECCION DE ADMINISTRACION INMOBILIARIA Y DE ESPACIO PUBLICO","ESCRITO","Solucionado - Por traslado","IDRD","GESTIONADOS"]
[3186402021,"SUBDIRECCION DE ADMINISTRACION INMOBILIARIA Y DE ESPACIO PUBLICO","WEB","Solucionado - Por traslado","SECRETARIA DE GOBIERNO","GESTIONADOS"]
[3187682021,"SUBDIRECCION DE ADMINISTRACION INMOBILIARIA Y DE ESPACIO PUBLICO","ESCRITO","Solucionado - Por traslado","ACUEDUCTO - EAAB-ESP","GESTIONADOS"]
[3187852021,"SUBDIRECCION DE ADMINISTRACION INMOBILIARIA Y DE ESPACIO PUBLICO","ESCRITO","Solucionado - Por traslado","SECRETARIA DE GOBIERNO","GESTIONADOS"]
[3187912021,"SUBDIRECCION DE ADMINISTRACION INMOBILIARIA Y DE ESPACIO PUBLICO","ESCRITO","Solucionado - Por traslado","IDU","GESTIONADOS"]
[3188312021,"SUBDIRECCION DE ADMINISTRACION INMOBILIARIA Y DE ESPACIO PUBLICO","ESCRITO","Solucionado - Por traslado","IDRD","GESTIONADOS"]
[3191382021,"SUBDIRECCION DE ADMINISTRACION INMOBILIARIA Y DE ESPACIO PUBLICO","ESCRITO","Solucionado - Por traslado","PERSONERIA DE BOGOTA","GESTIONADOS"]
[3191582021,"SUBDIRECCION DE ADMINISTRACION INMOBILIARIA Y DE ESPACIO PUBLICO","ESCRITO","Solucionado - Por traslado","SECRETARIA DE GOBIERNO","GESTIONADOS"]
[3192772021,"AREA DE ATENCION A LA CIUDADANIA","E-MAIL","Solucionado - Por traslado","CATASTRO","GESTIONADOS"]
[3194262021,"SUBDIRECCION DE ADMINISTRACION INMOBILIARIA Y DE ESPACIO PUBLICO","E-MAIL","Solucionado - Por traslado","SECRETARIA DE GOBIERNO","GESTIONADOS"]
[3200582021,"SUBDIRECCION DE ADMINISTRACION INMOBILIARIA Y DE ESPACIO PUBLICO","ESCRITO","Solucionado - Por traslado","SECRETARIA DE GOBIERNO","GESTIONADOS"]
[3200702021,"SUBDIRECCION DE ADMINISTRACION INMOBILIARIA Y DE ESPACIO PUBLICO","ESCRITO","Solucionado - Por traslado","SECRETARIA DE GOBIERNO","GESTIONADOS"]
[3200852021,"SUBDIRECCION DE ADMINISTRACION INMOBILIARIA Y DE ESPACIO PUBLICO","ESCRITO","Solucionado - Por traslado","IDPAC","GESTIONADOS"]
[3202812021,"SUBDIRECCION DE ADMINISTRACION INMOBILIARIA Y DE ESPACIO PUBLICO","TELEFONO","Solucionado - Por traslado","SECRETARIA DE GOBIERNO","GESTIONADOS"]
[3210172021,"SUBDIRECCION DE ADMINISTRACION INMOBILIARIA Y DE ESPACIO PUBLICO","WEB","Solucionado - Por traslado","SECRETARIA DE GOBIERNO","GESTIONADOS"]
[3218592021,"SUBDIRECCION DE ADMINISTRACION INMOBILIARIA Y DE ESPACIO PUBLICO","ESCRITO","Solucionado - Por traslado","SECRETARIA MOVILIDAD","GESTIONADOS"]
[3218772021,"SUBDIRECCION DE ADMINISTRACION INMOBILIARIA Y DE ESPACIO PUBLICO","ESCRITO","Solucionado - Por traslado","IPES","GESTIONADOS"]
[3222812021,"SUBDIRECCION DE ADMINISTRACION INMOBILIARIA Y DE ESPACIO PUBLICO","E-MAIL","Solucionado - Por traslado","SECRETARIA MOVILIDAD","GESTIONADOS"]
[3223612021,"SUBDIRECCION DE ADMINISTRACION INMOBILIARIA Y DE ESPACIO PUBLICO","ESCRITO","Solucionado - Por traslado","SECRETARIA DE PLANEACION","GESTIONADOS"]
[3224062021,"SUBDIRECCION DE ADMINISTRACION INMOBILIARIA Y DE ESPACIO PUBLICO","ESCRITO","Solucionado - Por traslado","SECRETARIA DE GOBIERNO","GESTIONADOS"]
[3224952021,"SUBDIRECCION DE ADMINISTRACION INMOBILIARIA Y DE ESPACIO PUBLICO","WEB","Solucionado - Por traslado","IDRD","GESTIONADOS"]
[3230872021,"SUBDIRECCION DE REGISTRO INMOBILIARIO","ESCRITO","Solucionado - Por traslado","SECRETARIA DE PLANEACION","GESTIONADOS"]
[3230892021,"SUBDIRECCION DE ADMINISTRACION INMOBILIARIA Y DE ESPACIO PUBLICO","ESCRITO","Solucionado - Por traslado","SECRETARIA DE GOBIERNO","GESTIONADOS"]
[3231132021,"SUBDIRECCION DE ADMINISTRACION INMOBILIARIA Y DE ESPACIO PUBLICO","ESCRITO","Solucionado - Por traslado","IDPC","GESTIONADOS"]
[3231642021,"SUBDIRECCION DE ADMINISTRACION INMOBILIARIA Y DE ESPACIO PUBLICO","ESCRITO","Solucionado - Por traslado","CONCEJO DE BOGOTA","GESTIONADOS"]
[3234622021,"SUBDIRECCION DE ADMINISTRACION INMOBILIARIA Y DE ESPACIO PUBLICO","TELEFONO","Solucionado - Por traslado","SECRETARIA MOVILIDAD","GESTIONADOS"]
[3243162021,"SUBDIRECCION DE ADMINISTRACION INMOBILIARIA Y DE ESPACIO PUBLICO","WEB","Solucionado - Por traslado","SECRETARIA MOVILIDAD","GESTIONADOS"]
[3250092021,"SUBDIRECCION DE ADMINISTRACION INMOBILIARIA Y DE ESPACIO PUBLICO","ESCRITO","Solucionado - Por traslado","IDU","GESTIONADOS"]
[3250182021,"SUBDIRECCION DE ADMINISTRACION INMOBILIARIA Y DE ESPACIO PUBLICO","ESCRITO","Solucionado - Por traslado","IDRD","GESTIONADOS"]
[3251122021,"SUBDIRECCION DE ADMINISTRACION INMOBILIARIA Y DE ESPACIO PUBLICO","ESCRITO","Solucionado - Por traslado","SECRETARIA DE GOBIERNO","GESTIONADOS"]
[3253582021,"SUBDIRECCION DE ADMINISTRACION INMOBILIARIA Y DE ESPACIO PUBLICO","ESCRITO","Solucionado - Por traslado","SECRETARIA DE GOBIERNO","GESTIONADOS"]
[3260632021,"SUBDIRECCION DE ADMINISTRACION INMOBILIARIA Y DE ESPACIO PUBLICO","WEB","Solucionado - Por traslado","SECRETARIA DE GOBIERNO","GESTIONADOS"]
[3261342021,"SUBDIRECCION DE ADMINISTRACION INMOBILIARIA Y DE ESPACIO PUBLICO","WEB","Solucionado - Por traslado","IDPYBA","GESTIONADOS"]
[3263632021,"SUBDIRECCION DE ADMINISTRACION INMOBILIARIA Y DE ESPACIO PUBLICO","WEB","Solucionado - Por traslado","SECRETARIA DE GOBIERNO","GESTIONADOS"]
[3264652021,"SUBDIRECCION DE ADMINISTRACION INMOBILIARIA Y DE ESPACIO PUBLICO","WEB","Solucionado - Por traslado","SECRETARIA DE GOBIERNO","GESTIONADOS"]
[3264892021,"SUBDIRECCION DE ADMINISTRACION INMOBILIARIA Y DE ESPACIO PUBLICO","WEB","Solucionado - Por traslado","SECRETARIA DE GOBIERNO","GESTIONADOS"]
[3273412021,"SUBDIRECCION DE ADMINISTRACION INMOBILIARIA Y DE ESPACIO PUBLICO","ESCRITO","Solucionado - Por traslado","SECRETARIA DE GOBIERNO","GESTIONADOS"]
[3281132021,"AREA DE ATENCION A LA CIUDADANIA","ESCRITO","Solucionado - Por traslado","CATASTRO","GESTIONADOS"]
[3282232021,"SUBDIRECCION DE ADMINISTRACION INMOBILIARIA Y DE ESPACIO PUBLICO","ESCRITO","Solucionado - Por traslado","SECRETARIA DE GOBIERNO","GESTIONADOS"]
[3287602021,"SUBDIRECCION DE ADMINISTRACION INMOBILIARIA Y DE ESPACIO PUBLICO","ESCRITO","Solucionado - Por traslado","IDPAC","GESTIONADOS"]
[3287812021,"AREA DE ATENCION A LA CIUDADANIA","ESCRITO","Solucionado - Por traslado","IDRD","GESTIONADOS"]
[3287982021,"SUBDIRECCION DE ADMINISTRACION INMOBILIARIA Y DE ESPACIO PUBLICO","ESCRITO","Solucionado - Por traslado","IDU","GESTIONADOS"]
[3288412021,"SUBDIRECCION DE ADMINISTRACION INMOBILIARIA Y DE ESPACIO PUBLICO","ESCRITO","Solucionado - Por traslado","SECRETARIA DE GOBIERNO","GESTIONADOS"]
[3288592021,"SUBDIRECCION DE ADMINISTRACION INMOBILIARIA Y DE ESPACIO PUBLICO","ESCRITO","Solucionado - Por traslado","SECRETARIA DE GOBIERNO","GESTIONADOS"]
[3288962021,"SUBDIRECCION DE ADMINISTRACION INMOBILIARIA Y DE ESPACIO PUBLICO","ESCRITO","Solucionado - Por traslado","SECRETARIA DE GOBIERNO","GESTIONADOS"]
[3289562021,"SUBDIRECCION DE ADMINISTRACION INMOBILIARIA Y DE ESPACIO PUBLICO","ESCRITO","Solucionado - Por traslado","IDPAC","GESTIONADOS"]
[3290232021,"SUBDIRECCION DE ADMINISTRACION INMOBILIARIA Y DE ESPACIO PUBLICO","ESCRITO","Solucionado - Por traslado","IDRD","GESTIONADOS"]
[3290672021,"SUBDIRECCION DE ADMINISTRACION INMOBILIARIA Y DE ESPACIO PUBLICO","ESCRITO","Solucionado - Por traslado","IPES","GESTIONADOS"]
[3292992021,"SUBDIRECCION DE ADMINISTRACION INMOBILIARIA Y DE ESPACIO PUBLICO","ESCRITO","Solucionado - Por traslado","SECRETARIA MOVILIDAD","GESTIONADOS"]
[3305732021,"SUBDIRECCION DE ADMINISTRACION INMOBILIARIA Y DE ESPACIO PUBLICO","ESCRITO","Solucionado - Por traslado","SECRETARIA MOVILIDAD","GESTIONADOS"]
[3307752021,"SUBDIRECCION DE ADMINISTRACION INMOBILIARIA Y DE ESPACIO PUBLICO","ESCRITO","Solucionado - Por traslado","IDU","GESTIONADOS"]
[3307892021,"SUBDIRECCION DE ADMINISTRACION INMOBILIARIA Y DE ESPACIO PUBLICO","ESCRITO","Solucionado - Por traslado","IDPAC","GESTIONADOS"]
[3308982021,"SUBDIRECCION DE ADMINISTRACION INMOBILIARIA Y DE ESPACIO PUBLICO","WEB","Solucionado - Por traslado","SECRETARIA DE GOBIERNO","GESTIONADOS"]
[3309282021,"SUBDIRECCION DE ADMINISTRACION INMOBILIARIA Y DE ESPACIO PUBLICO","E-MAIL","Solucionado - Por traslado","SECRETARIA DE GOBIERNO","GESTIONADOS"]
[3309312021,"SUBDIRECCION DE ADMINISTRACION INMOBILIARIA Y DE ESPACIO PUBLICO","WEB","Solucionado - Por traslado","SECRETARIA DE GOBIERNO","GESTIONADOS"]
[3309432021,"SUBDIRECCION DE ADMINISTRACION INMOBILIARIA Y DE ESPACIO PUBLICO","ESCRITO","Solucionado - Por traslado","UAESP","GESTIONADOS"]
[3309862021,"SUBDIRECCION DE ADMINISTRACION INMOBILIARIA Y DE ESPACIO PUBLICO","WEB","Solucionado - Por traslado","SECRETARIA DE GOBIERNO","GESTIONADOS"]
[3310012021,"SUBDIRECCION DE ADMINISTRACION INMOBILIARIA Y DE ESPACIO PUBLICO","WEB","Solucionado - Por traslado","SECRETARIA DE GOBIERNO","GESTIONADOS"]
[3310062021,"SUBDIRECCION DE ADMINISTRACION INMOBILIARIA Y DE ESPACIO PUBLICO","WEB","Solucionado - Por traslado","SECRETARIA DE GOBIERNO","GESTIONADOS"]
[3311152021,"SUBDIRECCION DE ADMINISTRACION INMOBILIARIA Y DE ESPACIO PUBLICO","E-MAIL","Solucionado - Por traslado","IDRD","GESTIONADOS"]
[3311292021,"SUBDIRECCION DE ADMINISTRACION INMOBILIARIA Y DE ESPACIO PUBLICO","E-MAIL","Solucionado - Por traslado","LA TERMINAL DE TRANSPORTE","GESTIONADOS"]
[3311742021,"SUBDIRECCION DE ADMINISTRACION INMOBILIARIA Y DE ESPACIO PUBLICO","E-MAIL","Solucionado - Por traslado","IPES","GESTIONADOS"]
[3311892021,"SUBDIRECCION DE ADMINISTRACION INMOBILIARIA Y DE ESPACIO PUBLICO","E-MAIL","Solucionado - Por traslado","IPES","GESTIONADOS"]
[3312292021,"SUBDIRECCION DE ADMINISTRACION INMOBILIARIA Y DE ESPACIO PUBLICO","E-MAIL","Solucionado - Por traslado","SECRETARIA DE GOBIERNO","GESTIONADOS"]
[3312602021,"SUBDIRECCION DE REGISTRO INMOBILIARIO","ESCRITO","Solucionado - Por traslado","SECRETARIA DE PLANEACION","GESTIONADOS"]
[3313422021,"SUBDIRECCION DE ADMINISTRACION INMOBILIARIA Y DE ESPACIO PUBLICO","WEB","Solucionado - Por traslado","IPES","GESTIONADOS"]
[3313642021,"SUBDIRECCION DE ADMINISTRACION INMOBILIARIA Y DE ESPACIO PUBLICO","ESCRITO","Solucionado - Por traslado","IDU","GESTIONADOS"]
[3313802021,"SUBDIRECCION DE ADMINISTRACION INMOBILIARIA Y DE ESPACIO PUBLICO","ESCRITO","Solucionado - Por traslado","IPES","GESTIONADOS"]
[3318982021,"SUBDIRECCION DE ADMINISTRACION INMOBILIARIA Y DE ESPACIO PUBLICO","ESCRITO","Solucionado - Por traslado","SECRETARIA DE GOBIERNO","GESTIONADOS"]
[3322502021,"SUBDIRECCION DE ADMINISTRACION INMOBILIARIA Y DE ESPACIO PUBLICO","TELEFONO","Solucionado - Por traslado","IPES","GESTIONADOS"]
[3326832021,"SUBDIRECCION DE ADMINISTRACION INMOBILIARIA Y DE ESPACIO PUBLICO","ESCRITO","Solucionado - Por traslado","SECRETARIA DE GOBIERNO","GESTIONADOS"]
[3328122021,"SUBDIRECCION DE ADMINISTRACION INMOBILIARIA Y DE ESPACIO PUBLICO","WEB","Solucionado - Por traslado","SECRETARIA DE GOBIERNO","GESTIONADOS"]
[3329502021,"SUBDIRECCION DE ADMINISTRACION INMOBILIARIA Y DE ESPACIO PUBLICO","ESCRITO","Solucionado - Por traslado","IDPAC","GESTIONADOS"]
[3338142021,"SUBDIRECCION DE ADMINISTRACION INMOBILIARIA Y DE ESPACIO PUBLICO","WEB","Solucionado - Por traslado","IDIGER","GESTIONADOS"]
[3338972021,"SUBDIRECCION DE ADMINISTRACION INMOBILIARIA Y DE ESPACIO PUBLICO","ESCRITO","Solucionado - Por traslado","SECRETARIA MOVILIDAD","GESTIONADOS"]
[3339572021,"SUBDIRECCION DE ADMINISTRACION INMOBILIARIA Y DE ESPACIO PUBLICO","WEB","Solucionado - Por traslado","CODENSA","GESTIONADOS"]
[3342412021,"SUBDIRECCION DE ADMINISTRACION INMOBILIARIA Y DE ESPACIO PUBLICO","ESCRITO","Solucionado - Por traslado","CODENSA","GESTIONADOS"]
[3344672021,"SUBDIRECCION DE ADMINISTRACION INMOBILIARIA Y DE ESPACIO PUBLICO","ESCRITO","Solucionado - Por traslado","IDRD","GESTIONADOS"]
[3345592021,"SUBDIRECCION DE ADMINISTRACION INMOBILIARIA Y DE ESPACIO PUBLICO","ESCRITO","Solucionado - Por traslado","SECRETARIA DE GOBIERNO","GESTIONADOS"]
[3345652021,"SUBDIRECCION DE ADMINISTRACION INMOBILIARIA Y DE ESPACIO PUBLICO","ESCRITO","Solucionado - Por traslado","SECRETARIA DE GOBIERNO","GESTIONADOS"]
[3348832021,"SUBDIRECCION DE ADMINISTRACION INMOBILIARIA Y DE ESPACIO PUBLICO","ESCRITO","Solucionado - Por traslado","SECRETARIA DE GOBIERNO","GESTIONADOS"]
[3349172021,"SUBDIRECCION DE ADMINISTRACION INMOBILIARIA Y DE ESPACIO PUBLICO","ESCRITO","Solucionado - Por traslado","IPES","GESTIONADOS"]
[3349312021,"SUBDIRECCION DE ADMINISTRACION INMOBILIARIA Y DE ESPACIO PUBLICO","ESCRITO","Solucionado - Por traslado","IPES","GESTIONADOS"]
[3356972021,"SUBDIRECCION DE ADMINISTRACION INMOBILIARIA Y DE ESPACIO PUBLICO","WEB","Solucionado - Por traslado","SECRETARIA MOVILIDAD","GESTIONADOS"]
[3358412021,"SUBDIRECCION DE ADMINISTRACION INMOBILIARIA Y DE ESPACIO PUBLICO","WEB","Solucionado - Por traslado","IDU","GESTIONADOS"]
[3361772021,"SUBDIRECCION DE ADMINISTRACION INMOBILIARIA Y DE ESPACIO PUBLICO","ESCRITO","Solucionado - Por traslado","IDU","GESTIONADOS"]
[3361962021,"SUBDIRECCION DE ADMINISTRACION INMOBILIARIA Y DE ESPACIO PUBLICO","ESCRITO","Solucionado - Por traslado","IDPAC","GESTIONADOS"]
[3362022021,"SUBDIRECCION DE ADMINISTRACION INMOBILIARIA Y DE ESPACIO PUBLICO","ESCRITO","Solucionado - Por traslado","SECRETARIA DE GOBIERNO","GESTIONADOS"]
[3368562021,"SUBDIRECCION DE ADMINISTRACION INMOBILIARIA Y DE ESPACIO PUBLICO","ESCRITO","Solucionado - Por traslado","IDU","GESTIONADOS"]
[3368922021,"SUBDIRECCION DE ADMINISTRACION INMOBILIARIA Y DE ESPACIO PUBLICO","ESCRITO","Solucionado - Por traslado","IDU","GESTIONADOS"]
[3369242021,"SUBDIRECCION DE ADMINISTRACION INMOBILIARIA Y DE ESPACIO PUBLICO","E-MAIL","Solucionado - Por traslado","SECRETARIA DE GOBIERNO","GESTIONADOS"]
[3371042021,"SUBDIRECCION DE ADMINISTRACION INMOBILIARIA Y DE ESPACIO PUBLICO","ESCRITO","Solucionado - Por traslado","IPES","GESTIONADOS"]
[3371552021,"SUBDIRECCION DE ADMINISTRACION INMOBILIARIA Y DE ESPACIO PUBLICO","ESCRITO","Solucionado - Por traslado","SECRETARIA DE GOBIERNO","GESTIONADOS"]
[3372262021,"SUBDIRECCION DE ADMINISTRACION INMOBILIARIA Y DE ESPACIO PUBLICO","ESCRITO","Solucionado - Por traslado","SECRETARIA DE GOBIERNO","GESTIONADOS"]
[3375112021,"SUBDIRECCION DE ADMINISTRACION INMOBILIARIA Y DE ESPACIO PUBLICO","ESCRITO","Solucionado - Por traslado","IDPAC","GESTIONADOS"]
[3376862021,"SUBDIRECCION DE ADMINISTRACION INMOBILIARIA Y DE ESPACIO PUBLICO","WEB","Solucionado - Por traslado","SECRETARIA DE GOBIERNO","GESTIONADOS"]
[3504512021,"AREA DE ATENCION A LA CIUDADANIA","WEB","Solucionado - Por traslado","SECRETARIA DE GOBIERNO","GESTIONADOS"]
[3532872021,"AREA DE ATENCION A LA CIUDADANIA","WEB","Solucionado - Por traslado","SECRETARIA DE GOBIERNO","GESTIONADOS"]
[3532972021,"AREA DE ATENCION A LA CIUDADANIA","WEB","Solucionado - Por traslado","SECRETARIA DE AMBIENTE","GESTIONADOS"]
[3535722021,"AREA DE ATENCION A LA CIUDADANIA","WEB","Solucionado - Por traslado","SECRETARIA DE GOBIERNO","GESTIONADOS"]
[3536552021,"AREA DE ATENCION A LA CIUDADANIA","TELEFONO","Solucionado - Por traslado","SECRETARIA DE GOBIERNO","GESTIONADOS"]
[3536722021,"AREA DE ATENCION A LA CIUDADANIA","WEB","Solucionado - Por traslado","SECRETARIA DE GOBIERNO","GESTIONADOS"]
[3536742021,"AREA DE ATENCION A LA CIUDADANIA","TELEFONO","Solucionado - Por traslado","SECRETARIA DE AMBIENTE","GESTIONADOS"]
[3537812021,"AREA DE ATENCION A LA CIUDADANIA","WEB","Solucionado - Por traslado","ACUEDUCTO - EAAB-ESP","GESTIONADOS"]
[3539262021,"AREA DE ATENCION A LA CIUDADANIA","WEB","Solucionado - Por traslado","SECRETARIA DE GOBIERNO","GESTIONADOS"]
[3542642021,"AREA DE ATENCION A LA CIUDADANIA","WEB","Solucionado - Por traslado","SECRETARIA DE AMBIENTE","GESTIONADOS"]
[3544612021,"AREA DE ATENCION A LA CIUDADANIA","TELEFONO","Solucionado - Por traslado","SECRETARIA DE GOBIERNO","GESTIONADOS"]
[3545152021,"AREA DE ATENCION A LA CIUDADANIA","WEB","Solucionado - Por traslado","SECRETARIA DE GOBIERNO","GESTIONADOS"]
[3545772021,"AREA DE ATENCION A LA CIUDADANIA","TELEFONO","Solucionado - Por traslado","SECRETARIA MOVILIDAD","GESTIONADOS"]
[3552452021,"AREA DE ATENCION A LA CIUDADANIA","TELEFONO","Solucionado por asignar - Trasladar","CATASTRO","GESTIONADOS"]
[3555922021,"AREA DE ATENCION A LA CIUDADANIA","WEB","Solucionado - Por traslado","SECRETARIA DE GOBIERNO","GESTIONADOS"]
[3556912021,"AREA DE ATENCION A LA CIUDADANIA","WEB","Solucionado - Por traslado","SECRETARIA DE AMBIENTE","GESTIONADOS"]
[3558322021,"AREA DE ATENCION A LA CIUDADANIA","WEB","Solucionado - Por traslado","SECRETARIA DE AMBIENTE","GESTIONADOS"]
[3566902021,"AREA DE ATENCION A LA CIUDADANIA","WEB","Solucionado - Por traslado","SECRETARIA DE AMBIENTE","GESTIONADOS"]
[3568312021,"AREA DE ATENCION A LA CIUDADANIA","WEB","Solucionado - Por traslado","SECRETARIA DE AMBIENTE","GESTIONADOS"]
[3574562021,"AREA DE ATENCION A LA CIUDADANIA","WEB","Solucionado - Por traslado","SECRETARIA DE AMBIENTE","GESTIONADOS"]
[3581102021,"AREA DE ATENCION A LA CIUDADANIA","WEB","Solucionado - Por traslado","SECRETARIA DE GOBIERNO","GESTIONADOS"]
[3583222021,"AREA DE ATENCION A LA CIUDADANIA","WEB","Solucionado - Por traslado","IPES","GESTIONADOS"]
[3584952021,"AREA DE ATENCION A LA CIUDADANIA","WEB","Solucionado - Por traslado","SECRETARIA DE GOBIERNO","GESTIONADOS"]
[3590452021,"AREA DE ATENCION A LA CIUDADANIA","WEB","Solucionado - Por traslado","SECRETARIA DE GOBIERNO","GESTIONADOS"]
[3590472021,"AREA DE ATENCION A LA CIUDADANIA","WEB","Solucionado - Por traslado","IDIPRON","GESTIONADOS"]
[3600372021,"AREA DE ATENCION A LA CIUDADANIA","E-MAIL","Solucionado - Por traslado","IDU","GESTIONADOS"]
[3608142021,"AREA DE ATENCION A LA CIUDADANIA","WEB","Solucionado - Por traslado","SECRETARIA DE AMBIENTE","GESTIONADOS"]
[3609192021,"AREA DE ATENCION A LA CIUDADANIA","WEB","Solucionado - Por traslado","ACUEDUCTO - EAAB-ESP","GESTIONADOS"]
[3609222021,"AREA DE ATENCION A LA CIUDADANIA","PRESENCIAL","Solucionado - Por traslado","SECRETARIA DE AMBIENTE","GESTIONADOS"]
[3610092021,"AREA DE ATENCION A LA CIUDADANIA","WEB","Solucionado - Por traslado","ACUEDUCTO - EAAB-ESP","GESTIONADOS"]
[3612752021,"AREA DE ATENCION A LA CIUDADANIA","WEB","Solucionado - Por traslado","SECRETARIA DE AMBIENTE","GESTIONADOS"]
[3612862021,"AREA DE ATENCION A LA CIUDADANIA","WEB","Solucionado - Por traslado","SECRETARIA DE AMBIENTE","GESTIONADOS"]
[3615472021,"AREA DE ATENCION A LA CIUDADANIA","WEB","Solucionado - Por traslado","SECRETARIA DE GOBIERNO","GESTIONADOS"]
[3616662021,"AREA DE ATENCION A LA CIUDADANIA","WEB","Solucionado - Por traslado","SECRETARIA DE GOBIERNO","GESTIONADOS"]
[3616852021,"AREA DE ATENCION A LA CIUDADANIA","WEB","Solucionado - Por traslado","SECRETARIA DE GOBIERNO","GESTIONADOS"]
[3616892021,"AREA DE ATENCION A LA CIUDADANIA","WEB","Solucionado - Por traslado","ACUEDUCTO - EAAB-ESP","GESTIONADOS"]
[3617362021,"AREA DE ATENCION A LA CIUDADANIA","WEB","Solucionado - Por traslado","SECRETARIA DE GOBIERNO","GESTIONADOS"]
[3618912021,"AREA DE ATENCION A LA CIUDADANIA","WEB","Solucionado - Por traslado","SECRETARIA DE GOBIERNO","GESTIONADOS"]
[3619392021,"AREA DE ATENCION A LA CIUDADANIA","WEB","Solucionado - Por traslado","SECRETARIA DE AMBIENTE","GESTIONADOS"]
[3622022021,"AREA DE ATENCION A LA CIUDADANIA","WEB","Solucionado - Por traslado","SECRETARIA DE AMBIENTE","GESTIONADOS"]
[3627542021,"AREA DE ATENCION A LA CIUDADANIA","WEB","Solucionado - Por traslado","SECRETARIA DE AMBIENTE","GESTIONADOS"]
[3628562021,"AREA DE ATENCION A LA CIUDADANIA","WEB","Solucionado - Por traslado","SECRETARIA DE GOBIERNO","GESTIONADOS"]
[3631812021,"AREA DE ATENCION A LA CIUDADANIA","WEB","Solucionado - Por traslado","SECRETARIA DE GOBIERNO","GESTIONADOS"]
[3638362021,"AREA DE ATENCION A LA CIUDADANIA","WEB","Solucionado - Por traslado","SECRETARIA DE GOBIERNO","GESTIONADOS"]
[3638462021,"AREA DE ATENCION A LA CIUDADANIA","WEB","Solucionado - Por traslado","SECRETARIA DE DESARROLLO ECONOMICO","GESTIONADOS"]
[3639122021,"AREA DE ATENCION A LA CIUDADANIA","WEB","Solucionado - Por traslado","SECRETARIA DE GOBIERNO","GESTIONADOS"]
[3642462021,"AREA DE ATENCION A LA CIUDADANIA","WEB","Solucionado - Por traslado","SECRETARIA DE GOBIERNO","GESTIONADOS"]
[3643272021,"AREA DE ATENCION A LA CIUDADANIA","WEB","Solucionado - Por traslado","SECRETARIA DE AMBIENTE","GESTIONADOS"]
[3643752021,"AREA DE ATENCION A LA CIUDADANIA","TELEFONO","Solucionado - Por traslado","SECRETARIA DE GOBIERNO","GESTIONADOS"]
[3644262021,"AREA DE ATENCION A LA CIUDADANIA","WEB","Solucionado - Por traslado","SECRETARIA DE GOBIERNO","GESTIONADOS"]
[3646962021,"AREA DE ATENCION A LA CIUDADANIA","WEB","Solucionado - Por traslado","SECRETARIA DE GOBIERNO","GESTIONADOS"]
[3654732021,"AREA DE ATENCION A LA CIUDADANIA","WEB","Solucionado por asignar - Trasladar","UAESP","GESTIONADOS"]
[3655602021,"AREA DE ATENCION A LA CIUDADANIA","WEB","Solucionado - Por traslado","SECRETARIA DE GOBIERNO","GESTIONADOS"]
[3655852021,"AREA DE ATENCION A LA CIUDADANIA","WEB","Solucionado - Por traslado","IPES","GESTIONADOS"]
[3656392021,"AREA DE ATENCION A LA CIUDADANIA","WEB","Solucionado - Por traslado","SECRETARIA DEL HABITAT","GESTIONADOS"]
[3657052021,"AREA DE ATENCION A LA CIUDADANIA","WEB","Solucionado - Por traslado","SECRETARIA DE GOBIERNO","GESTIONADOS"]
[3657182021,"AREA DE ATENCION A LA CIUDADANIA","WEB","Solucionado - Por traslado","SECRETARIA DE GOBIERNO","GESTIONADOS"]
[3657282021,"AREA DE ATENCION A LA CIUDADANIA","WEB","Solucionado - Por traslado","SECRETARIA DE GOBIERNO","GESTIONADOS"]
[3657582021,"AREA DE ATENCION A LA CIUDADANIA","WEB","Solucionado - Por traslado","SECRETARIA DE GOBIERNO","GESTIONADOS"]
[3661682021,"AREA DE ATENCION A LA CIUDADANIA","WEB","Solucionado - Por traslado","SECRETARIA DE GOBIERNO","GESTIONADOS"]
[3663212021,"AREA DE ATENCION A LA CIUDADANIA","WEB","Solucionado - Por traslado","SECRETARIA DE GOBIERNO","GESTIONADOS"]
[3665952021,"AREA DE ATENCION A LA CIUDADANIA","WEB","Solucionado - Por traslado","SECRETARIA DE GOBIERNO","GESTIONADOS"]
[3670222021,"AREA DE ATENCION A LA CIUDADANIA","REDES SOCIALES","Solucionado - Por traslado","SECRETARIA DE AMBIENTE","GESTIONADOS"]
[3672012021,"AREA DE ATENCION A LA CIUDADANIA","WEB","Solucionado por asignar - Trasladar","CATASTRO","GESTIONADOS"]
[3672562021,"AREA DE ATENCION A LA CIUDADANIA","WEB","Solucionado - Por traslado","SECRETARIA DE GOBIERNO","GESTIONADOS"]
[3676092021,"AREA DE ATENCION A LA CIUDADANIA","TELEFONO","Solucionado - Por traslado","SECRETARIA DE INTEGRACION SOCIAL","GESTIONADOS"]
[3678522021,"AREA DE ATENCION A LA CIUDADANIA","WEB","Solucionado - Por traslado","SECRETARIA DE GOBIERNO","GESTIONADOS"]
[3679082021,"AREA DE ATENCION A LA CIUDADANIA","WEB","Solucionado - Por traslado","SECRETARIA DE GOBIERNO","GESTIONADOS"]
[3680682021,"AREA DE ATENCION A LA CIUDADANIA","WEB","Solucionado - Por traslado","SECRETARIA DE AMBIENTE","GESTIONADOS"]
[3681562021,"AREA DE ATENCION A LA CIUDADANIA","WEB","Solucionado - Por traslado","SECRETARIA DE GOBIERNO","GESTIONADOS"]
[3681832021,"AREA DE ATENCION A LA CIUDADANIA","REDES SOCIALES","Solucionado - Por traslado","SECRETARIA DE GOBIERNO","GESTIONADOS"]
[3681912021,"AREA DE ATENCION A LA CIUDADANIA","REDES SOCIALES","Solucionado - Por traslado","SECRETARIA DE GOBIERNO","GESTIONADOS"]
[3683822021,"AREA DE ATENCION A LA CIUDADANIA","WEB","Solucionado - Por traslado","SECRETARIA GENERAL","GESTIONADOS"]
[3684532021,"AREA DE ATENCION A LA CIUDADANIA","E-MAIL","Solucionado - Por traslado","SECRETARIA DE GOBIERNO","GESTIONADOS"]
[3687142021,"AREA DE ATENCION A LA CIUDADANIA","WEB","Solucionado - Por traslado","CATASTRO","GESTIONADOS"]
[3690522021,"AREA DE ATENCION A LA CIUDADANIA","TELEFONO","Solucionado - Por traslado","SECRETARIA DE GOBIERNO","GESTIONADOS"]
[3695582021,"AREA DE ATENCION A LA CIUDADANIA","WEB","Solucionado - Por traslado","SECRETARIA DE GOBIERNO","GESTIONADOS"]
[3701762021,"AREA DE ATENCION A LA CIUDADANIA","WEB","Solucionado - Por traslado","SECRETARIA DE GOBIERNO","GESTIONADOS"]
[3701782021,"AREA DE ATENCION A LA CIUDADANIA","WEB","Solucionado - Por traslado","SECRETARIA DE GOBIERNO","GESTIONADOS"]
[3701792021,"AREA DE ATENCION A LA CIUDADANIA","WEB","Solucionado - Por traslado","SECRETARIA DE GOBIERNO","GESTIONADOS"]
[3704592021,"AREA DE ATENCION A LA CIUDADANIA","TELEFONO","Solucionado - Por traslado","SECRETARIA DE AMBIENTE","GESTIONADOS"]
[3705582021,"AREA DE ATENCION A LA CIUDADANIA","WEB","Solucionado - Por traslado","SECRETARIA DE GOBIERNO","GESTIONADOS"]
[3707252021,"AREA DE ATENCION A LA CIUDADANIA","WEB","Solucionado - Por traslado","SECRETARIA DE GOBIERNO","GESTIONADOS"]
[3707742021,"AREA DE ATENCION A LA CIUDADANIA","WEB","Solucionado - Por traslado","SECRETARIA DE GOBIERNO","GESTIONADOS"]
[3709172021,"AREA DE ATENCION A LA CIUDADANIA","TELEFONO","Solucionado - Por traslado","SECRETARIA DE AMBIENTE","GESTIONADOS"]
[3717062021,"AREA DE ATENCION A LA CIUDADANIA","WEB","Solucionado - Por traslado","IPES","GESTIONADOS"]
[3719332021,"AREA DE ATENCION A LA CIUDADANIA","WEB","Solucionado - Por traslado","SECRETARIA DE AMBIENTE","GESTIONADOS"]
[3720182021,"AREA DE ATENCION A LA CIUDADANIA","ESCRITO","Solucionado - Por traslado","SECRETARIA DE GOBIERNO","GESTIONADOS"]
[3725912021,"AREA DE ATENCION A LA CIUDADANIA","E-MAIL","Solucionado - Por traslado","UAESP","GESTIONADOS"]
[3726252021,"AREA DE ATENCION A LA CIUDADANIA","WEB","Solucionado - Por traslado","SECRETARIA DE AMBIENTE","GESTIONADOS"]
[3726262021,"AREA DE ATENCION A LA CIUDADANIA","WEB","Solucionado - Por traslado","SECRETARIA DE GOBIERNO","GESTIONADOS"]
[3736872021,"AREA DE ATENCION A LA CIUDADANIA","WEB","Solucionado - Por traslado","SECRETARIA DE GOBIERNO","GESTIONADOS"]
[3737582021,"AREA DE ATENCION A LA CIUDADANIA","WEB","Solucionado - Por traslado","SECRETARIA MOVILIDAD","GESTIONADOS"]
[3738132021,"AREA DE ATENCION A LA CIUDADANIA","WEB","Solucionado por asignar - Trasladar","SECRETARIA DE AMBIENTE","GESTIONADOS"]
[3740222021,"AREA DE ATENCION A LA CIUDADANIA","WEB","Solucionado - Por traslado","SECRETARIA DE GOBIERNO","GESTIONADOS"]
[3740702021,"AREA DE ATENCION A LA CIUDADANIA","WEB","Solucionado por asignar - Trasladar","IDRD","GESTIONADOS"]
[3740732021,"AREA DE ATENCION A LA CIUDADANIA","WEB","Solucionado - Por traslado","SECRETARIA DE GOBIERNO","GESTIONADOS"]
[3740882021,"AREA DE ATENCION A LA CIUDADANIA","WEB","Solucionado - Por traslado","SECRETARIA DE GOBIERNO","GESTIONADOS"]
[3744622021,"AREA DE ATENCION A LA CIUDADANIA","WEB","Solucionado - Por traslado","IDRD","GESTIONADOS"]
[3748042021,"AREA DE ATENCION A LA CIUDADANIA","WEB","Solucionado - Por traslado","SECRETARIA DE GOBIERNO","GESTIONADOS"]
[3748312021,"AREA DE ATENCION A LA CIUDADANIA","WEB","Solucionado - Por traslado","SECRETARIA DE GOBIERNO","GESTIONADOS"]
[3749112021,"AREA DE ATENCION A LA CIUDADANIA","WEB","Solucionado - Por traslado","SECRETARIA DE GOBIERNO","GESTIONADOS"]
[3749452021,"AREA DE ATENCION A LA CIUDADANIA","TELEFONO","Solucionado - Por traslado","SECRETARIA DE GOBIERNO","GESTIONADOS"]
[3750902021,"AREA DE ATENCION A LA CIUDADANIA","WEB","Solucionado por asignar - Trasladar","IDU","GESTIONADOS"]
[3751172021,"AREA DE ATENCION A LA CIUDADANIA","WEB","Solucionado - Por traslado","SECRETARIA DE GOBIERNO","GESTIONADOS"]
[3751592021,"AREA DE ATENCION A LA CIUDADANIA","WEB","Solucionado - Por traslado","SECRETARIA DE GOBIERNO","GESTIONADOS"]
[3754862021,"AREA DE ATENCION A LA CIUDADANIA","WEB","Solucionado - Por traslado","SECRETARIA DE GOBIERNO","GESTIONADOS"]
[3756382021,"AREA DE ATENCION A LA CIUDADANIA","WEB","Solucionado - Por traslado","IDRD","GESTIONADOS"]
[3756422021,"AREA DE ATENCION A LA CIUDADANIA","WEB","Solucionado - Por traslado","IDRD","GESTIONADOS"]
[3756892021,"AREA DE ATENCION A LA CIUDADANIA","WEB","Solucionado - Por traslado","IPES","GESTIONADOS"]
[3760582021,"AREA DE ATENCION A LA CIUDADANIA","WEB","Solucionado por asignar - Trasladar","SECRETARIA DE GOBIERNO","GESTIONADOS"]
[3761982021,"AREA DE ATENCION A LA CIUDADANIA","WEB","Solucionado - Por traslado","SECRETARIA DE GOBIERNO","GESTIONADOS"]
[3763352021,"AREA DE ATENCION A LA CIUDADANIA","TELEFONO","Solucionado por asignar - Trasladar","SECRETARIA DE SEGURIDAD","GESTIONADOS"]
[3764802021,"AREA DE ATENCION A LA CIUDADANIA","WEB","Solucionado por asignar - Trasladar","SECRETARIA DE GOBIERNO","GESTIONADOS"]
[3772072021,"AREA DE ATENCION A LA CIUDADANIA","WEB","Solucionado - Por traslado","SECRETARIA DE AMBIENTE","GESTIONADOS"]
[3772092021,"AREA DE ATENCION A LA CIUDADANIA","WEB","Solucionado - Por traslado","SECRETARIA DE GOBIERNO","GESTIONADOS"]
[3772362021,"AREA DE ATENCION A LA CIUDADANIA","TELEFONO","Solucionado - Por traslado","SECRETARIA DE GOBIERNO","GESTIONADOS"]
[3772462021,"AREA DE ATENCION A LA CIUDADANIA","WEB","Solucionado - Por traslado","SECRETARIA DE GOBIERNO","GESTIONADOS"]
[3773062021,"AREA DE ATENCION A LA CIUDADANIA","WEB","Solucionado - Por traslado","IDU","GESTIONADOS"]
[3773562021,"AREA DE ATENCION A LA CIUDADANIA","WEB","Solucionado - Por traslado","SECRETARIA DE GOBIERNO","GESTIONADOS"]
[3774422021,"AREA DE ATENCION A LA CIUDADANIA","WEB","Solucionado - Por traslado","SECRETARIA DE GOBIERNO","GESTIONADOS"]
[3775562021,"AREA DE ATENCION A LA CIUDADANIA","TELEFONO","Solucionado - Por traslado","SECRETARIA DE GOBIERNO","GESTIONADOS"]
[3775712021,"AREA DE ATENCION A LA CIUDADANIA","WEB","Solucionado por asignar - Trasladar","SECRETARIA DE GOBIERNO","GESTIONADOS"]
[3776972021,"AREA DE ATENCION A LA CIUDADANIA","WEB","Solucionado - Por traslado","SECRETARIA DE GOBIERNO","GESTIONADOS"]
[3777622021,"AREA DE ATENCION A LA CIUDADANIA","WEB","Solucionado por asignar - Trasladar","SECRETARIA DE GOBIERNO","GESTIONADOS"]
[3779382021,"AREA DE ATENCION A LA CIUDADANIA","E-MAIL","Solucionado - Por traslado","IDRD","GESTIONADOS"]
[3783892021,"AREA DE ATENCION A LA CIUDADANIA","WEB","Solucionado - Por traslado","SECRETARIA DE GOBIERNO","GESTIONADOS"]
[3786512021,"AREA DE ATENCION A LA CIUDADANIA","WEB","Solucionado - Por traslado","IPES","GESTIONADOS"]
[3786672021,"AREA DE ATENCION A LA CIUDADANIA","WEB","Solucionado - Por traslado","SECRETARIA DE GOBIERNO","GESTIONADOS"]
[3791212021,"AREA DE ATENCION A LA CIUDADANIA","WEB","Solucionado - Por traslado","UAESP","GESTIONADOS"]
[3791862021,"AREA DE ATENCION A LA CIUDADANIA","WEB","Solucionado - Por traslado","SECRETARIA DE GOBIERNO","GESTIONADOS"]
[3791922021,"AREA DE ATENCION A LA CIUDADANIA","WEB","Solucionado - Por traslado","SECRETARIA DE GOBIERNO","GESTIONADOS"]
[3792432021,"AREA DE ATENCION A LA CIUDADANIA","WEB","Solucionado - Por traslado","IDRD","GESTIONADOS"]
[3793702021,"AREA DE ATENCION A LA CIUDADANIA","WEB","Solucionado - Por traslado","SECRETARIA DE GOBIERNO","GESTIONADOS"]
[3795802021,"AREA DE ATENCION A LA CIUDADANIA","WEB","Solucionado por asignar - Trasladar","SECRETARIA DE GOBIERNO","GESTIONADOS"]
[3802722021,"AREA DE ATENCION A LA CIUDADANIA","ESCRITO","Solucionado - Por traslado","IDARTES - INSTITUTO DE LAS ARTES","GESTIONADOS"]
[3804322021,"AREA DE ATENCION A LA CIUDADANIA","WEB","Solucionado - Por traslado","SECRETARIA DE GOBIERNO","GESTIONADOS"]
[3806342021,"AREA DE ATENCION A LA CIUDADANIA","WEB","Solucionado - Por traslado","SECRETARIA DE GOBIERNO","GESTIONADOS"]
[3806412021,"AREA DE ATENCION A LA CIUDADANIA","WEB","Solucionado - Por traslado","IDU","GESTIONADOS"]
[3807382021,"AREA DE ATENCION A LA CIUDADANIA","WEB","Solucionado - Por traslado","IPES","GESTIONADOS"]
[3809872021,"AREA DE ATENCION A LA CIUDADANIA","WEB","Solucionado - Por traslado","SECRETARIA DE GOBIERNO","GESTIONADOS"]
[3812052021,"AREA DE ATENCION A LA CIUDADANIA","WEB","Solucionado - Por traslado","SECRETARIA DE GOBIERNO","GESTIONADOS"]
[3815042021,"AREA DE ATENCION A LA CIUDADANIA","WEB","Solucionado - Por traslado","CATASTRO","GESTIONADOS"]
[3815122021,"AREA DE ATENCION A LA CIUDADANIA","WEB","Solucionado por asignar - Trasladar","SECRETARIA DE GOBIERNO","GESTIONADOS"]
[3817502021,"AREA DE ATENCION A LA CIUDADANIA","E-MAIL","Solucionado - Por traslado","UAESP","GESTIONADOS"]
[3827352021,"AREA DE ATENCION A LA CIUDADANIA","WEB","Solucionado - Por traslado","IDRD","GESTIONADOS"]
[3838932021,"AREA DE ATENCION A LA CIUDADANIA","WEB","Solucionado - Por traslado","SECRETARIA DE GOBIERNO","GESTIONADOS"]
[3839462021,"AREA DE ATENCION A LA CIUDADANIA","WEB","Solucionado - Por traslado","SECRETARIA MOVILIDAD","GESTIONADOS"]
[3840062021,"AREA DE ATENCION A LA CIUDADANIA","WEB","Solucionado - Por traslado","SECRETARIA DE GOBIERNO","GESTIONADOS"]
[3851562021,"AREA DE ATENCION A LA CIUDADANIA","WEB","Solucionado - Por traslado","SECRETARIA DE GOBIERNO","GESTIONADOS"]
[3851882021,"AREA DE ATENCION A LA CIUDADANIA","WEB","Solucionado - Por traslado","SECRETARIA DE GOBIERNO","GESTIONADOS"]
[3854622021,"AREA DE ATENCION A LA CIUDADANIA","WEB","Solucionado - Por traslado","SECRETARIA DE GOBIERNO","GESTIONADOS"]
[3855162021,"AREA DE ATENCION A LA CIUDADANIA","WEB","Solucionado - Por traslado","SECRETARIA DE GOBIERNO","GESTIONADOS"]
[3855632021,"AREA DE ATENCION A LA CIUDADANIA","WEB","Solucionado - Por traslado","SECRETARIA MOVILIDAD","GESTIONADOS"]
[3856272021,"AREA DE ATENCION A LA CIUDADANIA","WEB","Solucionado por asignar - Trasladar","SECRETARIA DE GOBIERNO","GESTIONADOS"]
[3856322021,"AREA DE ATENCION A LA CIUDADANIA","WEB","Solucionado - Por traslado","IDIGER","GESTIONADOS"]
[3856422021,"AREA DE ATENCION A LA CIUDADANIA","WEB","Solucionado - Por traslado","SECRETARIA DE GOBIERNO","GESTIONADOS"]
[3857352021,"AREA DE ATENCION A LA CIUDADANIA","WEB","Solucionado - Por traslado","SECRETARIA DE GOBIERNO","GESTIONADOS"]
[3858592021,"AREA DE ATENCION A LA CIUDADANIA","WEB","Solucionado - Por traslado","SECRETARIA DE GOBIERNO","GESTIONADOS"]
[3859892021,"AREA DE ATENCION A LA CIUDADANIA","WEB","Solucionado - Por traslado","SECRETARIA DE GOBIERNO","GESTIONADOS"]
[3859992021,"AREA DE ATENCION A LA CIUDADANIA","WEB","Solucionado - Por traslado","SECRETARIA DE INTEGRACION SOCIAL","GESTIONADOS"]
[3866452021,"AREA DE ATENCION A LA CIUDADANIA","WEB","Solucionado por asignar - Trasladar","SECRETARIA DE GOBIERNO","GESTIONADOS"]
[3866872021,"AREA DE ATENCION A LA CIUDADANIA","WEB","Solucionado - Por traslado","SECRETARIA DE GOBIERNO","GESTIONADOS"]
[3868482021,"AREA DE ATENCION A LA CIUDADANIA","WEB","Solucionado - Por traslado","SECRETARIA DE AMBIENTE","GESTIONADOS"]
[3870222021,"AREA DE ATENCION A LA CIUDADANIA","WEB","Solucionado - Por traslado","SECRETARIA DE AMBIENTE","GESTIONADOS"]
[3871422021,"AREA DE ATENCION A LA CIUDADANIA","WEB","Solucionado - Por traslado","SECRETARIA DE GOBIERNO","GESTIONADOS"]
[3882632021,"AREA DE ATENCION A LA CIUDADANIA","WEB","Solucionado - Por traslado","SECRETARIA DE GOBIERNO","GESTIONADOS"]
[3885232021,"AREA DE ATENCION A LA CIUDADANIA","WEB","Solucionado - Por traslado","SECRETARIA DE GOBIERNO","GESTIONADOS"]
[3885392021,"AREA DE ATENCION A LA CIUDADANIA","WEB","Solucionado - Por traslado","SECRETARIA DE GOBIERNO","GESTIONADOS"]
[3885622021,"AREA DE ATENCION A LA CIUDADANIA","WEB","Solucionado - Por traslado","SECRETARIA DE GOBIERNO","GESTIONADOS"]
[3888452021,"AREA DE ATENCION A LA CIUDADANIA","WEB","Solucionado - Por traslado","ACUEDUCTO - EAAB-ESP","GESTIONADOS"]
[3888592021,"AREA DE ATENCION A LA CIUDADANIA","WEB","Solucionado - Por traslado","SECRETARIA DE GOBIERNO","GESTIONADOS"]
[]
["ASIGNADAS A LA ENTIDAD"]
["Número petición\nNumero de registro en el Sistema","Dependencia:\nNombre asociado al usuario que tiene a cargo la petición ","Canal:\nNombre del canal parametrizado en el sistema por el cual fue registrada la petición","Tipología actualizada: \nTipo de documento utilizado por la entidad","Días gestión\nDías calendario transcurridos desde la fecha de inicio de términos hasta el último día del mes","Estado del Requerimiento\n \"Gestionado\" o \"Pendiente\" de respuesta definitiva por  parte de la Defensoría del Espacio Público o de las entidades competentes"]
["Número petición","Dependencia","Canal","Tipo petición","Días gestión","Tipo reporte"]
[3015422021,"SUBDIRECCION DE ADMINISTRACION INMOBILIARIA Y DE ESPACIO PUBLICO","ESCRITO","SOLICITUD DE COPIA",29,"GESTIONADOS"]
[3015422021,"SUBDIRECCION DE REGISTRO INMOBILIARIO","ESCRITO","SOLICITUD DE COPIA",30,"GESTIONADOS"]
[3066402021,"SUBDIRECCION DE REGISTRO INMOBILIARIO","ESCRITO","DERECHO DE PETICION DE INTERES PARTICULAR",29,"GESTIONADOS"]
[3086572021,"SUBDIRECCION ADMINISTRATIVA  FINANCIERA Y DE CONTROL DISCIPLINARIO","WEB","DERECHO DE PETICION DE INTERES PARTICULAR",28,"GESTIONADOS"]
[3096512021,"SUBDIRECCION DE REGISTRO INMOBILIARIO","ESCRITO","DERECHO DE PETICION DE INTERES PARTICULAR",28,"GESTIONADOS"]
[3157052021,"SUBDIRECCION DE ADMINISTRACION INMOBILIARIA Y DE ESPACIO PUBLICO","WEB","DERECHO DE PETICION DE INTERES PARTICULAR",11,"PENDIENTE"]
[3222362021,"SUBDIRECCION DE REGISTRO INMOBILIARIO","WEB","DERECHO DE PETICION DE INTERES PARTICULAR",27,"GESTIONADOS"]
[3274432021,"OFICINA ASESORA JURIDICA","E-MAIL","DERECHO DE PETICION DE INTERES GENERAL",1,"GESTIONADOS"]
[3274432021,"SUBDIRECCION DE ADMINISTRACION INMOBILIARIA Y DE ESPACIO PUBLICO","E-MAIL","DERECHO DE PETICION DE INTERES GENERAL",18,"PENDIENTE"]
[3276802021,"SUBDIRECCION DE REGISTRO INMOBILIARIO","E-MAIL","DERECHO DE PETICION DE INTERES PARTICULAR",18,"PENDIENTE"]
[3281132021,"SUBDIRECCION DE REGISTRO INMOBILIARIO","ESCRITO","DERECHO DE PETICION DE INTERES PARTICULAR",28,"GESTIONADOS"]
[3287982021,"SUBDIRECCION DE REGISTRO INMOBILIARIO","ESCRITO","DERECHO DE PETICION DE INTERES PARTICULAR",29,"GESTIONADOS"]
[3290942021,"SUBDIRECCION DE ADMINISTRACION INMOBILIARIA Y DE ESPACIO PUBLICO","ESCRITO","DERECHO DE PETICION DE INTERES PARTICULAR",28,"GESTIONADOS"]
[3319022021,"SUBDIRECCION DE REGISTRO INMOBILIARIO","ESCRITO","DERECHO DE PETICION DE INTERES PARTICULAR",29,"GESTIONADOS"]
[3367832021,"OFICINA ASESORA JURIDICA","ESCRITO","DERECHO DE PETICION DE INTERES PARTICULAR",16,"GESTIONADOS"]
[3382082021,"SUBDIRECCION DE ADMINISTRACION INMOBILIARIA Y DE ESPACIO PUBLICO","ESCRITO","DERECHO DE PETICION DE INTERES PARTICULAR",27,"PENDIENTE"]
[3415802021,"SUBDIRECCION DE ADMINISTRACION INMOBILIARIA Y DE ESPACIO PUBLICO","WEB","DERECHO DE PETICION DE INTERES GENERAL",26,"PENDIENTE"]
[3483672021,"SUBDIRECCION DE ADMINISTRACION INMOBILIARIA Y DE ESPACIO PUBLICO","E-MAIL","DERECHO DE PETICION DE INTERES GENERAL",10,"PENDIENTE"]
[3501332021,"SUBDIRECCION DE REGISTRO INMOBILIARIO","ESCRITO","DERECHO DE PETICION DE INTERES PARTICULAR",17,"GESTIONADOS"]
[3515472021,"OFICINA ASESORA JURIDICA","ESCRITO","DERECHO DE PETICION DE INTERES PARTICULAR",2,"GESTIONADOS"]
[3519432021,"SUBDIRECCION DE REGISTRO INMOBILIARIO","WEB","SOLICITUD DE ACCESO A LA INFORMACION",14,"PENDIENTE"]
[3523142021,"SUBDIRECCION DE ADMINISTRACION INMOBILIARIA Y DE ESPACIO PUBLICO","WEB","DERECHO DE PETICION DE INTERES GENERAL",19,"PENDIENTE"]
[3534762021,"SUBDIRECCION DE ADMINISTRACION INMOBILIARIA Y DE ESPACIO PUBLICO","WEB","DERECHO DE PETICION DE INTERES GENERAL",17,"PENDIENTE"]
[3537822021,"SUBDIRECCION DE ADMINISTRACION INMOBILIARIA Y DE ESPACIO PUBLICO","WEB","DERECHO DE PETICION DE INTERES GENERAL",20,"PENDIENTE"]
[3540052021,"SUBDIRECCION DE ADMINISTRACION INMOBILIARIA Y DE ESPACIO PUBLICO","TELEFONO","DERECHO DE PETICION DE INTERES PARTICULAR",19,"PENDIENTE"]
[3541982021,"SUBDIRECCION DE REGISTRO INMOBILIARIO","ESCRITO","DERECHO DE PETICION DE INTERES PARTICULAR",19,"PENDIENTE"]
[3542372021,"SUBDIRECCION DE REGISTRO INMOBILIARIO","ESCRITO","DERECHO DE PETICION DE INTERES PARTICULAR",19,"GESTIONADOS"]
[3542582021,"SUBDIRECCION DE REGISTRO INMOBILIARIO","ESCRITO","DERECHO DE PETICION DE INTERES PARTICULAR",15,"GESTIONADOS"]
[3542832021,"SUBDIRECCION DE ADMINISTRACION INMOBILIARIA Y DE ESPACIO PUBLICO","ESCRITO","DERECHO DE PETICION DE INTERES GENERAL",19,"PENDIENTE"]
[3542902021,"SUBDIRECCION DE REGISTRO INMOBILIARIO","ESCRITO","DERECHO DE PETICION DE INTERES PARTICULAR",19,"PENDIENTE"]
[3542952021,"SUBDIRECCION DE REGISTRO INMOBILIARIO","ESCRITO","DERECHO DE PETICION DE INTERES GENERAL",15,"GESTIONADOS"]
[3542992021,"SUBDIRECCION DE ADMINISTRACION INMOBILIARIA Y DE ESPACIO PUBLICO","ESCRITO","DERECHO DE PETICION DE INTERES PARTICULAR",19,"PENDIENTE"]
[3543202021,"SUBDIRECCION DE REGISTRO INMOBILIARIO","TELEFONO","DERECHO DE PETICION DE INTERES GENERAL",19,"PENDIENTE"]
[3543352021,"SUBDIRECCION DE ADMINISTRACION INMOBILIARIA Y DE ESPACIO PUBLICO","ESCRITO","DERECHO DE PETICION DE INTERES PARTICULAR",19,"PENDIENTE"]
[3543602021,"SUBDIRECCION DE ADMINISTRACION INMOBILIARIA Y DE ESPACIO PUBLICO","ESCRITO","DERECHO DE PETICION DE INTERES PARTICULAR",19,"PENDIENTE"]
[3543742021,"SUBDIRECCION DE ADMINISTRACION INMOBILIARIA Y DE ESPACIO PUBLICO","WEB","DERECHO DE PETICION DE INTERES PARTICULAR",19,"PENDIENTE"]
[3545382021,"SUBDIRECCION DE REGISTRO INMOBILIARIO","WEB","DERECHO DE PETICION DE INTERES PARTICULAR",19,"PENDIENTE"]
[3546502021,"SUBDIRECCION DE ADMINISTRACION INMOBILIARIA Y DE ESPACIO PUBLICO","ESCRITO","DERECHO DE PETICION DE INTERES PARTICULAR",19,"PENDIENTE"]
[3546792021,"SUBDIRECCION DE REGISTRO INMOBILIARIO","ESCRITO","DERECHO DE PETICION DE INTERES PARTICULAR",16,"GESTIONADOS"]
[3546892021,"SUBDIRECCION DE ADMINISTRACION INMOBILIARIA Y DE ESPACIO PUBLICO","ESCRITO","DERECHO DE PETICION DE INTERES PARTICULAR",19,"PENDIENTE"]
[3552452021,"SUBDIRECCION DE REGISTRO INMOBILIARIO","TELEFONO","DERECHO DE PETICION DE INTERES GENERAL",19,"PENDIENTE"]
[3552882021,"SUBDIRECCION DE ADMINISTRACION INMOBILIARIA Y DE ESPACIO PUBLICO","ESCRITO","DERECHO DE PETICION DE INTERES PARTICULAR",19,"PENDIENTE"]
[3552902021,"SUBDIRECCION DE ADMINISTRACION INMOBILIARIA Y DE ESPACIO PUBLICO","ESCRITO","DERECHO DE PETICION DE INTERES PARTICULAR",19,"PENDIENTE"]
[3555482021,"SUBDIRECCION DE ADMINISTRACION INMOBILIARIA Y DE ESPACIO PUBLICO","ESCRITO","DERECHO DE PETICION DE INTERES PARTICULAR",19,"PENDIENTE"]
[3555522021,"SUBDIRECCION DE ADMINISTRACION INMOBILIARIA Y DE ESPACIO PUBLICO","ESCRITO","DERECHO DE PETICION DE INTERES PARTICULAR",19,"PENDIENTE"]
[3555582021,"SUBDIRECCION DE ADMINISTRACION INMOBILIARIA Y DE ESPACIO PUBLICO","ESCRITO","DERECHO DE PETICION DE INTERES PARTICULAR",19,"PENDIENTE"]
[3555652021,"SUBDIRECCION DE ADMINISTRACION INMOBILIARIA Y DE ESPACIO PUBLICO","ESCRITO","DERECHO DE PETICION DE INTERES PARTICULAR",19,"PENDIENTE"]
[3555702021,"SUBDIRECCION DE ADMINISTRACION INMOBILIARIA Y DE ESPACIO PUBLICO","ESCRITO","DERECHO DE PETICION DE INTERES PARTICULAR",19,"PENDIENTE"]
[3559952021,"SUBDIRECCION DE ADMINISTRACION INMOBILIARIA Y DE ESPACIO PUBLICO","WEB","DERECHO DE PETICION DE INTERES PARTICULAR",17,"PENDIENTE"]
[3562352021,"SUBDIRECCION DE REGISTRO INMOBILIARIO","WEB","DERECHO DE PETICION DE INTERES PARTICULAR",16,"GESTIONADOS"]
[3565632021,"SUBDIRECCION DE ADMINISTRACION INMOBILIARIA Y DE ESPACIO PUBLICO","ESCRITO","DERECHO DE PETICION DE INTERES PARTICULAR",18,"PENDIENTE"]
[3565982021,"SUBDIRECCION DE ADMINISTRACION INMOBILIARIA Y DE ESPACIO PUBLICO","ESCRITO","DERECHO DE PETICION DE INTERES PARTICULAR",18,"PENDIENTE"]
[3566122021,"SUBDIRECCION DE ADMINISTRACION INMOBILIARIA Y DE ESPACIO PUBLICO","ESCRITO","DERECHO DE PETICION DE INTERES PARTICULAR",18,"PENDIENTE"]
[3566482021,"SUBDIRECCION DE ADMINISTRACION INMOBILIARIA Y DE ESPACIO PUBLICO","ESCRITO","DERECHO DE PETICION DE INTERES PARTICULAR",18,"PENDIENTE"]
[3570852021,"SUBDIRECCION DE ADMINISTRACION INMOBILIARIA Y DE ESPACIO PUBLICO","WEB","DERECHO DE PETICION DE INTERES PARTICULAR",14,"PENDIENTE"]
[3571502021,"SUBDIRECCION DE ADMINISTRACION INMOBILIARIA Y DE ESPACIO PUBLICO","WEB","DERECHO DE PETICION DE INTERES PARTICULAR",18,"PENDIENTE"]
[3572312021,"SUBDIRECCION DE ADMINISTRACION INMOBILIARIA Y DE ESPACIO PUBLICO","WEB","DERECHO DE PETICION DE INTERES GENERAL",18,"PENDIENTE"]
[3574892021,"SUBDIRECCION DE REGISTRO INMOBILIARIO","WEB","DERECHO DE PETICION DE INTERES PARTICULAR",18,"PENDIENTE"]
[3577722021,"SUBDIRECCION DE ADMINISTRACION INMOBILIARIA Y DE ESPACIO PUBLICO","ESCRITO","DERECHO DE PETICION DE INTERES PARTICULAR",17,"PENDIENTE"]
[3577782021,"SUBDIRECCION DE ADMINISTRACION INMOBILIARIA Y DE ESPACIO PUBLICO","ESCRITO","DERECHO DE PETICION DE INTERES PARTICULAR",17,"PENDIENTE"]
[3577882021,"SUBDIRECCION DE ADMINISTRACION INMOBILIARIA Y DE ESPACIO PUBLICO","ESCRITO","DERECHO DE PETICION DE INTERES PARTICULAR",17,"PENDIENTE"]
[3577952021,"SUBDIRECCION DE ADMINISTRACION INMOBILIARIA Y DE ESPACIO PUBLICO","ESCRITO","DERECHO DE PETICION DE INTERES PARTICULAR",17,"PENDIENTE"]
[3578222021,"SUBDIRECCION DE ADMINISTRACION INMOBILIARIA Y DE ESPACIO PUBLICO","ESCRITO","DERECHO DE PETICION DE INTERES PARTICULAR",17,"PENDIENTE"]
[3578292021,"SUBDIRECCION DE ADMINISTRACION INMOBILIARIA Y DE ESPACIO PUBLICO","ESCRITO","DERECHO DE PETICION DE INTERES PARTICULAR",17,"PENDIENTE"]
[3578312021,"SUBDIRECCION DE REGISTRO INMOBILIARIO","ESCRITO","DERECHO DE PETICION DE INTERES PARTICULAR",17,"GESTIONADOS"]
[3578462021,"SUBDIRECCION DE ADMINISTRACION INMOBILIARIA Y DE ESPACIO PUBLICO","ESCRITO","DERECHO DE PETICION DE INTERES GENERAL",17,"PENDIENTE"]
[3584422021,"SUBDIRECCION DE ADMINISTRACION INMOBILIARIA Y DE ESPACIO PUBLICO","E-MAIL","DERECHO DE PETICION DE INTERES PARTICULAR",17,"PENDIENTE"]
[3585332021,"SUBDIRECCION ADMINISTRATIVA  FINANCIERA Y DE CONTROL DISCIPLINARIO","WEB","DERECHO DE PETICION DE INTERES GENERAL",1,"GESTIONADOS"]
[3585332021,"SUBDIRECCION DE ADMINISTRACION INMOBILIARIA Y DE ESPACIO PUBLICO","WEB","DERECHO DE PETICION DE INTERES GENERAL",17,"PENDIENTE"]
[3588902021,"SUBDIRECCION DE ADMINISTRACION INMOBILIARIA Y DE ESPACIO PUBLICO","ESCRITO","DERECHO DE PETICION DE INTERES PARTICULAR",17,"PENDIENTE"]
[3589302021,"SUBDIRECCION DE ADMINISTRACION INMOBILIARIA Y DE ESPACIO PUBLICO","ESCRITO","DERECHO DE PETICION DE INTERES PARTICULAR",17,"PENDIENTE"]
[3589462021,"SUBDIRECCION DE ADMINISTRACION INMOBILIARIA Y DE ESPACIO PUBLICO","ESCRITO","DERECHO DE PETICION DE INTERES PARTICULAR",17,"PENDIENTE"]
[3589602021,"SUBDIRECCION ADMINISTRATIVA  FINANCIERA Y DE CONTROL DISCIPLINARIO","WEB","DERECHO DE PETICION DE INTERES GENERAL",1,"GESTIONADOS"]
[3590122021,"SUBDIRECCION DE ADMINISTRACION INMOBILIARIA Y DE ESPACIO PUBLICO","ESCRITO","DERECHO DE PETICION DE INTERES PARTICULAR",17,"PENDIENTE"]
[3590342021,"SUBDIRECCION DE ADMINISTRACION INMOBILIARIA Y DE ESPACIO PUBLICO","WEB","QUEJA",17,"PENDIENTE"]
[3591552021,"SUBDIRECCION DE ADMINISTRACION INMOBILIARIA Y DE ESPACIO PUBLICO","TELEFONO","DERECHO DE PETICION DE INTERES PARTICULAR",17,"PENDIENTE"]
[3593202021,"SUBDIRECCION DE ADMINISTRACION INMOBILIARIA Y DE ESPACIO PUBLICO","TELEFONO","DERECHO DE PETICION DE INTERES GENERAL",17,"PENDIENTE"]
[3593332021,"SUBDIRECCION DE REGISTRO INMOBILIARIO","WEB","CONSULTA",17,"PENDIENTE"]
[3603322021,"SUBDIRECCION DE ADMINISTRACION INMOBILIARIA Y DE ESPACIO PUBLICO","ESCRITO","DERECHO DE PETICION DE INTERES PARTICULAR",16,"PENDIENTE"]
[3603612021,"SUBDIRECCION ADMINISTRATIVA  FINANCIERA Y DE CONTROL DISCIPLINARIO","ESCRITO","DERECHO DE PETICION DE INTERES PARTICULAR",1,"GESTIONADOS"]
[3603612021,"SUBDIRECCION ADMINISTRATIVA Y FINANCIERA","ESCRITO","DERECHO DE PETICION DE INTERES PARTICULAR",7,"GESTIONADOS"]
[3603712021,"SUBDIRECCION ADMINISTRATIVA  FINANCIERA Y DE CONTROL DISCIPLINARIO","ESCRITO","DERECHO DE PETICION DE INTERES PARTICULAR",1,"GESTIONADOS"]
[3603712021,"SUBDIRECCION ADMINISTRATIVA Y FINANCIERA","ESCRITO","DERECHO DE PETICION DE INTERES PARTICULAR",7,"GESTIONADOS"]
[3603962021,"SUBDIRECCION ADMINISTRATIVA  FINANCIERA Y DE CONTROL DISCIPLINARIO","ESCRITO","DERECHO DE PETICION DE INTERES PARTICULAR",1,"GESTIONADOS"]
[3603962021,"SUBDIRECCION ADMINISTRATIVA Y FINANCIERA","ESCRITO","DERECHO DE PETICION DE INTERES PARTICULAR",7,"GESTIONADOS"]
[3604142021,"SUBDIRECCION DE ADMINISTRACION INMOBILIARIA Y DE ESPACIO PUBLICO","ESCRITO","DERECHO DE PETICION DE INTERES PARTICULAR",16,"PENDIENTE"]
[3604332021,"SUBDIRECCION DE ADMINISTRACION INMOBILIARIA Y DE ESPACIO PUBLICO","ESCRITO","DERECHO DE PETICION DE INTERES PARTICULAR",16,"PENDIENTE"]
[3604802021,"SUBDIRECCION DE ADMINISTRACION INMOBILIARIA Y DE ESPACIO PUBLICO","ESCRITO","DERECHO DE PETICION DE INTERES PARTICULAR",16,"PENDIENTE"]
[3604942021,"SUBDIRECCION DE ADMINISTRACION INMOBILIARIA Y DE ESPACIO PUBLICO","ESCRITO","DERECHO DE PETICION DE INTERES PARTICULAR",16,"PENDIENTE"]
[3605092021,"SUBDIRECCION ADMINISTRATIVA Y FINANCIERA","ESCRITO","DERECHO DE PETICION DE INTERES PARTICULAR",7,"GESTIONADOS"]
[3605092021,"SUBDIRECCION DE ADMINISTRACION INMOBILIARIA Y DE ESPACIO PUBLICO","ESCRITO","DERECHO DE PETICION DE INTERES PARTICULAR",3,"GESTIONADOS"]
[3605222021,"SUBDIRECCION DE ADMINISTRACION INMOBILIARIA Y DE ESPACIO PUBLICO","ESCRITO","DERECHO DE PETICION DE INTERES PARTICULAR",16,"PENDIENTE"]
[3605222021,"SUBDIRECCION DE REGISTRO INMOBILIARIO","ESCRITO","DERECHO DE PETICION DE INTERES PARTICULAR",12,"GESTIONADOS"]
[3605472021,"SUBDIRECCION DE ADMINISTRACION INMOBILIARIA Y DE ESPACIO PUBLICO","ESCRITO","DERECHO DE PETICION DE INTERES PARTICULAR",16,"PENDIENTE"]
[3609012021,"SUBDIRECCION DE ADMINISTRACION INMOBILIARIA Y DE ESPACIO PUBLICO","ESCRITO","DERECHO DE PETICION DE INTERES PARTICULAR",16,"PENDIENTE"]
[3609152021,"SUBDIRECCION DE REGISTRO INMOBILIARIO","ESCRITO","DERECHO DE PETICION DE INTERES GENERAL",16,"PENDIENTE"]
[3609282021,"SUBDIRECCION DE ADMINISTRACION INMOBILIARIA Y DE ESPACIO PUBLICO","ESCRITO","DERECHO DE PETICION DE INTERES PARTICULAR",16,"PENDIENTE"]
[3609352021,"SUBDIRECCION DE ADMINISTRACION INMOBILIARIA Y DE ESPACIO PUBLICO","ESCRITO","DERECHO DE PETICION DE INTERES PARTICULAR",16,"PENDIENTE"]
[3609422021,"SUBDIRECCION DE ADMINISTRACION INMOBILIARIA Y DE ESPACIO PUBLICO","ESCRITO","DERECHO DE PETICION DE INTERES PARTICULAR",16,"PENDIENTE"]
[3609502021,"SUBDIRECCION DE ADMINISTRACION INMOBILIARIA Y DE ESPACIO PUBLICO","ESCRITO","DERECHO DE PETICION DE INTERES PARTICULAR",16,"PENDIENTE"]
[3609702021,"SUBDIRECCION DE ADMINISTRACION INMOBILIARIA Y DE ESPACIO PUBLICO","ESCRITO","DERECHO DE PETICION DE INTERES PARTICULAR",16,"PENDIENTE"]
[3609792021,"SUBDIRECCION ADMINISTRATIVA Y FINANCIERA","ESCRITO","DERECHO DE PETICION DE INTERES PARTICULAR",7,"GESTIONADOS"]
[3609912021,"SUBDIRECCION DE REGISTRO INMOBILIARIO","ESCRITO","DERECHO DE PETICION DE INTERES PARTICULAR",16,"GESTIONADOS"]
[3610022021,"SUBDIRECCION DE ADMINISTRACION INMOBILIARIA Y DE ESPACIO PUBLICO","ESCRITO","DERECHO DE PETICION DE INTERES PARTICULAR",16,"PENDIENTE"]
[3610252021,"SUBDIRECCION DE REGISTRO INMOBILIARIO","ESCRITO","DERECHO DE PETICION DE INTERES PARTICULAR",16,"PENDIENTE"]
[3610462021,"SUBDIRECCION DE ADMINISTRACION INMOBILIARIA Y DE ESPACIO PUBLICO","ESCRITO","DERECHO DE PETICION DE INTERES PARTICULAR",16,"PENDIENTE"]
[3610582021,"SUBDIRECCION DE ADMINISTRACION INMOBILIARIA Y DE ESPACIO PUBLICO","ESCRITO","DERECHO DE PETICION DE INTERES PARTICULAR",16,"PENDIENTE"]
[3610712021,"SUBDIRECCION DE ADMINISTRACION INMOBILIARIA Y DE ESPACIO PUBLICO","ESCRITO","DERECHO DE PETICION DE INTERES PARTICULAR",16,"PENDIENTE"]
[3610772021,"SUBDIRECCION DE REGISTRO INMOBILIARIO","ESCRITO","DERECHO DE PETICION DE INTERES PARTICULAR",16,"PENDIENTE"]
[3610842021,"SUBDIRECCION DE ADMINISTRACION INMOBILIARIA Y DE ESPACIO PUBLICO","ESCRITO","DERECHO DE PETICION DE INTERES PARTICULAR",16,"PENDIENTE"]
[3610882021,"SUBDIRECCION DE ADMINISTRACION INMOBILIARIA Y DE ESPACIO PUBLICO","ESCRITO","DERECHO DE PETICION DE INTERES PARTICULAR",16,"PENDIENTE"]
[3610912021,"SUBDIRECCION DE ADMINISTRACION INMOBILIARIA Y DE ESPACIO PUBLICO","ESCRITO","DERECHO DE PETICION DE INTERES PARTICULAR",16,"PENDIENTE"]
[3616442021,"SUBDIRECCION DE ADMINISTRACION INMOBILIARIA Y DE ESPACIO PUBLICO","WEB","DERECHO DE PETICION DE INTERES PARTICULAR",16,"PENDIENTE"]
[3616612021,"SUBDIRECCION DE ADMINISTRACION INMOBILIARIA Y DE ESPACIO PUBLICO","WEB","DERECHO DE PETICION DE INTERES GENERAL",16,"PENDIENTE"]
[3616852021,"SUBDIRECCION ADMINISTRATIVA  FINANCIERA Y DE CONTROL DISCIPLINARIO","WEB","DERECHO DE PETICION DE INTERES GENERAL",1,"GESTIONADOS"]
[3616892021,"SUBDIRECCION ADMINISTRATIVA  FINANCIERA Y DE CONTROL DISCIPLINARIO","WEB","DERECHO DE PETICION DE INTERES GENERAL",1,"GESTIONADOS"]
[3617642021,"SUBDIRECCION DE ADMINISTRACION INMOBILIARIA Y DE ESPACIO PUBLICO","WEB","DERECHO DE PETICION DE INTERES GENERAL",16,"PENDIENTE"]
[3618572021,"SUBDIRECCION DE ADMINISTRACION INMOBILIARIA Y DE ESPACIO PUBLICO","WEB","CONSULTA",16,"PENDIENTE"]
[3619072021,"SUBDIRECCION DE ADMINISTRACION INMOBILIARIA Y DE ESPACIO PUBLICO","WEB","DERECHO DE PETICION DE INTERES GENERAL",16,"PENDIENTE"]
[3622092021,"SUBDIRECCION DE ADMINISTRACION INMOBILIARIA Y DE ESPACIO PUBLICO","WEB","DERECHO DE PETICION DE INTERES PARTICULAR",15,"PENDIENTE"]
[3627132021,"SUBDIRECCION DE ADMINISTRACION INMOBILIARIA Y DE ESPACIO PUBLICO","TELEFONO","DERECHO DE PETICION DE INTERES GENERAL",15,"PENDIENTE"]
[3628122021,"SUBDIRECCION DE ADMINISTRACION INMOBILIARIA Y DE ESPACIO PUBLICO","WEB","DERECHO DE PETICION DE INTERES PARTICULAR",15,"PENDIENTE"]
[3629122021,"SUBDIRECCION DE ADMINISTRACION INMOBILIARIA Y DE ESPACIO PUBLICO","WEB","DERECHO DE PETICION DE INTERES PARTICULAR",14,"PENDIENTE"]
[3629212021,"SUBDIRECCION ADMINISTRATIVA  FINANCIERA Y DE CONTROL DISCIPLINARIO","ESCRITO","DERECHO DE PETICION DE INTERES PARTICULAR",2,"GESTIONADOS"]
[3629212021,"SUBDIRECCION ADMINISTRATIVA Y FINANCIERA","ESCRITO","DERECHO DE PETICION DE INTERES PARTICULAR",15,"PENDIENTE"]
[3629382021,"SUBDIRECCION ADMINISTRATIVA  FINANCIERA Y DE CONTROL DISCIPLINARIO","ESCRITO","DERECHO DE PETICION DE INTERES PARTICULAR",5,"GESTIONADOS"]
[3629382021,"SUBDIRECCION ADMINISTRATIVA Y FINANCIERA","ESCRITO","DERECHO DE PETICION DE INTERES PARTICULAR",15,"PENDIENTE"]
[3629482021,"SUBDIRECCION ADMINISTRATIVA  FINANCIERA Y DE CONTROL DISCIPLINARIO","ESCRITO","DERECHO DE PETICION DE INTERES PARTICULAR",2,"GESTIONADOS"]
[3629482021,"SUBDIRECCION ADMINISTRATIVA Y FINANCIERA","ESCRITO","DERECHO DE PETICION DE INTERES PARTICULAR",15,"PENDIENTE"]
[3629812021,"SUBDIRECCION DE ADMINISTRACION INMOBILIARIA Y DE ESPACIO PUBLICO","ESCRITO","DERECHO DE PETICION DE INTERES PARTICULAR",15,"PENDIENTE"]
[3629962021,"SUBDIRECCION DE ADMINISTRACION INMOBILIARIA Y DE ESPACIO PUBLICO","ESCRITO","DERECHO DE PETICION DE INTERES PARTICULAR",15,"PENDIENTE"]
[3630152021,"SUBDIRECCION DE ADMINISTRACION INMOBILIARIA Y DE ESPACIO PUBLICO","ESCRITO","DERECHO DE PETICION DE INTERES PARTICULAR",15,"PENDIENTE"]
[3631502021,"SUBDIRECCION DE ADMINISTRACION INMOBILIARIA Y DE ESPACIO PUBLICO","ESCRITO","DERECHO DE PETICION DE INTERES PARTICULAR",15,"PENDIENTE"]
[3631622021,"SUBDIRECCION DE ADMINISTRACION INMOBILIARIA Y DE ESPACIO PUBLICO","ESCRITO","DERECHO DE PETICION DE INTERES PARTICULAR",15,"PENDIENTE"]
[3631772021,"SUBDIRECCION DE ADMINISTRACION INMOBILIARIA Y DE ESPACIO PUBLICO","ESCRITO","DERECHO DE PETICION DE INTERES PARTICULAR",15,"PENDIENTE"]
[3631902021,"SUBDIRECCION DE REGISTRO INMOBILIARIO","ESCRITO","DERECHO DE PETICION DE INTERES PARTICULAR",15,"PENDIENTE"]
[3632102021,"SUBDIRECCION DE REGISTRO INMOBILIARIO","ESCRITO","DERECHO DE PETICION DE INTERES PARTICULAR",14,"GESTIONADOS"]
[3633032021,"SUBDIRECCION DE ADMINISTRACION INMOBILIARIA Y DE ESPACIO PUBLICO","ESCRITO","DERECHO DE PETICION DE INTERES GENERAL",15,"PENDIENTE"]
[3633072021,"SUBDIRECCION DE REGISTRO INMOBILIARIO","ESCRITO","DERECHO DE PETICION DE INTERES PARTICULAR",15,"PENDIENTE"]
[3633162021,"SUBDIRECCION DE ADMINISTRACION INMOBILIARIA Y DE ESPACIO PUBLICO","ESCRITO","DERECHO DE PETICION DE INTERES PARTICULAR",15,"PENDIENTE"]
[3633412021,"SUBDIRECCION DE ADMINISTRACION INMOBILIARIA Y DE ESPACIO PUBLICO","ESCRITO","DERECHO DE PETICION DE INTERES PARTICULAR",15,"PENDIENTE"]
[3633522021,"SUBDIRECCION DE ADMINISTRACION INMOBILIARIA Y DE ESPACIO PUBLICO","ESCRITO","DERECHO DE PETICION DE INTERES PARTICULAR",15,"PENDIENTE"]
[3633762021,"SUBDIRECCION DE ADMINISTRACION INMOBILIARIA Y DE ESPACIO PUBLICO","ESCRITO","DERECHO DE PETICION DE INTERES PARTICULAR",15,"PENDIENTE"]
[3633962021,"SUBDIRECCION DE ADMINISTRACION INMOBILIARIA Y DE ESPACIO PUBLICO","ESCRITO","DERECHO DE PETICION DE INTERES PARTICULAR",15,"PENDIENTE"]
[3638072021,"SUBDIRECCION DE ADMINISTRACION INMOBILIARIA Y DE ESPACIO PUBLICO","ESCRITO","DERECHO DE PETICION DE INTERES PARTICULAR",15,"PENDIENTE"]
[3639182021,"SUBDIRECCION DE ADMINISTRACION INMOBILIARIA Y DE ESPACIO PUBLICO","ESCRITO","DERECHO DE PETICION DE INTERES PARTICULAR",15,"PENDIENTE"]
[3639192021,"SUBDIRECCION DE ADMINISTRACION INMOBILIARIA Y DE ESPACIO PUBLICO","ESCRITO","DERECHO DE PETICION DE INTERES PARTICULAR",15,"PENDIENTE"]
[3639252021,"SUBDIRECCION DE ADMINISTRACION INMOBILIARIA Y DE ESPACIO PUBLICO","ESCRITO","DERECHO DE PETICION DE INTERES PARTICULAR",15,"PENDIENTE"]
[3639272021,"SUBDIRECCION DE REGISTRO INMOBILIARIO","ESCRITO","DERECHO DE PETICION DE INTERES PARTICULAR",15,"PENDIENTE"]
[3639302021,"SUBDIRECCION DE REGISTRO INMOBILIARIO","ESCRITO","DERECHO DE PETICION DE INTERES PARTICULAR",15,"PENDIENTE"]
[3639332021,"SUBDIRECCION DE ADMINISTRACION INMOBILIARIA Y DE ESPACIO PUBLICO","ESCRITO","DERECHO DE PETICION DE INTERES PARTICULAR",15,"PENDIENTE"]
[3641462021,"SUBDIRECCION ADMINISTRATIVA  FINANCIERA Y DE CONTROL DISCIPLINARIO","WEB","DERECHO DE PETICION DE INTERES GENERAL",1,"GESTIONADOS"]
[3641962021,"SUBDIRECCION ADMINISTRATIVA  FINANCIERA Y DE CONTROL DISCIPLINARIO","WEB","DERECHO DE PETICION DE INTERES GENERAL",1,"GESTIONADOS"]
[3641962021,"SUBDIRECCION DE ADMINISTRACION INMOBILIARIA Y DE ESPACIO PUBLICO","WEB","DERECHO DE PETICION DE INTERES GENERAL",14,"PENDIENTE"]
[3646582021,"SUBDIRECCION DE ADMINISTRACION INMOBILIARIA Y DE ESPACIO PUBLICO","WEB","CONSULTA",14,"PENDIENTE"]
[3646962021,"SUBDIRECCION DE ADMINISTRACION INMOBILIARIA Y DE ESPACIO PUBLICO","WEB","DERECHO DE PETICION DE INTERES PARTICULAR",14,"PENDIENTE"]
[3648522021,"SUBDIRECCION DE ADMINISTRACION INMOBILIARIA Y DE ESPACIO PUBLICO","WEB","DERECHO DE PETICION DE INTERES PARTICULAR",14,"PENDIENTE"]
[3648572021,"SUBDIRECCION DE ADMINISTRACION INMOBILIARIA Y DE ESPACIO PUBLICO","ESCRITO","DERECHO DE PETICION DE INTERES PARTICULAR",14,"PENDIENTE"]
[3648682021,"SUBDIRECCION DE ADMINISTRACION INMOBILIARIA Y DE ESPACIO PUBLICO","WEB","QUEJA",14,"PENDIENTE"]
[3648742021,"SUBDIRECCION DE ADMINISTRACION INMOBILIARIA Y DE ESPACIO PUBLICO","ESCRITO","DERECHO DE PETICION DE INTERES PARTICULAR",14,"PENDIENTE"]
[3650252021,"DESPACHO","ESCRITO","DERECHO DE PETICION DE INTERES PARTICULAR",1,"GESTIONADOS"]
[3650252021,"SUBDIRECCION DE ADMINISTRACION INMOBILIARIA Y DE ESPACIO PUBLICO","ESCRITO","DERECHO DE PETICION DE INTERES PARTICULAR",14,"PENDIENTE"]
[3650362021,"SUBDIRECCION DE ADMINISTRACION INMOBILIARIA Y DE ESPACIO PUBLICO","ESCRITO","DERECHO DE PETICION DE INTERES PARTICULAR",14,"PENDIENTE"]
[3650582021,"SUBDIRECCION DE ADMINISTRACION INMOBILIARIA Y DE ESPACIO PUBLICO","ESCRITO","DERECHO DE PETICION DE INTERES PARTICULAR",14,"PENDIENTE"]
[3650732021,"SUBDIRECCION DE ADMINISTRACION INMOBILIARIA Y DE ESPACIO PUBLICO","ESCRITO","DERECHO DE PETICION DE INTERES PARTICULAR",14,"PENDIENTE"]
[3650872021,"SUBDIRECCION DE ADMINISTRACION INMOBILIARIA Y DE ESPACIO PUBLICO","ESCRITO","DERECHO DE PETICION DE INTERES PARTICULAR",14,"PENDIENTE"]
[3650912021,"SUBDIRECCION DE ADMINISTRACION INMOBILIARIA Y DE ESPACIO PUBLICO","ESCRITO","DERECHO DE PETICION DE INTERES PARTICULAR",14,"PENDIENTE"]
[3650942021,"SUBDIRECCION DE ADMINISTRACION INMOBILIARIA Y DE ESPACIO PUBLICO","ESCRITO","DERECHO DE PETICION DE INTERES PARTICULAR",14,"PENDIENTE"]
[3651022021,"SUBDIRECCION DE ADMINISTRACION INMOBILIARIA Y DE ESPACIO PUBLICO","ESCRITO","DERECHO DE PETICION DE INTERES PARTICULAR",14,"PENDIENTE"]
[3654732021,"SUBDIRECCION DE ADMINISTRACION INMOBILIARIA Y DE ESPACIO PUBLICO","WEB","DERECHO DE PETICION DE INTERES PARTICULAR",10,"PENDIENTE"]
[3657032021,"SUBDIRECCION DE ADMINISTRACION INMOBILIARIA Y DE ESPACIO PUBLICO","WEB","DERECHO DE PETICION DE INTERES GENERAL",14,"PENDIENTE"]
[3658862021,"SUBDIRECCION DE ADMINISTRACION INMOBILIARIA Y DE ESPACIO PUBLICO","ESCRITO","DERECHO DE PETICION DE INTERES GENERAL",12,"PENDIENTE"]
[3658952021,"SUBDIRECCION DE ADMINISTRACION INMOBILIARIA Y DE ESPACIO PUBLICO","ESCRITO","DERECHO DE PETICION DE INTERES GENERAL",12,"PENDIENTE"]
[3662482021,"SUBDIRECCION DE ADMINISTRACION INMOBILIARIA Y DE ESPACIO PUBLICO","WEB","DERECHO DE PETICION DE INTERES GENERAL",13,"PENDIENTE"]
[3665952021,"SUBDIRECCION ADMINISTRATIVA  FINANCIERA Y DE CONTROL DISCIPLINARIO","WEB","DERECHO DE PETICION DE INTERES GENERAL",1,"GESTIONADOS"]
[3667062021,"SUBDIRECCION DE ADMINISTRACION INMOBILIARIA Y DE ESPACIO PUBLICO","WEB","DERECHO DE PETICION DE INTERES PARTICULAR",13,"PENDIENTE"]
[3668112021,"SUBDIRECCION DE REGISTRO INMOBILIARIO","WEB","DERECHO DE PETICION DE INTERES PARTICULAR",13,"PENDIENTE"]
[3668982021,"SUBDIRECCION DE ADMINISTRACION INMOBILIARIA Y DE ESPACIO PUBLICO","ESCRITO","DERECHO DE PETICION DE INTERES PARTICULAR",13,"PENDIENTE"]
[3669092021,"SUBDIRECCION DE ADMINISTRACION INMOBILIARIA Y DE ESPACIO PUBLICO","ESCRITO","DERECHO DE PETICION DE INTERES PARTICULAR",13,"PENDIENTE"]
[3669672021,"SUBDIRECCION DE REGISTRO INMOBILIARIO","ESCRITO","DERECHO DE PETICION DE INTERES PARTICULAR",13,"PENDIENTE"]
[3670412021,"SUBDIRECCION DE ADMINISTRACION INMOBILIARIA Y DE ESPACIO PUBLICO","ESCRITO","DERECHO DE PETICION DE INTERES PARTICULAR",13,"PENDIENTE"]
[3670822021,"SUBDIRECCION DE ADMINISTRACION INMOBILIARIA Y DE ESPACIO PUBLICO","WEB","DERECHO DE PETICION DE INTERES PARTICULAR",13,"PENDIENTE"]
[3672012021,"SUBDIRECCION DE REGISTRO INMOBILIARIO","WEB","DERECHO DE PETICION DE INTERES PARTICULAR",13,"PENDIENTE"]
[3672342021,"SUBDIRECCION DE ADMINISTRACION INMOBILIARIA Y DE ESPACIO PUBLICO","ESCRITO","DERECHO DE PETICION DE INTERES PARTICULAR",13,"PENDIENTE"]
[3672352021,"SUBDIRECCION DE ADMINISTRACION INMOBILIARIA Y DE ESPACIO PUBLICO","ESCRITO","DERECHO DE PETICION DE INTERES PARTICULAR",13,"PENDIENTE"]
[3672392021,"SUBDIRECCION DE REGISTRO INMOBILIARIO","ESCRITO","DERECHO DE PETICION DE INTERES PARTICULAR",13,"PENDIENTE"]
[3672542021,"SUBDIRECCION DE ADMINISTRACION INMOBILIARIA Y DE ESPACIO PUBLICO","ESCRITO","DERECHO DE PETICION DE INTERES PARTICULAR",13,"PENDIENTE"]
[3672572021,"SUBDIRECCION DE REGISTRO INMOBILIARIO","ESCRITO","DERECHO DE PETICION DE INTERES PARTICULAR",13,"PENDIENTE"]
[3672642021,"DESPACHO","ESCRITO","DERECHO DE PETICION DE INTERES PARTICULAR",13,"GESTIONADOS"]
[3672642021,"SUBDIRECCION DE ADMINISTRACION INMOBILIARIA Y DE ESPACIO PUBLICO","ESCRITO","DERECHO DE PETICION DE INTERES PARTICULAR",13,"PENDIENTE"]
[3672942021,"SUBDIRECCION DE ADMINISTRACION INMOBILIARIA Y DE ESPACIO PUBLICO","ESCRITO","DERECHO DE PETICION DE INTERES PARTICULAR",13,"PENDIENTE"]
[3673002021,"SUBDIRECCION DE ADMINISTRACION INMOBILIARIA Y DE ESPACIO PUBLICO","ESCRITO","DERECHO DE PETICION DE INTERES PARTICULAR",13,"PENDIENTE"]
[3674422021,"SUBDIRECCION DE ADMINISTRACION INMOBILIARIA Y DE ESPACIO PUBLICO","WEB","DERECHO DE PETICION DE INTERES PARTICULAR",12,"PENDIENTE"]
[3675912021,"SUBDIRECCION DE ADMINISTRACION INMOBILIARIA Y DE ESPACIO PUBLICO","TELEFONO","DERECHO DE PETICION DE INTERES GENERAL",11,"PENDIENTE"]
[3675962021,"SUBDIRECCION DE ADMINISTRACION INMOBILIARIA Y DE ESPACIO PUBLICO","WEB","DERECHO DE PETICION DE INTERES GENERAL",12,"PENDIENTE"]
[3676182021,"SUBDIRECCION DE ADMINISTRACION INMOBILIARIA Y DE ESPACIO PUBLICO","WEB","DERECHO DE PETICION DE INTERES GENERAL",12,"PENDIENTE"]
[3678262021,"SUBDIRECCION DE ADMINISTRACION INMOBILIARIA Y DE ESPACIO PUBLICO","WEB","DERECHO DE PETICION DE INTERES GENERAL",12,"PENDIENTE"]
[3680142021,"SUBDIRECCION DE ADMINISTRACION INMOBILIARIA Y DE ESPACIO PUBLICO","ESCRITO","DERECHO DE PETICION DE INTERES PARTICULAR",12,"PENDIENTE"]
[3680192021,"SUBDIRECCION DE ADMINISTRACION INMOBILIARIA Y DE ESPACIO PUBLICO","WEB","DERECHO DE PETICION DE INTERES GENERAL",12,"PENDIENTE"]
[3680262021,"SUBDIRECCION DE ADMINISTRACION INMOBILIARIA Y DE ESPACIO PUBLICO","ESCRITO","DERECHO DE PETICION DE INTERES PARTICULAR",12,"PENDIENTE"]
[3680322021,"SUBDIRECCION DE ADMINISTRACION INMOBILIARIA Y DE ESPACIO PUBLICO","ESCRITO","DERECHO DE PETICION DE INTERES PARTICULAR",12,"PENDIENTE"]
[3680482021,"SUBDIRECCION DE ADMINISTRACION INMOBILIARIA Y DE ESPACIO PUBLICO","ESCRITO","DERECHO DE PETICION DE INTERES PARTICULAR",12,"PENDIENTE"]
[3681632021,"OFICINA ASESORA JURIDICA","ESCRITO","DERECHO DE PETICION DE INTERES PARTICULAR",10,"GESTIONADOS"]
[3682922021,"SUBDIRECCION DE ADMINISTRACION INMOBILIARIA Y DE ESPACIO PUBLICO","WEB","DERECHO DE PETICION DE INTERES PARTICULAR",12,"PENDIENTE"]
[3683572021,"SUBDIRECCION DE ADMINISTRACION INMOBILIARIA Y DE ESPACIO PUBLICO","ESCRITO","DERECHO DE PETICION DE INTERES PARTICULAR",12,"PENDIENTE"]
[3683682021,"SUBDIRECCION DE REGISTRO INMOBILIARIO","ESCRITO","DERECHO DE PETICION DE INTERES PARTICULAR",12,"PENDIENTE"]
[3683912021,"SUBDIRECCION DE ADMINISTRACION INMOBILIARIA Y DE ESPACIO PUBLICO","ESCRITO","DERECHO DE PETICION DE INTERES PARTICULAR",12,"PENDIENTE"]
[3683932021,"SUBDIRECCION DE REGISTRO INMOBILIARIO","ESCRITO","DERECHO DE PETICION DE INTERES PARTICULAR",12,"PENDIENTE"]
[3683952021,"SUBDIRECCION DE ADMINISTRACION INMOBILIARIA Y DE ESPACIO PUBLICO","ESCRITO","DERECHO DE PETICION DE INTERES PARTICULAR",12,"PENDIENTE"]
[3684092021,"DESPACHO","ESCRITO","DERECHO DE PETICION DE INTERES PARTICULAR",4,"GESTIONADOS"]
[3684092021,"SUBDIRECCION DE ADMINISTRACION INMOBILIARIA Y DE ESPACIO PUBLICO","ESCRITO","DERECHO DE PETICION DE INTERES PARTICULAR",12,"PENDIENTE"]
[3686272021,"SUBDIRECCION DE ADMINISTRACION INMOBILIARIA Y DE ESPACIO PUBLICO","WEB","DERECHO DE PETICION DE INTERES PARTICULAR",12,"PENDIENTE"]
[3686412021,"SUBDIRECCION DE ADMINISTRACION INMOBILIARIA Y DE ESPACIO PUBLICO","ESCRITO","DERECHO DE PETICION DE INTERES GENERAL",8,"PENDIENTE"]
[3687142021,"SUBDIRECCION ADMINISTRATIVA  FINANCIERA Y DE CONTROL DISCIPLINARIO","WEB","DERECHO DE PETICION DE INTERES GENERAL",2,"GESTIONADOS"]
[3687582021,"SUBDIRECCION DE ADMINISTRACION INMOBILIARIA Y DE ESPACIO PUBLICO","TELEFONO","DERECHO DE PETICION DE INTERES GENERAL",12,"PENDIENTE"]
[3689622021,"SUBDIRECCION DE REGISTRO INMOBILIARIO","WEB","CONSULTA",11,"PENDIENTE"]
[3690422021,"SUBDIRECCION DE ADMINISTRACION INMOBILIARIA Y DE ESPACIO PUBLICO","WEB","DERECHO DE PETICION DE INTERES GENERAL",7,"PENDIENTE"]
[3693802021,"SUBDIRECCION DE ADMINISTRACION INMOBILIARIA Y DE ESPACIO PUBLICO","WEB","DERECHO DE PETICION DE INTERES PARTICULAR",11,"PENDIENTE"]
[3694922021,"SUBDIRECCION DE REGISTRO INMOBILIARIO","ESCRITO","DERECHO DE PETICION DE INTERES PARTICULAR",11,"PENDIENTE"]
[3695222021,"OFICINA ASESORA JURIDICA","ESCRITO","DERECHO DE PETICION DE INTERES PARTICULAR",11,"GESTIONADOS"]
[3696472021,"SUBDIRECCION DE ADMINISTRACION INMOBILIARIA Y DE ESPACIO PUBLICO","ESCRITO","DERECHO DE PETICION DE INTERES PARTICULAR",11,"PENDIENTE"]
[3697162021,"SUBDIRECCION DE REGISTRO INMOBILIARIO","ESCRITO","DERECHO DE PETICION DE INTERES PARTICULAR",11,"PENDIENTE"]
[3697322021,"SUBDIRECCION DE ADMINISTRACION INMOBILIARIA Y DE ESPACIO PUBLICO","ESCRITO","DERECHO DE PETICION DE INTERES PARTICULAR",11,"PENDIENTE"]
[3697332021,"SUBDIRECCION DE ADMINISTRACION INMOBILIARIA Y DE ESPACIO PUBLICO","ESCRITO","DERECHO DE PETICION DE INTERES PARTICULAR",11,"PENDIENTE"]
[3697352021,"SUBDIRECCION DE ADMINISTRACION INMOBILIARIA Y DE ESPACIO PUBLICO","ESCRITO","DERECHO DE PETICION DE INTERES PARTICULAR",11,"PENDIENTE"]
[3697392021,"SUBDIRECCION DE ADMINISTRACION INMOBILIARIA Y DE ESPACIO PUBLICO","ESCRITO","DERECHO DE PETICION DE INTERES PARTICULAR",11,"PENDIENTE"]
[3697582021,"SUBDIRECCION DE REGISTRO INMOBILIARIO","ESCRITO","DERECHO DE PETICION DE INTERES PARTICULAR",11,"PENDIENTE"]
[3702762021,"SUBDIRECCION DE ADMINISTRACION INMOBILIARIA Y DE ESPACIO PUBLICO","WEB","DERECHO DE PETICION DE INTERES GENERAL",11,"PENDIENTE"]
[3703372021,"SUBDIRECCION DE ADMINISTRACION INMOBILIARIA Y DE ESPACIO PUBLICO","WEB","DERECHO DE PETICION DE INTERES PARTICULAR",11,"PENDIENTE"]
[3703802021,"SUBDIRECCION DE ADMINISTRACION INMOBILIARIA Y DE ESPACIO PUBLICO","WEB","DERECHO DE PETICION DE INTERES GENERAL",11,"PENDIENTE"]
[3704662021,"SUBDIRECCION DE ADMINISTRACION INMOBILIARIA Y DE ESPACIO PUBLICO","WEB","CONSULTA",11,"PENDIENTE"]
[3704772021,"DESPACHO","WEB","CONSULTA",11,"GESTIONADOS"]
[3705722021,"SUBDIRECCION DE ADMINISTRACION INMOBILIARIA Y DE ESPACIO PUBLICO","WEB","DERECHO DE PETICION DE INTERES GENERAL",10,"PENDIENTE"]
[3706402021,"SUBDIRECCION DE ADMINISTRACION INMOBILIARIA Y DE ESPACIO PUBLICO","WEB","DERECHO DE PETICION DE INTERES PARTICULAR",11,"PENDIENTE"]
[3706552021,"SUBDIRECCION DE ADMINISTRACION INMOBILIARIA Y DE ESPACIO PUBLICO","WEB","DERECHO DE PETICION DE INTERES PARTICULAR",11,"PENDIENTE"]
[3707852021,"SUBDIRECCION DE ADMINISTRACION INMOBILIARIA Y DE ESPACIO PUBLICO","WEB","DERECHO DE PETICION DE INTERES GENERAL",11,"PENDIENTE"]
[3707872021,"SUBDIRECCION DE ADMINISTRACION INMOBILIARIA Y DE ESPACIO PUBLICO","WEB","DERECHO DE PETICION DE INTERES GENERAL",11,"PENDIENTE"]
[3707952021,"SUBDIRECCION DE ADMINISTRACION INMOBILIARIA Y DE ESPACIO PUBLICO","WEB","DERECHO DE PETICION DE INTERES PARTICULAR",11,"PENDIENTE"]
[3711612021,"SUBDIRECCION DE REGISTRO INMOBILIARIO","ESCRITO","DERECHO DE PETICION DE INTERES PARTICULAR",10,"PENDIENTE"]
[3714252021,"SUBDIRECCION DE ADMINISTRACION INMOBILIARIA Y DE ESPACIO PUBLICO","WEB","DERECHO DE PETICION DE INTERES GENERAL",10,"PENDIENTE"]
[3714542021,"SUBDIRECCION DE ADMINISTRACION INMOBILIARIA Y DE ESPACIO PUBLICO","ESCRITO","DERECHO DE PETICION DE INTERES GENERAL",10,"PENDIENTE"]
[3714592021,"SUBDIRECCION DE ADMINISTRACION INMOBILIARIA Y DE ESPACIO PUBLICO","WEB","DERECHO DE PETICION DE INTERES PARTICULAR",10,"PENDIENTE"]
[3715202021,"OFICINA ASESORA JURIDICA","WEB","DERECHO DE PETICION DE INTERES PARTICULAR",8,"GESTIONADOS"]
[3716142021,"SUBDIRECCION DE ADMINISTRACION INMOBILIARIA Y DE ESPACIO PUBLICO","ESCRITO","DERECHO DE PETICION DE INTERES PARTICULAR",10,"PENDIENTE"]
[3716282021,"SUBDIRECCION DE ADMINISTRACION INMOBILIARIA Y DE ESPACIO PUBLICO","ESCRITO","DERECHO DE PETICION DE INTERES PARTICULAR",10,"PENDIENTE"]
[3716392021,"SUBDIRECCION DE REGISTRO INMOBILIARIO","ESCRITO","DERECHO DE PETICION DE INTERES PARTICULAR",10,"PENDIENTE"]
[3716742021,"SUBDIRECCION ADMINISTRATIVA Y FINANCIERA","ESCRITO","DERECHO DE PETICION DE INTERES PARTICULAR",10,"PENDIENTE"]
[3717062021,"SUBDIRECCION DE ADMINISTRACION INMOBILIARIA Y DE ESPACIO PUBLICO","WEB","DERECHO DE PETICION DE INTERES PARTICULAR",10,"PENDIENTE"]
[3717352021,"SUBDIRECCION DE ADMINISTRACION INMOBILIARIA Y DE ESPACIO PUBLICO","ESCRITO","DERECHO DE PETICION DE INTERES PARTICULAR",10,"PENDIENTE"]
[3718652021,"SUBDIRECCION DE REGISTRO INMOBILIARIO","ESCRITO","DERECHO DE PETICION DE INTERES PARTICULAR",10,"PENDIENTE"]
[3718772021,"SUBDIRECCION DE ADMINISTRACION INMOBILIARIA Y DE ESPACIO PUBLICO","ESCRITO","DERECHO DE PETICION DE INTERES PARTICULAR",10,"PENDIENTE"]
[3718922021,"SUBDIRECCION ADMINISTRATIVA Y FINANCIERA","ESCRITO","DERECHO DE PETICION DE INTERES PARTICULAR",10,"PENDIENTE"]
[3719642021,"SUBDIRECCION DE REGISTRO INMOBILIARIO","ESCRITO","DERECHO DE PETICION DE INTERES PARTICULAR",10,"PENDIENTE"]
[3720342021,"OFICINA ASESORA JURIDICA","ESCRITO","DERECHO DE PETICION DE INTERES PARTICULAR",10,"GESTIONADOS"]
[3720452021,"OFICINA ASESORA JURIDICA","ESCRITO","DERECHO DE PETICION DE INTERES PARTICULAR",10,"GESTIONADOS"]
[3720592021,"SUBDIRECCION DE ADMINISTRACION INMOBILIARIA Y DE ESPACIO PUBLICO","ESCRITO","DERECHO DE PETICION DE INTERES PARTICULAR",10,"PENDIENTE"]
[3726272021,"SUBDIRECCION DE REGISTRO INMOBILIARIO","WEB","DERECHO DE PETICION DE INTERES PARTICULAR",9,"PENDIENTE"]
[3728322021,"SUBDIRECCION DE ADMINISTRACION INMOBILIARIA Y DE ESPACIO PUBLICO","WEB","DERECHO DE PETICION DE INTERES GENERAL",5,"PENDIENTE"]
[3731012021,"SUBDIRECCION DE REGISTRO INMOBILIARIO","TELEFONO","DERECHO DE PETICION DE INTERES PARTICULAR",9,"PENDIENTE"]
[3732632021,"DESPACHO","WEB","QUEJA",9,"GESTIONADOS"]
[3732632021,"SUBDIRECCION ADMINISTRATIVA  FINANCIERA Y DE CONTROL DISCIPLINARIO","WEB","QUEJA",9,"PENDIENTE"]
[3732712021,"SUBDIRECCION DE ADMINISTRACION INMOBILIARIA Y DE ESPACIO PUBLICO","ESCRITO","DERECHO DE PETICION DE INTERES PARTICULAR",9,"PENDIENTE"]
[3732732021,"DESPACHO","WEB","QUEJA",1,"GESTIONADOS"]
[3732732021,"SUBDIRECCION ADMINISTRATIVA  FINANCIERA Y DE CONTROL DISCIPLINARIO","WEB","QUEJA",7,"GESTIONADOS"]
[3732762021,"SUBDIRECCION ADMINISTRATIVA  FINANCIERA Y DE CONTROL DISCIPLINARIO","WEB","DENUNCIA POR ACTOS DE CORRUPCION",7,"GESTIONADOS"]
[3732882021,"SUBDIRECCION DE ADMINISTRACION INMOBILIARIA Y DE ESPACIO PUBLICO","ESCRITO","DERECHO DE PETICION DE INTERES PARTICULAR",9,"PENDIENTE"]
[3733272021,"SUBDIRECCION DE ADMINISTRACION INMOBILIARIA Y DE ESPACIO PUBLICO","ESCRITO","DERECHO DE PETICION DE INTERES PARTICULAR",9,"PENDIENTE"]
[3736672021,"OFICINA ASESORA JURIDICA","WEB","DERECHO DE PETICION DE INTERES PARTICULAR",1,"PENDIENTE"]
[3738132021,"SUBDIRECCION DE ADMINISTRACION INMOBILIARIA Y DE ESPACIO PUBLICO","WEB","DERECHO DE PETICION DE INTERES PARTICULAR",9,"PENDIENTE"]
[3738152021,"SUBDIRECCION DE REGISTRO INMOBILIARIO","WEB","DERECHO DE PETICION DE INTERES PARTICULAR",9,"PENDIENTE"]
[3740432021,"SUBDIRECCION DE ADMINISTRACION INMOBILIARIA Y DE ESPACIO PUBLICO","ESCRITO","DERECHO DE PETICION DE INTERES PARTICULAR",9,"PENDIENTE"]
[3740462021,"SUBDIRECCION DE ADMINISTRACION INMOBILIARIA Y DE ESPACIO PUBLICO","ESCRITO","DERECHO DE PETICION DE INTERES PARTICULAR",9,"PENDIENTE"]
[3740522021,"SUBDIRECCION DE ADMINISTRACION INMOBILIARIA Y DE ESPACIO PUBLICO","ESCRITO","DERECHO DE PETICION DE INTERES PARTICULAR",9,"PENDIENTE"]
[3740582021,"SUBDIRECCION DE ADMINISTRACION INMOBILIARIA Y DE ESPACIO PUBLICO","ESCRITO","DERECHO DE PETICION DE INTERES PARTICULAR",9,"PENDIENTE"]
[3740612021,"SUBDIRECCION DE ADMINISTRACION INMOBILIARIA Y DE ESPACIO PUBLICO","ESCRITO","DERECHO DE PETICION DE INTERES PARTICULAR",9,"PENDIENTE"]
[3740702021,"SUBDIRECCION DE ADMINISTRACION INMOBILIARIA Y DE ESPACIO PUBLICO","WEB","DERECHO DE PETICION DE INTERES PARTICULAR",9,"PENDIENTE"]
[3740772021,"SUBDIRECCION DE ADMINISTRACION INMOBILIARIA Y DE ESPACIO PUBLICO","WEB","DERECHO DE PETICION DE INTERES GENERAL",7,"PENDIENTE"]
[3742812021,"SUBDIRECCION DE ADMINISTRACION INMOBILIARIA Y DE ESPACIO PUBLICO","ESCRITO","DERECHO DE PETICION DE INTERES PARTICULAR",8,"PENDIENTE"]
[3742922021,"SUBDIRECCION DE ADMINISTRACION INMOBILIARIA Y DE ESPACIO PUBLICO","ESCRITO","DERECHO DE PETICION DE INTERES PARTICULAR",8,"PENDIENTE"]
[3743022021,"SUBDIRECCION DE ADMINISTRACION INMOBILIARIA Y DE ESPACIO PUBLICO","ESCRITO","DERECHO DE PETICION DE INTERES PARTICULAR",8,"PENDIENTE"]
[3743272021,"SUBDIRECCION DE ADMINISTRACION INMOBILIARIA Y DE ESPACIO PUBLICO","ESCRITO","DERECHO DE PETICION DE INTERES PARTICULAR",8,"PENDIENTE"]
[3744362021,"SUBDIRECCION DE ADMINISTRACION INMOBILIARIA Y DE ESPACIO PUBLICO","WEB","DERECHO DE PETICION DE INTERES PARTICULAR",6,"PENDIENTE"]
[3744962021,"SUBDIRECCION DE ADMINISTRACION INMOBILIARIA Y DE ESPACIO PUBLICO","WEB","DERECHO DE PETICION DE INTERES PARTICULAR",6,"PENDIENTE"]
[3746522021,"SUBDIRECCION DE ADMINISTRACION INMOBILIARIA Y DE ESPACIO PUBLICO","WEB","DERECHO DE PETICION DE INTERES GENERAL",8,"PENDIENTE"]
[3748402021,"SUBDIRECCION DE REGISTRO INMOBILIARIO","WEB","DERECHO DE PETICION DE INTERES PARTICULAR",8,"PENDIENTE"]
[3749112021,"SUBDIRECCION ADMINISTRATIVA  FINANCIERA Y DE CONTROL DISCIPLINARIO","WEB","DERECHO DE PETICION DE INTERES GENERAL",1,"GESTIONADOS"]
[3750792021,"SUBDIRECCION DE ADMINISTRACION INMOBILIARIA Y DE ESPACIO PUBLICO","ESCRITO","DERECHO DE PETICION DE INTERES PARTICULAR",8,"PENDIENTE"]
[3750902021,"SUBDIRECCION DE ADMINISTRACION INMOBILIARIA Y DE ESPACIO PUBLICO","WEB","DERECHO DE PETICION DE INTERES PARTICULAR",8,"PENDIENTE"]
[3751962021,"OFICINA ASESORA JURIDICA","ESCRITO","DERECHO DE PETICION DE INTERES PARTICULAR",8,"PENDIENTE"]
[3752112021,"SUBDIRECCION ADMINISTRATIVA Y FINANCIERA","ESCRITO","DERECHO DE PETICION DE INTERES PARTICULAR",8,"PENDIENTE"]
[3752382021,"SUBDIRECCION DE ADMINISTRACION INMOBILIARIA Y DE ESPACIO PUBLICO","ESCRITO","DERECHO DE PETICION DE INTERES PARTICULAR",8,"PENDIENTE"]
[3752532021,"SUBDIRECCION ADMINISTRATIVA Y FINANCIERA","ESCRITO","DERECHO DE PETICION DE INTERES PARTICULAR",8,"PENDIENTE"]
[3752682021,"SUBDIRECCION DE ADMINISTRACION INMOBILIARIA Y DE ESPACIO PUBLICO","ESCRITO","DERECHO DE PETICION DE INTERES PARTICULAR",8,"PENDIENTE"]
[3753342021,"SUBDIRECCION DE ADMINISTRACION INMOBILIARIA Y DE ESPACIO PUBLICO","ESCRITO","DERECHO DE PETICION DE INTERES PARTICULAR",8,"PENDIENTE"]
[3753402021,"SUBDIRECCION DE ADMINISTRACION INMOBILIARIA Y DE ESPACIO PUBLICO","ESCRITO","DERECHO DE PETICION DE INTERES PARTICULAR",8,"PENDIENTE"]
[3753442021,"SUBDIRECCION DE REGISTRO INMOBILIARIO","ESCRITO","DERECHO DE PETICION DE INTERES PARTICULAR",8,"PENDIENTE"]
[3756402021,"SUBDIRECCION DE ADMINISTRACION INMOBILIARIA Y DE ESPACIO PUBLICO","WEB","DERECHO DE PETICION DE INTERES GENERAL",8,"PENDIENTE"]
[3760582021,"SUBDIRECCION DE ADMINISTRACION INMOBILIARIA Y DE ESPACIO PUBLICO","WEB","DERECHO DE PETICION DE INTERES PARTICULAR",7,"PENDIENTE"]
[3760912021,"SUBDIRECCION DE REGISTRO INMOBILIARIO","WEB","CONSULTA",7,"PENDIENTE"]
[3761852021,"SUBDIRECCION ADMINISTRATIVA Y FINANCIERA","ESCRITO","DERECHO DE PETICION DE INTERES PARTICULAR",7,"PENDIENTE"]
[3762162021,"SUBDIRECCION DE REGISTRO INMOBILIARIO","ESCRITO","DERECHO DE PETICION DE INTERES PARTICULAR",7,"PENDIENTE"]
[3762422021,"SUBDIRECCION DE REGISTRO INMOBILIARIO","ESCRITO","SOLICITUD DE COPIA",7,"PENDIENTE"]
[3762852021,"SUBDIRECCION DE REGISTRO INMOBILIARIO","ESCRITO","DERECHO DE PETICION DE INTERES PARTICULAR",7,"PENDIENTE"]
[3763222021,"SUBDIRECCION DE ADMINISTRACION INMOBILIARIA Y DE ESPACIO PUBLICO","ESCRITO","DERECHO DE PETICION DE INTERES PARTICULAR",7,"PENDIENTE"]
[3763352021,"SUBDIRECCION DE ADMINISTRACION INMOBILIARIA Y DE ESPACIO PUBLICO","TELEFONO","DERECHO DE PETICION DE INTERES GENERAL",7,"PENDIENTE"]
[3763562021,"SUBDIRECCION DE ADMINISTRACION INMOBILIARIA Y DE ESPACIO PUBLICO","ESCRITO","DERECHO DE PETICION DE INTERES GENERAL",4,"PENDIENTE"]
[3764802021,"SUBDIRECCION DE ADMINISTRACION INMOBILIARIA Y DE ESPACIO PUBLICO","WEB","DERECHO DE PETICION DE INTERES PARTICULAR",7,"PENDIENTE"]
[3765152021,"SUBDIRECCION DE ADMINISTRACION INMOBILIARIA Y DE ESPACIO PUBLICO","ESCRITO","DERECHO DE PETICION DE INTERES PARTICULAR",7,"PENDIENTE"]
[3766172021,"SUBDIRECCION DE REGISTRO INMOBILIARIO","ESCRITO","DERECHO DE PETICION DE INTERES PARTICULAR",7,"PENDIENTE"]
[3767512021,"SUBDIRECCION DE REGISTRO INMOBILIARIO","ESCRITO","DERECHO DE PETICION DE INTERES PARTICULAR",7,"PENDIENTE"]
[3769072021,"SUBDIRECCION DE ADMINISTRACION INMOBILIARIA Y DE ESPACIO PUBLICO","TELEFONO","DERECHO DE PETICION DE INTERES GENERAL",7,"PENDIENTE"]
[3770952021,"SUBDIRECCION DE ADMINISTRACION INMOBILIARIA Y DE ESPACIO PUBLICO","ESCRITO","DERECHO DE PETICION DE INTERES PARTICULAR",7,"PENDIENTE"]
[3770972021,"SUBDIRECCION DE ADMINISTRACION INMOBILIARIA Y DE ESPACIO PUBLICO","ESCRITO","DERECHO DE PETICION DE INTERES PARTICULAR",7,"PENDIENTE"]
[3770992021,"SUBDIRECCION DE ADMINISTRACION INMOBILIARIA Y DE ESPACIO PUBLICO","ESCRITO","DERECHO DE PETICION DE INTERES PARTICULAR",7,"PENDIENTE"]
[3771002021,"SUBDIRECCION DE ADMINISTRACION INMOBILIARIA Y DE ESPACIO PUBLICO","ESCRITO","DERECHO DE PETICION DE INTERES PARTICULAR",7,"PENDIENTE"]
[3771012021,"SUBDIRECCION DE ADMINISTRACION INMOBILIARIA Y DE ESPACIO PUBLICO","ESCRITO","DERECHO DE PETICION DE INTERES PARTICULAR",7,"PENDIENTE"]
[3771022021,"SUBDIRECCION DE REGISTRO INMOBILIARIO","ESCRITO","DERECHO DE PETICION DE INTERES PARTICULAR",7,"PENDIENTE"]
[3771032021,"SUBDIRECCION DE ADMINISTRACION INMOBILIARIA Y DE ESPACIO PUBLICO","ESCRITO","DERECHO DE PETICION DE INTERES PARTICULAR",7,"PENDIENTE"]
[3771042021,"SUBDIRECCION DE REGISTRO INMOBILIARIO","ESCRITO","DERECHO DE PETICION DE INTERES PARTICULAR",7,"PENDIENTE"]
[3771062021,"SUBDIRECCION DE ADMINISTRACION INMOBILIARIA Y DE ESPACIO PUBLICO","ESCRITO","DERECHO DE PETICION DE INTERES PARTICULAR",7,"PENDIENTE"]
[3771072021,"SUBDIRECCION DE ADMINISTRACION INMOBILIARIA Y DE ESPACIO PUBLICO","ESCRITO","DERECHO DE PETICION DE INTERES PARTICULAR",7,"PENDIENTE"]
[3772052021,"SUBDIRECCION DE ADMINISTRACION INMOBILIARIA Y DE ESPACIO PUBLICO","TELEFONO","DERECHO DE PETICION DE INTERES GENERAL",7,"PENDIENTE"]
[3775712021,"SUBDIRECCION DE ADMINISTRACION INMOBILIARIA Y DE ESPACIO PUBLICO","WEB","DERECHO DE PETICION DE INTERES GENERAL",7,"PENDIENTE"]
[3777622021,"SUBDIRECCION DE ADMINISTRACION INMOBILIARIA Y DE ESPACIO PUBLICO","WEB","DERECHO DE PETICION DE INTERES GENERAL",6,"PENDIENTE"]
[3781872021,"SUBDIRECCION DE ADMINISTRACION INMOBILIARIA Y DE ESPACIO PUBLICO","WEB","DERECHO DE PETICION DE INTERES GENERAL",4,"PENDIENTE"]
[3782902021,"SUBDIRECCION DE ADMINISTRACION INMOBILIARIA Y DE ESPACIO PUBLICO","WEB","DERECHO DE PETICION DE INTERES PARTICULAR",6,"PENDIENTE"]
[3783922021,"SUBDIRECCION DE REGISTRO INMOBILIARIO","ESCRITO","DERECHO DE PETICION DE INTERES GENERAL",4,"PENDIENTE"]
[3784742021,"DESPACHO","ESCRITO","DERECHO DE PETICION DE INTERES PARTICULAR",6,"GESTIONADOS"]
[3784822021,"SUBDIRECCION DE ADMINISTRACION INMOBILIARIA Y DE ESPACIO PUBLICO","ESCRITO","DERECHO DE PETICION DE INTERES PARTICULAR",6,"PENDIENTE"]
[3784902021,"SUBDIRECCION DE ADMINISTRACION INMOBILIARIA Y DE ESPACIO PUBLICO","ESCRITO","DERECHO DE PETICION DE INTERES PARTICULAR",6,"PENDIENTE"]
[3785132021,"SUBDIRECCION DE ADMINISTRACION INMOBILIARIA Y DE ESPACIO PUBLICO","ESCRITO","DERECHO DE PETICION DE INTERES PARTICULAR",6,"PENDIENTE"]
[3785342021,"SUBDIRECCION DE ADMINISTRACION INMOBILIARIA Y DE ESPACIO PUBLICO","ESCRITO","DERECHO DE PETICION DE INTERES PARTICULAR",6,"PENDIENTE"]
[3785562021,"SUBDIRECCION DE REGISTRO INMOBILIARIO","ESCRITO","DERECHO DE PETICION DE INTERES PARTICULAR",6,"PENDIENTE"]
[3785962021,"SUBDIRECCION DE REGISTRO INMOBILIARIO","WEB","CONSULTA",6,"PENDIENTE"]
[3786912021,"SUBDIRECCION DE ADMINISTRACION INMOBILIARIA Y DE ESPACIO PUBLICO","ESCRITO","DERECHO DE PETICION DE INTERES PARTICULAR",6,"PENDIENTE"]
[3786962021,"SUBDIRECCION DE ADMINISTRACION INMOBILIARIA Y DE ESPACIO PUBLICO","ESCRITO","DERECHO DE PETICION DE INTERES PARTICULAR",6,"PENDIENTE"]
[3786982021,"SUBDIRECCION DE ADMINISTRACION INMOBILIARIA Y DE ESPACIO PUBLICO","ESCRITO","DERECHO DE PETICION DE INTERES PARTICULAR",6,"PENDIENTE"]
[3787082021,"SUBDIRECCION DE ADMINISTRACION INMOBILIARIA Y DE ESPACIO PUBLICO","ESCRITO","DERECHO DE PETICION DE INTERES PARTICULAR",6,"PENDIENTE"]
[3787102021,"SUBDIRECCION DE ADMINISTRACION INMOBILIARIA Y DE ESPACIO PUBLICO","ESCRITO","DERECHO DE PETICION DE INTERES PARTICULAR",6,"PENDIENTE"]
[3787962021,"SUBDIRECCION DE ADMINISTRACION INMOBILIARIA Y DE ESPACIO PUBLICO","ESCRITO","DERECHO DE PETICION DE INTERES PARTICULAR",6,"PENDIENTE"]
[3788052021,"SUBDIRECCION DE ADMINISTRACION INMOBILIARIA Y DE ESPACIO PUBLICO","ESCRITO","DERECHO DE PETICION DE INTERES PARTICULAR",6,"PENDIENTE"]
[3788712021,"SUBDIRECCION DE REGISTRO INMOBILIARIO","WEB","DERECHO DE PETICION DE INTERES PARTICULAR",6,"PENDIENTE"]
[3789152021,"SUBDIRECCION DE ADMINISTRACION INMOBILIARIA Y DE ESPACIO PUBLICO","WEB","DERECHO DE PETICION DE INTERES PARTICULAR",6,"PENDIENTE"]
[3789172021,"SUBDIRECCION DE ADMINISTRACION INMOBILIARIA Y DE ESPACIO PUBLICO","WEB","DERECHO DE PETICION DE INTERES PARTICULAR",5,"PENDIENTE"]
[3789212021,"SUBDIRECCION DE ADMINISTRACION INMOBILIARIA Y DE ESPACIO PUBLICO","WEB","DERECHO DE PETICION DE INTERES PARTICULAR",5,"PENDIENTE"]
[3795802021,"SUBDIRECCION DE ADMINISTRACION INMOBILIARIA Y DE ESPACIO PUBLICO","WEB","DERECHO DE PETICION DE INTERES PARTICULAR",5,"PENDIENTE"]
[3802172021,"SUBDIRECCION DE ADMINISTRACION INMOBILIARIA Y DE ESPACIO PUBLICO","ESCRITO","DERECHO DE PETICION DE INTERES PARTICULAR",5,"PENDIENTE"]
[3802522021,"SUBDIRECCION DE ADMINISTRACION INMOBILIARIA Y DE ESPACIO PUBLICO","ESCRITO","DERECHO DE PETICION DE INTERES PARTICULAR",5,"PENDIENTE"]
[3802562021,"SUBDIRECCION DE REGISTRO INMOBILIARIO","ESCRITO","DERECHO DE PETICION DE INTERES PARTICULAR",5,"PENDIENTE"]
[3802622021,"DESPACHO","ESCRITO","DERECHO DE PETICION DE INTERES PARTICULAR",5,"GESTIONADOS"]
[3802622021,"SUBDIRECCION DE ADMINISTRACION INMOBILIARIA Y DE ESPACIO PUBLICO","ESCRITO","DERECHO DE PETICION DE INTERES PARTICULAR",5,"PENDIENTE"]
[3805132021,"SUBDIRECCION DE REGISTRO INMOBILIARIO","WEB","CONSULTA",5,"PENDIENTE"]
[3806682021,"SUBDIRECCION DE REGISTRO INMOBILIARIO","WEB","CONSULTA",3,"PENDIENTE"]
[3809102021,"SUBDIRECCION DE ADMINISTRACION INMOBILIARIA Y DE ESPACIO PUBLICO","ESCRITO","DERECHO DE PETICION DE INTERES PARTICULAR",5,"PENDIENTE"]
[3809182021,"SUBDIRECCION DE ADMINISTRACION INMOBILIARIA Y DE ESPACIO PUBLICO","ESCRITO","DERECHO DE PETICION DE INTERES PARTICULAR",5,"PENDIENTE"]
[3809212021,"SUBDIRECCION DE ADMINISTRACION INMOBILIARIA Y DE ESPACIO PUBLICO","ESCRITO","DERECHO DE PETICION DE INTERES PARTICULAR",5,"PENDIENTE"]
[3812352021,"SUBDIRECCION DE ADMINISTRACION INMOBILIARIA Y DE ESPACIO PUBLICO","WEB","DERECHO DE PETICION DE INTERES PARTICULAR",4,"PENDIENTE"]
[3814382021,"SUBDIRECCION DE ADMINISTRACION INMOBILIARIA Y DE ESPACIO PUBLICO","ESCRITO","DERECHO DE PETICION DE INTERES PARTICULAR",4,"PENDIENTE"]
[3814562021,"SUBDIRECCION DE ADMINISTRACION INMOBILIARIA Y DE ESPACIO PUBLICO","ESCRITO","DERECHO DE PETICION DE INTERES PARTICULAR",4,"PENDIENTE"]
[3815122021,"SUBDIRECCION DE ADMINISTRACION INMOBILIARIA Y DE ESPACIO PUBLICO","WEB","DERECHO DE PETICION DE INTERES GENERAL",4,"PENDIENTE"]
[3816212021,"SUBDIRECCION DE REGISTRO INMOBILIARIO","WEB","DERECHO DE PETICION DE INTERES PARTICULAR",4,"PENDIENTE"]
[3818182021,"SUBDIRECCION DE REGISTRO INMOBILIARIO","ESCRITO","DERECHO DE PETICION DE INTERES PARTICULAR",4,"PENDIENTE"]
[3818512021,"SUBDIRECCION DE ADMINISTRACION INMOBILIARIA Y DE ESPACIO PUBLICO","ESCRITO","SOLICITUD DE COPIA",4,"PENDIENTE"]
[3821992021,"SUBDIRECCION DE ADMINISTRACION INMOBILIARIA Y DE ESPACIO PUBLICO","ESCRITO","DERECHO DE PETICION DE INTERES PARTICULAR",4,"PENDIENTE"]
[3825062021,"SUBDIRECCION DE REGISTRO INMOBILIARIO","ESCRITO","DERECHO DE PETICION DE INTERES PARTICULAR",4,"PENDIENTE"]
[3826732021,"SUBDIRECCION DE REGISTRO INMOBILIARIO","WEB","DERECHO DE PETICION DE INTERES PARTICULAR",3,"PENDIENTE"]
[3833972021,"SUBDIRECCION DE ADMINISTRACION INMOBILIARIA Y DE ESPACIO PUBLICO","ESCRITO","DERECHO DE PETICION DE INTERES PARTICULAR",3,"PENDIENTE"]
[3834092021,"SUBDIRECCION DE ADMINISTRACION INMOBILIARIA Y DE ESPACIO PUBLICO","ESCRITO","DERECHO DE PETICION DE INTERES PARTICULAR",3,"PENDIENTE"]
[3834242021,"OFICINA ASESORA JURIDICA","ESCRITO","DERECHO DE PETICION DE INTERES PARTICULAR",3,"GESTIONADOS"]
[3834242021,"SUBDIRECCION DE ADMINISTRACION INMOBILIARIA Y DE ESPACIO PUBLICO","ESCRITO","DERECHO DE PETICION DE INTERES PARTICULAR",3,"PENDIENTE"]
[3834772021,"SUBDIRECCION DE ADMINISTRACION INMOBILIARIA Y DE ESPACIO PUBLICO","ESCRITO","DERECHO DE PETICION DE INTERES PARTICULAR",3,"PENDIENTE"]
[3837202021,"SUBDIRECCION DE ADMINISTRACION INMOBILIARIA Y DE ESPACIO PUBLICO","ESCRITO","DERECHO DE PETICION DE INTERES PARTICULAR",3,"PENDIENTE"]
[3837262021,"SUBDIRECCION DE ADMINISTRACION INMOBILIARIA Y DE ESPACIO PUBLICO","ESCRITO","DERECHO DE PETICION DE INTERES PARTICULAR",3,"PENDIENTE"]
[3837642021,"OFICINA ASESORA JURIDICA","E-MAIL","DERECHO DE PETICION DE INTERES PARTICULAR",1,"PENDIENTE"]
[3838592021,"SUBDIRECCION DE ADMINISTRACION INMOBILIARIA Y DE ESPACIO PUBLICO","ESCRITO","DERECHO DE PETICION DE INTERES PARTICULAR",3,"PENDIENTE"]
[3838672021,"SUBDIRECCION DE REGISTRO INMOBILIARIO","ESCRITO","DERECHO DE PETICION DE INTERES PARTICULAR",3,"PENDIENTE"]
[3839302021,"SUBDIRECCION DE REGISTRO INMOBILIARIO","ESCRITO","DERECHO DE PETICION DE INTERES PARTICULAR",3,"PENDIENTE"]
[3839382021,"SUBDIRECCION DE ADMINISTRACION INMOBILIARIA Y DE ESPACIO PUBLICO","ESCRITO","DERECHO DE PETICION DE INTERES PARTICULAR",3,"PENDIENTE"]
[3839402021,"SUBDIRECCION DE ADMINISTRACION INMOBILIARIA Y DE ESPACIO PUBLICO","ESCRITO","DERECHO DE PETICION DE INTERES PARTICULAR",3,"PENDIENTE"]
[3839422021,"OFICINA ASESORA JURIDICA","ESCRITO","DERECHO DE PETICION DE INTERES PARTICULAR",3,"GESTIONADOS"]
[3839422021,"SUBDIRECCION DE ADMINISTRACION INMOBILIARIA Y DE ESPACIO PUBLICO","ESCRITO","DERECHO DE PETICION DE INTERES PARTICULAR",3,"PENDIENTE"]
[3843372021,"SUBDIRECCION DE ADMINISTRACION INMOBILIARIA Y DE ESPACIO PUBLICO","ESCRITO","DERECHO DE PETICION DE INTERES PARTICULAR",2,"PENDIENTE"]
[3843532021,"SUBDIRECCION DE ADMINISTRACION INMOBILIARIA Y DE ESPACIO PUBLICO","ESCRITO","DERECHO DE PETICION DE INTERES PARTICULAR",2,"PENDIENTE"]
[3843622021,"SUBDIRECCION DE REGISTRO INMOBILIARIO","ESCRITO","DERECHO DE PETICION DE INTERES PARTICULAR",2,"PENDIENTE"]
[3843872021,"SUBDIRECCION DE REGISTRO INMOBILIARIO","ESCRITO","DERECHO DE PETICION DE INTERES PARTICULAR",1,"PENDIENTE"]
[3843882021,"SUBDIRECCION DE ADMINISTRACION INMOBILIARIA Y DE ESPACIO PUBLICO","ESCRITO","DERECHO DE PETICION DE INTERES PARTICULAR",2,"PENDIENTE"]
[3848402021,"SUBDIRECCION DE REGISTRO INMOBILIARIO","ESCRITO","DERECHO DE PETICION DE INTERES PARTICULAR",2,"PENDIENTE"]
[3855272021,"OFICINA ASESORA JURIDICA","WEB","DERECHO DE PETICION DE INTERES GENERAL",2,"PENDIENTE"]
[3856272021,"SUBDIRECCION DE ADMINISTRACION INMOBILIARIA Y DE ESPACIO PUBLICO","WEB","DERECHO DE PETICION DE INTERES PARTICULAR",2,"PENDIENTE"]
[3856382021,"SUBDIRECCION DE REGISTRO INMOBILIARIO","WEB","SOLICITUD DE COPIA",2,"PENDIENTE"]
[3858142021,"SUBDIRECCION DE ADMINISTRACION INMOBILIARIA Y DE ESPACIO PUBLICO","WEB","DERECHO DE PETICION DE INTERES GENERAL",1,"PENDIENTE"]
[3858452021,"SUBDIRECCION ADMINISTRATIVA  FINANCIERA Y DE CONTROL DISCIPLINARIO","WEB","DENUNCIA POR ACTOS DE CORRUPCION",2,"PENDIENTE"]
[3866452021,"SUBDIRECCION DE ADMINISTRACION INMOBILIARIA Y DE ESPACIO PUBLICO","WEB","DERECHO DE PETICION DE INTERES PARTICULAR",1,"PENDIENTE"]
[3866482021,"SUBDIRECCION DE REGISTRO INMOBILIARIO","WEB","CONSULTA",1,"PENDIENTE"]
[3868592021,"SUBDIRECCION DE ADMINISTRACION INMOBILIARIA Y DE ESPACIO PUBLICO","ESCRITO","DERECHO DE PETICION DE INTERES PARTICULAR",1,"PENDIENTE"]
[3868692021,"SUBDIRECCION DE ADMINISTRACION INMOBILIARIA Y DE ESPACIO PUBLICO","ESCRITO","DERECHO DE PETICION DE INTERES PARTICULAR",1,"PENDIENTE"]
[3868842021,"SUBDIRECCION DE REGISTRO INMOBILIARIO","ESCRITO","DERECHO DE PETICION DE INTERES PARTICULAR",1,"PENDIENTE"]
[3869072021,"SUBDIRECCION DE ADMINISTRACION INMOBILIARIA Y DE ESPACIO PUBLICO","ESCRITO","DERECHO DE PETICION DE INTERES PARTICULAR",1,"PENDIENTE"]
[3869182021,"SUBDIRECCION DE ADMINISTRACION INMOBILIARIA Y DE ESPACIO PUBLICO","ESCRITO","DERECHO DE PETICION DE INTERES PARTICULAR",1,"PENDIENTE"]
[3869252021,"SUBDIRECCION DE REGISTRO INMOBILIARIO","ESCRITO","DERECHO DE PETICION DE INTERES PARTICULAR",1,"PENDIENTE"]
[3869452021,"SUBDIRECCION DE ADMINISTRACION INMOBILIARIA Y DE ESPACIO PUBLICO","ESCRITO","DERECHO DE PETICION DE INTERES PARTICULAR",1,"PENDIENTE"]
[3869772021,"SUBDIRECCION DE REGISTRO INMOBILIARIO","ESCRITO","DERECHO DE PETICION DE INTERES PARTICULAR",1,"PENDIENTE"]
[3869922021,"SUBDIRECCION DE ADMINISTRACION INMOBILIARIA Y DE ESPACIO PUBLICO","ESCRITO","DERECHO DE PETICION DE INTERES PARTICULAR",1,"PENDIENTE"]
[3870122021,"SUBDIRECCION DE ADMINISTRACION INMOBILIARIA Y DE ESPACIO PUBLICO","ESCRITO","DERECHO DE PETICION DE INTERES PARTICULAR",1,"PENDIENTE"]
[3878552021,"SUBDIRECCION DE ADMINISTRACION INMOBILIARIA Y DE ESPACIO PUBLICO","PRESENCIAL","DERECHO DE PETICION DE INTERES GENERAL",1,"PENDIENTE"]
[3881742021,"SUBDIRECCION DE ADMINISTRACION INMOBILIARIA Y DE ESPACIO PUBLICO","E-MAIL","DERECHO DE PETICION DE INTERES PARTICULAR",1,"PENDIENTE"]
[3882002021,"SUBDIRECCION DE ADMINISTRACION INMOBILIARIA Y DE ESPACIO PUBLICO","ESCRITO","DERECHO DE PETICION DE INTERES PARTICULAR",1,"PENDIENTE"]
[3882072021,"SUBDIRECCION DE ADMINISTRACION INMOBILIARIA Y DE ESPACIO PUBLICO","ESCRITO","DERECHO DE PETICION DE INTERES PARTICULAR",1,"PENDIENTE"]
[3882182021,"SUBDIRECCION DE ADMINISTRACION INMOBILIARIA Y DE ESPACIO PUBLICO","ESCRITO","DERECHO DE PETICION DE INTERES PARTICULAR",1,"PENDIENTE"]
[3882242021,"SUBDIRECCION DE REGISTRO INMOBILIARIO","ESCRITO","DERECHO DE PETICION DE INTERES PARTICULAR",1,"PENDIENTE"]
[3887162021,"SUBDIRECCION DE ADMINISTRACION INMOBILIARIA Y DE ESPACIO PUBLICO","ESCRITO","DERECHO DE PETICION DE INTERES PARTICULAR",1,"PENDIENTE"]
[3887392021,"SUBDIRECCION DE ADMINISTRACION INMOBILIARIA Y DE ESPACIO PUBLICO","ESCRITO","DERECHO DE PETICION DE INTERES PARTICULAR",1,"PENDIENTE"]
[3889502021,"SUBDIRECCION ADMINISTRATIVA  FINANCIERA Y DE CONTROL DISCIPLINARIO","WEB","DENUNCIA POR ACTOS DE CORRUPCION",1,"PENDIENTE"]
[]
["POR TEMAS"]
["DESTINO","TEMA","Cuenta de TEMA"]
["DESPACHO","Peticiones entre entidades",3]
[null,"Asuntos disciplinarios",2]
[null,"Desempeño de la entidad",1]
[null,"Asesoría en administración y sostenibilidad del espacio público",1]
[null,"Consulta radicado",1]
["OFICINA ASESORA JURIDICA","Contratos jurídica",5]
[null,"Asuntos Jurídicos",5]
[null,"Solicitud de Copia",1]
[null,"Competencia otras entidades",1]
["SUBDIRECCION DE ADMINISTRACION INMOBILIARIA Y DE ESPACIO PUBLICO","Asesoría en administración y sostenibilidad del espacio público",55]
[null,"Peticiones entre entidades",39]
[null,"Denuncia otros elementos",37]
[null,"Parqueaderos",23]
[null,"Autorización de uso",22]
["SUBDIRECCION DE REGISTRO INMOBILIARIO","Certificación de la propiedad inmobiliaria distrital",25]
[null,"Entrega de zonas de cesión",10]
[null,"Peticiones entre entidades",6]
[null,"Cabida y linderos",4]
[null,"Denuncia otros elementos",4]
["SUBDIRECCION ADMINISTRATIVA  FINANCIERA Y DE CONTROL DISCIPLINARIO","Competencia otras entidades",6]
[null,"Solicitud de Copia",4]
[null,"Parqueaderos",3]
[null,"Asuntos disciplinarios",2]
[null,"Denuncia otros elementos",1]
["SUBDIRECCION ADMINISTRATIVA Y FINANCIERA","Talento humano",6]
[null,"Denuncia otros elementos",1]
["AREA DE ATENCION A LA CIUDADANIA","Competencia otras entidades",150]
[null,"Denuncia otros elementos",18]
[null,"Denuncia extencion de actividad comercial",6]
[null,"Asesoría en administración y sostenibilidad del espacio público",5]
[null,"Sin información de fondo",4]
[]
[]
[]
[]
[]
["DESTINO","TEMA","Cuenta de TEMA"]
["DESPACHO","Peticiones entre entidades",3]
[null,"Asuntos disciplinarios",2]
[null,"Desempeño de la entidad",1]
[null,"Asesoría en administración y sostenibilidad del espacio público",1]
[null,"Consulta radicado",1]
["OFICINA ASESORA JURIDICA","Contratos jurídica",5]
[null,"Asuntos Jurídicos",5]
[null,"Solicitud de Copia",1]
[null,"Competencia otras entidades",1]
["SUBDIRECCION DE ADMINISTRACION INMOBILIARIA Y DE ESPACIO PUBLICO","Asesoría en administración y sostenibilidad del espacio público",55]
[null,"Peticiones entre entidades",39]
[null,"Denuncia otros elementos",37]
[null,"Parqueaderos",23]
[null,"Autorización de uso",22]
["SUBDIRECCION DE REGISTRO INMOBILIARIO","Certificación_de_la_propiedad_inmobiliaria_distrital",25]
[null,"Entrega de zonas de cesión",10]
[null,"Peticiones entre entidades",6]
[null,"Cabida y linderos",4]
[null,"Denuncia otros elementos",4]
["SUBDIRECCION ADMINISTRATIVA  FINANCIERA Y DE CONTROL DISCIPLINARIO","Competencia otras entidades",6]
[null,"Solicitud de Copia",4]
[null,"Parqueaderos",3]
[null,"Asuntos disciplinarios",2]
[null,"Denuncia otros elementos",1]
[null,"Talento humano",1]
[null,"Solicitud cita",1]
["SUBDIRECCION ADMINISTRATIVA Y FINANCIERA","Talento humano",6]
[null,"Denuncia otros elementos",1]
["AREA DE ATENCION A LA CIUDADANIA","Competencia otras entidades",150]
[null,"Denuncia otros elementos",18]
[null,"Denuncia extencion de actividad comercial",6]
[null,"Asesoría en administración y sostenibilidad del espacio público",5]
[null,"Sin información de fondo",4]